Workbook

Sheet Import Tab
A1: PETRA must be formatted to show left-turns in left-most column --> | B1: Start Date | C1: 2011-12-06 | AK1: Start Date | BC1: Start Date
B2: Start Time | C2: 07:00:00
B3: Site Code | C3: 0
B4: Street Name | C4: 441 NORTH From North | G4: CTH OO NORTHLAND AVE From East | K4: 441 NORTH From South | O4: CTH OO NORTHLAND AVE From West
B5: Start Time | C5: Left | D5: Thru | E5: Right | F5: Peds | G5: Left | H5: Thru | I5: Right | J5: Peds | K5: Left | L5: Thru | M5: Right | N5: Peds | O5: Left | P5: Thru | Q5: Right | R5: Peds
A6: =B6+0.00001 -> 07:00:00.864 | B6: 07:00:00 | C6: 0 | D6: 0 | E6: 0 | F6: 0 | G6: 0 | H6: 112 | I6: 15 | J6: 0 | K6: 82 | L6: 0 | M6: 25 | N6: 0 | O6: 2 | P6: 23 | Q6: 0 | R6: 0
A7: =B7+0.00001 -> 07:00:00.864 | B7: 07:00:00 | C7: 0 | D7: 0 | E7: 0 | F7: 0 | G7: 0 | H7: 0 | I7: 0 | J7: 0 | K7: 0 | L7: 0 | M7: 0 | N7: 0 | O7: 0 | P7: 0 | Q7: 0 | R7: 0
A8: =B8+0.00001 -> 07:00:00.864 | B8: 07:00:00 | C8: 0 | D8: 0 | E8: 0 | F8: 0 | G8: 0 | H8: 1 | I8: 0 | J8: 0 | K8: 0 | L8: 0 | M8: 1 | N8: 0 | O8: 0 | P8: 1 | Q8: 0 | R8: 0
A9: =A6+(0.010417) -> 07:15:00.893 | B9: 07:15:00 | C9: 0 | D9: 0 | E9: 0 | F9: 0 | G9: 0 | H9: 102 | I9: 13 | J9: 1 | K9: 111 | L9: 0 | M9: 30 | N9: 0 | O9: 7 | P9: 32 | Q9: 0 | R9: 0
A10: =A7+(0.010417) -> 07:15:00.893 | B10: 07:15:00 | C10: 0 | D10: 0 | E10: 0 | F10: 0 | G10: 0 | H10: 0 | I10: 0 | J10: 0 | K10: 0 | L10: 0 | M10: 1 | N10: 0 | O10: 1 | P10: 2 | Q10: 0 | R10: 0
A11: 07:15:00.893 | B11: 07:15:00 | C11: 0 | D11: 0 | E11: 0 | F11: 0 | G11: 0 | H11: 0 | I11: 0 | J11: 0 | K11: 3 | L11: 0 | M11: 0 | N11: 0 | O11: 0 | P11: 2 | Q11: 0 | R11: 0
A12: 07:30:00.922 | B12: 07:30:00 | C12: 0 | D12: 0 | E12: 0 | F12: 0 | G12: 0 | H12: 101 | I12: 13 | J12: 0 | K12: 93 | L12: 0 | M12: 31 | N12: 0 | O12: 3 | P12: 35 | Q12: 0 | R12: 0
A13: 07:30:00.922 | B13: 07:30:00 | C13: 0 | D13: 0 | E13: 0 | F13: 0 | G13: 0 | H13: 0 | I13: 1 | J13: 0 | K13: 1 | L13: 0 | M13: 0 | N13: 0 | O13: 0 | P13: 1 | Q13: 0 | R13: 0
A14: 07:30:00.922 | B14: 07:30:00 | C14: 0 | D14: 0 | E14: 0 | F14: 0 | G14: 0 | H14: 0 | I14: 2 | J14: 0 | K14: 1 | L14: 0 | M14: 1 | N14: 0 | O14: 2 | P14: 0 | Q14: 0 | R14: 0
A15: 07:45:00.950 | B15: 07:45:00 | C15: 0 | D15: 0 | E15: 0 | F15: 0 | G15: 0 | H15: 141 | I15: 16 | J15: 0 | K15: 186 | L15: 0 | M15: 59 | N15: 0 | O15: 3 | P15: 53 | Q15: 0 | R15: 0
A16: 07:45:00.950 | B16: 07:45:00 | C16: 0 | D16: 0 | E16: 0 | F16: 0 | G16: 0 | H16: 2 | I16: 0 | J16: 0 | K16: 3 | L16: 0 | M16: 1 | N16: 0 | O16: 0 | P16: 4 | Q16: 0 | R16: 0
A17: 07:45:00.950 | B17: 07:45:00 | C17: 0 | D17: 0 | E17: 0 | F17: 0 | G17: 0 | H17: 0 | I17: 2 | J17: 0 | K17: 0 | L17: 0 | M17: 3 | N17: 0 | O17: 1 | P17: 2 | Q17: 0 | R17: 0
A18: 08:00:00.979 | B18: 08:00:00 | C18: 0 | D18: 0 | E18: 0 | F18: 0 | G18: 0 | H18: 153 | I18: 10 | J18: 0 | K18: 140 | L18: 0 | M18: 51 | N18: 0 | O18: 7 | P18: 34 | Q18: 0 | R18: 0
A19: 08:00:00.979 | B19: 08:00:00 | C19: 0 | D19: 0 | E19: 0 | F19: 0 | G19: 0 | H19: 1 | I19: 0 | J19: 0 | K19: 2 | L19: 0 | M19: 1 | N19: 0 | O19: 0 | P19: 2 | Q19: 0 | R19: 0
A20: 08:00:00.979 | B20: 08:00:00 | C20: 0 | D20: 0 | E20: 0 | F20: 0 | G20: 0 | H20: 4 | I20: 2 | J20: 0 | K20: 0 | L20: 0 | M20: 3 | N20: 0 | O20: 0 | P20: 0 | Q20: 0 | R20: 0
A21: 08:15:01.008 | B21: 08:15:00 | C21: 0 | D21: 0 | E21: 0 | F21: 0 | G21: 0 | H21: 145 | I21: 24 | J21: 0 | K21: 212 | L21: 0 | M21: 73 | N21: 0 | O21: 12 | P21: 32 | Q21: 0 | R21: 0
A22: 08:15:01.008 | B22: 08:15:00 | C22: 0 | D22: 0 | E22: 0 | F22: 0 | G22: 0 | H22: 5 | I22: 3 | J22: 0 | K22: 3 | L22: 0 | M22: 1 | N22: 0 | O22: 0 | P22: 3 | Q22: 0 | R22: 0
A23: 08:15:01.008 | B23: 08:15:00 | C23: 0 | D23: 0 | E23: 0 | F23: 0 | G23: 0 | H23: 1 | I23: 1 | J23: 0 | K23: 1 | L23: 0 | M23: 0 | N23: 0 | O23: 0 | P23: 0 | Q23: 0 | R23: 0
A24: 08:30:01.037 | B24: 08:30:00 | C24: 0 | D24: 0 | E24: 0 | F24: 0 | G24: 0 | H24: 221 | I24: 15 | J24: 0 | K24: 229 | L24: 0 | M24: 63 | N24: 0 | O24: 4 | P24: 34 | Q24: 0 | R24: 0
A25: 08:30:01.037 | B25: 08:30:00 | C25: 0 | D25: 0 | E25: 0 | F25: 0 | G25: 0 | H25: 1 | I25: 3 | J25: 0 | K25: 3 | L25: 0 | M25: 2 | N25: 0 | O25: 0 | P25: 2 | Q25: 0 | R25: 0
A26: 08:30:01.037 | B26: 08:30:00 | C26: 0 | D26: 0 | E26: 0 | F26: 0 | G26: 0 | H26: 2 | I26: 1 | J26: 0 | K26: 1 | L26: 1 | M26: 1 | N26: 0 | O26: 0 | P26: 3 | Q26: 0 | R26: 0
A27: 08:45:01.066 | B27: 08:45:00 | C27: 0 | D27: 0 | E27: 0 | F27: 0 | G27: 0 | H27: 268 | I27: 27 | J27: 0 | K27: 238 | L27: 0 | M27: 61 | N27: 0 | O27: 9 | P27: 50 | Q27: 0 | R27: 0
A28: 08:45:01.066 | B28: 08:45:00 | C28: 0 | D28: 0 | E28: 0 | F28: 0 | G28: 0 | H28: 8 | I28: 1 | J28: 0 | K28: 4 | L28: 0 | M28: 1 | N28: 0 | O28: 0 | P28: 11 | Q28: 0 | R28: 0
A29: 08:45:01.066 | B29: 08:45:00 | C29: 0 | D29: 0 | E29: 0 | F29: 0 | G29: 0 | H29: 1 | I29: 1 | J29: 0 | K29: 0 | L29: 0 | M29: 2 | N29: 0 | O29: 0 | P29: 2 | Q29: 0 | R29: 0
A30: 09:00:01.094 | B30: 09:00:00 | C30: 0 | D30: 0 | E30: 0 | F30: 0 | G30: 0 | H30: 162 | I30: 11 | J30: 0 | K30: 160 | L30: 0 | M30: 36 | N30: 0 | O30: 5 | P30: 34 | Q30: 0 | R30: 0
A31: 09:00:01.094 | B31: 09:00:00 | C31: 0 | D31: 0 | E31: 0 | F31: 0 | G31: 0 | H31: 7 | I31: 0 | J31: 0 | K31: 1 | L31: 0 | M31: 2 | N31: 0 | O31: 2 | P31: 5 | Q31: 0 | R31: 0
A32: 09:00:01.094 | B32: 09:00:00 | C32: 0 | D32: 0 | E32: 0 | F32: 0 | G32: 0 | H32: 1 | I32: 1 | J32: 0 | K32: 3 | L32: 0 | M32: 4 | N32: 0 | O32: 1 | P32: 2 | Q32: 0 | R32: 0
A33: 09:15:01.123 | B33: 09:15:00 | C33: 0 | D33: 0 | E33: 0 | F33: 0 | G33: 0 | H33: 151 | I33: 18 | J33: 0 | K33: 116 | L33: 0 | M33: 54 | N33: 0 | O33: 11 | P33: 48 | Q33: 0 | R33: 0
A34: 09:15:01.123 | B34: 09:15:00 | C34: 0 | D34: 0 | E34: 0 | F34: 0 | G34: 0 | H34: 3 | I34: 2 | J34: 0 | K34: 3 | L34: 0 | M34: 2 | N34: 0 | O34: 0 | P34: 4 | Q34: 0 | R34: 0
A35: 09:15:01.123 | B35: 09:15:00 | C35: 0 | D35: 0 | E35: 0 | F35: 0 | G35: 0 | H35: 2 | I35: 2 | J35: 0 | K35: 6 | L35: 0 | M35: 4 | N35: 0 | O35: 1 | P35: 0 | Q35: 0 | R35: 0
A36: 09:30:01.152 | B36: 09:30:00 | C36: 0 | D36: 0 | E36: 0 | F36: 0 | G36: 0 | H36: 116 | I36: 13 | J36: 0 | K36: 124 | L36: 0 | M36: 44 | N36: 0 | O36: 3 | P36: 41 | Q36: 0 | R36: 0
A37: 09:30:01.152 | B37: 09:30:00 | C37: 0 | D37: 0 | E37: 0 | F37: 0 | G37: 0 | H37: 7 | I37: 3 | J37: 0 | K37: 3 | L37: 0 | M37: 2 | N37: 0 | O37: 2 | P37: 6 | Q37: 0 | R37: 0
A38: 09:30:01.152 | B38: 09:30:00 | C38: 0 | D38: 0 | E38: 0 | F38: 0 | G38: 0 | H38: 4 | I38: 4 | J38: 0 | K38: 1 | L38: 0 | M38: 3 | N38: 0 | O38: 0 | P38: 2 | Q38: 0 | R38: 0
A39: 09:45:01.181 | B39: 09:45:00 | C39: 0 | D39: 0 | E39: 0 | F39: 0 | G39: 0 | H39: 127 | I39: 15 | J39: 0 | K39: 126 | L39: 0 | M39: 44 | N39: 0 | O39: 9 | P39: 41 | Q39: 0 | R39: 0
A40: 09:45:01.181 | B40: 09:45:00 | C40: 0 | D40: 0 | E40: 0 | F40: 0 | G40: 0 | H40: 2 | I40: 1 | J40: 0 | K40: 2 | L40: 0 | M40: 0 | N40: 0 | O40: 1 | P40: 5 | Q40: 0 | R40: 0
A41: 09:45:01.181 | B41: 09:45:00 | C41: 0 | D41: 0 | E41: 0 | F41: 0 | G41: 0 | H41: 2 | I41: 3 | J41: 0 | K41: 2 | L41: 0 | M41: 3 | N41: 0 | O41: 3 | P41: 2 | Q41: 0 | R41: 0
A42: 10:00:01.210 | B42: 10:00:00 | C42: 0 | D42: 0 | E42: 0 | F42: 0 | G42: 0 | H42: 115 | I42: 7 | J42: 0 | K42: 75 | L42: 0 | M42: 38 | N42: 0 | O42: 9 | P42: 43 | Q42: 0 | R42: 0
A43: 10:00:01.210 | B43: 10:00:00 | C43: 0 | D43: 0 | E43: 0 | F43: 0 | G43: 0 | H43: 0 | I43: 0 | J43: 0 | K43: 0 | L43: 0 | M43: 0 | N43: 0 | O43: 0 | P43: 0 | Q43: 0 | R43: 0
A44: 10:00:01.210 | B44: 10:00:00 | C44: 0 | D44: 0 | E44: 0 | F44: 0 | G44: 0 | H44: 0 | I44: 0 | J44: 0 | K44: 0 | L44: 0 | M44: 0 | N44: 0 | O44: 0 | P44: 0 | Q44: 0 | R44: 0
A45: 10:15:01.238 | B45: 10:15:00 | C45: 0 | D45: 0 | E45: 0 | F45: 0 | G45: 0 | H45: 90 | I45: 8 | J45: 0 | K45: 58 | L45: 0 | M45: 32 | N45: 0 | O45: 9 | P45: 46 | Q45: 0 | R45: 0
A46: 10:15:01.238 | B46: 10:15:00 | C46: 0 | D46: 0 | E46: 0 | F46: 0 | G46: 0 | H46: 2 | I46: 2 | J46: 0 | K46: 5 | L46: 0 | M46: 1 | N46: 0 | O46: 0 | P46: 3 | Q46: 0 | R46: 0
A47: 10:15:01.238 | B47: 10:15:00 | C47: 0 | D47: 0 | E47: 0 | F47: 0 | G47: 0 | H47: 2 | I47: 4 | J47: 0 | K47: 2 | L47: 0 | M47: 4 | N47: 0 | O47: 1 | P47: 5 | Q47: 0 | R47: 0
A48: 10:30:01.267 | B48: 10:30:00 | C48: 0 | D48: 0 | E48: 0 | F48: 0 | G48: 0 | H48: 96 | I48: 9 | J48: 0 | K48: 71 | L48: 0 | M48: 25 | N48: 0 | O48: 11 | P48: 38 | Q48: 0 | R48: 0
A49: 10:30:01.267 | B49: 10:30:00 | C49: 0 | D49: 0 | E49: 0 | F49: 0 | G49: 0 | H49: 3 | I49: 1 | J49: 0 | K49: 2 | L49: 0 | M49: 2 | N49: 0 | O49: 0 | P49: 6 | Q49: 0 | R49: 0
A50: 10:30:01.267 | B50: 10:30:00 | C50: 0 | D50: 0 | E50: 0 | F50: 0 | G50: 0 | H50: 5 | I50: 0 | J50: 0 | K50: 5 | L50: 0 | M50: 1 | N50: 0 | O50: 3 | P50: 1 | Q50: 0 | R50: 0
A51: 10:45:01.296 | B51: 10:45:00 | C51: 0 | D51: 0 | E51: 0 | F51: 0 | G51: 0 | H51: 87 | I51: 12 | J51: 0 | K51: 65 | L51: 0 | M51: 33 | N51: 0 | O51: 5 | P51: 51 | Q51: 0 | R51: 0
A52: 10:45:01.296 | B52: 10:45:00 | C52: 0 | D52: 0 | E52: 0 | F52: 0 | G52: 0 | H52: 3 | I52: 2 | J52: 0 | K52: 3 | L52: 0 | M52: 1 | N52: 0 | O52: 1 | P52: 4 | Q52: 0 | R52: 0
A53: 10:45:01.296 | B53: 10:45:00 | C53: 0 | D53: 0 | E53: 0 | F53: 0 | G53: 0 | H53: 5 | I53: 2 | J53: 0 | K53: 3 | L53: 0 | M53: 5 | N53: 0 | O53: 0 | P53: 2 | Q53: 0 | R53: 0
A54: 11:00:01.325 | B54: 11:00:00 | C54: 0 | D54: 0 | E54: 0 | F54: 0 | G54: 0 | H54: 100 | I54: 12 | J54: 0 | K54: 59 | L54: 0 | M54: 35 | N54: 0 | O54: 7 | P54: 49 | Q54: 0 | R54: 0
A55: 11:00:01.325 | B55: 11:00:00 | C55: 0 | D55: 0 | E55: 0 | F55: 0 | G55: 0 | H55: 4 | I55: 2 | J55: 0 | K55: 1 | L55: 0 | M55: 0 | N55: 0 | O55: 0 | P55: 2 | Q55: 0 | R55: 0
A56: 11:00:01.325 | B56: 11:00:00 | C56: 0 | D56: 0 | E56: 0 | F56: 0 | G56: 0 | H56: 0 | I56: 5 | J56: 0 | K56: 1 | L56: 0 | M56: 3 | N56: 0 | O56: 2 | P56: 4 | Q56: 0 | R56: 0
A57: 11:15:01.354 | B57: 11:15:00 | C57: 0 | D57: 0 | E57: 0 | F57: 0 | G57: 0 | H57: 79 | I57: 11 | J57: 0 | K57: 61 | L57: 0 | M57: 37 | N57: 0 | O57: 5 | P57: 48 | Q57: 0 | R57: 0
A58: 11:15:01.354 | B58: 11:15:00 | C58: 0 | D58: 0 | E58: 0 | F58: 0 | G58: 0 | H58: 7 | I58: 1 | J58: 0 | K58: 4 | L58: 0 | M58: 1 | N58: 0 | O58: 0 | P58: 5 | Q58: 0 | R58: 0
A59: 11:15:01.354 | B59: 11:15:00 | C59: 0 | D59: 0 | E59: 0 | F59: 0 | G59: 0 | H59: 5 | I59: 3 | J59: 0 | K59: 5 | L59: 0 | M59: 1 | N59: 0 | O59: 0 | P59: 1 | Q59: 0 | R59: 0
A60: 11:30:01.382 | B60: 11:30:00 | C60: 0 | D60: 0 | E60: 0 | F60: 0 | G60: 0 | H60: 92 | I60: 11 | J60: 0 | K60: 59 | L60: 0 | M60: 37 | N60: 0 | O60: 6 | P60: 43 | Q60: 0 | R60: 0
A61: 11:30:01.382 | B61: 11:30:00 | C61: 0 | D61: 0 | E61: 0 | F61: 0 | G61: 0 | H61: 6 | I61: 1 | J61: 0 | K61: 3 | L61: 0 | M61: 1 | N61: 0 | O61: 0 | P61: 9 | Q61: 0 | R61: 0
A62: 11:30:01.382 | B62: 11:30:00 | C62: 0 | D62: 0 | E62: 0 | F62: 0 | G62: 0 | H62: 2 | I62: 3 | J62: 0 | K62: 3 | L62: 0 | M62: 2 | N62: 0 | O62: 0 | P62: 2 | Q62: 0 | R62: 0
A63: 11:45:01.411 | B63: 11:45:00 | C63: 0 | D63: 0 | E63: 0 | F63: 0 | G63: 0 | H63: 100 | I63: 13 | J63: 0 | K63: 68 | L63: 0 | M63: 44 | N63: 0 | O63: 4 | P63: 53 | Q63: 0 | R63: 0
A64: 11:45:01.411 | B64: 11:45:00 | C64: 0 | D64: 0 | E64: 0 | F64: 0 | G64: 0 | H64: 9 | I64: 0 | J64: 0 | K64: 1 | L64: 0 | M64: 2 | N64: 0 | O64: 0 | P64: 6 | Q64: 0 | R64: 0
A65: 11:45:01.411 | B65: 11:45:00 | C65: 0 | D65: 0 | E65: 0 | F65: 0 | G65: 0 | H65: 1 | I65: 3 | J65: 0 | K65: 2 | L65: 0 | M65: 2 | N65: 0 | O65: 3 | P65: 3 | Q65: 0 | R65: 0
A66: 12:00:01.440 | B66: 12:00:00 | C66: 0 | D66: 0 | E66: 0 | F66: 0 | G66: 0 | H66: 91 | I66: 7 | J66: 0 | K66: 85 | L66: 0 | M66: 30 | N66: 0 | O66: 8 | P66: 53 | Q66: 0 | R66: 0
A67: 12:00:01.440 | B67: 12:00:00 | C67: 0 | D67: 0 | E67: 0 | F67: 0 | G67: 0 | H67: 7 | I67: 1 | J67: 0 | K67: 4 | L67: 0 | M67: 2 | N67: 0 | O67: 0 | P67: 6 | Q67: 0 | R67: 0
A68: 12:00:01.440 | B68: 12:00:00 | C68: 0 | D68: 0 | E68: 0 | F68: 0 | G68: 0 | H68: 0 | I68: 1 | J68: 0 | K68: 6 | L68: 0 | M68: 5 | N68: 0 | O68: 4 | P68: 2 | Q68: 0 | R68: 0
A69: 12:15:01.469 | B69: 12:15:00 | C69: 0 | D69: 0 | E69: 0 | F69: 0 | G69: 0 | H69: 101 | I69: 9 | J69: 0 | K69: 95 | L69: 4 | M69: 51 | N69: 0 | O69: 4 | P69: 77 | Q69: 0 | R69: 0
A70: 12:15:01.469 | B70: 12:15:00 | C70: 0 | D70: 0 | E70: 0 | F70: 0 | G70: 0 | H70: 4 | I70: 0 | J70: 0 | K70: 1 | L70: 0 | M70: 0 | N70: 0 | O70: 0 | P70: 2 | Q70: 0 | R70: 0
A71: 12:15:01.469 | B71: 12:15:00 | C71: 0 | D71: 0 | E71: 0 | F71: 0 | G71: 0 | H71: 4 | I71: 0 | J71: 0 | K71: 3 | L71: 0 | M71: 3 | N71: 0 | O71: 1 | P71: 4 | Q71: 0 | R71: 0
A72: 12:30:01.498 | B72: 12:30:00 | C72: 0 | D72: 0 | E72: 0 | F72: 0 | G72: 0 | H72: 104 | I72: 12 | J72: 0 | K72: 80 | L72: 0 | M72: 43 | N72: 0 | O72: 3 | P72: 81 | Q72: 0 | R72: 0
A73: 12:30:01.498 | B73: 12:30:00 | C73: 0 | D73: 0 | E73: 0 | F73: 0 | G73: 0 | H73: 3 | I73: 0 | J73: 0 | K73: 3 | L73: 0 | M73: 1 | N73: 0 | O73: 1 | P73: 4 | Q73: 0 | R73: 0
A74: =A71+(0.010417) -> 12:30:01.498 | B74: 12:30:00 | C74: 0 | D74: 0 | E74: 0 | F74: 0 | G74: 0 | H74: 3 | I74: 3 | J74: 0 | K74: 0 | L74: 0 | M74: 5 | N74: 0 | O74: 1 | P74: 1 | Q74: 0 | R74: 0
A75: 12:45:01.526 | B75: 12:45:00 | C75: 0 | D75: 0 | E75: 0 | F75: 0 | G75: 0 | H75: 105 | I75: 9 | J75: 0 | K75: 100 | L75: 0 | M75: 57 | N75: 0 | O75: 4 | P75: 53 | Q75: 0 | R75: 0
A76: 12:45:01.526 | B76: 12:45:00 | C76: 0 | D76: 0 | E76: 0 | F76: 0 | G76: 0 | H76: 3 | I76: 1 | J76: 0 | K76: 3 | L76: 0 | M76: 5 | N76: 0 | O76: 0 | P76: 2 | Q76: 0 | R76: 0
A77: 12:45:01.526 | B77: 12:45:00 | C77: 0 | D77: 0 | E77: 0 | F77: 0 | G77: 0 | H77: 3 | I77: 1 | J77: 0 | K77: 2 | L77: 0 | M77: 3 | N77: 0 | O77: 3 | P77: 3 | Q77: 0 | R77: 0
A78: 13:00:01.555 | B78: 13:00:00 | C78: 0 | D78: 0 | E78: 0 | F78: 0 | G78: 0 | H78: 88 | I78: 8 | J78: 0 | K78: 94 | L78: 0 | M78: 39 | N78: 0 | O78: 11 | P78: 65 | Q78: 0 | R78: 0
A79: 13:00:01.555 | B79: 13:00:00 | C79: 0 | D79: 0 | E79: 0 | F79: 0 | G79: 0 | H79: 6 | I79: 0 | J79: 0 | K79: 2 | L79: 0 | M79: 1 | N79: 0 | O79: 2 | P79: 5 | Q79: 0 | R79: 0
A80: 13:00:01.555 | B80: 13:00:00 | C80: 0 | D80: 0 | E80: 0 | F80: 0 | G80: 0 | H80: 3 | I80: 3 | J80: 0 | K80: 2 | L80: 0 | M80: 2 | N80: 0 | O80: 1 | P80: 0 | Q80: 0 | R80: 0
A81: 13:15:01.584 | B81: 13:15:00 | C81: 0 | D81: 0 | E81: 0 | F81: 0 | G81: 0 | H81: 101 | I81: 13 | J81: 0 | K81: 88 | L81: 0 | M81: 38 | N81: 0 | O81: 8 | P81: 73 | Q81: 0 | R81: 0
A82: 13:15:01.584 | B82: 13:15:00 | C82: 0 | D82: 0 | E82: 0 | F82: 0 | G82: 0 | H82: 4 | I82: 3 | J82: 0 | K82: 4 | L82: 0 | M82: 1 | N82: 0 | O82: 1 | P82: 2 | Q82: 0 | R82: 0
A83: 13:15:01.584 | B83: 13:15:00 | C83: 0 | D83: 0 | E83: 0 | F83: 0 | G83: 0 | H83: 2 | I83: 2 | J83: 0 | K83: 0 | L83: 0 | M83: 3 | N83: 0 | O83: 1 | P83: 2 | Q83: 0 | R83: 0
A84: 13:30:01.613 | B84: 13:30:00 | C84: 0 | D84: 0 | E84: 0 | F84: 0 | G84: 0 | H84: 101 | I84: 11 | J84: 0 | K84: 111 | L84: 0 | M84: 48 | N84: 0 | O84: 8 | P84: 55 | Q84: 0 | R84: 0
A85: 13:30:01.613 | B85: 13:30:00 | C85: 0 | D85: 0 | E85: 0 | F85: 0 | G85: 0 | H85: 6 | I85: 2 | J85: 0 | K85: 0 | L85: 0 | M85: 1 | N85: 0 | O85: 0 | P85: 6 | Q85: 0 | R85: 0
A86: 13:30:01.613 | B86: 13:30:00 | C86: 0 | D86: 0 | E86: 0 | F86: 0 | G86: 0 | H86: 3 | I86: 1 | J86: 0 | K86: 2 | L86: 0 | M86: 1 | N86: 0 | O86: 0 | P86: 3 | Q86: 0 | R86: 0
A87: 13:45:01.642 | B87: 13:45:00 | C87: 0 | D87: 0 | E87: 0 | F87: 0 | G87: 0 | H87: 101 | I87: 10 | J87: 0 | K87: 102 | L87: 0 | M87: 56 | N87: 0 | O87: 15 | P87: 64 | Q87: 0 | R87: 0
A88: 13:45:01.642 | B88: 13:45:00 | C88: 0 | D88: 0 | E88: 0 | F88: 0 | G88: 0 | H88: 5 | I88: 1 | J88: 0 | K88: 1 | L88: 0 | M88: 5 | N88: 0 | O88: 2 | P88: 1 | Q88: 0 | R88: 0
A89: 13:45:01.642 | B89: 13:45:00 | C89: 0 | D89: 0 | E89: 0 | F89: 0 | G89: 0 | H89: 0 | I89: 1 | J89: 0 | K89: 0 | L89: 0 | M89: 3 | N89: 0 | O89: 2 | P89: 3 | Q89: 0 | R89: 0
A90: 14:00:01.670 | B90: 14:00:00 | C90: 0 | D90: 0 | E90: 0 | F90: 0 | G90: 0 | H90: 119 | I90: 13 | J90: 0 | K90: 113 | L90: 0 | M90: 48 | N90: 0 | O90: 8 | P90: 64 | Q90: 0 | R90: 0
A91: 14:00:01.670 | B91: 14:00:00 | C91: 0 | D91: 0 | E91: 0 | F91: 0 | G91: 0 | H91: 2 | I91: 0 | J91: 0 | K91: 4 | L91: 0 | M91: 2 | N91: 0 | O91: 0 | P91: 2 | Q91: 0 | R91: 0
A92: 14:00:01.670 | B92: 14:00:00 | C92: 0 | D92: 0 | E92: 0 | F92: 0 | G92: 0 | H92: 3 | I92: 0 | J92: 0 | K92: 2 | L92: 0 | M92: 2 | N92: 0 | O92: 0 | P92: 6 | Q92: 0 | R92: 0
A93: 14:15:01.699 | B93: 14:15:00 | C93: 0 | D93: 0 | E93: 0 | F93: 0 | G93: 0 | H93: 89 | I93: 11 | J93: 0 | K93: 76 | L93: 0 | M93: 54 | N93: 0 | O93: 6 | P93: 67 | Q93: 0 | R93: 0
A94: 14:15:01.699 | B94: 14:15:00 | C94: 0 | D94: 0 | E94: 0 | F94: 0 | G94: 0 | H94: 1 | I94: 1 | J94: 0 | K94: 2 | L94: 0 | M94: 1 | N94: 0 | O94: 0 | P94: 4 | Q94: 0 | R94: 0
A95: 14:15:01.699 | B95: 14:15:00 | C95: 0 | D95: 0 | E95: 0 | F95: 0 | G95: 0 | H95: 2 | I95: 0 | J95: 0 | K95: 2 | L95: 0 | M95: 6 | N95: 0 | O95: 2 | P95: 2 | Q95: 0 | R95: 0
A96: 14:30:01.728 | B96: 14:30:00 | C96: 0 | D96: 0 | E96: 0 | F96: 0 | G96: 0 | H96: 108 | I96: 9 | J96: 0 | K96: 103 | L96: 0 | M96: 45 | N96: 0 | O96: 4 | P96: 90 | Q96: 0 | R96: 0
A97: 14:30:01.728 | B97: 14:30:00 | C97: 0 | D97: 0 | E97: 0 | F97: 0 | G97: 0 | H97: 5 | I97: 0 | J97: 0 | K97: 5 | L97: 0 | M97: 1 | N97: 0 | O97: 1 | P97: 10 | Q97: 0 | R97: 0
A98: 14:30:01.728 | B98: 14:30:00 | C98: 0 | D98: 0 | E98: 0 | F98: 0 | G98: 0 | H98: 2 | I98: 3 | J98: 0 | K98: 5 | L98: 0 | M98: 5 | N98: 0 | O98: 3 | P98: 0 | Q98: 0 | R98: 0
A99: 14:45:01.757 | B99: 14:45:00 | C99: 0 | D99: 0 | E99: 0 | F99: 0 | G99: 0 | H99: 96 | I99: 10 | J99: 0 | K99: 103 | L99: 0 | M99: 50 | N99: 0 | O99: 10 | P99: 79 | Q99: 0 | R99: 0
A100: 14:45:01.757 | B100: 14:45:00 | C100: 0 | D100: 0 | E100: 0 | F100: 0 | G100: 0 | H100: 4 | I100: 2 | J100: 0 | K100: 2 | L100: 0 | M100: 0 | N100: 0 | O100: 2 | P100: 4 | Q100: 0 | R100: 0
A101: 14:45:01.757 | B101: 14:45:00 | C101: 0 | D101: 0 | E101: 0 | F101: 0 | G101: 0 | H101: 10 | I101: 1 | J101: 0 | K101: 0 | L101: 0 | M101: 2 | N101: 0 | O101: 0 | P101: 0 | Q101: 0 | R101: 0
A102: 15:00:01.786 | B102: 15:00:00 | C102: 0 | D102: 0 | E102: 0 | F102: 0 | G102: 0 | H102: 117 | I102: 14 | J102: 0 | K102: 85 | L102: 1 | M102: 49 | N102: 0 | O102: 12 | P102: 71 | Q102: 0 | R102: 0
A103: 15:00:01.786 | B103: 15:00:00 | C103: 0 | D103: 0 | E103: 0 | F103: 0 | G103: 0 | H103: 5 | I103: 2 | J103: 0 | K103: 4 | L103: 0 | M103: 0 | N103: 0 | O103: 0 | P103: 3 | Q103: 0 | R103: 0
A104: 15:00:01.786 | B104: 15:00:00 | C104: 0 | D104: 0 | E104: 0 | F104: 0 | G104: 0 | H104: 5 | I104: 2 | J104: 0 | K104: 4 | L104: 0 | M104: 2 | N104: 0 | O104: 2 | P104: 3 | Q104: 0 | R104: 0
A105: 15:15:01.814 | B105: 15:15:00 | C105: 0 | D105: 0 | E105: 0 | F105: 0 | G105: 0 | H105: 110 | I105: 9 | J105: 0 | K105: 112 | L105: 0 | M105: 77 | N105: 0 | O105: 8 | P105: 82 | Q105: 0 | R105: 0
A106: 15:15:01.814 | B106: 15:15:00 | C106: 0 | D106: 0 | E106: 0 | F106: 0 | G106: 0 | H106: 4 | I106: 2 | J106: 0 | K106: 1 | L106: 0 | M106: 2 | N106: 0 | O106: 0 | P106: 7 | Q106: 0 | R106: 0
A107: 15:15:01.814 | B107: 15:15:00 | C107: 0 | D107: 0 | E107: 0 | F107: 0 | G107: 0 | H107: 0 | I107: 1 | J107: 0 | K107: 6 | L107: 0 | M107: 0 | N107: 0 | O107: 1 | P107: 1 | Q107: 0 | R107: 0
A108: 15:30:01.843 | B108: 15:30:00 | C108: 0 | D108: 0 | E108: 0 | F108: 0 | G108: 0 | H108: 100 | I108: 13 | J108: 0 | K108: 85 | L108: 0 | M108: 70 | N108: 0 | O108: 29 | P108: 112 | Q108: 0 | R108: 0
A109: 15:30:01.843 | B109: 15:30:00 | C109: 0 | D109: 0 | E109: 0 | F109: 0 | G109: 0 | H109: 1 | I109: 1 | J109: 0 | K109: 5 | L109: 0 | M109: 1 | N109: 0 | O109: 1 | P109: 4 | Q109: 0 | R109: 0
A110: 15:30:01.843 | B110: 15:30:00 | C110: 0 | D110: 0 | E110: 0 | F110: 0 | G110: 0 | H110: 1 | I110: 0 | J110: 0 | K110: 1 | L110: 0 | M110: 4 | N110: 0 | O110: 3 | P110: 4 | Q110: 0 | R110: 0
A111: 15:45:01.872 | B111: 15:45:00 | C111: 0 | D111: 0 | E111: 0 | F111: 0 | G111: 0 | H111: 104 | I111: 17 | J111: 1 | K111: 106 | L111: 0 | M111: 75 | N111: 1 | O111: 30 | P111: 99 | Q111: 0 | R111: 0
A112: 15:45:01.872 | B112: 15:45:00 | C112: 0 | D112: 0 | E112: 0 | F112: 0 | G112: 0 | H112: 2 | I112: 3 | J112: 0 | K112: 3 | L112: 0 | M112: 4 | N112: 0 | O112: 0 | P112: 8 | Q112: 0 | R112: 0
A113: 15:45:01.872 | B113: 15:45:00 | C113: 0 | D113: 0 | E113: 0 | F113: 0 | G113: 0 | H113: 4 | I113: 3 | J113: 0 | K113: 0 | L113: 0 | M113: 1 | N113: 0 | O113: 1 | P113: 2 | Q113: 0 | R113: 0
A114: 16:00:01.901 | B114: 16:00:00 | C114: 0 | D114: 0 | E114: 0 | F114: 0 | G114: 0 | H114: 112 | I114: 12 | J114: 1 | K114: 110 | L114: 0 | M114: 66 | N114: 0 | O114: 15 | P114: 85 | Q114: 0 | R114: 0
A115: 16:00:01.901 | B115: 16:00:00 | C115: 0 | D115: 0 | E115: 0 | F115: 0 | G115: 0 | H115: 2 | I115: 2 | J115: 0 | K115: 9 | L115: 0 | M115: 0 | N115: 0 | O115: 0 | P115: 3 | Q115: 0 | R115: 0
A116: 16:00:01.901 | B116: 16:00:00 | C116: 0 | D116: 0 | E116: 0 | F116: 0 | G116: 0 | H116: 3 | I116: 2 | J116: 0 | K116: 2 | L116: 0 | M116: 3 | N116: 0 | O116: 0 | P116: 3 | Q116: 0 | R116: 0
A117: 16:15:01.930 | B117: 16:15:00 | C117: 0 | D117: 0 | E117: 0 | F117: 0 | G117: 0 | H117: 149 | I117: 13 | J117: 0 | K117: 91 | L117: 0 | M117: 74 | N117: 0 | O117: 12 | P117: 109 | Q117: 0 | R117: 0
A118: 16:15:01.930 | B118: 16:15:00 | C118: 0 | D118: 0 | E118: 0 | F118: 0 | G118: 0 | H118: 5 | I118: 4 | J118: 1 | K118: 0 | L118: 0 | M118: 0 | N118: 0 | O118: 0 | P118: 1 | Q118: 0 | R118: 0
A119: 16:15:01.930 | B119: 16:15:00 | C119: 0 | D119: 0 | E119: 0 | F119: 0 | G119: 0 | H119: 0 | I119: 2 | J119: 0 | K119: 3 | L119: 0 | M119: 2 | N119: 0 | O119: 0 | P119: 2 | Q119: 0 | R119: 0
A120: 16:30:01.958 | B120: 16:30:00 | C120: 0 | D120: 0 | E120: 0 | F120: 0 | G120: 0 | H120: 150 | I120: 13 | J120: 2 | K120: 114 | L120: 0 | M120: 89 | N120: 0 | O120: 17 | P120: 121 | Q120: 0 | R120: 0
A121: 16:30:01.958 | B121: 16:30:00 | C121: 0 | D121: 0 | E121: 0 | F121: 0 | G121: 0 | H121: 4 | I121: 1 | J121: 0 | K121: 4 | L121: 0 | M121: 2 | N121: 0 | O121: 0 | P121: 3 | Q121: 0 | R121: 0
A122: 16:30:01.958 | B122: 16:30:00 | C122: 0 | D122: 0 | E122: 0 | F122: 0 | G122: 0 | H122: 1 | I122: 2 | J122: 0 | K122: 4 | L122: 0 | M122: 0 | N122: 0 | O122: 0 | P122: 1 | Q122: 0 | R122: 0
A123: 16:45:01.987 | B123: 16:45:00 | C123: 0 | D123: 0 | E123: 0 | F123: 0 | G123: 0 | H123: 105 | I123: 22 | J123: 0 | K123: 102 | L123: 0 | M123: 105 | N123: 0 | O123: 15 | P123: 117 | Q123: 0 | R123: 0
A124: 16:45:01.987 | B124: 16:45:00 | C124: 0 | D124: 0 | E124: 0 | F124: 0 | G124: 0 | H124: 4 | I124: 2 | J124: 0 | K124: 1 | L124: 0 | M124: 2 | N124: 0 | O124: 0 | P124: 2 | Q124: 0 | R124: 0
A125: 16:45:01.987 | B125: 16:45:00 | C125: 0 | D125: 0 | E125: 0 | F125: 0 | G125: 0 | H125: 0 | I125: 1 | J125: 0 | K125: 2 | L125: 0 | M125: 1 | N125: 0 | O125: 1 | P125: 1 | Q125: 0 | R125: 0
A126: 17:00:02.016 | B126: 17:00:00 | C126: 0 | D126: 0 | E126: 0 | F126: 0 | G126: 0 | H126: 129 | I126: 12 | J126: 0 | K126: 87 | L126: 0 | M126: 76 | N126: 3 | O126: 37 | P126: 117 | Q126: 0 | R126: 0
A127: 17:00:02.016 | B127: 17:00:00 | C127: 0 | D127: 0 | E127: 0 | F127: 0 | G127: 0 | H127: 3 | I127: 2 | J127: 0 | K127: 3 | L127: 0 | M127: 3 | N127: 0 | O127: 3 | P127: 1 | Q127: 0 | R127: 0
A128: 17:00:02.016 | B128: 17:00:00 | C128: 0 | D128: 0 | E128: 0 | F128: 0 | G128: 0 | H128: 1 | I128: 0 | J128: 0 | K128: 0 | L128: 0 | M128: 2 | N128: 0 | O128: 0 | P128: 0 | Q128: 0 | R128: 0
A129: 17:15:02.045 | B129: 17:15:00 | C129: 0 | D129: 0 | E129: 0 | F129: 0 | G129: 0 | H129: 124 | I129: 10 | J129: 0 | K129: 108 | L129: 0 | M129: 124 | N129: 0 | O129: 27 | P129: 125 | Q129: 0 | R129: 0
A130: 17:15:02.045 | B130: 17:15:00 | C130: 0 | D130: 0 | E130: 0 | F130: 0 | G130: 0 | H130: 1 | I130: 0 | J130: 0 | K130: 4 | L130: 0 | M130: 3 | N130: 0 | O130: 0 | P130: 0 | Q130: 0 | R130: 0
A131: 17:15:02.045 | B131: 17:15:00 | C131: 0 | D131: 0 | E131: 0 | F131: 0 | G131: 0 | H131: 0 | I131: 0 | J131: 0 | K131: 3 | L131: 0 | M131: 2 | N131: 0 | O131: 0 | P131: 1 | Q131: 0 | R131: 0
A132: 17:30:02.074 | B132: 17:30:00 | C132: 0 | D132: 0 | E132: 0 | F132: 0 | G132: 0 | H132: 142 | I132: 14 | J132: 0 | K132: 89 | L132: 0 | M132: 124 | N132: 0 | O132: 29 | P132: 143 | Q132: 0 | R132: 0
A133: 17:30:02.074 | B133: 17:30:00 | C133: 0 | D133: 0 | E133: 0 | F133: 0 | G133: 0 | H133: 2 | I133: 1 | J133: 0 | K133: 1 | L133: 0 | M133: 1 | N133: 0 | O133: 0 | P133: 0 | Q133: 0 | R133: 0
A134: 17:30:02.074 | B134: 17:30:00 | C134: 0 | D134: 0 | E134: 0 | F134: 0 | G134: 0 | H134: 0 | I134: 1 | J134: 0 | K134: 2 | L134: 0 | M134: 3 | N134: 0 | O134: 2 | P134: 5 | Q134: 0 | R134: 0
A135: 17:45:02.102 | B135: 17:45:00 | C135: 0 | D135: 0 | E135: 0 | F135: 0 | G135: 0 | H135: 157 | I135: 16 | J135: 0 | K135: 117 | L135: 0 | M135: 147 | N135: 1 | O135: 35 | P135: 127 | Q135: 0 | R135: 0
A136: 17:45:02.102 | B136: 17:45:00 | C136: 0 | D136: 0 | E136: 0 | F136: 0 | G136: 0 | H136: 0 | I136: 0 | J136: 0 | K136: 0 | L136: 0 | M136: 1 | N136: 0 | O136: 0 | P136: 0 | Q136: 0 | R136: 0
A137: 17:45:02.102 | B137: 17:45:00 | C137: 0 | D137: 0 | E137: 0 | F137: 0 | G137: 0 | H137: 0 | I137: 0 | J137: 0 | K137: 0 | L137: 0 | M137: 4 | N137: 0 | O137: 0 | P137: 1 | Q137: 0 | R137: 0
A138: =A135+(0.010417) -> 18:00:02.131 | B138: 18:00:00 | C138: 0 | D138: 0 | E138: 0 | F138: 0 | G138: 0 | H138: 138 | I138: 20 | J138: 0 | K138: 94 | L138: 0 | M138: 103 | N138: 0 | O138: 24 | P138: 126 | Q138: 0 | R138: 0
A139: 18:00:02.131 | B139: 18:00:00 | C139: 0 | D139: 0 | E139: 0 | F139: 0 | G139: 0 | H139: 1 | I139: 0 | J139: 0 | K139: 1 | L139: 0 | M139: 0 | N139: 0 | O139: 0 | P139: 0 | Q139: 0 | R139: 0
A140: 18:00:02.131 | B140: 18:00:00 | C140: 0 | D140: 0 | E140: 0 | F140: 0 | G140: 0 | H140: 0 | I140: 0 | J140: 0 | K140: 1 | L140: 0 | M140: 1 | N140: 0 | O140: 0 | P140: 0 | Q140: 0 | R140: 0
A141: 18:15:02.160 | B141: 18:15:00 | C141: 0 | D141: 0 | E141: 0 | F141: 0 | G141: 0 | H141: 145 | I141: 11 | J141: 0 | K141: 107 | L141: 0 | M141: 132 | N141: 2 | O141: 18 | P141: 142 | Q141: 0 | R141: 0
A142: 18:15:02.160 | B142: 18:15:00 | C142: 0 | D142: 0 | E142: 0 | F142: 0 | G142: 0 | H142: 1 | I142: 0 | J142: 0 | K142: 0 | L142: 0 | M142: 1 | N142: 0 | O142: 0 | P142: 0 | Q142: 0 | R142: 0
A143: 18:15:02.160 | B143: 18:15:00 | C143: 0 | D143: 0 | E143: 0 | F143: 0 | G143: 0 | H143: 4 | I143: 1 | J143: 0 | K143: 1 | L143: 0 | M143: 4 | N143: 0 | O143: 1 | P143: 0 | Q143: 0 | R143: 0
A144: 18:30:02.189 | B144: 18:30:00 | C144: 0 | D144: 0 | E144: 0 | F144: 0 | G144: 0 | H144: 119 | I144: 19 | J144: 0 | K144: 74 | L144: 0 | M144: 107 | N144: 0 | O144: 18 | P144: 94 | Q144: 0 | R144: 0
A145: 18:30:02.189 | B145: 18:30:00 | C145: 0 | D145: 0 | E145: 0 | F145: 0 | G145: 0 | H145: 0 | I145: 0 | J145: 0 | K145: 0 | L145: 0 | M145: 0 | N145: 0 | O145: 0 | P145: 0 | Q145: 0 | R145: 0
A146: 18:30:02.189 | B146: 18:30:00 | C146: 0 | D146: 0 | E146: 0 | F146: 0 | G146: 0 | H146: 3 | I146: 1 | J146: 0 | K146: 0 | L146: 0 | M146: 0 | N146: 0 | O146: 1 | P146: 0 | Q146: 0 | R146: 0
A147: 18:45:02.218 | B147: 18:45:00 | C147: 0 | D147: 0 | E147: 0 | F147: 0 | G147: 0 | H147: 114 | I147: 3 | J147: 0 | K147: 89 | L147: 0 | M147: 94 | N147: 0 | O147: 9 | P147: 96 | Q147: 0 | R147: 0
A148: 18:45:02.218 | B148: 18:45:00 | C148: 0 | D148: 0 | E148: 0 | F148: 0 | G148: 0 | H148: 0 | I148: 0 | J148: 0 | K148: 0 | L148: 0 | M148: 1 | N148: 0 | O148: 0 | P148: 0 | Q148: 0 | R148: 0
A149: 18:45:02.218 | B149: 18:45:00 | C149: 0 | D149: 0 | E149: 0 | F149: 0 | G149: 0 | H149: 1 | I149: 1 | J149: 0 | K149: 0 | L149: 0 | M149: 1 | N149: 0 | O149: 0 | P149: 1 | Q149: 0 | R149: 0
A150: 19:00:02.246 | B150: 19:00:00 | C150: 0 | D150: 0 | E150: 0 | F150: 0 | G150: 0 | H150: 0 | I150: 0 | J150: 0 | K150: 0 | L150: 0 | M150: 0 | N150: 0 | O150: 0 | P150: 0 | Q150: 0 | R150: 0
A151: 19:00:02.246 | B151: 19:00:00 | C151: 0 | D151: 0 | E151: 0 | F151: 0 | G151: 0 | H151: 0 | I151: 0 | J151: 0 | K151: 0 | L151: 0 | M151: 0 | N151: 0 | O151: 0 | P151: 0 | Q151: 0 | R151: 0
A152: 19:00:02.246 | B152: 19:00:00 | C152: 0 | D152: 0 | E152: 0 | F152: 0 | G152: 0 | H152: 0 | I152: 0 | J152: 0 | K152: 0 | L152: 0 | M152: 0 | N152: 0 | O152: 0 | P152: 0 | Q152: 0 | R152: 0
A153: 19:15:02.275 | B153: 19:15:00 | C153: 0 | D153: 0 | E153: 0 | F153: 0 | G153: 0 | H153: 0 | I153: 0 | J153: 0 | K153: 0 | L153: 0 | M153: 0 | N153: 0 | O153: 0 | P153: 0 | Q153: 0 | R153: 0
A154: 19:15:02.275 | B154: 19:15:00 | C154: 0 | D154: 0 | E154: 0 | F154: 0 | G154: 0 | H154: 0 | I154: 0 | J154: 0 | K154: 0 | L154: 0 | M154: 0 | N154: 0 | O154: 0 | P154: 0 | Q154: 0 | R154: 0
A155: 19:15:02.275 | B155: 19:15:00 | C155: 0 | D155: 0 | E155: 0 | F155: 0 | G155: 0 | H155: 0 | I155: 0 | J155: 0 | K155: 0 | L155: 0 | M155: 0 | N155: 0 | O155: 0 | P155: 0 | Q155: 0 | R155: 0
A156: 19:30:02.304 | B156: 19:30:00 | C156: 0 | D156: 0 | E156: 0 | F156: 0 | G156: 0 | H156: 0 | I156: 0 | J156: 0 | K156: 0 | L156: 0 | M156: 0 | N156: 0 | O156: 0 | P156: 0 | Q156: 0 | R156: 0
A157: 19:30:02.304 | B157: 19:30:00 | C157: 0 | D157: 0 | E157: 0 | F157: 0 | G157: 0 | H157: 0 | I157: 0 | J157: 0 | K157: 0 | L157: 0 | M157: 0 | N157: 0 | O157: 0 | P157: 0 | Q157: 0 | R157: 0
A158: 19:30:02.304 | B158: 19:30:00 | C158: 0 | D158: 0 | E158: 0 | F158: 0 | G158: 0 | H158: 0 | I158: 0 | J158: 0 | K158: 0 | L158: 0 | M158: 0 | N158: 0 | O158: 0 | P158: 0 | Q158: 0 | R158: 0
A159: 19:45:02.333 | B159: 19:45:00 | C159: 0 | D159: 0 | E159: 0 | F159: 0 | G159: 0 | H159: 0 | I159: 0 | J159: 0 | K159: 0 | L159: 0 | M159: 0 | N159: 0 | O159: 0 | P159: 0 | Q159: 0 | R159: 0
A160: 19:45:02.333 | B160: 19:45:00 | C160: 0 | D160: 0 | E160: 0 | F160: 0 | G160: 0 | H160: 0 | I160: 0 | J160: 0 | K160: 0 | L160: 0 | M160: 0 | N160: 0 | O160: 0 | P160: 0 | Q160: 0 | R160: 0
A161: 19:45:02.333 | B161: 19:45:00 | C161: 0 | D161: 0 | E161: 0 | F161: 0 | G161: 0 | H161: 0 | I161: 0 | J161: 0 | K161: 0 | L161: 0 | M161: 0 | N161: 0 | O161: 0 | P161: 0 | Q161: 0 | R161: 0
A162: 20:00:02.362 | B162: 20:00:00 | C162: 0 | D162: 0 | E162: 0 | F162: 0 | G162: 0 | H162: 0 | I162: 0 | J162: 0 | K162: 0 | L162: 0 | M162: 0 | N162: 0 | O162: 0 | P162: 0 | Q162: 0 | R162: 0
A163: 20:00:02.362 | B163: 20:00:00 | C163: 0 | D163: 0 | E163: 0 | F163: 0 | G163: 0 | H163: 0 | I163: 0 | J163: 0 | K163: 0 | L163: 0 | M163: 0 | N163: 0 | O163: 0 | P163: 0 | Q163: 0 | R163: 0
A164: 20:00:02.362 | B164: 20:00:00 | C164: 0 | D164: 0 | E164: 0 | F164: 0 | G164: 0 | H164: 0 | I164: 0 | J164: 0 | K164: 0 | L164: 0 | M164: 0 | N164: 0 | O164: 0 | P164: 0 | Q164: 0 | R164: 0
A165: 20:15:02.390 | B165: 20:15:00 | C165: 0 | D165: 0 | E165: 0 | F165: 0 | G165: 0 | H165: 0 | I165: 0 | J165: 0 | K165: 0 | L165: 0 | M165: 0 | N165: 0 | O165: 0 | P165: 0 | Q165: 0 | R165: 0
A166: 20:15:02.390 | B166: 20:15:00 | C166: 0 | D166: 0 | E166: 0 | F166: 0 | G166: 0 | H166: 0 | I166: 0 | J166: 0 | K166: 0 | L166: 0 | M166: 0 | N166: 0 | O166: 0 | P166: 0 | Q166: 0 | R166: 0
A167: 20:15:02.390 | B167: 20:15:00 | C167: 0 | D167: 0 | E167: 0 | F167: 0 | G167: 0 | H167: 0 | I167: 0 | J167: 0 | K167: 0 | L167: 0 | M167: 0 | N167: 0 | O167: 0 | P167: 0 | Q167: 0 | R167: 0
A168: 20:30:02.419 | B168: 20:30:00 | C168: 0 | D168: 0 | E168: 0 | F168: 0 | G168: 0 | H168: 0 | I168: 0 | J168: 0 | K168: 0 | L168: 0 | M168: 0 | N168: 0 | O168: 0 | P168: 0 | Q168: 0 | R168: 0
A169: 20:30:02.419 | B169: 20:30:00 | C169: 0 | D169: 0 | E169: 0 | F169: 0 | G169: 0 | H169: 0 | I169: 0 | J169: 0 | K169: 0 | L169: 0 | M169: 0 | N169: 0 | O169: 0 | P169: 0 | Q169: 0 | R169: 0
A170: 20:30:02.419 | B170: 20:30:00 | C170: 0 | D170: 0 | E170: 0 | F170: 0 | G170: 0 | H170: 0 | I170: 0 | J170: 0 | K170: 0 | L170: 0 | M170: 0 | N170: 0 | O170: 0 | P170: 0 | Q170: 0 | R170: 0
A171: 20:45:02.448 | B171: 20:45:00 | C171: 0 | D171: 0 | E171: 0 | F171: 0 | G171: 0 | H171: 0 | I171: 0 | J171: 0 | K171: 0 | L171: 0 | M171: 0 | N171: 0 | O171: 0 | P171: 0 | Q171: 0 | R171: 0
A172: 20:45:02.448 | B172: 20:45:00 | C172: 0 | D172: 0 | E172: 0 | F172: 0 | G172: 0 | H172: 0 | I172: 0 | J172: 0 | K172: 0 | L172: 0 | M172: 0 | N172: 0 | O172: 0 | P172: 0 | Q172: 0 | R172: 0
A173: 20:45:02.448 | B173: 20:45:00 | C173: 0 | D173: 0 | E173: 0 | F173: 0 | G173: 0 | H173: 0 | I173: 0 | J173: 0 | K173: 0 | L173: 0 | M173: 0 | N173: 0 | O173: 0 | P173: 0 | Q173: 0 | R173: 0
A174: 21:00:02.477 | B174: 21:00:00 | C174: 0 | D174: 0 | E174: 0 | F174: 0 | G174: 0 | H174: 0 | I174: 0 | J174: 0 | K174: 0 | L174: 0 | M174: 0 | N174: 0 | O174: 0 | P174: 0 | Q174: 0 | R174: 0
A175: 21:00:02.477 | B175: 21:00:00 | C175: 0 | D175: 0 | E175: 0 | F175: 0 | G175: 0 | H175: 0 | I175: 0 | J175: 0 | K175: 0 | L175: 0 | M175: 0 | N175: 0 | O175: 0 | P175: 0 | Q175: 0 | R175: 0
A176: 21:00:02.477 | B176: 21:00:00 | C176: 0 | D176: 0 | E176: 0 | F176: 0 | G176: 0 | H176: 0 | I176: 0 | J176: 0 | K176: 0 | L176: 0 | M176: 0 | N176: 0 | O176: 0 | P176: 0 | Q176: 0 | R176: 0
A177: 21:15:02.506 | B177: 21:15:00 | C177: 0 | D177: 0 | E177: 0 | F177: 0 | G177: 0 | H177: 0 | I177: 0 | J177: 0 | K177: 0 | L177: 0 | M177: 0 | N177: 0 | O177: 0 | P177: 0 | Q177: 0 | R177: 0
A178: 21:15:02.506 | B178: 21:15:00 | C178: 0 | D178: 0 | E178: 0 | F178: 0 | G178: 0 | H178: 0 | I178: 0 | J178: 0 | K178: 0 | L178: 0 | M178: 0 | N178: 0 | O178: 0 | P178: 0 | Q178: 0 | R178: 0
A179: 21:15:02.506 | B179: 21:15:00 | C179: 0 | D179: 0 | E179: 0 | F179: 0 | G179: 0 | H179: 0 | I179: 0 | J179: 0 | K179: 0 | L179: 0 | M179: 0 | N179: 0 | O179: 0 | P179: 0 | Q179: 0 | R179: 0
A180: 21:30:02.534 | B180: 21:30:00 | C180: 0 | D180: 0 | E180: 0 | F180: 0 | G180: 0 | H180: 0 | I180: 0 | J180: 0 | K180: 0 | L180: 0 | M180: 0 | N180: 0 | O180: 0 | P180: 0 | Q180: 0 | R180: 0
A181: 21:30:02.534 | B181: 21:30:00 | C181: 0 | D181: 0 | E181: 0 | F181: 0 | G181: 0 | H181: 0 | I181: 0 | J181: 0 | K181: 0 | L181: 0 | M181: 0 | N181: 0 | O181: 0 | P181: 0 | Q181: 0 | R181: 0
A182: 21:30:02.534 | B182: 21:30:00 | C182: 0 | D182: 0 | E182: 0 | F182: 0 | G182: 0 | H182: 0 | I182: 0 | J182: 0 | K182: 0 | L182: 0 | M182: 0 | N182: 0 | O182: 0 | P182: 0 | Q182: 0 | R182: 0
A183: 21:45:02.563 | B183: 21:45:00 | C183: 0 | D183: 0 | E183: 0 | F183: 0 | G183: 0 | H183: 0 | I183: 0 | J183: 0 | K183: 0 | L183: 0 | M183: 0 | N183: 0 | O183: 0 | P183: 0 | Q183: 0 | R183: 0
A184: 21:45:02.563 | B184: 21:45:00 | C184: 0 | D184: 0 | E184: 0 | F184: 0 | G184: 0 | H184: 0 | I184: 0 | J184: 0 | K184: 0 | L184: 0 | M184: 0 | N184: 0 | O184: 0 | P184: 0 | Q184: 0 | R184: 0
A185: 21:45:02.563 | B185: 21:45:00 | C185: 0 | D185: 0 | E185: 0 | F185: 0 | G185: 0 | H185: 0 | I185: 0 | J185: 0 | K185: 0 | L185: 0 | M185: 0 | N185: 0 | O185: 0 | P185: 0 | Q185: 0 | R185: 0
A186: 22:00:02.592 | B186: 22:00:00 | C186: 0 | D186: 0 | E186: 0 | F186: 0 | G186: 0 | H186: 0 | I186: 0 | J186: 0 | K186: 0 | L186: 0 | M186: 0 | N186: 0 | O186: 0 | P186: 0 | Q186: 0 | R186: 0
A187: 22:00:02.592 | B187: 22:00:00 | C187: 0 | D187: 0 | E187: 0 | F187: 0 | G187: 0 | H187: 0 | I187: 0 | J187: 0 | K187: 0 | L187: 0 | M187: 0 | N187: 0 | O187: 0 | P187: 0 | Q187: 0 | R187: 0
A188: 22:00:02.592 | B188: 22:00:00 | C188: 0 | D188: 0 | E188: 0 | F188: 0 | G188: 0 | H188: 0 | I188: 0 | J188: 0 | K188: 0 | L188: 0 | M188: 0 | N188: 0 | O188: 0 | P188: 0 | Q188: 0 | R188: 0
A189: 22:15:02.621 | B189: 22:15:00 | C189: 0 | D189: 0 | E189: 0 | F189: 0 | G189: 0 | H189: 0 | I189: 0 | J189: 0 | K189: 0 | L189: 0 | M189: 0 | N189: 0 | O189: 0 | P189: 0 | Q189: 0 | R189: 0
A190: 22:15:02.621 | B190: 22:15:00 | C190: 0 | D190: 0 | E190: 0 | F190: 0 | G190: 0 | H190: 0 | I190: 0 | J190: 0 | K190: 0 | L190: 0 | M190: 0 | N190: 0 | O190: 0 | P190: 0 | Q190: 0 | R190: 0
A191: 22:15:02.621 | B191: 22:15:00 | C191: 0 | D191: 0 | E191: 0 | F191: 0 | G191: 0 | H191: 0 | I191: 0 | J191: 0 | K191: 0 | L191: 0 | M191: 0 | N191: 0 | O191: 0 | P191: 0 | Q191: 0 | R191: 0
A192: 22:30:02.650 | B192: 22:30:00 | C192: 0 | D192: 0 | E192: 0 | F192: 0 | G192: 0 | H192: 0 | I192: 0 | J192: 0 | K192: 0 | L192: 0 | M192: 0 | N192: 0 | O192: 0 | P192: 0 | Q192: 0 | R192: 0
A193: 22:30:02.650 | B193: 22:30:00 | C193: 0 | D193: 0 | E193: 0 | F193: 0 | G193: 0 | H193: 0 | I193: 0 | J193: 0 | K193: 0 | L193: 0 | M193: 0 | N193: 0 | O193: 0 | P193: 0 | Q193: 0 | R193: 0
A194: 22:30:02.650 | B194: 22:30:00 | C194: 0 | D194: 0 | E194: 0 | F194: 0 | G194: 0 | H194: 0 | I194: 0 | J194: 0 | K194: 0 | L194: 0 | M194: 0 | N194: 0 | O194: 0 | P194: 0 | Q194: 0 | R194: 0
A195: 22:45:02.678 | B195: 22:45:00 | C195: 0 | D195: 0 | E195: 0 | F195: 0 | G195: 0 | H195: 0 | I195: 0 | J195: 0 | K195: 0 | L195: 0 | M195: 0 | N195: 0 | O195: 0 | P195: 0 | Q195: 0 | R195: 0
A196: 22:45:02.678 | B196: 22:45:00 | C196: 0 | D196: 0 | E196: 0 | F196: 0 | G196: 0 | H196: 0 | I196: 0 | J196: 0 | K196: 0 | L196: 0 | M196: 0 | N196: 0 | O196: 0 | P196: 0 | Q196: 0 | R196: 0
A197: 22:45:02.678 | B197: 22:45:00 | C197: 0 | D197: 0 | E197: 0 | F197: 0 | G197: 0 | H197: 0 | I197: 0 | J197: 0 | K197: 0 | L197: 0 | M197: 0 | N197: 0 | O197: 0 | P197: 0 | Q197: 0 | R197: 0

Sheet Base Information
B1: Intersection Traffic Volume Report
L2: Count Basics | Q2: Version 2011.J3 | V2: Page 1 of 11
L3: Start Date: | N3: =MIN(O12,O13,O14) -> 2011-12-06 | R3: =VLOOKUP(CONCATENATE(P91,P92,P93),$N$95:$P$121,3,FALSE) -> Weekday | U3: =IF(D19="in session", "Schools in Session", IF(D19="Not in Session", "Schools Not in Session", "")) -> Schools in Session
L4: =CONCATENATE("Total Number of Hours Counted: ", $AL$156) -> Total Number of Hours Counted: 12 | R4: =IF(D20="None","Non-Holiday", IF(D20="","Non-Holiday", IF(D20="","",D20))) -> Non-Holiday | U4: =IF(D21="None","No Special Events", IF(D21="","No Special Events", IF(D21="","",D21))) -> No Special Events
B5: =IF(ISERROR($H$35=TRUE),"Error: Review 16 Hour Count Import Instructions",CONCATENATE("Base Information, Observed (",$AL$156,") Hour and Estimated (24) Hour Volume Summaries")) -> Base Information, Observed (12) Hour and Estimated (24) Hour Volume Summaries
B7: Intersection of: | E7: =CONCATENATE($D$14, " and ", $D$15) -> 441 NB ON RAMP and CTH OO (Northland Ave)
B9: Site Information | L9: Count Information
B10: Municipality | D10: City of Appleton | L10: Hrs Counted: | N10: =IF(AND($AS$92="",$AT$92="")=TRUE,$AR$92,IF($AT$92="",CONCATENATE($AR$92," and ",$AS$92),CONCATENATE($AR$92,", ",$AS$92,", and ",$AT$92))) -> 6:00 AM-6:00 PM
B11: County | D11: Outagamie | G11: WisDOT Region | J11: NE | L11: Count Dates | T11: Weather
B12: Traffic Control | D12: Traffic Signal | L12: AM Peak Period | O12: 2011-12-06 | T12: Clear & Dry | Y12: Recommended
B13: Roadway Names | G13: North Direction | J13: ↑ | L13: Midday Peak Period | O13: 2011-12-06 | T13: Clear & Dry | Y13: Daily/Seasonal
B14: North Leg | D14: 441 NB ON RAMP | L14: PM Peak Period | O14: 2011-12-06 | T14: Clear & Dry | Y14: Adjustment Factor
B15: East Leg | D15: CTH OO (Northland Ave) | L15: Calculated Peak Hours | X15: Seasonal | Y15: =VLOOKUP($AD$91,'Daily & Seasonal Factors'!$D$6:$E$581,2,FALSE) -> 1.093
B16: South Leg | D16: 441 NB OFF RAMP | M16: AM | N16: =IF(ISERROR(VLOOKUP(MAX(B91:B103),B91:C103,2,FALSE)=TRUE),"",VLOOKUP(MAX(B91:B103),B91:C103,2,FALSE)) -> 7:15-8:15am | P16: MD | Q16: =IF(ISERROR(VLOOKUP(MAX(B107:B119),B107:C119,2,FALSE))=TRUE,"",VLOOKUP(MAX(B107:B119),B107:C119,2,FALSE)) -> 1:00-2:00pm | T16: PM | U16: =IF(ISERROR(VLOOKUP(MAX(B123:B151),B123:D151,2,FALSE)=TRUE),"",VLOOKUP(MAX(B123:B151),B123:D151,2,FALSE)) -> 4:30-5:30pm | X16: Daily #1 | Y16: =VLOOKUP($AD$95,'Daily & Seasonal Factors'!$D$6:$E$581,2,FALSE) -> 0.918
B17: West Leg | D17: CTH OO (Northland Ave) | L17: Peak Hours Selected for Analysis | X17: Daily #2 | Y17: =IF($O$13="","",VLOOKUP($AD$96,'Daily & Seasonal Factors'!$D$6:$E$581,2,FALSE)) -> 0.918
B18: Special Considerations | M18: AM | N18: =N16 -> 7:15-8:15am | P18: MD | Q18: =Q16 -> 1:00-2:00pm | T18: PM | U18: =U16 -> 4:30-5:30pm | X18: Daily #3 | Y18: =VLOOKUP($AD$97,'Daily & Seasonal Factors'!$D$6:$E$581,2,FALSE) -> 0.918
B19: Schools | D19: In Session | L19: Daily/Seasonal Adjustment Group | Q19: (2) Urban Arterials & Collectors | X19: Total | Y19: =IF($O$13="",AVERAGE($Y$16,$Y$18)*$Y$15,AVERAGE($Y$16,$Y$17,$Y$18)*$Y$15) -> 1.003374
B20: Holidays | D20: None | L20: Count Expansion Group | Q20: (2) Urban Arterials & Collectors
B21: Special Events | D21: None | L21: Daily/Seasonal Adjustment Factor | Q21: =IF(Y19="#N/A",1,Y19) -> 1.003374 | R21: Count Expansion Factor | V21: =Y25 -> n/a
B22: Special Pedestrians Observed | N22: Company Name | O22: DAAR CORP | T22: Manual Adj. | V22: 1
B23: Pre-school children | I23: None | L23: Observers | N23: AM Peak Period | Q23: Kerstian Oestreich | Y23: Recommended
B24: Elementry school age children | I24: None | N24: Midday Peak Period | Q24: Nathan Lipinski | Y24: Count Expansion Factor
B25: Visually impaired (white cane/helper dog) | I25: None | N25: PM Peak Period | Q25: Nathan Lipinski | Y25: =VLOOKUP(CONCATENATE($Q$20,$N$10),'Expansion Factors'!$F$7:$BZ$1000,VLOOKUP('Base Information'!$D$11,'Base Information'!$Y$91:$Z$162,2,FALSE),FALSE) -> n/a
B26: Elderly/disabled (except wheelchairs) | I26: None | M26: Comments | N26: Version 2011.J3
B27: Wheelchairs/electric scooters | I27: None
B28: Other (describe) | E28: None | I28: None
B30: =CONCATENATE("Observed ",$AL$156," Hour Volume Summary") -> Observed 12 Hour Volume Summary
C32: OBSERVED | F32: =CONCATENATE($AL$156,"") -> 12 | H32: =$D$14 -> 441 NB ON RAMP | R32: TOTAL ENTERING VOLUME
C33: HOUR VOLUMES | H33: PED: | I33: ='Ped & Bicycle'!D78 -> 0 | K33: =H34+M35 -> 1367 | O33: BIKE: | P33: ='Ped & Bicycle'!F78 -> 0 | R33: =H34+S37+M48+E42 -> 19409
H34: =SUM(H35:K35) -> 0
H35: ='Hourly Volume Summary'!D30 -> 0 | I35: ='Hourly Volume Summary'!E30 -> 0 | J35: ='Hourly Volume Summary'!F30 -> 0 | K35: ='Hourly Volume Summary'!G30 -> 0 | M35: =K35+R37+O47+F43 -> 1367
H36: 8 | I36: $ | J36: 9 | K36: M | M36: #
C37: =$D$17 -> CTH OO (Northland Ave) | D37: PED: | E37: =H35+R38+N47+F42 -> 11284 | G37: ! | Q37: < | R37: ='Hourly Volume Summary'!I30 -> 739 | S37: =SUM(R37:R40) -> 6767 | T37: PED: | U37: =$D$15 -> CTH OO (Northland Ave)
D38: ='Ped & Bicycle'!S78 -> 0 | Q38: ! | R38: ='Hourly Volume Summary'!J30 -> 6028 | T38: ='Ped & Bicycle'!I78 -> 5
D39: =E37+E42 -> 15566 | Q39: > | R39: ='Hourly Volume Summary'!K30 -> 0 | T39: =S37+R42 -> 13525
Q40: N | R40: ='Hourly Volume Summary'!L30 -> 0
L41: =$J$13 -> ↑
E42: =SUM(F42:F45) -> 4282 | F42: ='Hourly Volume Summary'!V30 -> 0 | G42: O | L42: North | Q42: " | R42: =P47+F44+J35+R40 -> 6758
F43: ='Hourly Volume Summary'!U30 -> 622 | G43: =
D44: BIKE: | F44: ='Hourly Volume Summary'!T30 -> 3660 | G44: " | T44: BIKE:
D45: ='Ped & Bicycle'!U78 -> 0 | F45: ='Hourly Volume Summary'!S30 -> 0 | G45: ? | T45: ='Ped & Bicycle'!K78 -> 1
H46: $ | M46: L | N46: : | O46: # | P46: ;
H47: =F45+I35+R39+M47 -> 0 | M47: ='Hourly Volume Summary'!Q30 -> 0 | N47: ='Hourly Volume Summary'!P30 -> 5256 | O47: ='Hourly Volume Summary'!O30 -> 6 | P47: ='Hourly Volume Summary'!N30 -> 3098
M48: =SUM(M47:P47) -> 8360
H49: PED: | I49: ='Ped & Bicycle'!N78 -> 7 | K49: =H47+M48 -> 8360 | O49: BIKE: | P49: ='Ped & Bicycle'!P78 -> 0
H50: =$D$16 -> 441 NB OFF RAMP
B52: Total Entering Hourly Volume
B65: Estimated 24 Hour AADT
C67: ESTIMATED | H67: =$D$14 -> 441 NB ON RAMP | R67: TOTAL ENTERING VOLUME
C68: 24 HOUR AADT | H68: =H69+M70 ->  | R68: =H69+S72+M83+E77 -> 
H69: =SUM(H70:K70) -> 
H70: =H35*$F$85 ->  | I70: =I35*$F$85 ->  | M70: =K70+R72+O82+F78 -> 
H71: 8 | I71: $ | J71: 9 | K71: M | M71: #
C72: =$D$17 -> CTH OO (Northland Ave) | D72: =E72+E77 ->  | E72: =H70+R73+N82+F77 ->  | G72: ! | Q72: < | R72: =R37*$F$85 ->  | S72: =SUM(R72:R75) ->  | T72: =S72+R77 ->  | U72: =$D$15 -> CTH OO (Northland Ave)
Q73: !
Q74: >
Q75: N
L76: =$J$13 -> ↑
E77: =SUM(F77:F80) ->  | F77: =F42*$F$85 ->  | G77: O | L77: North | Q77: " | R77: =P82+F79+J70+R75 -> 
F78: =F43*$F$85 ->  | G78: =
F79: =F44*$F$85 ->  | G79: "
G80: ?
H81: $ | M81: L | N81: : | O81: # | P81: ;
B82: Daily/Seasonal Factor | F82: =Q21 -> 1.003374 | H82: =F80+I70+R74+M82 ->  | M82: =M47*$F$85 -> 
B83: Count Expansion Factor | F83: =V21 -> n/a | M83: =SUM(M82:P82) -> 
B84: Manual Adjustment Factor | F84: =V22 -> 1 | H84: =H82+M83 -> 
B85: Total 24 Hr Expansion Factor | F85: =$F$82*$F$83*$F$84 ->  | H85: =$D$16 -> 441 NB OFF RAMP
AB88: Start of
B89: Total Entering | C89: Hourly Time | D89: Start of | M89: Traffic | R89: Growth | U89: Expansion | AA89: Hourly Time | AB89: Count | AC89: Hours | AD89: Vlookup | AG89: Vlookup | AI89: Vlookup | AL89: Hours | AR89: Hours | AS89: Hours | AT89: Hours
B90: Hourly Volume | C90: Period | D90: Count | E90: Q2 | F90: Q3 | G90: Q4 | H90: County | I90: Region | J90: Schools | K90: North Arrow | L90: Ped | M90: Control | N90: Weekday/Weekend Determinations | R90: Group | U90: Group | Y90: County | Z90: Column | AA90: Period | AB90: for Expansion | AC90: Counted | AD90: for Seasonal | AF90: Month for Adjustments | AG90: for Month | AI90: for Day | AL90: Counted | AM90: Starts | AN90: Finishes | AO90: Starts | AP90: Finishes | AR90: Counted #1 | AS90: Counted #2 | AT90: Counted #3
B91: ='15-Min All Vehicle'!Z14 -> 1327 | C91: 6:00-7:00am | D91: 06:00:00 | E91: 06:14:59.942 | F91: 06:29:59.971 | G91: 06:45:00 | H91: Adams | I91: NE | J91: In Session | K91: ↑ | L91: None | M91: Traffic Signal | N91: Day 1 | O91: =IF(O12="","none",WEEKDAY(O12,1)) -> 3 | P91: =IF(O91=2, "Weekday", IF(O91=3, "Weekday", IF(O91= 4, "Weekday", IF(O91=5, "Weekday", IF(O91=6, "Weekday", IF(O91=7, "Weekend", IF(O91=1, "Weekend","None"))))))) -> Weekday | R91: (1) Urban Interstate | U91: (1) Urban Interstate | Y91: Kenosha | Z91: 2 | AA91: 6:00-7:00am | AB91: 06:00:00 | AC91: =ROUNDDOWN(($V$10-$Q$10)*24+0.1,0) -> 0 | AD91: =CONCATENATE($Q$19,$AF$91,"seasonal") -> (2) Urban Arterials & CollectorsDecemberseasonal | AF91: =VLOOKUP(MONTH($O$12),$AG$91:$AH$102,2,FALSE) -> December | AG91: 1 | AH91: January | AI91: 1 | AJ91: Sunday | AL91: =IF('15-Min All Vehicle'!X14>0,1,0) -> 1 | AM91: =IF(AL91=1,"Start","") -> Start | AN91: =IF(AL91-AL91 = (-1),"Finish","") ->  | AO91: =IF(AM91="Start", "Start #1","") -> Start #1 | AP91: =IF(AN91="Finish", "Finish #1","") ->  | AQ91: 6:00 AM | AR91: =CONCATENATE(VLOOKUP("Start #1",$AO$91:$AQ$155,3,FALSE), "-", VLOOKUP("Finish #1",$AP$91:$AQ$155,2,FALSE)) -> 6:00 AM-6:00 PM | AS91: =CONCATENATE(VLOOKUP("Start #2",$AO$91:$AQ$155,3,FALSE), "-", VLOOKUP("Finish #2",$AP$91:$AQ$155,2,FALSE)) ->  | AT91: =CONCATENATE(VLOOKUP("Start #3",$AO$91:$AQ$155,3,FALSE), "-", VLOOKUP("Finish #3",$AP$91:$AQ$155,2,FALSE)) -> 
B92: ='15-Min All Vehicle'!Z15 -> 1475 | C92: 6:15-7:15am | D92: 06:14:59.942 | E92: 06:29:59.971 | F92: 06:45:00 | G92: 06:59:59.942 | H92: Ashland | I92: NC-R | J92: Not in Session | K92: ↗ | L92: 1 or 2 | M92: Roundabout | N92: Day 2 | O92: =IF(O13="","none",WEEKDAY(O13,1)) -> 3 | P92: =IF(O92=2, "Weekday", IF(O92=3, "Weekday", IF(O92= 4, "Weekday", IF(O92=5, "Weekday", IF(O92=6, "Weekday", IF(O92=7, "Weekend", IF(O92=1, "Weekend","None"))))))) -> Weekday | R92: (2) Urban Arterials & Collectors | U92: (2) Urban Arterials & Collectors | Y92: Milwaukee | Z92: 3 | AA92: 6:15-7:15am | AB92: 06:00:00 | AG92: 2 | AH92: February | AI92: 2 | AJ92: Monday | AL92: =IF('15-Min All Vehicle'!X15>0,1,0) -> 1 | AM92: =IF(AL92-AL91=1,"Start","") ->  | AN92: =IF(AL92-AL91 = (-1),"Finish","") ->  | AO92: =IF(AND(AM92="Start",COUNTIF($AM$91:AM91,"start")=0) =TRUE, "Start #1", IF(AND(AM92="Start",COUNTIF($AM$91:AM91,"start")=1)=TRUE,"Start #2", IF(AND(AM92="Start",COUNTIF($AM$91:AM91,"start")=2)=TRUE,"Start #3",""))) ->  | AP92: =IF(AND(AN92="Finish",COUNTIF($AM$91:AN91,"Finish")=0) =TRUE, "Finish #1", IF(AND(AN92="Finish",COUNTIF($AM$91:AN91,"Finish")=1)=TRUE,"Finish #2", IF(AND(AN92="Finish",COUNTIF($AM$91:AN91,"Finish")=2)=TRUE,"Finish #3",""))) ->  | AQ92: 6:15 AM | AR92: =IF(ISERROR((AR91)=TRUE), "",AR91) -> 6:00 AM-6:00 PM | AS92: =IF(ISERROR((AS91)=TRUE), "",AS91) -> 
B93: ='15-Min All Vehicle'!Z16 -> 1687 | C93: 6:30-7:30am | D93: 06:29:59.971 | E93: 06:45:00 | F93: 06:59:59.942 | G93: 07:14:59.971 | H93: Barron | I93: NC-W | J93: Unknown | K93: ↖ | L93: A Few | M93: All-Way Stop | N93: Day 3 | O93: =IF(O14="","none",WEEKDAY(O14,1)) -> 3 | P93: =IF(O93=2, "Weekday", IF(O93=3, "Weekday", IF(O93= 4, "Weekday", IF(O93=5, "Weekday", IF(O93=6, "Weekday", IF(O93=7, "Weekend", IF(O93=1, "Weekend","None"))))))) -> Weekday | R93: (3) Rural Interstate | U93: (3) Rural Interstate | Y93: Ozaukee | Z93: 4 | AA93: 6:30-7:30am | AB93: 06:00:00 | AD93: Vlookup | AE93: Day | AF93: Day for Adjustments | AG93: 3 | AH93: March | AI93: 3 | AJ93: Tuesday | AL93: =IF('15-Min All Vehicle'!X16>0,1,0) -> 1 | AM93: =IF(AL93-AL92=1,"Start","") ->  | AO93: =IF(AND(AM93="Start",COUNTIF($AM$91:AM92,"start")=0) =TRUE, "Start #1", IF(AND(AM93="Start",COUNTIF($AM$91:AM92,"start")=1)=TRUE,"Start #2", IF(AND(AM93="Start",COUNTIF($AM$91:AM92,"start")=2)=TRUE,"Start #3",""))) ->  | AP93: =IF(AND(AN93="Finish",COUNTIF($AM$91:AN92,"Finish")=0) =TRUE, "Finish #1", IF(AND(AN93="Finish",COUNTIF($AM$91:AN92,"Finish")=1)=TRUE,"Finish #2", IF(AND(AN93="Finish",COUNTIF($AM$91:AN92,"Finish")=2)=TRUE,"Finish #3",""))) ->  | AQ93: 6:30 AM
B94: ='15-Min All Vehicle'!Z17 -> 1988 | C94: 6:45-7:45am | D94: 06:45:00 | E94: 06:59:59.942 | F94: 07:14:59.971 | G94: 07:30:00 | H94: Bayfield | I94: NW | J94: Other | K94: → | L94: Several | M94: Partial Stop Control | R94: (4) Rural Arterials & Collectors | U94: (4) Rural Arterials & Collectors | Y94: Racine | Z94: 5 | AA94: 6:45-7:45am | AB94: 06:00:00 | AD94: for Daily | AE94: #1 | AF94: =VLOOKUP(WEEKDAY($O$12),$AI$91:$AJ$97,2,FALSE) -> Tuesday | AG94: 4 | AH94: April | AI94: 4 | AJ94: Wednesday | AL94: =IF('15-Min All Vehicle'!X17>0,1,0) -> 1 | AO94: =IF(AND(AM94="Start",COUNTIF($AM$91:AM93,"start")=0) =TRUE, "Start #1", IF(AND(AM94="Start",COUNTIF($AM$91:AM93,"start")=1)=TRUE,"Start #2", IF(AND(AM94="Start",COUNTIF($AM$91:AM93,"start")=2)=TRUE,"Start #3",""))) ->  | AP94: =IF(AND(AN94="Finish",COUNTIF($AM$91:AN93,"Finish")=0) =TRUE, "Finish #1", IF(AND(AN94="Finish",COUNTIF($AM$91:AN93,"Finish")=1)=TRUE,"Finish #2", IF(AND(AN94="Finish",COUNTIF($AM$91:AN93,"Finish")=2)=TRUE,"Finish #3",""))) ->  | AQ94: 6:45 AM | AR94: Total Hours
B95: ='15-Min All Vehicle'!Z18 -> 2196 | C95: 7:00-8:00am | D95: 06:59:59.942 | E95: 07:14:59.971 | F95: 07:30:00 | G95: 07:44:59.942 | H95: Brown | I95: SE | K95: ↘ | L95: Many | M95: Uncontrolled | N95: WeekdayWeekdayWeekday | P95: Weekday | R95: (5) Tourist/Recreational Interstate | U95: (5) Tourist/Recreational Interstate | Y95: Walworth | Z95: 6 | AA95: 7:00-8:00am | AB95: 06:59:59.942 | AD95: =CONCATENATE($Q$19,$AF$91,$AF$94) -> (2) Urban Arterials & CollectorsDecemberTuesday | AE95: #2 | AF95: =VLOOKUP(WEEKDAY($O$13),$AI$91:$AJ$97,2,FALSE) -> Tuesday | AG95: 5 | AH95: May | AI95: 5 | AJ95: Thursday | AL95: =IF('15-Min All Vehicle'!X18>0,1,0) -> 1 | AO95: =IF(AND(AM95="Start",COUNTIF($AM$91:AM94,"start")=0) =TRUE, "Start #1", IF(AND(AM95="Start",COUNTIF($AM$91:AM94,"start")=1)=TRUE,"Start #2", IF(AND(AM95="Start",COUNTIF($AM$91:AM94,"start")=2)=TRUE,"Start #3",""))) ->  | AP95: =IF(AND(AN95="Finish",COUNTIF($AM$91:AN94,"Finish")=0) =TRUE, "Finish #1", IF(AND(AN95="Finish",COUNTIF($AM$91:AN94,"Finish")=1)=TRUE,"Finish #2", IF(AND(AN95="Finish",COUNTIF($AM$91:AN94,"Finish")=2)=TRUE,"Finish #3",""))) ->  | AQ95: 7:00 AM | AR95: Counted
B96: ='15-Min All Vehicle'!Z19 -> 2223 | C96: 7:15-8:15am | D96: 07:14:59.971 | E96: 07:30:00 | F96: 07:44:59.942 | G96: 07:59:59.971 | H96: Buffalo | I96: SW-L | K96: ← | L96: Unknown | M96: Other | N96: WeekdayWeekdayNone | P96: Weekday | R96: (6) Tourist/Recreational Other | U96: (6) Tourist/Recreational Other | Y96: Washington | Z96: 7 | AA96: 7:15-8:15am | AB96: 06:59:59.942 | AD96: =CONCATENATE($Q$19,$AF$91,$AF$95) -> (2) Urban Arterials & CollectorsDecemberTuesday | AE96: #3 | AF96: =VLOOKUP(WEEKDAY($O$14),$AI$91:$AJ$97,2,FALSE) -> Tuesday | AG96: 6 | AH96: June | AI96: 6 | AJ96: Friday | AL96: =IF('15-Min All Vehicle'!X19>0,1,0) -> 1 | AO96: =IF(AND(AM96="Start",COUNTIF($AM$91:AM95,"start")=0) =TRUE, "Start #1", IF(AND(AM96="Start",COUNTIF($AM$91:AM95,"start")=1)=TRUE,"Start #2", IF(AND(AM96="Start",COUNTIF($AM$91:AM95,"start")=2)=TRUE,"Start #3",""))) ->  | AP96: =IF(AND(AN96="Finish",COUNTIF($AM$91:AN95,"Finish")=0) =TRUE, "Finish #1", IF(AND(AN96="Finish",COUNTIF($AM$91:AN95,"Finish")=1)=TRUE,"Finish #2", IF(AND(AN96="Finish",COUNTIF($AM$91:AN95,"Finish")=2)=TRUE,"Finish #3",""))) ->  | AQ96: 7:15 AM | AR96: =IF(AND($AS$92="",$AT$92="")=TRUE,$AR$92,IF($AT$92="",CONCATENATE($AR$92," and ",$AS$92),CONCATENATE($AR$92,", ",$AS$92,", and ",$AT$92))) -> 6:00 AM-6:00 PM
B97: ='15-Min All Vehicle'!Z20 -> 2134 | C97: 7:30-8:30am | D97: 07:30:00 | E97: 07:44:59.942 | F97: 07:59:59.971 | G97: 08:15:00 | H97: Burnett | I97: SW-M | K97: ↙ | N97: WeekdayWeekdayWeekend | P97: Weekday/Weekend | R97: Other | U97: County-wide | Y97: Waukesha | Z97: 8 | AA97: 7:30-8:30am | AB97: 06:59:59.942 | AD97: =CONCATENATE($Q$19,$AF$91,$AF$96) -> (2) Urban Arterials & CollectorsDecemberTuesday | AG97: 7 | AH97: July | AI97: 7 | AJ97: Saturday | AL97: =IF('15-Min All Vehicle'!X20>0,1,0) -> 1 | AO97: =IF(AND(AM97="Start",COUNTIF($AM$91:AM96,"start")=0) =TRUE, "Start #1", IF(AND(AM97="Start",COUNTIF($AM$91:AM96,"start")=1)=TRUE,"Start #2", IF(AND(AM97="Start",COUNTIF($AM$91:AM96,"start")=2)=TRUE,"Start #3",""))) ->  | AP97: =IF(AND(AN97="Finish",COUNTIF($AM$91:AN96,"Finish")=0) =TRUE, "Finish #1", IF(AND(AN97="Finish",COUNTIF($AM$91:AN96,"Finish")=1)=TRUE,"Finish #2", IF(AND(AN97="Finish",COUNTIF($AM$91:AN96,"Finish")=2)=TRUE,"Finish #3",""))) ->  | AQ97: 7:30 AM
B98: ='15-Min All Vehicle'!Z21 -> 1926 | C98: 7:45-8:45am | D98: 07:44:59.942 | E98: 07:59:59.971 | F98: 08:15:00 | G98: 08:29:59.942 | H98: Calumet | K98: ↓ | N98: WeekdayWeekendWeekday | P98: Weekday/Weekend | U98: Ramps | Y98: Brown | Z98: 9 | AA98: 7:45-8:45am | AB98: 06:59:59.942 | AG98: 8 | AH98: August | AL98: =IF('15-Min All Vehicle'!X21>0,1,0) -> 1 | AO98: =IF(AND(AM98="Start",COUNTIF($AM$91:AM97,"start")=0) =TRUE, "Start #1", IF(AND(AM98="Start",COUNTIF($AM$91:AM97,"start")=1)=TRUE,"Start #2", IF(AND(AM98="Start",COUNTIF($AM$91:AM97,"start")=2)=TRUE,"Start #3",""))) ->  | AP98: =IF(AND(AN98="Finish",COUNTIF($AM$91:AN97,"Finish")=0) =TRUE, "Finish #1", IF(AND(AN98="Finish",COUNTIF($AM$91:AN97,"Finish")=1)=TRUE,"Finish #2", IF(AND(AN98="Finish",COUNTIF($AM$91:AN97,"Finish")=2)=TRUE,"Finish #3",""))) ->  | AQ98: 7:45 AM
B99: ='15-Min All Vehicle'!Z22 -> 1630 | C99: 8:00-9:00am | D99: 07:59:59.971 | E99: 08:15:00 | F99: 08:29:59.942 | G99: 08:44:59.971 | H99: Chippewa | N99: WeekdayWeekendWeekend | P99: Weekday/Weekend | U99: Other | Y99: Calumet | Z99: 10 | AA99: 8:00-9:00am | AB99: 07:59:59.971 | AG99: 9 | AH99: September | AL99: =IF('15-Min All Vehicle'!X22>0,1,0) -> 1 | AO99: =IF(AND(AM99="Start",COUNTIF($AM$91:AM98,"start")=0) =TRUE, "Start #1", IF(AND(AM99="Start",COUNTIF($AM$91:AM98,"start")=1)=TRUE,"Start #2", IF(AND(AM99="Start",COUNTIF($AM$91:AM98,"start")=2)=TRUE,"Start #3",""))) ->  | AP99: =IF(AND(AN99="Finish",COUNTIF($AM$91:AN98,"Finish")=0) =TRUE, "Finish #1", IF(AND(AN99="Finish",COUNTIF($AM$91:AN98,"Finish")=1)=TRUE,"Finish #2", IF(AND(AN99="Finish",COUNTIF($AM$91:AN98,"Finish")=2)=TRUE,"Finish #3",""))) ->  | AQ99: 8:00 AM
B100: ='15-Min All Vehicle'!Z23 -> 1480 | C100: 8:15-9:15am | D100: 08:15:00 | E100: 08:29:59.942 | F100: 08:44:59.971 | G100: 09:00:00 | H100: Clark | N100: WeekdayWeekendNone | P100: Weekday/Weekend | Y100: Door | Z100: 11 | AA100: 8:15-9:15am | AB100: 07:59:59.971 | AG100: 10 | AH100: October | AL100: =IF('15-Min All Vehicle'!X23>0,1,0) -> 1 | AO100: =IF(AND(AM100="Start",COUNTIF($AM$91:AM99,"start")=0) =TRUE, "Start #1", IF(AND(AM100="Start",COUNTIF($AM$91:AM99,"start")=1)=TRUE,"Start #2", IF(AND(AM100="Start",COUNTIF($AM$91:AM99,"start")=2)=TRUE,"Start #3",""))) ->  | AP100: =IF(AND(AN100="Finish",COUNTIF($AM$91:AN99,"Finish")=0) =TRUE, "Finish #1", IF(AND(AN100="Finish",COUNTIF($AM$91:AN99,"Finish")=1)=TRUE,"Finish #2", IF(AND(AN100="Finish",COUNTIF($AM$91:AN99,"Finish")=2)=TRUE,"Finish #3",""))) ->  | AQ100: 8:15 AM
B101: ='15-Min All Vehicle'!Z24 -> 1327 | C101: 8:30-9:30am | D101: 08:29:59.942 | E101: 08:44:59.971 | F101: 09:00:00 | G101: 09:14:59.942 | H101: Columbia | N101: WeekdayNoneWeekday | P101: Weekday | Y101: Fond du Lac | Z101: 12 | AA101: 8:30-9:30am | AB101: 07:59:59.971 | AG101: 11 | AH101: November | AL101: =IF('15-Min All Vehicle'!X24>0,1,0) -> 1 | AO101: =IF(AND(AM101="Start",COUNTIF($AM$91:AM100,"start")=0) =TRUE, "Start #1", IF(AND(AM101="Start",COUNTIF($AM$91:AM100,"start")=1)=TRUE,"Start #2", IF(AND(AM101="Start",COUNTIF($AM$91:AM100,"start")=2)=TRUE,"Start #3",""))) ->  | AP101: =IF(AND(AN101="Finish",COUNTIF($AM$91:AN100,"Finish")=0) =TRUE, "Finish #1", IF(AND(AN101="Finish",COUNTIF($AM$91:AN100,"Finish")=1)=TRUE,"Finish #2", IF(AND(AN101="Finish",COUNTIF($AM$91:AN100,"Finish")=2)=TRUE,"Finish #3",""))) ->  | AQ101: 8:30 AM
B102: ='15-Min All Vehicle'!Z25 -> 1228 | C102: 8:45-9:45am | D102: 08:44:59.971 | E102: 09:00:00 | F102: 09:14:59.942 | G102: 09:29:59.971 | H102: Crawford | N102: WeekdayNoneWeekend | P102: Weekday/Weekend | Y102: Kewaunee | Z102: 13 | AA102: 8:45-9:45am | AB102: 07:59:59.971 | AG102: 12 | AH102: December | AL102: =IF('15-Min All Vehicle'!X25>0,1,0) -> 1 | AO102: =IF(AND(AM102="Start",COUNTIF($AM$91:AM101,"start")=0) =TRUE, "Start #1", IF(AND(AM102="Start",COUNTIF($AM$91:AM101,"start")=1)=TRUE,"Start #2", IF(AND(AM102="Start",COUNTIF($AM$91:AM101,"start")=2)=TRUE,"Start #3",""))) ->  | AP102: =IF(AND(AN102="Finish",COUNTIF($AM$91:AN101,"Finish")=0) =TRUE, "Finish #1", IF(AND(AN102="Finish",COUNTIF($AM$91:AN101,"Finish")=1)=TRUE,"Finish #2", IF(AND(AN102="Finish",COUNTIF($AM$91:AN101,"Finish")=2)=TRUE,"Finish #3",""))) ->  | AQ102: 8:45 AM
B103: ='15-Min All Vehicle'!Z26 -> 1124 | C103: 9:00-10:00am | D103: 09:00:00 | E103: 09:14:59.942 | F103: 09:29:59.971 | G103: 09:45:00 | H103: Dane | N103: WeekdayNoneNone | P103: Weekday | Y103: Manitowoc | Z103: 14 | AA103: 9:00-10:00am | AB103: 09:00:00 | AL103: =IF('15-Min All Vehicle'!X26>0,1,0) -> 1 | AO103: =IF(AND(AM103="Start",COUNTIF($AM$91:AM102,"start")=0) =TRUE, "Start #1", IF(AND(AM103="Start",COUNTIF($AM$91:AM102,"start")=1)=TRUE,"Start #2", IF(AND(AM103="Start",COUNTIF($AM$91:AM102,"start")=2)=TRUE,"Start #3",""))) ->  | AP103: =IF(AND(AN103="Finish",COUNTIF($AM$91:AN102,"Finish")=0) =TRUE, "Finish #1", IF(AND(AN103="Finish",COUNTIF($AM$91:AN102,"Finish")=1)=TRUE,"Finish #2", IF(AND(AN103="Finish",COUNTIF($AM$91:AN102,"Finish")=2)=TRUE,"Finish #3",""))) ->  | AQ103: 9:00 AM
B104: ='15-Min All Vehicle'!Z27 -> 1123 | C104: 9:15-10:15am | D104: 09:14:59.942 | E104: 09:29:59.971 | F104: 09:45:00 | G104: 09:59:59.942 | H104: Dodge | N104: WeekendWeekdayWeekday | P104: Weekday/Weekend | Y104: Marinette | Z104: 15 | AA104: 9:15-10:15am | AB104: 09:00:00 | AL104: =IF('15-Min All Vehicle'!X27>0,1,0) -> 1 | AO104: =IF(AND(AM104="Start",COUNTIF($AM$91:AM103,"start")=0) =TRUE, "Start #1", IF(AND(AM104="Start",COUNTIF($AM$91:AM103,"start")=1)=TRUE,"Start #2", IF(AND(AM104="Start",COUNTIF($AM$91:AM103,"start")=2)=TRUE,"Start #3",""))) ->  | AP104: =IF(AND(AN104="Finish",COUNTIF($AM$91:AN103,"Finish")=0) =TRUE, "Finish #1", IF(AND(AN104="Finish",COUNTIF($AM$91:AN103,"Finish")=1)=TRUE,"Finish #2", IF(AND(AN104="Finish",COUNTIF($AM$91:AN103,"Finish")=2)=TRUE,"Finish #3",""))) ->  | AQ104: 9:15 AM
B105: ='15-Min All Vehicle'!Z28 -> 1123 | C105: 9:30-10:30am | D105: 09:29:59.971 | E105: 09:45:00 | F105: 09:59:59.942 | G105: 10:14:59.971 | H105: Door | N105: WeekendWeekdayNone | P105: Weekday/Weekend | Y105: Oconto | Z105: 16 | AA105: 9:30-10:30am | AB105: 09:00:00 | AL105: =IF('15-Min All Vehicle'!X28>0,1,0) -> 1 | AO105: =IF(AND(AM105="Start",COUNTIF($AM$91:AM104,"start")=0) =TRUE, "Start #1", IF(AND(AM105="Start",COUNTIF($AM$91:AM104,"start")=1)=TRUE,"Start #2", IF(AND(AM105="Start",COUNTIF($AM$91:AM104,"start")=2)=TRUE,"Start #3",""))) ->  | AP105: =IF(AND(AN105="Finish",COUNTIF($AM$91:AN104,"Finish")=0) =TRUE, "Finish #1", IF(AND(AN105="Finish",COUNTIF($AM$91:AN104,"Finish")=1)=TRUE,"Finish #2", IF(AND(AN105="Finish",COUNTIF($AM$91:AN104,"Finish")=2)=TRUE,"Finish #3",""))) ->  | AQ105: 9:30 AM
B106: ='15-Min All Vehicle'!Z29 -> 1124 | C106: 9:45-10:45am | D106: 09:45:00 | E106: 09:59:59.942 | F106: 10:14:59.971 | G106: 10:30:00 | H106: Douglas | N106: WeekendWeekdayWeekend | P106: Weekday/Weekend | Y106: Outagamie | Z106: 17 | AA106: 9:45-10:45am | AB106: 09:00:00 | AL106: =IF('15-Min All Vehicle'!X29>0,1,0) -> 1 | AO106: =IF(AND(AM106="Start",COUNTIF($AM$91:AM105,"start")=0) =TRUE, "Start #1", IF(AND(AM106="Start",COUNTIF($AM$91:AM105,"start")=1)=TRUE,"Start #2", IF(AND(AM106="Start",COUNTIF($AM$91:AM105,"start")=2)=TRUE,"Start #3",""))) ->  | AP106: =IF(AND(AN106="Finish",COUNTIF($AM$91:AN105,"Finish")=0) =TRUE, "Finish #1", IF(AND(AN106="Finish",COUNTIF($AM$91:AN105,"Finish")=1)=TRUE,"Finish #2", IF(AND(AN106="Finish",COUNTIF($AM$91:AN105,"Finish")=2)=TRUE,"Finish #3",""))) ->  | AQ106: 9:45 AM
B107: ='15-Min All Vehicle'!Z30 -> 1154 | C107: 10:00-11:00am | D107: 09:59:59.942 | E107: 10:14:59.971 | F107: 10:30:00 | G107: 10:44:59.942 | H107: Dunn | N107: WeekendWeekendWeekday | P107: Weekday/Weekend | Y107: Sheboygan | Z107: 18 | AA107: 10:00-11:00am | AB107: 09:59:59.942 | AL107: =IF('15-Min All Vehicle'!X30>0,1,0) -> 1 | AO107: =IF(AND(AM107="Start",COUNTIF($AM$91:AM106,"start")=0) =TRUE, "Start #1", IF(AND(AM107="Start",COUNTIF($AM$91:AM106,"start")=1)=TRUE,"Start #2", IF(AND(AM107="Start",COUNTIF($AM$91:AM106,"start")=2)=TRUE,"Start #3",""))) ->  | AP107: =IF(AND(AN107="Finish",COUNTIF($AM$91:AN106,"Finish")=0) =TRUE, "Finish #1", IF(AND(AN107="Finish",COUNTIF($AM$91:AN106,"Finish")=1)=TRUE,"Finish #2", IF(AND(AN107="Finish",COUNTIF($AM$91:AN106,"Finish")=2)=TRUE,"Finish #3",""))) ->  | AQ107: 10:00 AM
B108: ='15-Min All Vehicle'!Z31 -> 1180 | C108: 10:15-11:15am | D108: 10:14:59.971 | E108: 10:30:00 | F108: 10:44:59.942 | G108: 10:59:59.971 | H108: Eau Claire | N108: WeekendWeekendWeekend | P108: Weekend | Y108: Winnebago | Z108: 19 | AA108: 10:15-11:15am | AB108: 09:59:59.942 | AL108: =IF('15-Min All Vehicle'!X31>0,1,0) -> 1 | AO108: =IF(AND(AM108="Start",COUNTIF($AM$91:AM107,"start")=0) =TRUE, "Start #1", IF(AND(AM108="Start",COUNTIF($AM$91:AM107,"start")=1)=TRUE,"Start #2", IF(AND(AM108="Start",COUNTIF($AM$91:AM107,"start")=2)=TRUE,"Start #3",""))) ->  | AP108: =IF(AND(AN108="Finish",COUNTIF($AM$91:AN107,"Finish")=0) =TRUE, "Finish #1", IF(AND(AN108="Finish",COUNTIF($AM$91:AN107,"Finish")=1)=TRUE,"Finish #2", IF(AND(AN108="Finish",COUNTIF($AM$91:AN107,"Finish")=2)=TRUE,"Finish #3",""))) ->  | AQ108: 10:15 AM
B109: ='15-Min All Vehicle'!Z32 -> 1269 | C109: 10:30-11:30am | D109: 10:30:00 | E109: 10:44:59.942 | F109: 10:59:59.971 | G109: 11:15:00 | H109: Florence | N109: WeekendWeekendNone | P109: Weekend | Y109: Adams | Z109: 20 | AA109: 10:30-11:30am | AB109: 09:59:59.942 | AL109: =IF('15-Min All Vehicle'!X32>0,1,0) -> 1 | AO109: =IF(AND(AM109="Start",COUNTIF($AM$91:AM108,"start")=0) =TRUE, "Start #1", IF(AND(AM109="Start",COUNTIF($AM$91:AM108,"start")=1)=TRUE,"Start #2", IF(AND(AM109="Start",COUNTIF($AM$91:AM108,"start")=2)=TRUE,"Start #3",""))) ->  | AP109: =IF(AND(AN109="Finish",COUNTIF($AM$91:AN108,"Finish")=0) =TRUE, "Finish #1", IF(AND(AN109="Finish",COUNTIF($AM$91:AN108,"Finish")=1)=TRUE,"Finish #2", IF(AND(AN109="Finish",COUNTIF($AM$91:AN108,"Finish")=2)=TRUE,"Finish #3",""))) ->  | AQ109: 10:30 AM
B110: ='15-Min All Vehicle'!Z33 -> 1337 | C110: 10:45-11:45am | D110: 10:44:59.942 | E110: 10:59:59.971 | F110: 11:15:00 | G110: 11:29:59.942 | H110: Fond du Lac | N110: WeekendNoneWeekday | P110: Weekday/Weekend | Y110: Florence | Z110: 21 | AA110: 10:45-11:45am | AB110: 09:59:59.942 | AL110: =IF('15-Min All Vehicle'!X33>0,1,0) -> 1 | AO110: =IF(AND(AM110="Start",COUNTIF($AM$91:AM109,"start")=0) =TRUE, "Start #1", IF(AND(AM110="Start",COUNTIF($AM$91:AM109,"start")=1)=TRUE,"Start #2", IF(AND(AM110="Start",COUNTIF($AM$91:AM109,"start")=2)=TRUE,"Start #3",""))) ->  | AP110: =IF(AND(AN110="Finish",COUNTIF($AM$91:AN109,"Finish")=0) =TRUE, "Finish #1", IF(AND(AN110="Finish",COUNTIF($AM$91:AN109,"Finish")=1)=TRUE,"Finish #2", IF(AND(AN110="Finish",COUNTIF($AM$91:AN109,"Finish")=2)=TRUE,"Finish #3",""))) ->  | AQ110: 10:45 AM
B111: ='15-Min All Vehicle'!Z34 -> 1380 | C111: 11:00-12:00am | D111: 10:59:59.971 | E111: 11:15:00 | F111: 11:29:59.942 | G111: 11:44:59.971 | H111: Forest | N111: WeekendNoneWeekend | P111: Weekend | Y111: Forest | Z111: 22 | AA111: 11:00-12:00am | AB111: 10:59:59.971 | AL111: =IF('15-Min All Vehicle'!X34>0,1,0) -> 1 | AO111: =IF(AND(AM111="Start",COUNTIF($AM$91:AM110,"start")=0) =TRUE, "Start #1", IF(AND(AM111="Start",COUNTIF($AM$91:AM110,"start")=1)=TRUE,"Start #2", IF(AND(AM111="Start",COUNTIF($AM$91:AM110,"start")=2)=TRUE,"Start #3",""))) ->  | AP111: =IF(AND(AN111="Finish",COUNTIF($AM$91:AN110,"Finish")=0) =TRUE, "Finish #1", IF(AND(AN111="Finish",COUNTIF($AM$91:AN110,"Finish")=1)=TRUE,"Finish #2", IF(AND(AN111="Finish",COUNTIF($AM$91:AN110,"Finish")=2)=TRUE,"Finish #3",""))) ->  | AQ111: 11:00 AM
B112: ='15-Min All Vehicle'!Z35 -> 1400 | C112: 11:15-12:15am | D112: 11:15:00 | E112: 11:29:59.942 | F112: 11:44:59.971 | G112: 12:00:00 | H112: Grant | N112: WeekendNoneNone | P112: Weekend | Y112: Green Lake | Z112: 23 | AA112: 11:15-12:15am | AB112: 10:59:59.971 | AL112: =IF('15-Min All Vehicle'!X35>0,1,0) -> 1 | AO112: =IF(AND(AM112="Start",COUNTIF($AM$91:AM111,"start")=0) =TRUE, "Start #1", IF(AND(AM112="Start",COUNTIF($AM$91:AM111,"start")=1)=TRUE,"Start #2", IF(AND(AM112="Start",COUNTIF($AM$91:AM111,"start")=2)=TRUE,"Start #3",""))) ->  | AP112: =IF(AND(AN112="Finish",COUNTIF($AM$91:AN111,"Finish")=0) =TRUE, "Finish #1", IF(AND(AN112="Finish",COUNTIF($AM$91:AN111,"Finish")=1)=TRUE,"Finish #2", IF(AND(AN112="Finish",COUNTIF($AM$91:AN111,"Finish")=2)=TRUE,"Finish #3",""))) ->  | AQ112: 11:15 AM
B113: ='15-Min All Vehicle'!Z36 -> 1383 | C113: 11:30-12:30am | D113: 11:29:59.942 | E113: 11:44:59.971 | F113: 12:00:00 | G113: 12:14:59.942 | H113: Green | N113: NoneWeekdayWeekday | P113: Weekday | Y113: Iron | Z113: 24 | AA113: 11:30-12:30am | AB113: 10:59:59.971 | AL113: =IF('15-Min All Vehicle'!X36>0,1,0) -> 1 | AO113: =IF(AND(AM113="Start",COUNTIF($AM$91:AM112,"start")=0) =TRUE, "Start #1", IF(AND(AM113="Start",COUNTIF($AM$91:AM112,"start")=1)=TRUE,"Start #2", IF(AND(AM113="Start",COUNTIF($AM$91:AM112,"start")=2)=TRUE,"Start #3",""))) ->  | AP113: =IF(AND(AN113="Finish",COUNTIF($AM$91:AN112,"Finish")=0) =TRUE, "Finish #1", IF(AND(AN113="Finish",COUNTIF($AM$91:AN112,"Finish")=1)=TRUE,"Finish #2", IF(AND(AN113="Finish",COUNTIF($AM$91:AN112,"Finish")=2)=TRUE,"Finish #3",""))) ->  | AQ113: 11:30 AM
B114: ='15-Min All Vehicle'!Z37 -> 1394 | C114: 11:45-12:45pm | D114: 11:44:59.971 | E114: 12:00:00 | F114: 12:14:59.942 | G114: 12:29:59.971 | H114: Green Lake | N114: NoneWeekdayNone | P114: Weekday | Y114: Langlade | Z114: 25 | AA114: 11:45-12:45pm | AB114: 10:59:59.971 | AL114: =IF('15-Min All Vehicle'!X37>0,1,0) -> 1 | AO114: =IF(AND(AM114="Start",COUNTIF($AM$91:AM113,"start")=0) =TRUE, "Start #1", IF(AND(AM114="Start",COUNTIF($AM$91:AM113,"start")=1)=TRUE,"Start #2", IF(AND(AM114="Start",COUNTIF($AM$91:AM113,"start")=2)=TRUE,"Start #3",""))) ->  | AP114: =IF(AND(AN114="Finish",COUNTIF($AM$91:AN113,"Finish")=0) =TRUE, "Finish #1", IF(AND(AN114="Finish",COUNTIF($AM$91:AN113,"Finish")=1)=TRUE,"Finish #2", IF(AND(AN114="Finish",COUNTIF($AM$91:AN113,"Finish")=2)=TRUE,"Finish #3",""))) ->  | AQ114: 11:45 AM
B115: ='15-Min All Vehicle'!Z38 -> 1409 | C115: 12:00-1:00pm | D115: 12:00:00 | E115: 12:14:59.942 | F115: 12:29:59.971 | G115: 12:45:00 | H115: Iowa | N115: NoneWeekdayWeekend | P115: Weekday/Weekend | Y115: Lincoln | Z115: 26 | AA115: 12:00-1:00pm | AB115: 12:00:00 | AL115: =IF('15-Min All Vehicle'!X38>0,1,0) -> 1 | AO115: =IF(AND(AM115="Start",COUNTIF($AM$91:AM114,"start")=0) =TRUE, "Start #1", IF(AND(AM115="Start",COUNTIF($AM$91:AM114,"start")=1)=TRUE,"Start #2", IF(AND(AM115="Start",COUNTIF($AM$91:AM114,"start")=2)=TRUE,"Start #3",""))) ->  | AP115: =IF(AND(AN115="Finish",COUNTIF($AM$91:AN114,"Finish")=0) =TRUE, "Finish #1", IF(AND(AN115="Finish",COUNTIF($AM$91:AN114,"Finish")=1)=TRUE,"Finish #2", IF(AND(AN115="Finish",COUNTIF($AM$91:AN114,"Finish")=2)=TRUE,"Finish #3",""))) ->  | AQ115: 12:00 PM
B116: ='15-Min All Vehicle'!Z39 -> 1465 | C116: 12:15-1:15pm | D116: 12:14:59.942 | E116: 12:29:59.971 | F116: 12:45:00 | G116: 12:59:59.942 | H116: Iron | N116: NoneWeekendWeekday | P116: Weekday/Weekend | Y116: Marathon | Z116: 27 | AA116: 12:15-1:15pm | AB116: 12:00:00 | AL116: =IF('15-Min All Vehicle'!X39>0,1,0) -> 1 | AO116: =IF(AND(AM116="Start",COUNTIF($AM$91:AM115,"start")=0) =TRUE, "Start #1", IF(AND(AM116="Start",COUNTIF($AM$91:AM115,"start")=1)=TRUE,"Start #2", IF(AND(AM116="Start",COUNTIF($AM$91:AM115,"start")=2)=TRUE,"Start #3",""))) ->  | AP116: =IF(AND(AN116="Finish",COUNTIF($AM$91:AN115,"Finish")=0) =TRUE, "Finish #1", IF(AND(AN116="Finish",COUNTIF($AM$91:AN115,"Finish")=1)=TRUE,"Finish #2", IF(AND(AN116="Finish",COUNTIF($AM$91:AN115,"Finish")=2)=TRUE,"Finish #3",""))) ->  | AQ116: 12:15 PM
B117: ='15-Min All Vehicle'!Z40 -> 1445 | C117: 12:30-1:30pm | D117: 12:29:59.971 | E117: 12:45:00 | F117: 12:59:59.942 | G117: 13:14:59.971 | H117: Jackson | N117: NoneWeekendWeekend | P117: Weekend | Y117: Marquette | Z117: 28 | AA117: 12:30-1:30pm | AB117: 12:00:00 | AL117: =IF('15-Min All Vehicle'!X40>0,1,0) -> 1 | AO117: =IF(AND(AM117="Start",COUNTIF($AM$91:AM116,"start")=0) =TRUE, "Start #1", IF(AND(AM117="Start",COUNTIF($AM$91:AM116,"start")=1)=TRUE,"Start #2", IF(AND(AM117="Start",COUNTIF($AM$91:AM116,"start")=2)=TRUE,"Start #3",""))) ->  | AP117: =IF(AND(AN117="Finish",COUNTIF($AM$91:AN116,"Finish")=0) =TRUE, "Finish #1", IF(AND(AN117="Finish",COUNTIF($AM$91:AN116,"Finish")=1)=TRUE,"Finish #2", IF(AND(AN117="Finish",COUNTIF($AM$91:AN116,"Finish")=2)=TRUE,"Finish #3",""))) ->  | AQ117: 12:30 PM
B118: ='15-Min All Vehicle'!Z41 -> 1485 | C118: 12:45-1:45pm | D118: 12:45:00 | E118: 12:59:59.942 | F118: 13:14:59.971 | G118: 13:30:00 | H118: Jefferson | N118: NoneWeekendNone | P118: Weekend | Y118: Menominee | Z118: 29 | AA118: 12:45-1:45pm | AB118: 12:00:00 | AL118: =IF('15-Min All Vehicle'!X41>0,1,0) -> 1 | AO118: =IF(AND(AM118="Start",COUNTIF($AM$91:AM117,"start")=0) =TRUE, "Start #1", IF(AND(AM118="Start",COUNTIF($AM$91:AM117,"start")=1)=TRUE,"Start #2", IF(AND(AM118="Start",COUNTIF($AM$91:AM117,"start")=2)=TRUE,"Start #3",""))) ->  | AP118: =IF(AND(AN118="Finish",COUNTIF($AM$91:AN117,"Finish")=0) =TRUE, "Finish #1", IF(AND(AN118="Finish",COUNTIF($AM$91:AN117,"Finish")=1)=TRUE,"Finish #2", IF(AND(AN118="Finish",COUNTIF($AM$91:AN117,"Finish")=2)=TRUE,"Finish #3",""))) ->  | AQ118: 12:45 PM
B119: ='15-Min All Vehicle'!Z42 -> 1488 | C119: 1:00-2:00pm | D119: 12:59:59.942 | E119: 13:14:59.971 | F119: 13:30:00 | G119: 13:44:59.942 | H119: Juneau | N119: NoneNoneWeekday | P119: Weekday | Y119: Oneida | Z119: 30 | AA119: 1:00-2:00pm | AB119: 12:59:59.942 | AL119: =IF('15-Min All Vehicle'!X42>0,1,0) -> 1 | AO119: =IF(AND(AM119="Start",COUNTIF($AM$91:AM118,"start")=0) =TRUE, "Start #1", IF(AND(AM119="Start",COUNTIF($AM$91:AM118,"start")=1)=TRUE,"Start #2", IF(AND(AM119="Start",COUNTIF($AM$91:AM118,"start")=2)=TRUE,"Start #3",""))) ->  | AP119: =IF(AND(AN119="Finish",COUNTIF($AM$91:AN118,"Finish")=0) =TRUE, "Finish #1", IF(AND(AN119="Finish",COUNTIF($AM$91:AN118,"Finish")=1)=TRUE,"Finish #2", IF(AND(AN119="Finish",COUNTIF($AM$91:AN118,"Finish")=2)=TRUE,"Finish #3",""))) ->  | AQ119: 1:00 PM
B120: ='15-Min All Vehicle'!Z43 -> 1481 | C120: 1:15-2:15pm | D120: 13:14:59.971 | E120: 13:30:00 | F120: 13:44:59.942 | G120: 13:59:59.971 | H120: Kenosha | N120: NoneNoneWeekend | P120: Weekend | Y120: Portage | Z120: 31 | AA120: 1:15-2:15pm | AB120: 12:59:59.942 | AL120: =IF('15-Min All Vehicle'!X43>0,1,0) -> 1 | AO120: =IF(AND(AM120="Start",COUNTIF($AM$91:AM119,"start")=0) =TRUE, "Start #1", IF(AND(AM120="Start",COUNTIF($AM$91:AM119,"start")=1)=TRUE,"Start #2", IF(AND(AM120="Start",COUNTIF($AM$91:AM119,"start")=2)=TRUE,"Start #3",""))) ->  | AP120: =IF(AND(AN120="Finish",COUNTIF($AM$91:AN119,"Finish")=0) =TRUE, "Finish #1", IF(AND(AN120="Finish",COUNTIF($AM$91:AN119,"Finish")=1)=TRUE,"Finish #2", IF(AND(AN120="Finish",COUNTIF($AM$91:AN119,"Finish")=2)=TRUE,"Finish #3",""))) ->  | AQ120: 1:15 PM
B121: ='15-Min All Vehicle'!Z44 -> 1578 | C121: 1:30-2:30pm | D121: 13:30:00 | E121: 13:44:59.942 | F121: 13:59:59.971 | G121: 14:15:00 | H121: Kewaunee | N121: NoneNoneNone | Y121: Price | Z121: 32 | AA121: 1:30-2:30pm | AB121: 12:59:59.942 | AL121: =IF('15-Min All Vehicle'!X44>0,1,0) -> 1 | AO121: =IF(AND(AM121="Start",COUNTIF($AM$91:AM120,"start")=0) =TRUE, "Start #1", IF(AND(AM121="Start",COUNTIF($AM$91:AM120,"start")=1)=TRUE,"Start #2", IF(AND(AM121="Start",COUNTIF($AM$91:AM120,"start")=2)=TRUE,"Start #3",""))) ->  | AP121: =IF(AND(AN121="Finish",COUNTIF($AM$91:AN120,"Finish")=0) =TRUE, "Finish #1", IF(AND(AN121="Finish",COUNTIF($AM$91:AN120,"Finish")=1)=TRUE,"Finish #2", IF(AND(AN121="Finish",COUNTIF($AM$91:AN120,"Finish")=2)=TRUE,"Finish #3",""))) ->  | AQ121: 1:30 PM
B122: ='15-Min All Vehicle'!Z45 -> 1614 | C122: 1:45-2:45pm | D122: 13:44:59.942 | E122: 13:59:59.971 | F122: 14:15:00 | G122: 14:29:59.942 | H122: La Crosse | Y122: Shawano | Z122: 33 | AA122: 1:45-2:45pm | AB122: 12:59:59.942 | AL122: =IF('15-Min All Vehicle'!X45>0,1,0) -> 1 | AO122: =IF(AND(AM122="Start",COUNTIF($AM$91:AM121,"start")=0) =TRUE, "Start #1", IF(AND(AM122="Start",COUNTIF($AM$91:AM121,"start")=1)=TRUE,"Start #2", IF(AND(AM122="Start",COUNTIF($AM$91:AM121,"start")=2)=TRUE,"Start #3",""))) ->  | AP122: =IF(AND(AN122="Finish",COUNTIF($AM$91:AN121,"Finish")=0) =TRUE, "Finish #1", IF(AND(AN122="Finish",COUNTIF($AM$91:AN121,"Finish")=1)=TRUE,"Finish #2", IF(AND(AN122="Finish",COUNTIF($AM$91:AN121,"Finish")=2)=TRUE,"Finish #3",""))) ->  | AQ122: 1:45 PM
B123: ='15-Min All Vehicle'!Z46 -> 1701 | C123: 2:00-3:00pm | D123: 13:59:59.971 | E123: 14:15:00 | F123: 14:29:59.942 | G123: 14:44:59.971 | H123: Lafayette | Y123: Vilas | Z123: 34 | AA123: 2:00-3:00pm | AB123: 13:59:59.971 | AL123: =IF('15-Min All Vehicle'!X46>0,1,0) -> 1 | AO123: =IF(AND(AM123="Start",COUNTIF($AM$91:AM122,"start")=0) =TRUE, "Start #1", IF(AND(AM123="Start",COUNTIF($AM$91:AM122,"start")=1)=TRUE,"Start #2", IF(AND(AM123="Start",COUNTIF($AM$91:AM122,"start")=2)=TRUE,"Start #3",""))) ->  | AP123: =IF(AND(AN123="Finish",COUNTIF($AM$91:AN122,"Finish")=0) =TRUE, "Finish #1", IF(AND(AN123="Finish",COUNTIF($AM$91:AN122,"Finish")=1)=TRUE,"Finish #2", IF(AND(AN123="Finish",COUNTIF($AM$91:AN122,"Finish")=2)=TRUE,"Finish #3",""))) ->  | AQ123: 2:00 PM
B124: ='15-Min All Vehicle'!Z47 -> 1749 | C124: 2:15-3:15pm | D124: 14:15:00 | E124: 14:29:59.942 | F124: 14:44:59.971 | G124: 15:00:00 | H124: Langlade | Y124: Waupaca | Z124: 35 | AA124: 2:15-3:15pm | AB124: 13:59:59.971 | AL124: =IF('15-Min All Vehicle'!X47>0,1,0) -> 1 | AO124: =IF(AND(AM124="Start",COUNTIF($AM$91:AM123,"start")=0) =TRUE, "Start #1", IF(AND(AM124="Start",COUNTIF($AM$91:AM123,"start")=1)=TRUE,"Start #2", IF(AND(AM124="Start",COUNTIF($AM$91:AM123,"start")=2)=TRUE,"Start #3",""))) ->  | AP124: =IF(AND(AN124="Finish",COUNTIF($AM$91:AN123,"Finish")=0) =TRUE, "Finish #1", IF(AND(AN124="Finish",COUNTIF($AM$91:AN123,"Finish")=1)=TRUE,"Finish #2", IF(AND(AN124="Finish",COUNTIF($AM$91:AN123,"Finish")=2)=TRUE,"Finish #3",""))) ->  | AQ124: 2:15 PM
B125: ='15-Min All Vehicle'!Z48 -> 1793 | C125: 2:30-3:30pm | D125: 14:29:59.942 | E125: 14:44:59.971 | F125: 15:00:00 | G125: 15:14:59.942 | H125: Lincoln | Y125: Waushara | Z125: 36 | AA125: 2:30-3:30pm | AB125: 13:59:59.971 | AL125: =IF('15-Min All Vehicle'!X48>0,1,0) -> 1 | AO125: =IF(AND(AM125="Start",COUNTIF($AM$91:AM124,"start")=0) =TRUE, "Start #1", IF(AND(AM125="Start",COUNTIF($AM$91:AM124,"start")=1)=TRUE,"Start #2", IF(AND(AM125="Start",COUNTIF($AM$91:AM124,"start")=2)=TRUE,"Start #3",""))) ->  | AP125: =IF(AND(AN125="Finish",COUNTIF($AM$91:AN124,"Finish")=0) =TRUE, "Finish #1", IF(AND(AN125="Finish",COUNTIF($AM$91:AN124,"Finish")=1)=TRUE,"Finish #2", IF(AND(AN125="Finish",COUNTIF($AM$91:AN124,"Finish")=2)=TRUE,"Finish #3",""))) ->  | AQ125: 2:30 PM
B126: ='15-Min All Vehicle'!Z49 -> 1884 | C126: 2:45-3:45pm | D126: 14:44:59.971 | E126: 15:00:00 | F126: 15:14:59.942 | G126: 15:29:59.971 | H126: Manitowoc | Y126: Wood | Z126: 37 | AA126: 2:45-3:45pm | AB126: 13:59:59.971 | AL126: =IF('15-Min All Vehicle'!X49>0,1,0) -> 1 | AO126: =IF(AND(AM126="Start",COUNTIF($AM$91:AM125,"start")=0) =TRUE, "Start #1", IF(AND(AM126="Start",COUNTIF($AM$91:AM125,"start")=1)=TRUE,"Start #2", IF(AND(AM126="Start",COUNTIF($AM$91:AM125,"start")=2)=TRUE,"Start #3",""))) ->  | AP126: =IF(AND(AN126="Finish",COUNTIF($AM$91:AN125,"Finish")=0) =TRUE, "Finish #1", IF(AND(AN126="Finish",COUNTIF($AM$91:AN125,"Finish")=1)=TRUE,"Finish #2", IF(AND(AN126="Finish",COUNTIF($AM$91:AN125,"Finish")=2)=TRUE,"Finish #3",""))) ->  | AQ126: 2:45 PM
B127: ='15-Min All Vehicle'!Z50 -> 1905 | C127: 3:00-4:00pm | D127: 15:00:00 | E127: 15:14:59.942 | F127: 15:29:59.971 | G127: 15:45:00 | H127: Marathon | Y127: Ashland | Z127: 38 | AA127: 3:00-4:00pm | AB127: 15:00:00 | AL127: =IF('15-Min All Vehicle'!X50>0,1,0) -> 1 | AO127: =IF(AND(AM127="Start",COUNTIF($AM$91:AM126,"start")=0) =TRUE, "Start #1", IF(AND(AM127="Start",COUNTIF($AM$91:AM126,"start")=1)=TRUE,"Start #2", IF(AND(AM127="Start",COUNTIF($AM$91:AM126,"start")=2)=TRUE,"Start #3",""))) ->  | AP127: =IF(AND(AN127="Finish",COUNTIF($AM$91:AN126,"Finish")=0) =TRUE, "Finish #1", IF(AND(AN127="Finish",COUNTIF($AM$91:AN126,"Finish")=1)=TRUE,"Finish #2", IF(AND(AN127="Finish",COUNTIF($AM$91:AN126,"Finish")=2)=TRUE,"Finish #3",""))) ->  | AQ127: 3:00 PM
B128: ='15-Min All Vehicle'!Z51 -> 1952 | C128: 3:15-4:15pm | D128: 15:14:59.942 | E128: 15:29:59.971 | F128: 15:45:00 | G128: 15:59:59.942 | H128: Marinette | Y128: Barron | Z128: 39 | AA128: 3:15-4:15pm | AB128: 15:00:00 | AL128: =IF('15-Min All Vehicle'!X51>0,1,0) -> 1 | AO128: =IF(AND(AM128="Start",COUNTIF($AM$91:AM127,"start")=0) =TRUE, "Start #1", IF(AND(AM128="Start",COUNTIF($AM$91:AM127,"start")=1)=TRUE,"Start #2", IF(AND(AM128="Start",COUNTIF($AM$91:AM127,"start")=2)=TRUE,"Start #3",""))) ->  | AP128: =IF(AND(AN128="Finish",COUNTIF($AM$91:AN127,"Finish")=0) =TRUE, "Finish #1", IF(AND(AN128="Finish",COUNTIF($AM$91:AN127,"Finish")=1)=TRUE,"Finish #2", IF(AND(AN128="Finish",COUNTIF($AM$91:AN127,"Finish")=2)=TRUE,"Finish #3",""))) ->  | AQ128: 3:15 PM
B129: ='15-Min All Vehicle'!Z52 -> 2017 | C129: 3:30-4:30pm | D129: 15:29:59.971 | E129: 15:45:00 | F129: 15:59:59.942 | G129: 16:14:59.971 | H129: Marquette | Y129: Bayfield | Z129: 40 | AA129: 3:30-4:30pm | AB129: 15:00:00 | AL129: =IF('15-Min All Vehicle'!X52>0,1,0) -> 1 | AO129: =IF(AND(AM129="Start",COUNTIF($AM$91:AM128,"start")=0) =TRUE, "Start #1", IF(AND(AM129="Start",COUNTIF($AM$91:AM128,"start")=1)=TRUE,"Start #2", IF(AND(AM129="Start",COUNTIF($AM$91:AM128,"start")=2)=TRUE,"Start #3",""))) ->  | AP129: =IF(AND(AN129="Finish",COUNTIF($AM$91:AN128,"Finish")=0) =TRUE, "Finish #1", IF(AND(AN129="Finish",COUNTIF($AM$91:AN128,"Finish")=1)=TRUE,"Finish #2", IF(AND(AN129="Finish",COUNTIF($AM$91:AN128,"Finish")=2)=TRUE,"Finish #3",""))) ->  | AQ129: 3:30 PM
B130: ='15-Min All Vehicle'!Z53 -> 2050 | C130: 3:45-4:45pm | D130: 15:45:00 | E130: 15:59:59.942 | F130: 16:14:59.971 | G130: 16:30:00 | H130: Menominee | Y130: Buffalo | Z130: 41 | AA130: 3:45-4:45pm | AB130: 15:00:00 | AL130: =IF('15-Min All Vehicle'!X53>0,1,0) -> 1 | AO130: =IF(AND(AM130="Start",COUNTIF($AM$91:AM129,"start")=0) =TRUE, "Start #1", IF(AND(AM130="Start",COUNTIF($AM$91:AM129,"start")=1)=TRUE,"Start #2", IF(AND(AM130="Start",COUNTIF($AM$91:AM129,"start")=2)=TRUE,"Start #3",""))) ->  | AP130: =IF(AND(AN130="Finish",COUNTIF($AM$91:AN129,"Finish")=0) =TRUE, "Finish #1", IF(AND(AN130="Finish",COUNTIF($AM$91:AN129,"Finish")=1)=TRUE,"Finish #2", IF(AND(AN130="Finish",COUNTIF($AM$91:AN129,"Finish")=2)=TRUE,"Finish #3",""))) ->  | AQ130: 3:45 PM
B131: ='15-Min All Vehicle'!Z54 -> 2172 | C131: 4:00-5:00pm | D131: 15:59:59.942 | E131: 16:14:59.971 | F131: 16:30:00 | G131: 16:44:59.942 | H131: Milwaukee | Y131: Burnett | Z131: 42 | AA131: 4:00-5:00pm | AB131: 15:59:59.942 | AL131: =IF('15-Min All Vehicle'!X54>0,1,0) -> 1 | AO131: =IF(AND(AM131="Start",COUNTIF($AM$91:AM130,"start")=0) =TRUE, "Start #1", IF(AND(AM131="Start",COUNTIF($AM$91:AM130,"start")=1)=TRUE,"Start #2", IF(AND(AM131="Start",COUNTIF($AM$91:AM130,"start")=2)=TRUE,"Start #3",""))) ->  | AP131: =IF(AND(AN131="Finish",COUNTIF($AM$91:AN130,"Finish")=0) =TRUE, "Finish #1", IF(AND(AN131="Finish",COUNTIF($AM$91:AN130,"Finish")=1)=TRUE,"Finish #2", IF(AND(AN131="Finish",COUNTIF($AM$91:AN130,"Finish")=2)=TRUE,"Finish #3",""))) ->  | AQ131: 4:00 PM
B132: ='15-Min All Vehicle'!Z55 -> 2205 | C132: 4:15-5:15pm | D132: 16:14:59.971 | E132: 16:30:00 | F132: 16:44:59.942 | G132: 16:59:59.971 | H132: Monroe | Y132: Chippewa | Z132: 43 | AA132: 4:15-5:15pm | AB132: 15:59:59.942 | AL132: =IF('15-Min All Vehicle'!X55>0,1,0) -> 1 | AO132: =IF(AND(AM132="Start",COUNTIF($AM$91:AM131,"start")=0) =TRUE, "Start #1", IF(AND(AM132="Start",COUNTIF($AM$91:AM131,"start")=1)=TRUE,"Start #2", IF(AND(AM132="Start",COUNTIF($AM$91:AM131,"start")=2)=TRUE,"Start #3",""))) ->  | AP132: =IF(AND(AN132="Finish",COUNTIF($AM$91:AN131,"Finish")=0) =TRUE, "Finish #1", IF(AND(AN132="Finish",COUNTIF($AM$91:AN131,"Finish")=1)=TRUE,"Finish #2", IF(AND(AN132="Finish",COUNTIF($AM$91:AN131,"Finish")=2)=TRUE,"Finish #3",""))) ->  | AQ132: 4:15 PM
B133: ='15-Min All Vehicle'!Z56 -> 2241 | C133: 4:30-5:30pm | D133: 16:30:00 | E133: 16:44:59.942 | F133: 16:59:59.971 | G133: 17:15:00 | H133: Oconto | Y133: Clark | Z133: 44 | AA133: 4:30-5:30pm | AB133: 15:59:59.942 | AL133: =IF('15-Min All Vehicle'!X56>0,1,0) -> 1 | AO133: =IF(AND(AM133="Start",COUNTIF($AM$91:AM132,"start")=0) =TRUE, "Start #1", IF(AND(AM133="Start",COUNTIF($AM$91:AM132,"start")=1)=TRUE,"Start #2", IF(AND(AM133="Start",COUNTIF($AM$91:AM132,"start")=2)=TRUE,"Start #3",""))) ->  | AP133: =IF(AND(AN133="Finish",COUNTIF($AM$91:AN132,"Finish")=0) =TRUE, "Finish #1", IF(AND(AN133="Finish",COUNTIF($AM$91:AN132,"Finish")=1)=TRUE,"Finish #2", IF(AND(AN133="Finish",COUNTIF($AM$91:AN132,"Finish")=2)=TRUE,"Finish #3",""))) ->  | AQ133: 4:30 PM
B134: ='15-Min All Vehicle'!Z57 -> 2118 | C134: 4:45-5:45pm | D134: 16:44:59.942 | E134: 16:59:59.971 | F134: 17:15:00 | G134: 17:29:59.942 | H134: Oneida | Y134: Douglas | Z134: 45 | AA134: 4:45-5:45pm | AB134: 15:59:59.942 | AL134: =IF('15-Min All Vehicle'!X57>0,1,0) -> 1 | AO134: =IF(AND(AM134="Start",COUNTIF($AM$91:AM133,"start")=0) =TRUE, "Start #1", IF(AND(AM134="Start",COUNTIF($AM$91:AM133,"start")=1)=TRUE,"Start #2", IF(AND(AM134="Start",COUNTIF($AM$91:AM133,"start")=2)=TRUE,"Start #3",""))) ->  | AP134: =IF(AND(AN134="Finish",COUNTIF($AM$91:AN133,"Finish")=0) =TRUE, "Finish #1", IF(AND(AN134="Finish",COUNTIF($AM$91:AN133,"Finish")=1)=TRUE,"Finish #2", IF(AND(AN134="Finish",COUNTIF($AM$91:AN133,"Finish")=2)=TRUE,"Finish #3",""))) ->  | AQ134: 4:45 PM
B135: ='15-Min All Vehicle'!Z58 -> 1923 | C135: 5:00-6:00pm | D135: 16:59:59.971 | E135: 17:15:00 | F135: 17:29:59.942 | G135: 17:44:59.971 | H135: Outagamie | Y135: Dunn | Z135: 46 | AA135: 5:00-6:00pm | AB135: 16:59:59.971 | AL135: =IF('15-Min All Vehicle'!X58>0,1,0) -> 1 | AO135: =IF(AND(AM135="Start",COUNTIF($AM$91:AM134,"start")=0) =TRUE, "Start #1", IF(AND(AM135="Start",COUNTIF($AM$91:AM134,"start")=1)=TRUE,"Start #2", IF(AND(AM135="Start",COUNTIF($AM$91:AM134,"start")=2)=TRUE,"Start #3",""))) ->  | AP135: =IF(AND(AN135="Finish",COUNTIF($AM$91:AN134,"Finish")=0) =TRUE, "Finish #1", IF(AND(AN135="Finish",COUNTIF($AM$91:AN134,"Finish")=1)=TRUE,"Finish #2", IF(AND(AN135="Finish",COUNTIF($AM$91:AN134,"Finish")=2)=TRUE,"Finish #3",""))) ->  | AQ135: 5:00 PM
B136: ='15-Min All Vehicle'!Z59 ->  | C136: 5:15-6:15pm | D136: 17:15:00 | E136: 17:29:59.942 | F136: 17:44:59.971 | G136: 18:00:00 | H136: Ozaukee | Y136: Eau Claire | Z136: 47 | AA136: 5:15-6:15pm | AB136: 16:59:59.971 | AL136: =IF('15-Min All Vehicle'!X59>0,1,0) -> 1 | AO136: =IF(AND(AM136="Start",COUNTIF($AM$91:AM135,"start")=0) =TRUE, "Start #1", IF(AND(AM136="Start",COUNTIF($AM$91:AM135,"start")=1)=TRUE,"Start #2", IF(AND(AM136="Start",COUNTIF($AM$91:AM135,"start")=2)=TRUE,"Start #3",""))) ->  | AP136: =IF(AND(AN136="Finish",COUNTIF($AM$91:AN135,"Finish")=0) =TRUE, "Finish #1", IF(AND(AN136="Finish",COUNTIF($AM$91:AN135,"Finish")=1)=TRUE,"Finish #2", IF(AND(AN136="Finish",COUNTIF($AM$91:AN135,"Finish")=2)=TRUE,"Finish #3",""))) ->  | AQ136: 5:15 PM
B137: ='15-Min All Vehicle'!Z60 ->  | C137: 5:30-6:30pm | D137: 17:29:59.942 | E137: 17:44:59.971 | F137: 18:00:00 | G137: 18:14:59.942 | H137: Pepin | Y137: Jackson | Z137: 48 | AA137: 5:30-6:30pm | AB137: 16:59:59.971 | AL137: =IF('15-Min All Vehicle'!X60>0,1,0) -> 1 | AO137: =IF(AND(AM137="Start",COUNTIF($AM$91:AM136,"start")=0) =TRUE, "Start #1", IF(AND(AM137="Start",COUNTIF($AM$91:AM136,"start")=1)=TRUE,"Start #2", IF(AND(AM137="Start",COUNTIF($AM$91:AM136,"start")=2)=TRUE,"Start #3",""))) ->  | AP137: =IF(AND(AN137="Finish",COUNTIF($AM$91:AN136,"Finish")=0) =TRUE, "Finish #1", IF(AND(AN137="Finish",COUNTIF($AM$91:AN136,"Finish")=1)=TRUE,"Finish #2", IF(AND(AN137="Finish",COUNTIF($AM$91:AN136,"Finish")=2)=TRUE,"Finish #3",""))) ->  | AQ137: 5:30 PM
B138: ='15-Min All Vehicle'!Z61 ->  | C138: 5:45-6:45pm | D138: 17:44:59.971 | E138: 18:00:00 | F138: 18:14:59.942 | G138: 18:29:59.971 | H138: Pierce | Y138: Pepin | Z138: 49 | AA138: 5:45-6:45pm | AB138: 16:59:59.971 | AL138: =IF('15-Min All Vehicle'!X61>0,1,0) -> 1 | AO138: =IF(AND(AM138="Start",COUNTIF($AM$91:AM137,"start")=0) =TRUE, "Start #1", IF(AND(AM138="Start",COUNTIF($AM$91:AM137,"start")=1)=TRUE,"Start #2", IF(AND(AM138="Start",COUNTIF($AM$91:AM137,"start")=2)=TRUE,"Start #3",""))) ->  | AP138: =IF(AND(AN138="Finish",COUNTIF($AM$91:AN137,"Finish")=0) =TRUE, "Finish #1", IF(AND(AN138="Finish",COUNTIF($AM$91:AN137,"Finish")=1)=TRUE,"Finish #2", IF(AND(AN138="Finish",COUNTIF($AM$91:AN137,"Finish")=2)=TRUE,"Finish #3",""))) ->  | AQ138: 5:45 PM
B139: ='15-Min All Vehicle'!Z62 ->  | C139: 6:00-7:00pm | D139: 18:00:00 | E139: 18:14:59.942 | F139: 18:29:59.971 | G139: 18:45:00 | H139: Polk | Y139: Pierce | Z139: 50 | AA139: 6:00-7:00pm | AB139: 18:00:00 | AL139: =IF('15-Min All Vehicle'!X62>0,1,0) -> 0 | AN139: Finish | AO139: =IF(AND(AM139="Start",COUNTIF($AM$91:AM138,"start")=0) =TRUE, "Start #1", IF(AND(AM139="Start",COUNTIF($AM$91:AM138,"start")=1)=TRUE,"Start #2", IF(AND(AM139="Start",COUNTIF($AM$91:AM138,"start")=2)=TRUE,"Start #3",""))) ->  | AP139: =IF(AND(AN139="Finish",COUNTIF($AM$91:AN138,"Finish")=0) =TRUE, "Finish #1", IF(AND(AN139="Finish",COUNTIF($AM$91:AN138,"Finish")=1)=TRUE,"Finish #2", IF(AND(AN139="Finish",COUNTIF($AM$91:AN138,"Finish")=2)=TRUE,"Finish #3",""))) -> Finish #1 | AQ139: 6:00 PM
B140: ='15-Min All Vehicle'!Z63 ->  | C140: 6:15-7:15pm | D140: 18:14:59.942 | E140: 18:29:59.971 | F140: 18:45:00 | G140: 18:59:59.942 | H140: Portage | Y140: Polk | Z140: 51 | AA140: 6:15-7:15pm | AB140: 18:00:00 | AL140: =IF('15-Min All Vehicle'!X63>0,1,0) -> 0 | AO140: =IF(AND(AM140="Start",COUNTIF($AM$91:AM139,"start")=0) =TRUE, "Start #1", IF(AND(AM140="Start",COUNTIF($AM$91:AM139,"start")=1)=TRUE,"Start #2", IF(AND(AM140="Start",COUNTIF($AM$91:AM139,"start")=2)=TRUE,"Start #3",""))) ->  | AP140: =IF(AND(AN140="Finish",COUNTIF($AM$91:AN139,"Finish")=0) =TRUE, "Finish #1", IF(AND(AN140="Finish",COUNTIF($AM$91:AN139,"Finish")=1)=TRUE,"Finish #2", IF(AND(AN140="Finish",COUNTIF($AM$91:AN139,"Finish")=2)=TRUE,"Finish #3",""))) ->  | AQ140: 6:15 PM
B141: ='15-Min All Vehicle'!Z64 ->  | C141: 6:30-7:30pm | D141: 18:29:59.971 | E141: 18:45:00 | F141: 18:59:59.942 | G141: 19:14:59.971 | H141: Price | Y141: Rusk | Z141: 52 | AA141: 6:30-7:30pm | AB141: 18:00:00 | AL141: =IF('15-Min All Vehicle'!X64>0,1,0) -> 0 | AO141: =IF(AND(AM141="Start",COUNTIF($AM$91:AM140,"start")=0) =TRUE, "Start #1", IF(AND(AM141="Start",COUNTIF($AM$91:AM140,"start")=1)=TRUE,"Start #2", IF(AND(AM141="Start",COUNTIF($AM$91:AM140,"start")=2)=TRUE,"Start #3",""))) ->  | AP141: =IF(AND(AN141="Finish",COUNTIF($AM$91:AN140,"Finish")=0) =TRUE, "Finish #1", IF(AND(AN141="Finish",COUNTIF($AM$91:AN140,"Finish")=1)=TRUE,"Finish #2", IF(AND(AN141="Finish",COUNTIF($AM$91:AN140,"Finish")=2)=TRUE,"Finish #3",""))) ->  | AQ141: 6:30 PM
B142: ='15-Min All Vehicle'!Z65 ->  | C142: 6:45-7:45pm | D142: 18:45:00 | E142: 18:59:59.942 | F142: 19:14:59.971 | G142: 19:30:00 | H142: Racine | Y142: Sawyer | Z142: 53 | AA142: 6:45-7:45pm | AB142: 18:00:00 | AL142: =IF('15-Min All Vehicle'!X65>0,1,0) -> 0 | AO142: =IF(AND(AM142="Start",COUNTIF($AM$91:AM141,"start")=0) =TRUE, "Start #1", IF(AND(AM142="Start",COUNTIF($AM$91:AM141,"start")=1)=TRUE,"Start #2", IF(AND(AM142="Start",COUNTIF($AM$91:AM141,"start")=2)=TRUE,"Start #3",""))) ->  | AP142: =IF(AND(AN142="Finish",COUNTIF($AM$91:AN141,"Finish")=0) =TRUE, "Finish #1", IF(AND(AN142="Finish",COUNTIF($AM$91:AN141,"Finish")=1)=TRUE,"Finish #2", IF(AND(AN142="Finish",COUNTIF($AM$91:AN141,"Finish")=2)=TRUE,"Finish #3",""))) ->  | AQ142: 6:45 PM
B143: ='15-Min All Vehicle'!Z66 ->  | C143: 7:00-8:00pm | D143: 18:59:59.942 | E143: 19:14:59.971 | F143: 19:30:00 | G143: 19:44:59.942 | H143: Richland | Y143: St. Croix | Z143: 54 | AA143: 7:00-8:00pm | AB143: 18:59:59.942 | AL143: =IF('15-Min All Vehicle'!X66>0,1,0) -> 0 | AN143: =IF(AL143-AL142 = (-1),"Finish","") ->  | AO143: =IF(AND(AM143="Start",COUNTIF($AM$91:AM142,"start")=0) =TRUE, "Start #1", IF(AND(AM143="Start",COUNTIF($AM$91:AM142,"start")=1)=TRUE,"Start #2", IF(AND(AM143="Start",COUNTIF($AM$91:AM142,"start")=2)=TRUE,"Start #3",""))) ->  | AP143: =IF(AND(AN143="Finish",COUNTIF($AM$91:AN142,"Finish")=0) =TRUE, "Finish #1", IF(AND(AN143="Finish",COUNTIF($AM$91:AN142,"Finish")=1)=TRUE,"Finish #2", IF(AND(AN143="Finish",COUNTIF($AM$91:AN142,"Finish")=2)=TRUE,"Finish #3",""))) ->  | AQ143: 7:00 PM
B144: ='15-Min All Vehicle'!Z67 ->  | C144: 7:15-8:15pm | D144: 19:14:59.971 | E144: 19:30:00 | F144: 19:44:59.942 | G144: 19:59:59.971 | H144: Rock | Y144: Taylor | Z144: 55 | AA144: 7:15-8:15pm | AB144: 18:59:59.942 | AL144: =IF('15-Min All Vehicle'!X67>0,1,0) -> 0 | AO144: =IF(AND(AM144="Start",COUNTIF($AM$91:AM143,"start")=0) =TRUE, "Start #1", IF(AND(AM144="Start",COUNTIF($AM$91:AM143,"start")=1)=TRUE,"Start #2", IF(AND(AM144="Start",COUNTIF($AM$91:AM143,"start")=2)=TRUE,"Start #3",""))) ->  | AP144: =IF(AND(AN144="Finish",COUNTIF($AM$91:AN143,"Finish")=0) =TRUE, "Finish #1", IF(AND(AN144="Finish",COUNTIF($AM$91:AN143,"Finish")=1)=TRUE,"Finish #2", IF(AND(AN144="Finish",COUNTIF($AM$91:AN143,"Finish")=2)=TRUE,"Finish #3",""))) ->  | AQ144: 7:15 PM
B145: ='15-Min All Vehicle'!Z68 ->  | C145: 7:30-8:30pm | D145: 19:30:00 | E145: 19:44:59.942 | F145: 19:59:59.971 | G145: 20:15:00 | H145: Rusk | Y145: Trempealeau | Z145: 56 | AA145: 7:30-8:30pm | AB145: 18:59:59.942 | AL145: =IF('15-Min All Vehicle'!X68>0,1,0) -> 0 | AO145: =IF(AND(AM145="Start",COUNTIF($AM$91:AM144,"start")=0) =TRUE, "Start #1", IF(AND(AM145="Start",COUNTIF($AM$91:AM144,"start")=1)=TRUE,"Start #2", IF(AND(AM145="Start",COUNTIF($AM$91:AM144,"start")=2)=TRUE,"Start #3",""))) ->  | AP145: =IF(AND(AN145="Finish",COUNTIF($AM$91:AN144,"Finish")=0) =TRUE, "Finish #1", IF(AND(AN145="Finish",COUNTIF($AM$91:AN144,"Finish")=1)=TRUE,"Finish #2", IF(AND(AN145="Finish",COUNTIF($AM$91:AN144,"Finish")=2)=TRUE,"Finish #3",""))) ->  | AQ145: 7:30 PM
B146: ='15-Min All Vehicle'!Z69 ->  | C146: 7:45-8:45pm | D146: 19:44:59.942 | E146: 19:59:59.971 | F146: 20:15:00 | G146: 20:29:59.942 | H146: St. Croix | Y146: Washburn | Z146: 57 | AA146: 7:45-8:45pm | AB146: 18:59:59.942 | AL146: =IF('15-Min All Vehicle'!X69>0,1,0) -> 0 | AO146: =IF(AND(AM146="Start",COUNTIF($AM$91:AM145,"start")=0) =TRUE, "Start #1", IF(AND(AM146="Start",COUNTIF($AM$91:AM145,"start")=1)=TRUE,"Start #2", IF(AND(AM146="Start",COUNTIF($AM$91:AM145,"start")=2)=TRUE,"Start #3",""))) ->  | AP146: =IF(AND(AN146="Finish",COUNTIF($AM$91:AN145,"Finish")=0) =TRUE, "Finish #1", IF(AND(AN146="Finish",COUNTIF($AM$91:AN145,"Finish")=1)=TRUE,"Finish #2", IF(AND(AN146="Finish",COUNTIF($AM$91:AN145,"Finish")=2)=TRUE,"Finish #3",""))) ->  | AQ146: 7:45 PM
B147: ='15-Min All Vehicle'!Z70 ->  | C147: 8:00-9:00pm | D147: 19:59:59.971 | E147: 20:15:00 | F147: 20:29:59.942 | G147: 20:44:59.971 | H147: Sauk | Y147: Columbia | Z147: 58 | AA147: 8:00-9:00pm | AB147: 19:59:59.971 | AL147: =IF('15-Min All Vehicle'!X70>0,1,0) -> 0 | AO147: =IF(AND(AM147="Start",COUNTIF($AM$91:AM146,"start")=0) =TRUE, "Start #1", IF(AND(AM147="Start",COUNTIF($AM$91:AM146,"start")=1)=TRUE,"Start #2", IF(AND(AM147="Start",COUNTIF($AM$91:AM146,"start")=2)=TRUE,"Start #3",""))) ->  | AP147: =IF(AND(AN147="Finish",COUNTIF($AM$91:AN146,"Finish")=0) =TRUE, "Finish #1", IF(AND(AN147="Finish",COUNTIF($AM$91:AN146,"Finish")=1)=TRUE,"Finish #2", IF(AND(AN147="Finish",COUNTIF($AM$91:AN146,"Finish")=2)=TRUE,"Finish #3",""))) ->  | AQ147: 8:00 PM
B148: ='15-Min All Vehicle'!Z71 ->  | C148: 8:15-9:15pm | D148: 20:15:00 | E148: 20:29:59.942 | F148: 20:44:59.971 | G148: 21:00:00 | H148: Sawyer | Y148: Crawford | Z148: 59 | AA148: 8:15-9:15pm | AB148: 19:59:59.971 | AL148: =IF('15-Min All Vehicle'!X71>0,1,0) -> 0 | AO148: =IF(AND(AM148="Start",COUNTIF($AM$91:AM147,"start")=0) =TRUE, "Start #1", IF(AND(AM148="Start",COUNTIF($AM$91:AM147,"start")=1)=TRUE,"Start #2", IF(AND(AM148="Start",COUNTIF($AM$91:AM147,"start")=2)=TRUE,"Start #3",""))) ->  | AP148: =IF(AND(AN148="Finish",COUNTIF($AM$91:AN147,"Finish")=0) =TRUE, "Finish #1", IF(AND(AN148="Finish",COUNTIF($AM$91:AN147,"Finish")=1)=TRUE,"Finish #2", IF(AND(AN148="Finish",COUNTIF($AM$91:AN147,"Finish")=2)=TRUE,"Finish #3",""))) ->  | AQ148: 8:15 PM
B149: ='15-Min All Vehicle'!Z72 ->  | C149: 8:30-9:30pm | D149: 20:29:59.942 | E149: 20:44:59.971 | F149: 21:00:00 | G149: 21:14:59.942 | H149: Shawano | Y149: Dane | Z149: 60 | AA149: 8:30-9:30pm | AB149: 19:59:59.971 | AL149: =IF('15-Min All Vehicle'!X72>0,1,0) -> 0 | AO149: =IF(AND(AM149="Start",COUNTIF($AM$91:AM148,"start")=0) =TRUE, "Start #1", IF(AND(AM149="Start",COUNTIF($AM$91:AM148,"start")=1)=TRUE,"Start #2", IF(AND(AM149="Start",COUNTIF($AM$91:AM148,"start")=2)=TRUE,"Start #3",""))) ->  | AP149: =IF(AND(AN149="Finish",COUNTIF($AM$91:AN148,"Finish")=0) =TRUE, "Finish #1", IF(AND(AN149="Finish",COUNTIF($AM$91:AN148,"Finish")=1)=TRUE,"Finish #2", IF(AND(AN149="Finish",COUNTIF($AM$91:AN148,"Finish")=2)=TRUE,"Finish #3",""))) ->  | AQ149: 8:30 PM
B150: ='15-Min All Vehicle'!Z73 ->  | C150: 8:45-9:45pm | D150: 20:44:59.971 | E150: 21:00:00 | F150: 21:14:59.942 | G150: 21:29:59.971 | H150: Sheboygan | Y150: Dodge | Z150: 61 | AA150: 8:45-9:45pm | AB150: 19:59:59.971 | AL150: =IF('15-Min All Vehicle'!X73>0,1,0) -> 0 | AO150: =IF(AND(AM150="Start",COUNTIF($AM$91:AM149,"start")=0) =TRUE, "Start #1", IF(AND(AM150="Start",COUNTIF($AM$91:AM149,"start")=1)=TRUE,"Start #2", IF(AND(AM150="Start",COUNTIF($AM$91:AM149,"start")=2)=TRUE,"Start #3",""))) ->  | AP150: =IF(AND(AN150="Finish",COUNTIF($AM$91:AN149,"Finish")=0) =TRUE, "Finish #1", IF(AND(AN150="Finish",COUNTIF($AM$91:AN149,"Finish")=1)=TRUE,"Finish #2", IF(AND(AN150="Finish",COUNTIF($AM$91:AN149,"Finish")=2)=TRUE,"Finish #3",""))) ->  | AQ150: 8:45 PM
B151: ='15-Min All Vehicle'!Z74 ->  | C151: 9:00-10:00pm | D151: 21:00:00 | E151: 21:14:59.942 | F151: 21:29:59.971 | G151: 21:45:00 | H151: Taylor | Y151: Grant | Z151: 62 | AA151: 9:00-10:00pm | AB151: 21:00:00 | AL151: =IF('15-Min All Vehicle'!X74>0,1,0) -> 0 | AO151: =IF(AND(AM151="Start",COUNTIF($AM$91:AM150,"start")=0) =TRUE, "Start #1", IF(AND(AM151="Start",COUNTIF($AM$91:AM150,"start")=1)=TRUE,"Start #2", IF(AND(AM151="Start",COUNTIF($AM$91:AM150,"start")=2)=TRUE,"Start #3",""))) ->  | AP151: =IF(AND(AN151="Finish",COUNTIF($AM$91:AN150,"Finish")=0) =TRUE, "Finish #1", IF(AND(AN151="Finish",COUNTIF($AM$91:AN150,"Finish")=1)=TRUE,"Finish #2", IF(AND(AN151="Finish",COUNTIF($AM$91:AN150,"Finish")=2)=TRUE,"Finish #3",""))) ->  | AQ151: 9:00 PM
D152: 21:14:59.942 | E152: 21:29:59.971 | F152: 21:45:00 | G152: 21:59:59.942 | H152: Trempealeau | Y152: Green | Z152: 63 | AL152: =IF('15-Min All Vehicle'!X75>0,1,0) -> 0 | AO152: =IF(AND(AM152="Start",COUNTIF($AM$91:AM151,"start")=0) =TRUE, "Start #1", IF(AND(AM152="Start",COUNTIF($AM$91:AM151,"start")=1)=TRUE,"Start #2", IF(AND(AM152="Start",COUNTIF($AM$91:AM151,"start")=2)=TRUE,"Start #3",""))) ->  | AP152: =IF(AND(AN152="Finish",COUNTIF($AM$91:AN151,"Finish")=0) =TRUE, "Finish #1", IF(AND(AN152="Finish",COUNTIF($AM$91:AN151,"Finish")=1)=TRUE,"Finish #2", IF(AND(AN152="Finish",COUNTIF($AM$91:AN151,"Finish")=2)=TRUE,"Finish #3",""))) ->  | AQ152: 9:15 PM
D153: 21:29:59.971 | E153: 21:45:00 | F153: 21:59:59.942 | H153: Vernon | Y153: Iowa | Z153: 64 | AL153: =IF('15-Min All Vehicle'!X76>0,1,0) -> 0 | AO153: =IF(AND(AM153="Start",COUNTIF($AM$91:AM152,"start")=0) =TRUE, "Start #1", IF(AND(AM153="Start",COUNTIF($AM$91:AM152,"start")=1)=TRUE,"Start #2", IF(AND(AM153="Start",COUNTIF($AM$91:AM152,"start")=2)=TRUE,"Start #3",""))) ->  | AP153: =IF(AND(AN153="Finish",COUNTIF($AM$91:AN152,"Finish")=0) =TRUE, "Finish #1", IF(AND(AN153="Finish",COUNTIF($AM$91:AN152,"Finish")=1)=TRUE,"Finish #2", IF(AND(AN153="Finish",COUNTIF($AM$91:AN152,"Finish")=2)=TRUE,"Finish #3",""))) ->  | AQ153: 9:30 PM
D154: 21:45:00 | E154: 21:59:59.942 | H154: Vilas | Y154: Jefferson | Z154: 65 | AL154: =IF('15-Min All Vehicle'!X77>0,1,0) -> 0 | AO154: =IF(AND(AM154="Start",COUNTIF($AM$91:AM153,"start")=0) =TRUE, "Start #1", IF(AND(AM154="Start",COUNTIF($AM$91:AM153,"start")=1)=TRUE,"Start #2", IF(AND(AM154="Start",COUNTIF($AM$91:AM153,"start")=2)=TRUE,"Start #3",""))) ->  | AP154: =IF(AND(AN154="Finish",COUNTIF($AM$91:AN153,"Finish")=0) =TRUE, "Finish #1", IF(AND(AN154="Finish",COUNTIF($AM$91:AN153,"Finish")=1)=TRUE,"Finish #2", IF(AND(AN154="Finish",COUNTIF($AM$91:AN153,"Finish")=2)=TRUE,"Finish #3",""))) ->  | AQ154: 9:45 PM
D155: 21:59:59.942 | H155: Walworth | Y155: Juneau | Z155: 66 | AL155: 0 | AO155: =IF(AND(AM155="Start",COUNTIF($AM$91:AM154,"start")=0) =TRUE, "Start #1", IF(AND(AM155="Start",COUNTIF($AM$91:AM154,"start")=1)=TRUE,"Start #2", IF(AND(AM155="Start",COUNTIF($AM$91:AM154,"start")=2)=TRUE,"Start #3",""))) ->  | AP155: =IF(AND(AN155="Finish",COUNTIF($AM$91:AN154,"Finish")=0) =TRUE, "Finish #1", IF(AND(AN155="Finish",COUNTIF($AM$91:AN154,"Finish")=1)=TRUE,"Finish #2", IF(AND(AN155="Finish",COUNTIF($AM$91:AN154,"Finish")=2)=TRUE,"Finish #3",""))) ->  | AQ155: 10:00 PM
H156: Washburn | Y156: La Crosse | Z156: 67 | AL156: =SUM(AL91:AL154)/4 -> 12 | AM156: =COUNTIF(AM91:AM155,"Start") -> 1 | AN156: =COUNTIF(AN91:AN155,"Finish") -> 1
H157: Washington | Y157: Lafayette | Z157: 68
H158: Waukesha | Y158: Monroe | Z158: 69
H159: Waupaca | Y159: Richland | Z159: 70
H160: Waushara | Y160: Rock | Z160: 71
H161: Winnebago | Y161: Sauk | Z161: 72
H162: Wood | Y162: Vernon | Z162: 73

Sheet Peak Hour Graphical Summary
B1: Intersection Traffic Volume Report
L2: Count Basics | V2: Page 2 of 11
L3: ='Base Information'!$L$3 -> Start Date: | N3: ='Base Information'!$N$3 -> 2011-12-06 | R3: ='Base Information'!R3 -> Weekday | T3: ='Base Information'!U3 -> Schools in Session
L4: ='Base Information'!$L$4 -> Total Number of Hours Counted: 12 | R4: ='Base Information'!R4 -> Non-Holiday | T4: ='Base Information'!U4 -> No Special Events
B5: Peak Hour Volume Graphical Summary
N6: All Motor Vehicles
B7: ='Base Information'!E7 -> 441 NB ON RAMP and CTH OO (Northland Ave)
B9: AM Peak Hour Summary
C11: AM PEAK HOUR | H11: ='Base Information'!$D$14 -> 441 NB ON RAMP | R11: TOTAL ENTERING VOLUME
C12: ='Base Information'!$N$18 -> 7:15-8:15am | H12: PED: | I12: ='Peak Hour Volume Summary'!D64 -> 0 | K12: =H13+M14 -> 122 | O12: BIKE: | P12: ='Peak Hour Volume Summary'!F64 -> 0 | R12: =H13+S16+M27+E21 -> 2223
C13: ='Base Information'!$O$12 -> 2011-12-06 | H13: =SUM(H14:K14) -> 0
H14: ='Peak Hour Volume Summary'!D18 -> 0 | I14: ='Peak Hour Volume Summary'!E18 -> 0 | J14: ='Peak Hour Volume Summary'!F18 -> 0 | K14: ='Peak Hour Volume Summary'!G18 -> 0 | M14: =K14+R16+O26+F22 -> 122
H15: 8 | I15: $ | J15: 9 | K15: M | M15: #
C16: ='Base Information'!$D$17 -> CTH OO (Northland Ave) | D16: PED: | E16: =H14+R17+N26+F21 -> 1677 | G16: ! | Q16: < | R16: ='Peak Hour Volume Summary'!I18 -> 88 | S16: =SUM(R16:R19) -> 910 | T16: PED: | U16: ='Base Information'!$D$15 -> CTH OO (Northland Ave)
D17: ='Peak Hour Volume Summary'!S64 -> 0 | Q17: ! | R17: ='Peak Hour Volume Summary'!J18 -> 822 | T17: ='Peak Hour Volume Summary'!I64 -> 0
D18: =E16+E21 -> 1888 | Q18: > | R18: ='Peak Hour Volume Summary'!K18 -> 0 | T18: =S16+R21 -> 1334
Q19: N | R19: ='Peak Hour Volume Summary'!L18 -> 0
L20: ='Base Information'!$J$13 -> ↑
E21: =SUM(F21:F24) -> 211 | F21: ='Peak Hour Volume Summary'!V18 -> 0 | G21: O | L21: North | Q21: " | R21: =P26+F23+J14+R19 -> 424
F22: ='Peak Hour Volume Summary'!U18 -> 33 | G22: =
D23: BIKE: | F23: ='Peak Hour Volume Summary'!T18 -> 178 | G23: " | T23: BIKE:
D24: ='Peak Hour Volume Summary'!U64 -> 0 | F24: ='Peak Hour Volume Summary'!S18 -> 0 | G24: ? | T24: ='Peak Hour Volume Summary'!K64 -> 0
H25: $ | M25: L | N25: : | O25: # | P25: ;
H26: =F24+I14+R18+M26 -> 0 | M26: ='Peak Hour Volume Summary'!Q18 -> 0 | N26: ='Peak Hour Volume Summary'!P18 -> 855 | O26: ='Peak Hour Volume Summary'!O18 -> 1 | P26: ='Peak Hour Volume Summary'!N18 -> 246
M27: =SUM(M26:P26) -> 1102
H28: PED: | I28: ='Peak Hour Volume Summary'!N64 -> 0 | K28: =H26+M27 -> 1102 | O28: BIKE: | P28: ='Peak Hour Volume Summary'!P64 -> 0
H29: ='Base Information'!$D$16 -> 441 NB OFF RAMP
B33: Midday (MD) Peak Hour Summary
C35: MD PEAK HOUR | H35: ='Base Information'!$D$14 -> 441 NB ON RAMP | R35: TOTAL ENTERING VOLUME
C36: ='Base Information'!$Q$18 -> 1:00-2:00pm | H36: PED: | I36: ='Peak Hour Volume Summary'!D70 -> 0 | K36: =H37+M38 -> 86 | O36: BIKE: | P36: ='Peak Hour Volume Summary'!F70 -> 0 | R36: =H37+S40+M51+E45 -> 1488
C37: =IF($R$36=0,"N/A",IF('Base Information'!$O$12='Base Information'!$O$14,'Base Information'!$O$12,IF(ISBLANK('Base Information'!$O$13)=TRUE,"Split between AM/PM count dates",'Base Information'!$O$13))) -> 2011-12-06 | H37: =SUM(H38:K38) -> 0
H38: ='Peak Hour Volume Summary'!D33 -> 0 | I38: ='Peak Hour Volume Summary'!E33 -> 0 | J38: ='Peak Hour Volume Summary'!F33 -> 0 | K38: ='Peak Hour Volume Summary'!G33 -> 0 | M38: =K38+R40+O50+F46 -> 86
H39: 8 | I39: $ | J39: 9 | K39: M | M39: #
C40: ='Base Information'!$D$17 -> CTH OO (Northland Ave) | D40: PED: | E40: =H38+R41+N50+F45 -> 858 | G40: ! | Q40: < | R40: ='Peak Hour Volume Summary'!I33 -> 50 | S40: =SUM(R40:R43) -> 491 | T40: PED: | U40: ='Base Information'!$D$15 -> CTH OO (Northland Ave)
D41: ='Peak Hour Volume Summary'!S70 -> 0 | Q41: ! | R41: ='Peak Hour Volume Summary'!J33 -> 441 | T41: ='Peak Hour Volume Summary'!I70 -> 0
D42: =E40+E45 -> 1222 | Q42: > | R42: ='Peak Hour Volume Summary'!K33 -> 0 | T42: =S40+R45 -> 1035
Q43: N | R43: ='Peak Hour Volume Summary'!L33 -> 0
L44: ='Base Information'!$J$13 -> ↑
E45: =SUM(F45:F48) -> 364 | F45: ='Peak Hour Volume Summary'!V33 -> 0 | G45: O | L45: North | Q45: " | R45: =P50+F47+J38+R43 -> 544
F46: ='Peak Hour Volume Summary'!U33 -> 36 | G46: =
D47: BIKE: | F47: ='Peak Hour Volume Summary'!T33 -> 328 | G47: " | T47: BIKE:
D48: ='Peak Hour Volume Summary'!U70 -> 0 | F48: ='Peak Hour Volume Summary'!S33 -> 0 | G48: ? | T48: ='Peak Hour Volume Summary'!K70 -> 0
H49: $ | M49: L | N49: : | O49: # | P49: ;
H50: =F48+I38+R42+M50 -> 0 | M50: ='Peak Hour Volume Summary'!Q33 -> 0 | N50: ='Peak Hour Volume Summary'!P33 -> 417 | O50: ='Peak Hour Volume Summary'!O33 -> 0 | P50: ='Peak Hour Volume Summary'!N33 -> 216
M51: =SUM(M50:P50) -> 633
H52: PED: | I52: ='Peak Hour Volume Summary'!N70 -> 0 | K52: =H50+M51 -> 633 | O52: BIKE: | P52: ='Peak Hour Volume Summary'!P70 -> 0
H53: ='Base Information'!$D$16 -> 441 NB OFF RAMP
B57: PM Peak Hour Summary
C59: PM PEAK HOUR | H59: ='Base Information'!$D$14 -> 441 NB ON RAMP | R59: TOTAL ENTERING VOLUME
C60: ='Base Information'!$U$18 -> 4:30-5:30pm | H60: PED: | I60: ='Peak Hour Volume Summary'!D76 -> 0 | K60: =H61+M62 -> 173 | O60: BIKE: | P60: ='Peak Hour Volume Summary'!F76 -> 0 | R60: =H61+S64+M75+E69 -> 2241
C61: ='Base Information'!$O$14 -> 2011-12-06 | H61: =SUM(H62:K62) -> 0
H62: ='Peak Hour Volume Summary'!D48 -> 0 | I62: ='Peak Hour Volume Summary'!E48 -> 0 | J62: ='Peak Hour Volume Summary'!F48 -> 0 | K62: ='Peak Hour Volume Summary'!G48 -> 0 | M62: =K62+R64+O74+F70 -> 173
H63: 8 | I63: $ | J63: 9 | K63: M | M63: #
C64: ='Base Information'!$D$17 -> CTH OO (Northland Ave) | D64: PED: | E64: =H62+R65+N74+F69 -> 1003 | G64: ! | Q64: < | R64: ='Peak Hour Volume Summary'!I48 -> 64 | S64: =SUM(R64:R67) -> 654 | T64: PED: | U64: ='Base Information'!$D$15 -> CTH OO (Northland Ave)
D65: ='Peak Hour Volume Summary'!S76 -> 0 | Q65: ! | R65: ='Peak Hour Volume Summary'!J48 -> 590 | T65: ='Peak Hour Volume Summary'!I76 -> 0
D66: =E64+E69 -> 1656 | Q66: > | R66: ='Peak Hour Volume Summary'!K48 -> 0 | T66: =S64+R69 -> 1719
Q67: N | R67: ='Peak Hour Volume Summary'!L48 -> 0
L68: ='Base Information'!$J$13 -> ↑
E69: =SUM(F69:F72) -> 653 | F69: ='Peak Hour Volume Summary'!V48 -> 0 | G69: O | L69: North | Q69: " | R69: =P74+F71+J62+R67 -> 1065
F70: ='Peak Hour Volume Summary'!U48 -> 109 | G70: =
D71: BIKE: | F71: ='Peak Hour Volume Summary'!T48 -> 544 | G71: " | T71: BIKE:
D72: ='Peak Hour Volume Summary'!U76 -> 0 | F72: ='Peak Hour Volume Summary'!S48 -> 0 | G72: ? | T72: ='Peak Hour Volume Summary'!K76 -> 0
H73: $ | M73: L | N73: : | O73: # | P73: ;
H74: =F72+I62+R66+M74 -> 0 | M74: ='Peak Hour Volume Summary'!Q48 -> 0 | N74: ='Peak Hour Volume Summary'!P48 -> 413 | O74: ='Peak Hour Volume Summary'!O48 -> 0 | P74: ='Peak Hour Volume Summary'!N48 -> 521
M75: =SUM(M74:P74) -> 934
H76: PED: | I76: ='Peak Hour Volume Summary'!N76 -> 3 | K76: =H74+M75 -> 934 | O76: BIKE: | P76: ='Peak Hour Volume Summary'!P76 -> 0
H77: ='Base Information'!$D$16 -> 441 NB OFF RAMP

Sheet Peak Hour Volume Summary
B1: Intersection Traffic Volume Report
M2: Count Basics | X2: Page 3 of 11
M3: ='Base Information'!L3 -> Start Date: | O3: ='Base Information'!N3 -> 2011-12-06 | S3: ='Base Information'!R3 -> Weekday | V3: ='Base Information'!U3 -> Schools in Session
M4: ='Base Information'!L4 -> Total Number of Hours Counted: 12 | S4: ='Base Information'!R4 -> Non-Holiday | V4: ='Base Information'!U4 -> No Special Events
B5: Peak Hour Volume Summary
N6: All Motor Vehicles
B7: ='Base Information'!E7 -> 441 NB ON RAMP and CTH OO (Northland Ave)
B9: Peak Hour Volumes, Truck Percentages, and PHFs
B10: ='Base Information'!O12 -> 2011-12-06 | F10: ê | K10: ç | P10: é | U10: è
D11: From North | I11: From East | N11: From South | S11: From West
B12: AM Peak Hour | C12: AM Peak Hour | D12: ='Base Information'!$D$14:$D$14 -> 441 NB ON RAMP | I12: ='Base Information'!$D$15:$D$15 -> CTH OO (Northland Ave) | N12: ='Base Information'!$D$16:$D$16 -> 441 NB OFF RAMP | S12: ='Base Information'!$D$17:$D$17 -> CTH OO (Northland Ave)
C13: Start Time | D13: Right | E13: Thru | F13: Left | G13: U-Tn | H13: Total | I13: Right | J13: Thru | K13: Left | L13: U-Tn | M13: Total | N13: Right | O13: Thru | P13: Left | Q13: U-Tn | R13: Total | S13: Right | T13: Thru | U13: Left | V13: U-Tn | W13: Total | X13: Totals
C14: =IF(ISERROR(VLOOKUP('Base Information'!$N$18,'Base Information'!$C$91:$G$151,2,FALSE)=TRUE),0.333333,VLOOKUP('Base Information'!$N$18,'Base Information'!$C$91:$G$151,2,FALSE)) -> 07:14:59.971 | D14: =VLOOKUP($C14,'15-Min All Vehicle'!$C$14:$W$77,2,FALSE) -> 0 | E14: =VLOOKUP($C14,'15-Min All Vehicle'!$C$14:$W$77,3,FALSE) -> 0 | F14: =VLOOKUP($C14,'15-Min All Vehicle'!$C$14:$W$77,4,FALSE) -> 0 | G14: =VLOOKUP($C14,'15-Min All Vehicle'!$C$14:$W$77,5,FALSE) -> 0 | H14: =SUM(D14:G14) -> 0 | I14: =VLOOKUP($C14,'15-Min All Vehicle'!$C$14:$W$77,7,FALSE) -> 28 | J14: =VLOOKUP($C14,'15-Min All Vehicle'!$C$14:$W$77,8,FALSE) -> 151 | K14: =VLOOKUP($C14,'15-Min All Vehicle'!$C$14:$W$77,9,FALSE) -> 0 | L14: =VLOOKUP($C14,'15-Min All Vehicle'!$C$14:$W$77,10,FALSE) -> 0 | M14: =SUM(I14:L14) -> 179 | N14: =VLOOKUP($C14,'15-Min All Vehicle'!$C$14:$W$77,12,FALSE) -> 74 | O14: =VLOOKUP($C14,'15-Min All Vehicle'!$C$14:$W$77,13,FALSE) -> 0 | P14: =VLOOKUP($C14,'15-Min All Vehicle'!$C$14:$W$77,14,FALSE) -> 216 | Q14: =VLOOKUP($C14,'15-Min All Vehicle'!$C$14:$W$77,15,FALSE) -> 0 | R14: =SUM(N14:Q14) -> 290 | S14: =VLOOKUP($C14,'15-Min All Vehicle'!$C$14:$W$77,17,FALSE) -> 0 | T14: =VLOOKUP($C14,'15-Min All Vehicle'!$C$14:$W$77,18,FALSE) -> 35 | U14: =VLOOKUP($C14,'15-Min All Vehicle'!$C$14:$W$77,19,FALSE) -> 12 | V14: =VLOOKUP($C14,'15-Min All Vehicle'!$C$14:$W$77,20,FALSE) -> 0 | W14: =SUM(S14:V14) -> 47 | X14: =H14+M14+R14+W14 -> 516
C15: =IF(ISERROR(VLOOKUP('Base Information'!$N$18,'Base Information'!$C$91:$G$151,3,FALSE)=TRUE),0.34375,VLOOKUP('Base Information'!$N$18,'Base Information'!$C$91:$G$151,3,FALSE)) -> 07:30:00 | D15: =VLOOKUP($C15,'15-Min All Vehicle'!$C$14:$W$77,2,FALSE) -> 0 | E15: =VLOOKUP($C15,'15-Min All Vehicle'!$C$14:$W$77,3,FALSE) -> 0 | F15: =VLOOKUP($C15,'15-Min All Vehicle'!$C$14:$W$77,4,FALSE) -> 0 | G15: =VLOOKUP($C15,'15-Min All Vehicle'!$C$14:$W$77,5,FALSE) -> 0 | H15: =SUM(D15:G15) -> 0 | I15: =VLOOKUP($C15,'15-Min All Vehicle'!$C$14:$W$77,7,FALSE) -> 19 | J15: =VLOOKUP($C15,'15-Min All Vehicle'!$C$14:$W$77,8,FALSE) -> 224 | K15: =VLOOKUP($C15,'15-Min All Vehicle'!$C$14:$W$77,9,FALSE) -> 0 | L15: =VLOOKUP($C15,'15-Min All Vehicle'!$C$14:$W$77,10,FALSE) -> 0 | M15: =SUM(I15:L15) -> 243 | N15: =VLOOKUP($C15,'15-Min All Vehicle'!$C$14:$W$77,12,FALSE) -> 66 | O15: =VLOOKUP($C15,'15-Min All Vehicle'!$C$14:$W$77,13,FALSE) -> 1 | P15: =VLOOKUP($C15,'15-Min All Vehicle'!$C$14:$W$77,14,FALSE) -> 233 | Q15: =VLOOKUP($C15,'15-Min All Vehicle'!$C$14:$W$77,15,FALSE) -> 0 | R15: =SUM(N15:Q15) -> 300 | S15: =VLOOKUP($C15,'15-Min All Vehicle'!$C$14:$W$77,17,FALSE) -> 0 | T15: =VLOOKUP($C15,'15-Min All Vehicle'!$C$14:$W$77,18,FALSE) -> 39 | U15: =VLOOKUP($C15,'15-Min All Vehicle'!$C$14:$W$77,19,FALSE) -> 4 | V15: =VLOOKUP($C15,'15-Min All Vehicle'!$C$14:$W$77,20,FALSE) -> 0 | W15: =SUM(S15:V15) -> 43 | X15: =H15+M15+R15+W15 -> 586
C16: =IF(ISERROR(VLOOKUP('Base Information'!$N$18,'Base Information'!$C$91:$G$151,4,FALSE)=TRUE),0.354166,VLOOKUP('Base Information'!$N$18,'Base Information'!$C$91:$G$151,4,FALSE)) -> 07:44:59.942 | D16: =VLOOKUP($C16,'15-Min All Vehicle'!$C$14:$W$77,2,FALSE) -> 0 | E16: =VLOOKUP($C16,'15-Min All Vehicle'!$C$14:$W$77,3,FALSE) -> 0 | F16: =VLOOKUP($C16,'15-Min All Vehicle'!$C$14:$W$77,4,FALSE) -> 0 | G16: =VLOOKUP($C16,'15-Min All Vehicle'!$C$14:$W$77,5,FALSE) -> 0 | H16: 0 | I16: =VLOOKUP($C16,'15-Min All Vehicle'!$C$14:$W$77,7,FALSE) -> 29 | J16: =VLOOKUP($C16,'15-Min All Vehicle'!$C$14:$W$77,8,FALSE) -> 277 | K16: =VLOOKUP($C16,'15-Min All Vehicle'!$C$14:$W$77,9,FALSE) -> 0 | L16: =VLOOKUP($C16,'15-Min All Vehicle'!$C$14:$W$77,10,FALSE) -> 0 | M16: 306 | N16: =VLOOKUP($C16,'15-Min All Vehicle'!$C$14:$W$77,12,FALSE) -> 64 | O16: =VLOOKUP($C16,'15-Min All Vehicle'!$C$14:$W$77,13,FALSE) -> 0 | P16: =VLOOKUP($C16,'15-Min All Vehicle'!$C$14:$W$77,14,FALSE) -> 242 | Q16: =VLOOKUP($C16,'15-Min All Vehicle'!$C$14:$W$77,15,FALSE) -> 0 | R16: 306 | S16: =VLOOKUP($C16,'15-Min All Vehicle'!$C$14:$W$77,17,FALSE) -> 0 | T16: =VLOOKUP($C16,'15-Min All Vehicle'!$C$14:$W$77,18,FALSE) -> 63 | U16: =VLOOKUP($C16,'15-Min All Vehicle'!$C$14:$W$77,19,FALSE) -> 9 | V16: =VLOOKUP($C16,'15-Min All Vehicle'!$C$14:$W$77,20,FALSE) -> 0 | W16: 72 | X16: 684
C17: =IF(ISERROR(VLOOKUP('Base Information'!$N$18,'Base Information'!$C$91:$G$151,5,FALSE)=TRUE),0.364583,VLOOKUP('Base Information'!$N$18,'Base Information'!$C$91:$G$151,5,FALSE)) -> 07:59:59.971 | D17: =VLOOKUP($C17,'15-Min All Vehicle'!$C$14:$W$77,2,FALSE) -> 0 | E17: =VLOOKUP($C17,'15-Min All Vehicle'!$C$14:$W$77,3,FALSE) -> 0 | F17: =VLOOKUP($C17,'15-Min All Vehicle'!$C$14:$W$77,4,FALSE) -> 0 | G17: =VLOOKUP($C17,'15-Min All Vehicle'!$C$14:$W$77,5,FALSE) -> 0 | H17: 0 | I17: =VLOOKUP($C17,'15-Min All Vehicle'!$C$14:$W$77,7,FALSE) -> 12 | J17: =VLOOKUP($C17,'15-Min All Vehicle'!$C$14:$W$77,8,FALSE) -> 170 | K17: =VLOOKUP($C17,'15-Min All Vehicle'!$C$14:$W$77,9,FALSE) -> 0 | L17: =VLOOKUP($C17,'15-Min All Vehicle'!$C$14:$W$77,10,FALSE) -> 0 | M17: 182 | N17: =VLOOKUP($C17,'15-Min All Vehicle'!$C$14:$W$77,12,FALSE) -> 42 | O17: =VLOOKUP($C17,'15-Min All Vehicle'!$C$14:$W$77,13,FALSE) -> 0 | P17: =VLOOKUP($C17,'15-Min All Vehicle'!$C$14:$W$77,14,FALSE) -> 164 | Q17: =VLOOKUP($C17,'15-Min All Vehicle'!$C$14:$W$77,15,FALSE) -> 0 | R17: 206 | S17: =VLOOKUP($C17,'15-Min All Vehicle'!$C$14:$W$77,17,FALSE) -> 0 | T17: =VLOOKUP($C17,'15-Min All Vehicle'!$C$14:$W$77,18,FALSE) -> 41 | U17: =VLOOKUP($C17,'15-Min All Vehicle'!$C$14:$W$77,19,FALSE) -> 8 | V17: =VLOOKUP($C17,'15-Min All Vehicle'!$C$14:$W$77,20,FALSE) -> 0 | W17: 49 | X17: 437
C18: Peak Hour Volume | D18: =SUM(D14:D17) -> 0 | E18: =SUM(E14:E17) -> 0 | F18: 0 | G18: 0 | H18: 0 | I18: 88 | J18: 822 | K18: 0 | L18: 0 | M18: 910 | N18: 246 | O18: 1 | P18: 855 | Q18: 0 | R18: 1102 | S18: 0 | T18: 178 | U18: 33 | V18: 0 | W18: 211 | X18: 2223
C19: Rounded Hourly Volume | D19: =MROUND(D18,5) -> 0 | E19: =MROUND(E18,5) -> 0 | F19: 0 | G19: 0 | H19: =SUM(D19:G19) -> 0 | I19: 90 | J19: 820 | K19: 0 | L19: 0 | M19: =SUM(I19:L19) -> 910 | N19: 245 | O19: 0 | P19: 855 | Q19: 0 | R19: =SUM(N19:Q19) -> 1100 | S19: 0 | T19: 180 | U19: 35 | V19: 0 | W19: =SUM(S19:V19) -> 215 | X19: =H19+M19+R19+W19 -> 2225
C20: % Single Unit Trucks | D20: =100*(VLOOKUP($C14,'15-Min SU-Truck'!$C$14:$W$77,2,FALSE)+VLOOKUP($C15,'15-Min SU-Truck'!$C$14:$W$77,2,FALSE)+VLOOKUP($C16,'15-Min SU-Truck'!$C$14:$W$77,2,FALSE)+VLOOKUP($C17,'15-Min SU-Truck'!$C$14:$W$77,2,FALSE))/(0.00001+VLOOKUP($C14,'15-Min All Vehicle'!$C$14:$W$77,2,FALSE)+VLOOKUP($C15,'15-Min All Vehicle'!$C$14:$W$77,2,FALSE)+VLOOKUP($C16,'15-Min All Vehicle'!$C$14:$W$77,2,FALSE)+VLOOKUP($C17,'15-Min All Vehicle'!$C$17:$W$77,2,FALSE)) -> 0 | E20: =100*(VLOOKUP($C14,'15-Min SU-Truck'!$C$14:$W$77,3,FALSE)+VLOOKUP($C15,'15-Min SU-Truck'!$C$14:$W$77,3,FALSE)+VLOOKUP($C16,'15-Min SU-Truck'!$C$14:$W$77,3,FALSE)+VLOOKUP($C17,'15-Min SU-Truck'!$C$14:$W$77,3,FALSE))/(0.00001+VLOOKUP($C14,'15-Min All Vehicle'!$C$14:$W$77,3,FALSE)+VLOOKUP($C15,'15-Min All Vehicle'!$C$14:$W$77,3,FALSE)+VLOOKUP($C16,'15-Min All Vehicle'!$C$14:$W$77,3,FALSE)+VLOOKUP($C17,'15-Min All Vehicle'!$C$17:$W$77,3,FALSE)) -> 0 | F20: =100*(VLOOKUP($C14,'15-Min SU-Truck'!$C$14:$W$77,4,FALSE)+VLOOKUP($C15,'15-Min SU-Truck'!$C$14:$W$77,4,FALSE)+VLOOKUP($C16,'15-Min SU-Truck'!$C$14:$W$77,4,FALSE)+VLOOKUP($C17,'15-Min SU-Truck'!$C$14:$W$77,4,FALSE))/(0.00001+VLOOKUP($C14,'15-Min All Vehicle'!$C$14:$W$77,4,FALSE)+VLOOKUP($C15,'15-Min All Vehicle'!$C$14:$W$77,4,FALSE)+VLOOKUP($C16,'15-Min All Vehicle'!$C$14:$W$77,4,FALSE)+VLOOKUP($C17,'15-Min All Vehicle'!$C$17:$W$77,4,FALSE)) -> 0 | G20: =IF(ISERROR(F20=TRUE),"#N/A",0) -> 0 | H20: =100*(VLOOKUP($C14,'15-Min SU-Truck'!$C$14:$W$77,6,FALSE)+VLOOKUP($C15,'15-Min SU-Truck'!$C$14:$W$77,6,FALSE)+VLOOKUP($C16,'15-Min SU-Truck'!$C$14:$W$77,6,FALSE)+VLOOKUP($C17,'15-Min SU-Truck'!$C$14:$W$77,6,FALSE))/(0.00001+VLOOKUP($C14,'15-Min All Vehicle'!$C$14:$W$77,6,FALSE)+VLOOKUP($C15,'15-Min All Vehicle'!$C$14:$W$77,6,FALSE)+VLOOKUP($C16,'15-Min All Vehicle'!$C$14:$W$77,6,FALSE)+VLOOKUP($C17,'15-Min All Vehicle'!$C$17:$W$77,6,FALSE)) -> 0 | I20: =100*(VLOOKUP($C14,'15-Min SU-Truck'!$C$14:$W$77,7,FALSE)+VLOOKUP($C15,'15-Min SU-Truck'!$C$14:$W$77,7,FALSE)+VLOOKUP($C16,'15-Min SU-Truck'!$C$14:$W$77,7,FALSE)+VLOOKUP($C17,'15-Min SU-Truck'!$C$14:$W$77,7,FALSE))/(0.00001+VLOOKUP($C14,'15-Min All Vehicle'!$C$14:$W$77,7,FALSE)+VLOOKUP($C15,'15-Min All Vehicle'!$C$14:$W$77,7,FALSE)+VLOOKUP($C16,'15-Min All Vehicle'!$C$14:$W$77,7,FALSE)+VLOOKUP($C17,'15-Min All Vehicle'!$C$17:$W$77,7,FALSE)) -> 7.954544551 | J20: =100*(VLOOKUP($C14,'15-Min SU-Truck'!$C$14:$W$77,8,FALSE)+VLOOKUP($C15,'15-Min SU-Truck'!$C$14:$W$77,8,FALSE)+VLOOKUP($C16,'15-Min SU-Truck'!$C$14:$W$77,8,FALSE)+VLOOKUP($C17,'15-Min SU-Truck'!$C$14:$W$77,8,FALSE))/(0.00001+VLOOKUP($C14,'15-Min All Vehicle'!$C$14:$W$77,8,FALSE)+VLOOKUP($C15,'15-Min All Vehicle'!$C$14:$W$77,8,FALSE)+VLOOKUP($C16,'15-Min All Vehicle'!$C$14:$W$77,8,FALSE)+VLOOKUP($C17,'15-Min All Vehicle'!$C$17:$W$77,8,FALSE)) -> 2.554744494 | K20: =100*(VLOOKUP($C14,'15-Min SU-Truck'!$C$14:$W$77,9,FALSE)+VLOOKUP($C15,'15-Min SU-Truck'!$C$14:$W$77,9,FALSE)+VLOOKUP($C16,'15-Min SU-Truck'!$C$14:$W$77,9,FALSE)+VLOOKUP($C17,'15-Min SU-Truck'!$C$14:$W$77,9,FALSE))/(0.00001+VLOOKUP($C14,'15-Min All Vehicle'!$C$14:$W$77,9,FALSE)+VLOOKUP($C15,'15-Min All Vehicle'!$C$14:$W$77,9,FALSE)+VLOOKUP($C16,'15-Min All Vehicle'!$C$14:$W$77,9,FALSE)+VLOOKUP($C17,'15-Min All Vehicle'!$C$17:$W$77,9,FALSE)) -> 0 | L20: =IF(ISERROR(K20=TRUE),"#N/A",0) -> 0 | M20: =100*(VLOOKUP($C14,'15-Min SU-Truck'!$C$14:$W$77,11,FALSE)+VLOOKUP($C15,'15-Min SU-Truck'!$C$14:$W$77,11,FALSE)+VLOOKUP($C16,'15-Min SU-Truck'!$C$14:$W$77,11,FALSE)+VLOOKUP($C17,'15-Min SU-Truck'!$C$14:$W$77,11,FALSE))/(0.00001+VLOOKUP($C14,'15-Min All Vehicle'!$C$14:$W$77,11,FALSE)+VLOOKUP($C15,'15-Min All Vehicle'!$C$14:$W$77,11,FALSE)+VLOOKUP($C16,'15-Min All Vehicle'!$C$14:$W$77,11,FALSE)+VLOOKUP($C17,'15-Min All Vehicle'!$C$17:$W$77,11,FALSE)) -> 3.076923043 | N20: =100*(VLOOKUP($C14,'15-Min SU-Truck'!$C$14:$W$77,12,FALSE)+VLOOKUP($C15,'15-Min SU-Truck'!$C$14:$W$77,12,FALSE)+VLOOKUP($C16,'15-Min SU-Truck'!$C$14:$W$77,12,FALSE)+VLOOKUP($C17,'15-Min SU-Truck'!$C$14:$W$77,12,FALSE))/(0.00001+VLOOKUP($C14,'15-Min All Vehicle'!$C$14:$W$77,12,FALSE)+VLOOKUP($C15,'15-Min All Vehicle'!$C$14:$W$77,12,FALSE)+VLOOKUP($C16,'15-Min All Vehicle'!$C$14:$W$77,12,FALSE)+VLOOKUP($C17,'15-Min All Vehicle'!$C$17:$W$77,12,FALSE)) -> 2.439024291 | O20: =100*(VLOOKUP($C14,'15-Min SU-Truck'!$C$14:$W$77,13,FALSE)+VLOOKUP($C15,'15-Min SU-Truck'!$C$14:$W$77,13,FALSE)+VLOOKUP($C16,'15-Min SU-Truck'!$C$14:$W$77,13,FALSE)+VLOOKUP($C17,'15-Min SU-Truck'!$C$14:$W$77,13,FALSE))/(0.00001+VLOOKUP($C14,'15-Min All Vehicle'!$C$14:$W$77,13,FALSE)+VLOOKUP($C15,'15-Min All Vehicle'!$C$14:$W$77,13,FALSE)+VLOOKUP($C16,'15-Min All Vehicle'!$C$14:$W$77,13,FALSE)+VLOOKUP($C17,'15-Min All Vehicle'!$C$17:$W$77,13,FALSE)) -> 0 | P20: =100*(VLOOKUP($C14,'15-Min SU-Truck'!$C$14:$W$77,14,FALSE)+VLOOKUP($C15,'15-Min SU-Truck'!$C$14:$W$77,14,FALSE)+VLOOKUP($C16,'15-Min SU-Truck'!$C$14:$W$77,14,FALSE)+VLOOKUP($C17,'15-Min SU-Truck'!$C$14:$W$77,14,FALSE))/(0.00001+VLOOKUP($C14,'15-Min All Vehicle'!$C$14:$W$77,14,FALSE)+VLOOKUP($C15,'15-Min All Vehicle'!$C$14:$W$77,14,FALSE)+VLOOKUP($C16,'15-Min All Vehicle'!$C$14:$W$77,14,FALSE)+VLOOKUP($C17,'15-Min All Vehicle'!$C$17:$W$77,14,FALSE)) -> 1.286549693 | Q20: =IF(ISERROR(P20=TRUE),"#N/A",0) -> 0 | R20: =100*(VLOOKUP($C14,'15-Min SU-Truck'!$C$14:$W$77,16,FALSE)+VLOOKUP($C15,'15-Min SU-Truck'!$C$14:$W$77,16,FALSE)+VLOOKUP($C16,'15-Min SU-Truck'!$C$14:$W$77,16,FALSE)+VLOOKUP($C17,'15-Min SU-Truck'!$C$14:$W$77,16,FALSE))/(0.00001+VLOOKUP($C14,'15-Min All Vehicle'!$C$14:$W$77,16,FALSE)+VLOOKUP($C15,'15-Min All Vehicle'!$C$14:$W$77,16,FALSE)+VLOOKUP($C16,'15-Min All Vehicle'!$C$14:$W$77,16,FALSE)+VLOOKUP($C17,'15-Min All Vehicle'!$C$17:$W$77,16,FALSE)) -> 1.542649714 | S20: =100*(VLOOKUP($C14,'15-Min SU-Truck'!$C$14:$W$77,17,FALSE)+VLOOKUP($C15,'15-Min SU-Truck'!$C$14:$W$77,17,FALSE)+VLOOKUP($C16,'15-Min SU-Truck'!$C$14:$W$77,17,FALSE)+VLOOKUP($C17,'15-Min SU-Truck'!$C$14:$W$77,17,FALSE))/(0.00001+VLOOKUP($C14,'15-Min All Vehicle'!$C$14:$W$77,17,FALSE)+VLOOKUP($C15,'15-Min All Vehicle'!$C$14:$W$77,17,FALSE)+VLOOKUP($C16,'15-Min All Vehicle'!$C$14:$W$77,17,FALSE)+VLOOKUP($C17,'15-Min All Vehicle'!$C$17:$W$77,17,FALSE)) -> 0 | T20: =100*(VLOOKUP($C14,'15-Min SU-Truck'!$C$14:$W$77,18,FALSE)+VLOOKUP($C15,'15-Min SU-Truck'!$C$14:$W$77,18,FALSE)+VLOOKUP($C16,'15-Min SU-Truck'!$C$14:$W$77,18,FALSE)+VLOOKUP($C17,'15-Min SU-Truck'!$C$14:$W$77,18,FALSE))/(0.00001+VLOOKUP($C14,'15-Min All Vehicle'!$C$14:$W$77,18,FALSE)+VLOOKUP($C15,'15-Min All Vehicle'!$C$14:$W$77,18,FALSE)+VLOOKUP($C16,'15-Min All Vehicle'!$C$14:$W$77,18,FALSE)+VLOOKUP($C17,'15-Min All Vehicle'!$C$17:$W$77,18,FALSE)) -> 11.79775215 | U20: =100*(VLOOKUP($C14,'15-Min SU-Truck'!$C$14:$W$77,19,FALSE)+VLOOKUP($C15,'15-Min SU-Truck'!$C$14:$W$77,19,FALSE)+VLOOKUP($C16,'15-Min SU-Truck'!$C$14:$W$77,19,FALSE)+VLOOKUP($C17,'15-Min SU-Truck'!$C$14:$W$77,19,FALSE))/(0.00001+VLOOKUP($C14,'15-Min All Vehicle'!$C$14:$W$77,19,FALSE)+VLOOKUP($C15,'15-Min All Vehicle'!$C$14:$W$77,19,FALSE)+VLOOKUP($C16,'15-Min All Vehicle'!$C$14:$W$77,19,FALSE)+VLOOKUP($C17,'15-Min All Vehicle'!$C$17:$W$77,19,FALSE)) -> 6.060604224 | V20: =IF(ISERROR(U20=TRUE),"#N/A",0) -> 0 | W20: =100*(VLOOKUP($C14,'15-Min SU-Truck'!$C$14:$W$77,21,FALSE)+VLOOKUP($C15,'15-Min SU-Truck'!$C$14:$W$77,21,FALSE)+VLOOKUP($C16,'15-Min SU-Truck'!$C$14:$W$77,21,FALSE)+VLOOKUP($C17,'15-Min SU-Truck'!$C$14:$W$77,21,FALSE))/(0.00001+VLOOKUP($C14,'15-Min All Vehicle'!$C$14:$W$77,21,FALSE)+VLOOKUP($C15,'15-Min All Vehicle'!$C$14:$W$77,21,FALSE)+VLOOKUP($C16,'15-Min All Vehicle'!$C$14:$W$77,21,FALSE)+VLOOKUP($C17,'15-Min All Vehicle'!$C$17:$W$77,21,FALSE)) -> 10.90047342 | X20: =100*(VLOOKUP($C14,'15-Min SU-Truck'!$C$14:$X$77,22,FALSE)+VLOOKUP($C15,'15-Min SU-Truck'!$C$14:$X$77,22,FALSE)+VLOOKUP($C16,'15-Min SU-Truck'!$C$14:$X$77,22,FALSE)+VLOOKUP($C17,'15-Min SU-Truck'!$C$14:$X$77,22,FALSE))/(0.00001+VLOOKUP($C14,'15-Min All Vehicle'!$C$14:$X$77,22,FALSE)+VLOOKUP($C15,'15-Min All Vehicle'!$C$14:$X$77,22,FALSE)+VLOOKUP($C16,'15-Min All Vehicle'!$C$14:$X$77,22,FALSE)+VLOOKUP($C17,'15-Min All Vehicle'!$C$17:$X$77,22,FALSE)) -> 3.058929361
C21: % Heavy Trucks | D21: =100*(VLOOKUP($C15,'15-Min Semi-Truck'!$C$14:$W$77,2,FALSE)+VLOOKUP($C16,'15-Min Semi-Truck'!$C$14:$W$77,2,FALSE)+VLOOKUP($C17,'15-Min Semi-Truck'!$C$14:$W$77,2,FALSE)+VLOOKUP($C14,'15-Min Semi-Truck'!$C$14:$W$77,2,FALSE))/(0.00001+VLOOKUP($C15,'15-Min All Vehicle'!$C$14:$W$77,2,FALSE)+VLOOKUP($C16,'15-Min All Vehicle'!$C$14:$W$77,2,FALSE)+VLOOKUP($C17,'15-Min All Vehicle'!$C$14:$W$77,2,FALSE)+VLOOKUP($C14,'15-Min All Vehicle'!$C$14:$W$77,2,FALSE)) -> 0 | E21: =100*(VLOOKUP($C15,'15-Min Semi-Truck'!$C$14:$W$77,3,FALSE)+VLOOKUP($C16,'15-Min Semi-Truck'!$C$14:$W$77,3,FALSE)+VLOOKUP($C17,'15-Min Semi-Truck'!$C$14:$W$77,3,FALSE)+VLOOKUP($C14,'15-Min Semi-Truck'!$C$14:$W$77,3,FALSE))/(0.00001+VLOOKUP($C15,'15-Min All Vehicle'!$C$14:$W$77,3,FALSE)+VLOOKUP($C16,'15-Min All Vehicle'!$C$14:$W$77,3,FALSE)+VLOOKUP($C17,'15-Min All Vehicle'!$C$14:$W$77,3,FALSE)+VLOOKUP($C14,'15-Min All Vehicle'!$C$14:$W$77,3,FALSE)) -> 0 | F21: =100*(VLOOKUP($C15,'15-Min Semi-Truck'!$C$14:$W$77,4,FALSE)+VLOOKUP($C16,'15-Min Semi-Truck'!$C$14:$W$77,4,FALSE)+VLOOKUP($C17,'15-Min Semi-Truck'!$C$14:$W$77,4,FALSE)+VLOOKUP($C14,'15-Min Semi-Truck'!$C$14:$W$77,4,FALSE))/(0.00001+VLOOKUP($C15,'15-Min All Vehicle'!$C$14:$W$77,4,FALSE)+VLOOKUP($C16,'15-Min All Vehicle'!$C$14:$W$77,4,FALSE)+VLOOKUP($C17,'15-Min All Vehicle'!$C$14:$W$77,4,FALSE)+VLOOKUP($C14,'15-Min All Vehicle'!$C$14:$W$77,4,FALSE)) -> 0 | G21: =IF(ISERROR(F21=TRUE),"#N/A",0) -> 0 | H21: =100*(VLOOKUP($C15,'15-Min Semi-Truck'!$C$14:$W$77,6,FALSE)+VLOOKUP($C16,'15-Min Semi-Truck'!$C$14:$W$77,6,FALSE)+VLOOKUP($C17,'15-Min Semi-Truck'!$C$14:$W$77,6,FALSE)+VLOOKUP($C14,'15-Min Semi-Truck'!$C$14:$W$77,6,FALSE))/(0.00001+VLOOKUP($C15,'15-Min All Vehicle'!$C$14:$W$77,6,FALSE)+VLOOKUP($C16,'15-Min All Vehicle'!$C$14:$W$77,6,FALSE)+VLOOKUP($C17,'15-Min All Vehicle'!$C$14:$W$77,6,FALSE)+VLOOKUP($C14,'15-Min All Vehicle'!$C$14:$W$77,6,FALSE)) -> 0 | I21: =100*(VLOOKUP($C15,'15-Min Semi-Truck'!$C$14:$W$77,7,FALSE)+VLOOKUP($C16,'15-Min Semi-Truck'!$C$14:$W$77,7,FALSE)+VLOOKUP($C17,'15-Min Semi-Truck'!$C$14:$W$77,7,FALSE)+VLOOKUP($C14,'15-Min Semi-Truck'!$C$14:$W$77,7,FALSE))/(0.00001+VLOOKUP($C15,'15-Min All Vehicle'!$C$14:$W$77,7,FALSE)+VLOOKUP($C16,'15-Min All Vehicle'!$C$14:$W$77,7,FALSE)+VLOOKUP($C17,'15-Min All Vehicle'!$C$14:$W$77,7,FALSE)+VLOOKUP($C14,'15-Min All Vehicle'!$C$14:$W$77,7,FALSE)) -> 4.545454029 | J21: =100*(VLOOKUP($C15,'15-Min Semi-Truck'!$C$14:$W$77,8,FALSE)+VLOOKUP($C16,'15-Min Semi-Truck'!$C$14:$W$77,8,FALSE)+VLOOKUP($C17,'15-Min Semi-Truck'!$C$14:$W$77,8,FALSE)+VLOOKUP($C14,'15-Min Semi-Truck'!$C$14:$W$77,8,FALSE))/(0.00001+VLOOKUP($C15,'15-Min All Vehicle'!$C$14:$W$77,8,FALSE)+VLOOKUP($C16,'15-Min All Vehicle'!$C$14:$W$77,8,FALSE)+VLOOKUP($C17,'15-Min All Vehicle'!$C$14:$W$77,8,FALSE)+VLOOKUP($C14,'15-Min All Vehicle'!$C$14:$W$77,8,FALSE)) -> 0.6082724987 | K21: =100*(VLOOKUP($C15,'15-Min Semi-Truck'!$C$14:$W$77,9,FALSE)+VLOOKUP($C16,'15-Min Semi-Truck'!$C$14:$W$77,9,FALSE)+VLOOKUP($C17,'15-Min Semi-Truck'!$C$14:$W$77,9,FALSE)+VLOOKUP($C14,'15-Min Semi-Truck'!$C$14:$W$77,9,FALSE))/(0.00001+VLOOKUP($C15,'15-Min All Vehicle'!$C$14:$W$77,9,FALSE)+VLOOKUP($C16,'15-Min All Vehicle'!$C$14:$W$77,9,FALSE)+VLOOKUP($C17,'15-Min All Vehicle'!$C$14:$W$77,9,FALSE)+VLOOKUP($C14,'15-Min All Vehicle'!$C$14:$W$77,9,FALSE)) -> 0 | L21: =IF(ISERROR(K21=TRUE),"#N/A",0) -> 0 | M21: =100*(VLOOKUP($C15,'15-Min Semi-Truck'!$C$14:$W$77,11,FALSE)+VLOOKUP($C16,'15-Min Semi-Truck'!$C$14:$W$77,11,FALSE)+VLOOKUP($C17,'15-Min Semi-Truck'!$C$14:$W$77,11,FALSE)+VLOOKUP($C14,'15-Min Semi-Truck'!$C$14:$W$77,11,FALSE))/(0.00001+VLOOKUP($C15,'15-Min All Vehicle'!$C$14:$W$77,11,FALSE)+VLOOKUP($C16,'15-Min All Vehicle'!$C$14:$W$77,11,FALSE)+VLOOKUP($C17,'15-Min All Vehicle'!$C$14:$W$77,11,FALSE)+VLOOKUP($C14,'15-Min All Vehicle'!$C$14:$W$77,11,FALSE)) -> 0.9890109781 | N21: =100*(VLOOKUP($C15,'15-Min Semi-Truck'!$C$14:$W$77,12,FALSE)+VLOOKUP($C16,'15-Min Semi-Truck'!$C$14:$W$77,12,FALSE)+VLOOKUP($C17,'15-Min Semi-Truck'!$C$14:$W$77,12,FALSE)+VLOOKUP($C14,'15-Min Semi-Truck'!$C$14:$W$77,12,FALSE))/(0.00001+VLOOKUP($C15,'15-Min All Vehicle'!$C$14:$W$77,12,FALSE)+VLOOKUP($C16,'15-Min All Vehicle'!$C$14:$W$77,12,FALSE)+VLOOKUP($C17,'15-Min All Vehicle'!$C$14:$W$77,12,FALSE)+VLOOKUP($C14,'15-Min All Vehicle'!$C$14:$W$77,12,FALSE)) -> 2.84552834 | O21: =100*(VLOOKUP($C15,'15-Min Semi-Truck'!$C$14:$W$77,13,FALSE)+VLOOKUP($C16,'15-Min Semi-Truck'!$C$14:$W$77,13,FALSE)+VLOOKUP($C17,'15-Min Semi-Truck'!$C$14:$W$77,13,FALSE)+VLOOKUP($C14,'15-Min Semi-Truck'!$C$14:$W$77,13,FALSE))/(0.00001+VLOOKUP($C15,'15-Min All Vehicle'!$C$14:$W$77,13,FALSE)+VLOOKUP($C16,'15-Min All Vehicle'!$C$14:$W$77,13,FALSE)+VLOOKUP($C17,'15-Min All Vehicle'!$C$14:$W$77,13,FALSE)+VLOOKUP($C14,'15-Min All Vehicle'!$C$14:$W$77,13,FALSE)) -> 99.99900001 | P21: =100*(VLOOKUP($C15,'15-Min Semi-Truck'!$C$14:$W$77,14,FALSE)+VLOOKUP($C16,'15-Min Semi-Truck'!$C$14:$W$77,14,FALSE)+VLOOKUP($C17,'15-Min Semi-Truck'!$C$14:$W$77,14,FALSE)+VLOOKUP($C14,'15-Min Semi-Truck'!$C$14:$W$77,14,FALSE))/(0.00001+VLOOKUP($C15,'15-Min All Vehicle'!$C$14:$W$77,14,FALSE)+VLOOKUP($C16,'15-Min All Vehicle'!$C$14:$W$77,14,FALSE)+VLOOKUP($C17,'15-Min All Vehicle'!$C$14:$W$77,14,FALSE)+VLOOKUP($C14,'15-Min All Vehicle'!$C$14:$W$77,14,FALSE)) -> 0.5847953148 | Q21: =IF(ISERROR(P21=TRUE),"#N/A",0) -> 0 | R21: =100*(VLOOKUP($C15,'15-Min Semi-Truck'!$C$14:$W$77,16,FALSE)+VLOOKUP($C16,'15-Min Semi-Truck'!$C$14:$W$77,16,FALSE)+VLOOKUP($C17,'15-Min Semi-Truck'!$C$14:$W$77,16,FALSE)+VLOOKUP($C14,'15-Min Semi-Truck'!$C$14:$W$77,16,FALSE))/(0.00001+VLOOKUP($C15,'15-Min All Vehicle'!$C$14:$W$77,16,FALSE)+VLOOKUP($C16,'15-Min All Vehicle'!$C$14:$W$77,16,FALSE)+VLOOKUP($C17,'15-Min All Vehicle'!$C$14:$W$77,16,FALSE)+VLOOKUP($C14,'15-Min All Vehicle'!$C$14:$W$77,16,FALSE)) -> 1.179673311 | S21: =100*(VLOOKUP($C15,'15-Min Semi-Truck'!$C$14:$W$77,17,FALSE)+VLOOKUP($C16,'15-Min Semi-Truck'!$C$14:$W$77,17,FALSE)+VLOOKUP($C17,'15-Min Semi-Truck'!$C$14:$W$77,17,FALSE)+VLOOKUP($C14,'15-Min Semi-Truck'!$C$14:$W$77,17,FALSE))/(0.00001+VLOOKUP($C15,'15-Min All Vehicle'!$C$14:$W$77,17,FALSE)+VLOOKUP($C16,'15-Min All Vehicle'!$C$14:$W$77,17,FALSE)+VLOOKUP($C17,'15-Min All Vehicle'!$C$14:$W$77,17,FALSE)+VLOOKUP($C14,'15-Min All Vehicle'!$C$14:$W$77,17,FALSE)) -> 0 | T21: =100*(VLOOKUP($C15,'15-Min Semi-Truck'!$C$14:$W$77,18,FALSE)+VLOOKUP($C16,'15-Min Semi-Truck'!$C$14:$W$77,18,FALSE)+VLOOKUP($C17,'15-Min Semi-Truck'!$C$14:$W$77,18,FALSE)+VLOOKUP($C14,'15-Min Semi-Truck'!$C$14:$W$77,18,FALSE))/(0.00001+VLOOKUP($C15,'15-Min All Vehicle'!$C$14:$W$77,18,FALSE)+VLOOKUP($C16,'15-Min All Vehicle'!$C$14:$W$77,18,FALSE)+VLOOKUP($C17,'15-Min All Vehicle'!$C$14:$W$77,18,FALSE)+VLOOKUP($C14,'15-Min All Vehicle'!$C$14:$W$77,18,FALSE)) -> 3.932584049 | U21: =100*(VLOOKUP($C15,'15-Min Semi-Truck'!$C$14:$W$77,19,FALSE)+VLOOKUP($C16,'15-Min Semi-Truck'!$C$14:$W$77,19,FALSE)+VLOOKUP($C17,'15-Min Semi-Truck'!$C$14:$W$77,19,FALSE)+VLOOKUP($C14,'15-Min Semi-Truck'!$C$14:$W$77,19,FALSE))/(0.00001+VLOOKUP($C15,'15-Min All Vehicle'!$C$14:$W$77,19,FALSE)+VLOOKUP($C16,'15-Min All Vehicle'!$C$14:$W$77,19,FALSE)+VLOOKUP($C17,'15-Min All Vehicle'!$C$14:$W$77,19,FALSE)+VLOOKUP($C14,'15-Min All Vehicle'!$C$14:$W$77,19,FALSE)) -> 3.030302112 | V21: =IF(ISERROR(U21=TRUE),"#N/A",0) -> 0 | W21: =100*(VLOOKUP($C15,'15-Min Semi-Truck'!$C$14:$W$77,21,FALSE)+VLOOKUP($C16,'15-Min Semi-Truck'!$C$14:$W$77,21,FALSE)+VLOOKUP($C17,'15-Min Semi-Truck'!$C$14:$W$77,21,FALSE)+VLOOKUP($C14,'15-Min Semi-Truck'!$C$14:$W$77,21,FALSE))/(0.00001+VLOOKUP($C15,'15-Min All Vehicle'!$C$14:$W$77,21,FALSE)+VLOOKUP($C16,'15-Min All Vehicle'!$C$14:$W$77,21,FALSE)+VLOOKUP($C17,'15-Min All Vehicle'!$C$14:$W$77,21,FALSE)+VLOOKUP($C14,'15-Min All Vehicle'!$C$14:$W$77,21,FALSE)) -> 3.791469015 | X21: =100*(VLOOKUP($C15,'15-Min Semi-Truck'!$C$14:$X$77,22,FALSE)+VLOOKUP($C16,'15-Min Semi-Truck'!$C$14:$X$77,22,FALSE)+VLOOKUP($C17,'15-Min Semi-Truck'!$C$14:$X$77,22,FALSE)+VLOOKUP($C14,'15-Min Semi-Truck'!$C$14:$X$77,22,FALSE))/(0.00001+VLOOKUP($C15,'15-Min All Vehicle'!$C$14:$X$77,22,FALSE)+VLOOKUP($C16,'15-Min All Vehicle'!$C$14:$X$77,22,FALSE)+VLOOKUP($C17,'15-Min All Vehicle'!$C$14:$X$77,22,FALSE)+VLOOKUP($C14,'15-Min All Vehicle'!$C$14:$X$77,22,FALSE)) -> 1.349527659
C22: % Trucks (Total) | D22: =100*(VLOOKUP($C16,'15-Min Heavy Vehicle'!$C$14:$W$77,2,FALSE)+VLOOKUP($C17,'15-Min Heavy Vehicle'!$C$14:$W$77,2,FALSE)+VLOOKUP($C14,'15-Min Heavy Vehicle'!$C$14:$W$77,2,FALSE)+VLOOKUP($C15,'15-Min Heavy Vehicle'!$C$14:$W$77,2,FALSE))/(0.00001+VLOOKUP($C15,'15-Min All Vehicle'!$C$14:$W$77,2,FALSE)+VLOOKUP($C17,'15-Min All Vehicle'!$C$14:$W$77,2,FALSE)+VLOOKUP($C14,'15-Min All Vehicle'!$C$14:$W$77,2,FALSE)+VLOOKUP($C16,'15-Min All Vehicle'!$C$14:$W$77,2,FALSE)) -> 0 | E22: =100*(VLOOKUP($C16,'15-Min Heavy Vehicle'!$C$14:$W$77,3,FALSE)+VLOOKUP($C17,'15-Min Heavy Vehicle'!$C$14:$W$77,3,FALSE)+VLOOKUP($C14,'15-Min Heavy Vehicle'!$C$14:$W$77,3,FALSE)+VLOOKUP($C15,'15-Min Heavy Vehicle'!$C$14:$W$77,3,FALSE))/(0.00001+VLOOKUP($C15,'15-Min All Vehicle'!$C$14:$W$77,3,FALSE)+VLOOKUP($C17,'15-Min All Vehicle'!$C$14:$W$77,3,FALSE)+VLOOKUP($C14,'15-Min All Vehicle'!$C$14:$W$77,3,FALSE)+VLOOKUP($C16,'15-Min All Vehicle'!$C$14:$W$77,3,FALSE)) -> 0 | F22: =100*(VLOOKUP($C16,'15-Min Heavy Vehicle'!$C$14:$W$77,4,FALSE)+VLOOKUP($C17,'15-Min Heavy Vehicle'!$C$14:$W$77,4,FALSE)+VLOOKUP($C14,'15-Min Heavy Vehicle'!$C$14:$W$77,4,FALSE)+VLOOKUP($C15,'15-Min Heavy Vehicle'!$C$14:$W$77,4,FALSE))/(0.00001+VLOOKUP($C15,'15-Min All Vehicle'!$C$14:$W$77,4,FALSE)+VLOOKUP($C17,'15-Min All Vehicle'!$C$14:$W$77,4,FALSE)+VLOOKUP($C14,'15-Min All Vehicle'!$C$14:$W$77,4,FALSE)+VLOOKUP($C16,'15-Min All Vehicle'!$C$14:$W$77,4,FALSE)) -> 0 | G22: 0 | H22: =100*(VLOOKUP($C16,'15-Min Heavy Vehicle'!$C$14:$W$77,6,FALSE)+VLOOKUP($C17,'15-Min Heavy Vehicle'!$C$14:$W$77,6,FALSE)+VLOOKUP($C14,'15-Min Heavy Vehicle'!$C$14:$W$77,6,FALSE)+VLOOKUP($C15,'15-Min Heavy Vehicle'!$C$14:$W$77,6,FALSE))/(0.00001+VLOOKUP($C15,'15-Min All Vehicle'!$C$14:$W$77,6,FALSE)+VLOOKUP($C17,'15-Min All Vehicle'!$C$14:$W$77,6,FALSE)+VLOOKUP($C14,'15-Min All Vehicle'!$C$14:$W$77,6,FALSE)+VLOOKUP($C16,'15-Min All Vehicle'!$C$14:$W$77,6,FALSE)) -> 0 | I22: =100*(VLOOKUP($C16,'15-Min Heavy Vehicle'!$C$14:$W$77,7,FALSE)+VLOOKUP($C17,'15-Min Heavy Vehicle'!$C$14:$W$77,7,FALSE)+VLOOKUP($C14,'15-Min Heavy Vehicle'!$C$14:$W$77,7,FALSE)+VLOOKUP($C15,'15-Min Heavy Vehicle'!$C$14:$W$77,7,FALSE))/(0.00001+VLOOKUP($C15,'15-Min All Vehicle'!$C$14:$W$77,7,FALSE)+VLOOKUP($C17,'15-Min All Vehicle'!$C$14:$W$77,7,FALSE)+VLOOKUP($C14,'15-Min All Vehicle'!$C$14:$W$77,7,FALSE)+VLOOKUP($C16,'15-Min All Vehicle'!$C$14:$W$77,7,FALSE)) -> 12.49999858 | J22: =100*(VLOOKUP($C16,'15-Min Heavy Vehicle'!$C$14:$W$77,8,FALSE)+VLOOKUP($C17,'15-Min Heavy Vehicle'!$C$14:$W$77,8,FALSE)+VLOOKUP($C14,'15-Min Heavy Vehicle'!$C$14:$W$77,8,FALSE)+VLOOKUP($C15,'15-Min Heavy Vehicle'!$C$14:$W$77,8,FALSE))/(0.00001+VLOOKUP($C15,'15-Min All Vehicle'!$C$14:$W$77,8,FALSE)+VLOOKUP($C17,'15-Min All Vehicle'!$C$14:$W$77,8,FALSE)+VLOOKUP($C14,'15-Min All Vehicle'!$C$14:$W$77,8,FALSE)+VLOOKUP($C16,'15-Min All Vehicle'!$C$14:$W$77,8,FALSE)) -> 3.163016993 | K22: =100*(VLOOKUP($C16,'15-Min Heavy Vehicle'!$C$14:$W$77,9,FALSE)+VLOOKUP($C17,'15-Min Heavy Vehicle'!$C$14:$W$77,9,FALSE)+VLOOKUP($C14,'15-Min Heavy Vehicle'!$C$14:$W$77,9,FALSE)+VLOOKUP($C15,'15-Min Heavy Vehicle'!$C$14:$W$77,9,FALSE))/(0.00001+VLOOKUP($C15,'15-Min All Vehicle'!$C$14:$W$77,9,FALSE)+VLOOKUP($C17,'15-Min All Vehicle'!$C$14:$W$77,9,FALSE)+VLOOKUP($C14,'15-Min All Vehicle'!$C$14:$W$77,9,FALSE)+VLOOKUP($C16,'15-Min All Vehicle'!$C$14:$W$77,9,FALSE)) -> 0 | L22: 0 | M22: =100*(VLOOKUP($C16,'15-Min Heavy Vehicle'!$C$14:$W$77,11,FALSE)+VLOOKUP($C17,'15-Min Heavy Vehicle'!$C$14:$W$77,11,FALSE)+VLOOKUP($C14,'15-Min Heavy Vehicle'!$C$14:$W$77,11,FALSE)+VLOOKUP($C15,'15-Min Heavy Vehicle'!$C$14:$W$77,11,FALSE))/(0.00001+VLOOKUP($C15,'15-Min All Vehicle'!$C$14:$W$77,11,FALSE)+VLOOKUP($C17,'15-Min All Vehicle'!$C$14:$W$77,11,FALSE)+VLOOKUP($C14,'15-Min All Vehicle'!$C$14:$W$77,11,FALSE)+VLOOKUP($C16,'15-Min All Vehicle'!$C$14:$W$77,11,FALSE)) -> 4.065934021 | N22: =100*(VLOOKUP($C16,'15-Min Heavy Vehicle'!$C$14:$W$77,12,FALSE)+VLOOKUP($C17,'15-Min Heavy Vehicle'!$C$14:$W$77,12,FALSE)+VLOOKUP($C14,'15-Min Heavy Vehicle'!$C$14:$W$77,12,FALSE)+VLOOKUP($C15,'15-Min Heavy Vehicle'!$C$14:$W$77,12,FALSE))/(0.00001+VLOOKUP($C15,'15-Min All Vehicle'!$C$14:$W$77,12,FALSE)+VLOOKUP($C17,'15-Min All Vehicle'!$C$14:$W$77,12,FALSE)+VLOOKUP($C14,'15-Min All Vehicle'!$C$14:$W$77,12,FALSE)+VLOOKUP($C16,'15-Min All Vehicle'!$C$14:$W$77,12,FALSE)) -> 5.284552631 | O22: =100*(VLOOKUP($C16,'15-Min Heavy Vehicle'!$C$14:$W$77,13,FALSE)+VLOOKUP($C17,'15-Min Heavy Vehicle'!$C$14:$W$77,13,FALSE)+VLOOKUP($C14,'15-Min Heavy Vehicle'!$C$14:$W$77,13,FALSE)+VLOOKUP($C15,'15-Min Heavy Vehicle'!$C$14:$W$77,13,FALSE))/(0.00001+VLOOKUP($C15,'15-Min All Vehicle'!$C$14:$W$77,13,FALSE)+VLOOKUP($C17,'15-Min All Vehicle'!$C$14:$W$77,13,FALSE)+VLOOKUP($C14,'15-Min All Vehicle'!$C$14:$W$77,13,FALSE)+VLOOKUP($C16,'15-Min All Vehicle'!$C$14:$W$77,13,FALSE)) -> 99.99900001 | P22: =100*(VLOOKUP($C16,'15-Min Heavy Vehicle'!$C$14:$W$77,14,FALSE)+VLOOKUP($C17,'15-Min Heavy Vehicle'!$C$14:$W$77,14,FALSE)+VLOOKUP($C14,'15-Min Heavy Vehicle'!$C$14:$W$77,14,FALSE)+VLOOKUP($C15,'15-Min Heavy Vehicle'!$C$14:$W$77,14,FALSE))/(0.00001+VLOOKUP($C15,'15-Min All Vehicle'!$C$14:$W$77,14,FALSE)+VLOOKUP($C17,'15-Min All Vehicle'!$C$14:$W$77,14,FALSE)+VLOOKUP($C14,'15-Min All Vehicle'!$C$14:$W$77,14,FALSE)+VLOOKUP($C16,'15-Min All Vehicle'!$C$14:$W$77,14,FALSE)) -> 1.871345007 | Q22: 0 | R22: =100*(VLOOKUP($C16,'15-Min Heavy Vehicle'!$C$14:$W$77,16,FALSE)+VLOOKUP($C17,'15-Min Heavy Vehicle'!$C$14:$W$77,16,FALSE)+VLOOKUP($C14,'15-Min Heavy Vehicle'!$C$14:$W$77,16,FALSE)+VLOOKUP($C15,'15-Min Heavy Vehicle'!$C$14:$W$77,16,FALSE))/(0.00001+VLOOKUP($C15,'15-Min All Vehicle'!$C$14:$W$77,16,FALSE)+VLOOKUP($C17,'15-Min All Vehicle'!$C$14:$W$77,16,FALSE)+VLOOKUP($C14,'15-Min All Vehicle'!$C$14:$W$77,16,FALSE)+VLOOKUP($C16,'15-Min All Vehicle'!$C$14:$W$77,16,FALSE)) -> 2.722323024 | S22: =100*(VLOOKUP($C16,'15-Min Heavy Vehicle'!$C$14:$W$77,17,FALSE)+VLOOKUP($C17,'15-Min Heavy Vehicle'!$C$14:$W$77,17,FALSE)+VLOOKUP($C14,'15-Min Heavy Vehicle'!$C$14:$W$77,17,FALSE)+VLOOKUP($C15,'15-Min Heavy Vehicle'!$C$14:$W$77,17,FALSE))/(0.00001+VLOOKUP($C15,'15-Min All Vehicle'!$C$14:$W$77,17,FALSE)+VLOOKUP($C17,'15-Min All Vehicle'!$C$14:$W$77,17,FALSE)+VLOOKUP($C14,'15-Min All Vehicle'!$C$14:$W$77,17,FALSE)+VLOOKUP($C16,'15-Min All Vehicle'!$C$14:$W$77,17,FALSE)) -> 0 | T22: =100*(VLOOKUP($C16,'15-Min Heavy Vehicle'!$C$14:$W$77,18,FALSE)+VLOOKUP($C17,'15-Min Heavy Vehicle'!$C$14:$W$77,18,FALSE)+VLOOKUP($C14,'15-Min Heavy Vehicle'!$C$14:$W$77,18,FALSE)+VLOOKUP($C15,'15-Min Heavy Vehicle'!$C$14:$W$77,18,FALSE))/(0.00001+VLOOKUP($C15,'15-Min All Vehicle'!$C$14:$W$77,18,FALSE)+VLOOKUP($C17,'15-Min All Vehicle'!$C$14:$W$77,18,FALSE)+VLOOKUP($C14,'15-Min All Vehicle'!$C$14:$W$77,18,FALSE)+VLOOKUP($C16,'15-Min All Vehicle'!$C$14:$W$77,18,FALSE)) -> 15.73033619 | U22: =100*(VLOOKUP($C16,'15-Min Heavy Vehicle'!$C$14:$W$77,19,FALSE)+VLOOKUP($C17,'15-Min Heavy Vehicle'!$C$14:$W$77,19,FALSE)+VLOOKUP($C14,'15-Min Heavy Vehicle'!$C$14:$W$77,19,FALSE)+VLOOKUP($C15,'15-Min Heavy Vehicle'!$C$14:$W$77,19,FALSE))/(0.00001+VLOOKUP($C15,'15-Min All Vehicle'!$C$14:$W$77,19,FALSE)+VLOOKUP($C17,'15-Min All Vehicle'!$C$14:$W$77,19,FALSE)+VLOOKUP($C14,'15-Min All Vehicle'!$C$14:$W$77,19,FALSE)+VLOOKUP($C16,'15-Min All Vehicle'!$C$14:$W$77,19,FALSE)) -> 9.090906336 | V22: 0 | W22: =100*(VLOOKUP($C16,'15-Min Heavy Vehicle'!$C$14:$W$77,21,FALSE)+VLOOKUP($C17,'15-Min Heavy Vehicle'!$C$14:$W$77,21,FALSE)+VLOOKUP($C14,'15-Min Heavy Vehicle'!$C$14:$W$77,21,FALSE)+VLOOKUP($C15,'15-Min Heavy Vehicle'!$C$14:$W$77,21,FALSE))/(0.00001+VLOOKUP($C15,'15-Min All Vehicle'!$C$14:$W$77,21,FALSE)+VLOOKUP($C17,'15-Min All Vehicle'!$C$14:$W$77,21,FALSE)+VLOOKUP($C14,'15-Min All Vehicle'!$C$14:$W$77,21,FALSE)+VLOOKUP($C16,'15-Min All Vehicle'!$C$14:$W$77,21,FALSE)) -> 14.69194243 | X22: =100*(VLOOKUP($C16,'15-Min Heavy Vehicle'!$C$14:$X$77,22,FALSE)+VLOOKUP($C17,'15-Min Heavy Vehicle'!$C$14:$X$77,22,FALSE)+VLOOKUP($C14,'15-Min Heavy Vehicle'!$C$14:$X$77,22,FALSE)+VLOOKUP($C15,'15-Min Heavy Vehicle'!$C$14:$X$77,22,FALSE))/(0.00001+VLOOKUP($C15,'15-Min All Vehicle'!$C$14:$X$77,22,FALSE)+VLOOKUP($C17,'15-Min All Vehicle'!$C$14:$X$77,22,FALSE)+VLOOKUP($C14,'15-Min All Vehicle'!$C$14:$X$77,22,FALSE)+VLOOKUP($C16,'15-Min All Vehicle'!$C$14:$X$77,22,FALSE)) -> 4.40845702
C23: Peak Hour Factor (PHF) | D23: =SUM(D14:D17)/(0.000001+4*MAX(D14:D17)) -> 0 | E23: =SUM(E14:E17)/(0.000001+4*MAX(E14:E17)) -> 0 | F23: 0 | G23: 0 | H23: 0 | I23: 0.7586206831 | J23: 0.7418772556 | K23: 0 | L23: 0 | M23: 0.7434640517 | N23: 0.8310810783 | O23: 0.2499999375 | P23: 0.8832644619 | Q23: 0 | R23: 0.9003267967 | S23: 0 | T23: 0.7063492035 | U23: 0.6874999857 | V23: 0 | W23: 0.7326388863 | X23: 0.8124999997
B25: =IF('Peak Hour Graphical Summary'!$R$36=0,"N/A",IF('Base Information'!$O$12='Base Information'!$O$14,'Base Information'!$O$12,IF(ISBLANK('Base Information'!$O$13)=TRUE,"Split between AM/PM count dates",'Base Information'!$O$13))) -> 2011-12-06 | F25: ê | K25: ç | P25: é | U25: è
D26: From North | I26: From East | N26: From South | S26: From West
B27: Midday (MD) Peak Hour | C27: MD Peak Hour | D27: ='Base Information'!$D$14:$D$14 -> 441 NB ON RAMP | I27: ='Base Information'!$D$15:$D$15 -> CTH OO (Northland Ave) | N27: ='Base Information'!$D$16:$D$16 -> 441 NB OFF RAMP | S27: ='Base Information'!$D$17:$D$17 -> CTH OO (Northland Ave)
C28: Start Time | D28: Right | E28: Thru | F28: Left | G28: U-Tn | H28: Total | I28: Right | J28: Thru | K28: Left | L28: U-Tn | M28: Total | N28: Right | O28: Thru | P28: Left | Q28: U-Tn | R28: Total | S28: Right | T28: Thru | U28: Left | V28: U-Tn | W28: Total | X28: Totals
C29: =IF(ISERROR(VLOOKUP('Base Information'!$Q$18,'Base Information'!$C$91:$G$151,2,FALSE)=TRUE),0.5,(VLOOKUP('Base Information'!$Q$18,'Base Information'!$C$91:$G$151,2,FALSE))) -> 12:59:59.942 | D29: =VLOOKUP($C29,'15-Min All Vehicle'!$C$14:$W$77,2,FALSE) -> 0 | E29: =VLOOKUP($C29,'15-Min All Vehicle'!$C$14:$W$77,3,FALSE) -> 0 | F29: =VLOOKUP($C29,'15-Min All Vehicle'!$C$14:$W$77,4,FALSE) -> 0 | G29: =VLOOKUP($C29,'15-Min All Vehicle'!$C$14:$W$77,5,FALSE) -> 0 | H29: =SUM(D29:G29) -> 0 | I29: =VLOOKUP($C29,'15-Min All Vehicle'!$C$14:$W$77,7,FALSE) -> 13 | J29: =VLOOKUP($C29,'15-Min All Vehicle'!$C$14:$W$77,8,FALSE) -> 124 | K29: =VLOOKUP($C29,'15-Min All Vehicle'!$C$14:$W$77,9,FALSE) -> 0 | L29: =VLOOKUP($C29,'15-Min All Vehicle'!$C$14:$W$77,10,FALSE) -> 0 | M29: =SUM(I29:L29) -> 137 | N29: =VLOOKUP($C29,'15-Min All Vehicle'!$C$14:$W$77,12,FALSE) -> 52 | O29: =VLOOKUP($C29,'15-Min All Vehicle'!$C$14:$W$77,13,FALSE) -> 0 | P29: =VLOOKUP($C29,'15-Min All Vehicle'!$C$14:$W$77,14,FALSE) -> 119 | Q29: =VLOOKUP($C29,'15-Min All Vehicle'!$C$14:$W$77,15,FALSE) -> 0 | R29: =SUM(N29:Q29) -> 171 | S29: =VLOOKUP($C29,'15-Min All Vehicle'!$C$14:$W$77,17,FALSE) -> 0 | T29: =VLOOKUP($C29,'15-Min All Vehicle'!$C$14:$W$77,18,FALSE) -> 72 | U29: =VLOOKUP($C29,'15-Min All Vehicle'!$C$14:$W$77,19,FALSE) -> 8 | V29: =VLOOKUP($C29,'15-Min All Vehicle'!$C$14:$W$77,20,FALSE) -> 0 | W29: =SUM(S29:V29) -> 80 | X29: =H29+M29+R29+W29 -> 388
C30: =IF(ISERROR(VLOOKUP('Base Information'!$Q$18,'Base Information'!$C$91:$G$151,3,FALSE)=TRUE),0.510416,(VLOOKUP('Base Information'!$Q$18,'Base Information'!$C$91:$G$151,3,FALSE))) -> 13:14:59.971 | D30: =VLOOKUP($C30,'15-Min All Vehicle'!$C$14:$W$77,2,FALSE) -> 0 | E30: =VLOOKUP($C30,'15-Min All Vehicle'!$C$14:$W$77,3,FALSE) -> 0 | F30: =VLOOKUP($C30,'15-Min All Vehicle'!$C$14:$W$77,4,FALSE) -> 0 | G30: =VLOOKUP($C30,'15-Min All Vehicle'!$C$14:$W$77,5,FALSE) -> 0 | H30: =SUM(D30:G30) -> 0 | I30: =VLOOKUP($C30,'15-Min All Vehicle'!$C$14:$W$77,7,FALSE) -> 12 | J30: =VLOOKUP($C30,'15-Min All Vehicle'!$C$14:$W$77,8,FALSE) -> 92 | K30: =VLOOKUP($C30,'15-Min All Vehicle'!$C$14:$W$77,9,FALSE) -> 0 | L30: =VLOOKUP($C30,'15-Min All Vehicle'!$C$14:$W$77,10,FALSE) -> 0 | M30: =SUM(I30:L30) -> 104 | N30: =VLOOKUP($C30,'15-Min All Vehicle'!$C$14:$W$77,12,FALSE) -> 61 | O30: =VLOOKUP($C30,'15-Min All Vehicle'!$C$14:$W$77,13,FALSE) -> 0 | P30: =VLOOKUP($C30,'15-Min All Vehicle'!$C$14:$W$77,14,FALSE) -> 80 | Q30: =VLOOKUP($C30,'15-Min All Vehicle'!$C$14:$W$77,15,FALSE) -> 0 | R30: =SUM(N30:Q30) -> 141 | S30: =VLOOKUP($C30,'15-Min All Vehicle'!$C$14:$W$77,17,FALSE) -> 0 | T30: =VLOOKUP($C30,'15-Min All Vehicle'!$C$14:$W$77,18,FALSE) -> 73 | U30: =VLOOKUP($C30,'15-Min All Vehicle'!$C$14:$W$77,19,FALSE) -> 8 | V30: =VLOOKUP($C30,'15-Min All Vehicle'!$C$14:$W$77,20,FALSE) -> 0 | W30: =SUM(S30:V30) -> 81 | X30: =H30+M30+R30+W30 -> 326
C31: =IF(ISERROR(VLOOKUP('Base Information'!$Q$18,'Base Information'!$C$91:$G$151,4,FALSE)=TRUE),0.520833,(VLOOKUP('Base Information'!$Q$18,'Base Information'!$C$91:$G$151,4,FALSE))) -> 13:30:00 | D31: =VLOOKUP($C31,'15-Min All Vehicle'!$C$14:$W$77,2,FALSE) -> 0 | E31: =VLOOKUP($C31,'15-Min All Vehicle'!$C$14:$W$77,3,FALSE) -> 0 | F31: =VLOOKUP($C31,'15-Min All Vehicle'!$C$14:$W$77,4,FALSE) -> 0 | G31: =VLOOKUP($C31,'15-Min All Vehicle'!$C$14:$W$77,5,FALSE) -> 0 | H31: 0 | I31: =VLOOKUP($C31,'15-Min All Vehicle'!$C$14:$W$77,7,FALSE) -> 12 | J31: =VLOOKUP($C31,'15-Min All Vehicle'!$C$14:$W$77,8,FALSE) -> 115 | K31: =VLOOKUP($C31,'15-Min All Vehicle'!$C$14:$W$77,9,FALSE) -> 0 | L31: =VLOOKUP($C31,'15-Min All Vehicle'!$C$14:$W$77,10,FALSE) -> 0 | M31: 127 | N31: =VLOOKUP($C31,'15-Min All Vehicle'!$C$14:$W$77,12,FALSE) -> 51 | O31: =VLOOKUP($C31,'15-Min All Vehicle'!$C$14:$W$77,13,FALSE) -> 0 | P31: =VLOOKUP($C31,'15-Min All Vehicle'!$C$14:$W$77,14,FALSE) -> 113 | Q31: =VLOOKUP($C31,'15-Min All Vehicle'!$C$14:$W$77,15,FALSE) -> 0 | R31: 164 | S31: =VLOOKUP($C31,'15-Min All Vehicle'!$C$14:$W$77,17,FALSE) -> 0 | T31: =VLOOKUP($C31,'15-Min All Vehicle'!$C$14:$W$77,18,FALSE) -> 100 | U31: =VLOOKUP($C31,'15-Min All Vehicle'!$C$14:$W$77,19,FALSE) -> 8 | V31: =VLOOKUP($C31,'15-Min All Vehicle'!$C$14:$W$77,20,FALSE) -> 0 | W31: 108 | X31: 399
C32: =IF(ISERROR(VLOOKUP('Base Information'!$Q$18,'Base Information'!$C$91:$G$151,5,FALSE)=TRUE),0.53125,(VLOOKUP('Base Information'!$Q$18,'Base Information'!$C$91:$G$151,5,FALSE))) -> 13:44:59.942 | D32: =VLOOKUP($C32,'15-Min All Vehicle'!$C$14:$W$77,2,FALSE) -> 0 | E32: =VLOOKUP($C32,'15-Min All Vehicle'!$C$14:$W$77,3,FALSE) -> 0 | F32: =VLOOKUP($C32,'15-Min All Vehicle'!$C$14:$W$77,4,FALSE) -> 0 | G32: =VLOOKUP($C32,'15-Min All Vehicle'!$C$14:$W$77,5,FALSE) -> 0 | H32: 0 | I32: =VLOOKUP($C32,'15-Min All Vehicle'!$C$14:$W$77,7,FALSE) -> 13 | J32: =VLOOKUP($C32,'15-Min All Vehicle'!$C$14:$W$77,8,FALSE) -> 110 | K32: =VLOOKUP($C32,'15-Min All Vehicle'!$C$14:$W$77,9,FALSE) -> 0 | L32: =VLOOKUP($C32,'15-Min All Vehicle'!$C$14:$W$77,10,FALSE) -> 0 | M32: 123 | N32: =VLOOKUP($C32,'15-Min All Vehicle'!$C$14:$W$77,12,FALSE) -> 52 | O32: =VLOOKUP($C32,'15-Min All Vehicle'!$C$14:$W$77,13,FALSE) -> 0 | P32: =VLOOKUP($C32,'15-Min All Vehicle'!$C$14:$W$77,14,FALSE) -> 105 | Q32: =VLOOKUP($C32,'15-Min All Vehicle'!$C$14:$W$77,15,FALSE) -> 0 | R32: 157 | S32: =VLOOKUP($C32,'15-Min All Vehicle'!$C$14:$W$77,17,FALSE) -> 0 | T32: =VLOOKUP($C32,'15-Min All Vehicle'!$C$14:$W$77,18,FALSE) -> 83 | U32: =VLOOKUP($C32,'15-Min All Vehicle'!$C$14:$W$77,19,FALSE) -> 12 | V32: =VLOOKUP($C32,'15-Min All Vehicle'!$C$14:$W$77,20,FALSE) -> 0 | W32: 95 | X32: 375
C33: Peak Hour Volume | D33: =SUM(D29:D32) -> 0 | E33: =SUM(E29:E32) -> 0 | F33: =SUM(F29:F32) -> 0 | G33: =SUM(G29:G32) -> 0 | H33: =SUM(H29:H32) -> 0 | I33: =SUM(I29:I32) -> 50 | J33: =SUM(J29:J32) -> 441 | K33: =SUM(K29:K32) -> 0 | L33: =SUM(L29:L32) -> 0 | M33: =SUM(M29:M32) -> 491 | N33: =SUM(N29:N32) -> 216 | O33: =SUM(O29:O32) -> 0 | P33: =SUM(P29:P32) -> 417 | Q33: =SUM(Q29:Q32) -> 0 | R33: =SUM(R29:R32) -> 633 | S33: =SUM(S29:S32) -> 0 | T33: =SUM(T29:T32) -> 328 | U33: =SUM(U29:U32) -> 36 | V33: =SUM(V29:V32) -> 0 | W33: =SUM(W29:W32) -> 364 | X33: =SUM(X29:X32) -> 1488
C34: Rounded Hourly Volume | D34: =MROUND(D33,5) -> 0 | E34: =MROUND(E33,5) -> 0 | F34: =MROUND(F33,5) -> 0 | G34: =MROUND(G33,5) -> 0 | H34: =SUM(D34:G34) -> 0 | I34: =MROUND(I33,5) -> 50 | J34: =MROUND(J33,5) -> 440 | K34: =MROUND(K33,5) -> 0 | L34: =MROUND(L33,5) -> 0 | M34: =SUM(I34:L34) -> 490 | N34: =MROUND(N33,5) -> 215 | O34: =MROUND(O33,5) -> 0 | P34: =MROUND(P33,5) -> 415 | Q34: =MROUND(Q33,5) -> 0 | R34: =SUM(N34:Q34) -> 630 | S34: =MROUND(S33,5) -> 0 | T34: =MROUND(T33,5) -> 330 | U34: =MROUND(U33,5) -> 35 | V34: =MROUND(V33,5) -> 0 | W34: =SUM(S34:V34) -> 365 | X34: =H34+M34+R34+W34 -> 1485
C35: % Single Unit Trucks | D35: =100*(VLOOKUP($C29,'15-Min SU-Truck'!$C$14:$W$77,2,FALSE)+VLOOKUP($C30,'15-Min SU-Truck'!$C$14:$W$77,2,FALSE)+VLOOKUP($C31,'15-Min SU-Truck'!$C$14:$W$77,2,FALSE)+VLOOKUP($C32,'15-Min SU-Truck'!$C$14:$W$77,2,FALSE))/(0.00001+VLOOKUP($C29,'15-Min All Vehicle'!$C$14:$W$77,2,FALSE)+VLOOKUP($C30,'15-Min All Vehicle'!$C$14:$W$77,2,FALSE)+VLOOKUP($C31,'15-Min All Vehicle'!$C$14:$W$77,2,FALSE)+VLOOKUP($C32,'15-Min All Vehicle'!$C$17:$W$77,2,FALSE)) -> 0 | E35: =100*(VLOOKUP($C29,'15-Min SU-Truck'!$C$14:$W$77,3,FALSE)+VLOOKUP($C30,'15-Min SU-Truck'!$C$14:$W$77,3,FALSE)+VLOOKUP($C31,'15-Min SU-Truck'!$C$14:$W$77,3,FALSE)+VLOOKUP($C32,'15-Min SU-Truck'!$C$14:$W$77,3,FALSE))/(0.00001+VLOOKUP($C29,'15-Min All Vehicle'!$C$14:$W$77,3,FALSE)+VLOOKUP($C30,'15-Min All Vehicle'!$C$14:$W$77,3,FALSE)+VLOOKUP($C31,'15-Min All Vehicle'!$C$14:$W$77,3,FALSE)+VLOOKUP($C32,'15-Min All Vehicle'!$C$17:$W$77,3,FALSE)) -> 0 | F35: =100*(VLOOKUP($C29,'15-Min SU-Truck'!$C$14:$W$77,4,FALSE)+VLOOKUP($C30,'15-Min SU-Truck'!$C$14:$W$77,4,FALSE)+VLOOKUP($C31,'15-Min SU-Truck'!$C$14:$W$77,4,FALSE)+VLOOKUP($C32,'15-Min SU-Truck'!$C$14:$W$77,4,FALSE))/(0.00001+VLOOKUP($C29,'15-Min All Vehicle'!$C$14:$W$77,4,FALSE)+VLOOKUP($C30,'15-Min All Vehicle'!$C$14:$W$77,4,FALSE)+VLOOKUP($C31,'15-Min All Vehicle'!$C$14:$W$77,4,FALSE)+VLOOKUP($C32,'15-Min All Vehicle'!$C$17:$W$77,4,FALSE)) -> 0 | G35: =IF(ISERROR(F35=TRUE),"#N/A",0) -> 0 | H35: =100*(VLOOKUP($C29,'15-Min SU-Truck'!$C$14:$W$77,6,FALSE)+VLOOKUP($C30,'15-Min SU-Truck'!$C$14:$W$77,6,FALSE)+VLOOKUP($C31,'15-Min SU-Truck'!$C$14:$W$77,6,FALSE)+VLOOKUP($C32,'15-Min SU-Truck'!$C$14:$W$77,6,FALSE))/(0.00001+VLOOKUP($C29,'15-Min All Vehicle'!$C$14:$W$77,6,FALSE)+VLOOKUP($C30,'15-Min All Vehicle'!$C$14:$W$77,6,FALSE)+VLOOKUP($C31,'15-Min All Vehicle'!$C$14:$W$77,6,FALSE)+VLOOKUP($C32,'15-Min All Vehicle'!$C$17:$W$77,6,FALSE)) -> 0 | I35: =100*(VLOOKUP($C29,'15-Min SU-Truck'!$C$14:$W$77,7,FALSE)+VLOOKUP($C30,'15-Min SU-Truck'!$C$14:$W$77,7,FALSE)+VLOOKUP($C31,'15-Min SU-Truck'!$C$14:$W$77,7,FALSE)+VLOOKUP($C32,'15-Min SU-Truck'!$C$14:$W$77,7,FALSE))/(0.00001+VLOOKUP($C29,'15-Min All Vehicle'!$C$14:$W$77,7,FALSE)+VLOOKUP($C30,'15-Min All Vehicle'!$C$14:$W$77,7,FALSE)+VLOOKUP($C31,'15-Min All Vehicle'!$C$14:$W$77,7,FALSE)+VLOOKUP($C32,'15-Min All Vehicle'!$C$17:$W$77,7,FALSE)) -> 5.9999988 | J35: =100*(VLOOKUP($C29,'15-Min SU-Truck'!$C$14:$W$77,8,FALSE)+VLOOKUP($C30,'15-Min SU-Truck'!$C$14:$W$77,8,FALSE)+VLOOKUP($C31,'15-Min SU-Truck'!$C$14:$W$77,8,FALSE)+VLOOKUP($C32,'15-Min SU-Truck'!$C$14:$W$77,8,FALSE))/(0.00001+VLOOKUP($C29,'15-Min All Vehicle'!$C$14:$W$77,8,FALSE)+VLOOKUP($C30,'15-Min All Vehicle'!$C$14:$W$77,8,FALSE)+VLOOKUP($C31,'15-Min All Vehicle'!$C$14:$W$77,8,FALSE)+VLOOKUP($C32,'15-Min All Vehicle'!$C$17:$W$77,8,FALSE)) -> 2.721088374 | K35: =100*(VLOOKUP($C29,'15-Min SU-Truck'!$C$14:$W$77,9,FALSE)+VLOOKUP($C30,'15-Min SU-Truck'!$C$14:$W$77,9,FALSE)+VLOOKUP($C31,'15-Min SU-Truck'!$C$14:$W$77,9,FALSE)+VLOOKUP($C32,'15-Min SU-Truck'!$C$14:$W$77,9,FALSE))/(0.00001+VLOOKUP($C29,'15-Min All Vehicle'!$C$14:$W$77,9,FALSE)+VLOOKUP($C30,'15-Min All Vehicle'!$C$14:$W$77,9,FALSE)+VLOOKUP($C31,'15-Min All Vehicle'!$C$14:$W$77,9,FALSE)+VLOOKUP($C32,'15-Min All Vehicle'!$C$17:$W$77,9,FALSE)) -> 0 | L35: =IF(ISERROR(K35=TRUE),"#N/A",0) -> 0 | M35: =100*(VLOOKUP($C29,'15-Min SU-Truck'!$C$14:$W$77,11,FALSE)+VLOOKUP($C30,'15-Min SU-Truck'!$C$14:$W$77,11,FALSE)+VLOOKUP($C31,'15-Min SU-Truck'!$C$14:$W$77,11,FALSE)+VLOOKUP($C32,'15-Min SU-Truck'!$C$14:$W$77,11,FALSE))/(0.00001+VLOOKUP($C29,'15-Min All Vehicle'!$C$14:$W$77,11,FALSE)+VLOOKUP($C30,'15-Min All Vehicle'!$C$14:$W$77,11,FALSE)+VLOOKUP($C31,'15-Min All Vehicle'!$C$14:$W$77,11,FALSE)+VLOOKUP($C32,'15-Min All Vehicle'!$C$17:$W$77,11,FALSE)) -> 3.054989754 | N35: =100*(VLOOKUP($C29,'15-Min SU-Truck'!$C$14:$W$77,12,FALSE)+VLOOKUP($C30,'15-Min SU-Truck'!$C$14:$W$77,12,FALSE)+VLOOKUP($C31,'15-Min SU-Truck'!$C$14:$W$77,12,FALSE)+VLOOKUP($C32,'15-Min SU-Truck'!$C$14:$W$77,12,FALSE))/(0.00001+VLOOKUP($C29,'15-Min All Vehicle'!$C$14:$W$77,12,FALSE)+VLOOKUP($C30,'15-Min All Vehicle'!$C$14:$W$77,12,FALSE)+VLOOKUP($C31,'15-Min All Vehicle'!$C$14:$W$77,12,FALSE)+VLOOKUP($C32,'15-Min All Vehicle'!$C$17:$W$77,12,FALSE)) -> 1.851851766 | O35: =100*(VLOOKUP($C29,'15-Min SU-Truck'!$C$14:$W$77,13,FALSE)+VLOOKUP($C30,'15-Min SU-Truck'!$C$14:$W$77,13,FALSE)+VLOOKUP($C31,'15-Min SU-Truck'!$C$14:$W$77,13,FALSE)+VLOOKUP($C32,'15-Min SU-Truck'!$C$14:$W$77,13,FALSE))/(0.00001+VLOOKUP($C29,'15-Min All Vehicle'!$C$14:$W$77,13,FALSE)+VLOOKUP($C30,'15-Min All Vehicle'!$C$14:$W$77,13,FALSE)+VLOOKUP($C31,'15-Min All Vehicle'!$C$14:$W$77,13,FALSE)+VLOOKUP($C32,'15-Min All Vehicle'!$C$17:$W$77,13,FALSE)) -> 0 | P35: =100*(VLOOKUP($C29,'15-Min SU-Truck'!$C$14:$W$77,14,FALSE)+VLOOKUP($C30,'15-Min SU-Truck'!$C$14:$W$77,14,FALSE)+VLOOKUP($C31,'15-Min SU-Truck'!$C$14:$W$77,14,FALSE)+VLOOKUP($C32,'15-Min SU-Truck'!$C$14:$W$77,14,FALSE))/(0.00001+VLOOKUP($C29,'15-Min All Vehicle'!$C$14:$W$77,14,FALSE)+VLOOKUP($C30,'15-Min All Vehicle'!$C$14:$W$77,14,FALSE)+VLOOKUP($C31,'15-Min All Vehicle'!$C$14:$W$77,14,FALSE)+VLOOKUP($C32,'15-Min All Vehicle'!$C$17:$W$77,14,FALSE)) -> 3.11750592 | Q35: =IF(ISERROR(P35=TRUE),"#N/A",0) -> 0 | R35: =100*(VLOOKUP($C29,'15-Min SU-Truck'!$C$14:$W$77,16,FALSE)+VLOOKUP($C30,'15-Min SU-Truck'!$C$14:$W$77,16,FALSE)+VLOOKUP($C31,'15-Min SU-Truck'!$C$14:$W$77,16,FALSE)+VLOOKUP($C32,'15-Min SU-Truck'!$C$14:$W$77,16,FALSE))/(0.00001+VLOOKUP($C29,'15-Min All Vehicle'!$C$14:$W$77,16,FALSE)+VLOOKUP($C30,'15-Min All Vehicle'!$C$14:$W$77,16,FALSE)+VLOOKUP($C31,'15-Min All Vehicle'!$C$14:$W$77,16,FALSE)+VLOOKUP($C32,'15-Min All Vehicle'!$C$17:$W$77,16,FALSE)) -> 2.68562397 | S35: =100*(VLOOKUP($C29,'15-Min SU-Truck'!$C$14:$W$77,17,FALSE)+VLOOKUP($C30,'15-Min SU-Truck'!$C$14:$W$77,17,FALSE)+VLOOKUP($C31,'15-Min SU-Truck'!$C$14:$W$77,17,FALSE)+VLOOKUP($C32,'15-Min SU-Truck'!$C$14:$W$77,17,FALSE))/(0.00001+VLOOKUP($C29,'15-Min All Vehicle'!$C$14:$W$77,17,FALSE)+VLOOKUP($C30,'15-Min All Vehicle'!$C$14:$W$77,17,FALSE)+VLOOKUP($C31,'15-Min All Vehicle'!$C$14:$W$77,17,FALSE)+VLOOKUP($C32,'15-Min All Vehicle'!$C$17:$W$77,17,FALSE)) -> 0 | T35: =100*(VLOOKUP($C29,'15-Min SU-Truck'!$C$14:$W$77,18,FALSE)+VLOOKUP($C30,'15-Min SU-Truck'!$C$14:$W$77,18,FALSE)+VLOOKUP($C31,'15-Min SU-Truck'!$C$14:$W$77,18,FALSE)+VLOOKUP($C32,'15-Min SU-Truck'!$C$14:$W$77,18,FALSE))/(0.00001+VLOOKUP($C29,'15-Min All Vehicle'!$C$14:$W$77,18,FALSE)+VLOOKUP($C30,'15-Min All Vehicle'!$C$14:$W$77,18,FALSE)+VLOOKUP($C31,'15-Min All Vehicle'!$C$14:$W$77,18,FALSE)+VLOOKUP($C32,'15-Min All Vehicle'!$C$17:$W$77,18,FALSE)) -> 6.09756079 | U35: =100*(VLOOKUP($C29,'15-Min SU-Truck'!$C$14:$W$77,19,FALSE)+VLOOKUP($C30,'15-Min SU-Truck'!$C$14:$W$77,19,FALSE)+VLOOKUP($C31,'15-Min SU-Truck'!$C$14:$W$77,19,FALSE)+VLOOKUP($C32,'15-Min SU-Truck'!$C$14:$W$77,19,FALSE))/(0.00001+VLOOKUP($C29,'15-Min All Vehicle'!$C$14:$W$77,19,FALSE)+VLOOKUP($C30,'15-Min All Vehicle'!$C$14:$W$77,19,FALSE)+VLOOKUP($C31,'15-Min All Vehicle'!$C$14:$W$77,19,FALSE)+VLOOKUP($C32,'15-Min All Vehicle'!$C$17:$W$77,19,FALSE)) -> 8.333331019 | V35: =IF(ISERROR(U35=TRUE),"#N/A",0) -> 0 | W35: =100*(VLOOKUP($C29,'15-Min SU-Truck'!$C$14:$W$77,21,FALSE)+VLOOKUP($C30,'15-Min SU-Truck'!$C$14:$W$77,21,FALSE)+VLOOKUP($C31,'15-Min SU-Truck'!$C$14:$W$77,21,FALSE)+VLOOKUP($C32,'15-Min SU-Truck'!$C$14:$W$77,21,FALSE))/(0.00001+VLOOKUP($C29,'15-Min All Vehicle'!$C$14:$W$77,21,FALSE)+VLOOKUP($C30,'15-Min All Vehicle'!$C$14:$W$77,21,FALSE)+VLOOKUP($C31,'15-Min All Vehicle'!$C$14:$W$77,21,FALSE)+VLOOKUP($C32,'15-Min All Vehicle'!$C$17:$W$77,21,FALSE)) -> 6.318681145 | X35: =100*(VLOOKUP($C29,'15-Min SU-Truck'!$C$14:$X$77,22,FALSE)+VLOOKUP($C30,'15-Min SU-Truck'!$C$14:$X$77,22,FALSE)+VLOOKUP($C31,'15-Min SU-Truck'!$C$14:$X$77,22,FALSE)+VLOOKUP($C32,'15-Min SU-Truck'!$C$14:$X$77,22,FALSE))/(0.00001+VLOOKUP($C29,'15-Min All Vehicle'!$C$14:$X$77,22,FALSE)+VLOOKUP($C30,'15-Min All Vehicle'!$C$14:$X$77,22,FALSE)+VLOOKUP($C31,'15-Min All Vehicle'!$C$14:$X$77,22,FALSE)+VLOOKUP($C32,'15-Min All Vehicle'!$C$17:$X$77,22,FALSE)) -> 3.696236534
C36: % Heavy Trucks | D36: =100*(VLOOKUP($C30,'15-Min Semi-Truck'!$C$14:$W$77,2,FALSE)+VLOOKUP($C31,'15-Min Semi-Truck'!$C$14:$W$77,2,FALSE)+VLOOKUP($C32,'15-Min Semi-Truck'!$C$14:$W$77,2,FALSE)+VLOOKUP($C29,'15-Min Semi-Truck'!$C$14:$W$77,2,FALSE))/(0.00001+VLOOKUP($C30,'15-Min All Vehicle'!$C$14:$W$77,2,FALSE)+VLOOKUP($C31,'15-Min All Vehicle'!$C$14:$W$77,2,FALSE)+VLOOKUP($C32,'15-Min All Vehicle'!$C$14:$W$77,2,FALSE)+VLOOKUP($C29,'15-Min All Vehicle'!$C$14:$W$77,2,FALSE)) -> 0 | E36: =100*(VLOOKUP($C30,'15-Min Semi-Truck'!$C$14:$W$77,3,FALSE)+VLOOKUP($C31,'15-Min Semi-Truck'!$C$14:$W$77,3,FALSE)+VLOOKUP($C32,'15-Min Semi-Truck'!$C$14:$W$77,3,FALSE)+VLOOKUP($C29,'15-Min Semi-Truck'!$C$14:$W$77,3,FALSE))/(0.00001+VLOOKUP($C30,'15-Min All Vehicle'!$C$14:$W$77,3,FALSE)+VLOOKUP($C31,'15-Min All Vehicle'!$C$14:$W$77,3,FALSE)+VLOOKUP($C32,'15-Min All Vehicle'!$C$14:$W$77,3,FALSE)+VLOOKUP($C29,'15-Min All Vehicle'!$C$14:$W$77,3,FALSE)) -> 0 | F36: =100*(VLOOKUP($C30,'15-Min Semi-Truck'!$C$14:$W$77,4,FALSE)+VLOOKUP($C31,'15-Min Semi-Truck'!$C$14:$W$77,4,FALSE)+VLOOKUP($C32,'15-Min Semi-Truck'!$C$14:$W$77,4,FALSE)+VLOOKUP($C29,'15-Min Semi-Truck'!$C$14:$W$77,4,FALSE))/(0.00001+VLOOKUP($C30,'15-Min All Vehicle'!$C$14:$W$77,4,FALSE)+VLOOKUP($C31,'15-Min All Vehicle'!$C$14:$W$77,4,FALSE)+VLOOKUP($C32,'15-Min All Vehicle'!$C$14:$W$77,4,FALSE)+VLOOKUP($C29,'15-Min All Vehicle'!$C$14:$W$77,4,FALSE)) -> 0 | G36: =IF(ISERROR(F36=TRUE),"#N/A",0) -> 0 | H36: =100*(VLOOKUP($C30,'15-Min Semi-Truck'!$C$14:$W$77,6,FALSE)+VLOOKUP($C31,'15-Min Semi-Truck'!$C$14:$W$77,6,FALSE)+VLOOKUP($C32,'15-Min Semi-Truck'!$C$14:$W$77,6,FALSE)+VLOOKUP($C29,'15-Min Semi-Truck'!$C$14:$W$77,6,FALSE))/(0.00001+VLOOKUP($C30,'15-Min All Vehicle'!$C$14:$W$77,6,FALSE)+VLOOKUP($C31,'15-Min All Vehicle'!$C$14:$W$77,6,FALSE)+VLOOKUP($C32,'15-Min All Vehicle'!$C$14:$W$77,6,FALSE)+VLOOKUP($C29,'15-Min All Vehicle'!$C$14:$W$77,6,FALSE)) -> 0 | I36: =100*(VLOOKUP($C30,'15-Min Semi-Truck'!$C$14:$W$77,7,FALSE)+VLOOKUP($C31,'15-Min Semi-Truck'!$C$14:$W$77,7,FALSE)+VLOOKUP($C32,'15-Min Semi-Truck'!$C$14:$W$77,7,FALSE)+VLOOKUP($C29,'15-Min Semi-Truck'!$C$14:$W$77,7,FALSE))/(0.00001+VLOOKUP($C30,'15-Min All Vehicle'!$C$14:$W$77,7,FALSE)+VLOOKUP($C31,'15-Min All Vehicle'!$C$14:$W$77,7,FALSE)+VLOOKUP($C32,'15-Min All Vehicle'!$C$14:$W$77,7,FALSE)+VLOOKUP($C29,'15-Min All Vehicle'!$C$14:$W$77,7,FALSE)) -> 7.9999984 | J36: =100*(VLOOKUP($C30,'15-Min Semi-Truck'!$C$14:$W$77,8,FALSE)+VLOOKUP($C31,'15-Min Semi-Truck'!$C$14:$W$77,8,FALSE)+VLOOKUP($C32,'15-Min Semi-Truck'!$C$14:$W$77,8,FALSE)+VLOOKUP($C29,'15-Min Semi-Truck'!$C$14:$W$77,8,FALSE))/(0.00001+VLOOKUP($C30,'15-Min All Vehicle'!$C$14:$W$77,8,FALSE)+VLOOKUP($C31,'15-Min All Vehicle'!$C$14:$W$77,8,FALSE)+VLOOKUP($C32,'15-Min All Vehicle'!$C$14:$W$77,8,FALSE)+VLOOKUP($C29,'15-Min All Vehicle'!$C$14:$W$77,8,FALSE)) -> 3.854875196 | K36: =100*(VLOOKUP($C30,'15-Min Semi-Truck'!$C$14:$W$77,9,FALSE)+VLOOKUP($C31,'15-Min Semi-Truck'!$C$14:$W$77,9,FALSE)+VLOOKUP($C32,'15-Min Semi-Truck'!$C$14:$W$77,9,FALSE)+VLOOKUP($C29,'15-Min Semi-Truck'!$C$14:$W$77,9,FALSE))/(0.00001+VLOOKUP($C30,'15-Min All Vehicle'!$C$14:$W$77,9,FALSE)+VLOOKUP($C31,'15-Min All Vehicle'!$C$14:$W$77,9,FALSE)+VLOOKUP($C32,'15-Min All Vehicle'!$C$14:$W$77,9,FALSE)+VLOOKUP($C29,'15-Min All Vehicle'!$C$14:$W$77,9,FALSE)) -> 0 | L36: =IF(ISERROR(K36=TRUE),"#N/A",0) -> 0 | M36: =100*(VLOOKUP($C30,'15-Min Semi-Truck'!$C$14:$W$77,11,FALSE)+VLOOKUP($C31,'15-Min Semi-Truck'!$C$14:$W$77,11,FALSE)+VLOOKUP($C32,'15-Min Semi-Truck'!$C$14:$W$77,11,FALSE)+VLOOKUP($C29,'15-Min Semi-Truck'!$C$14:$W$77,11,FALSE))/(0.00001+VLOOKUP($C30,'15-Min All Vehicle'!$C$14:$W$77,11,FALSE)+VLOOKUP($C31,'15-Min All Vehicle'!$C$14:$W$77,11,FALSE)+VLOOKUP($C32,'15-Min All Vehicle'!$C$14:$W$77,11,FALSE)+VLOOKUP($C29,'15-Min All Vehicle'!$C$14:$W$77,11,FALSE)) -> 4.276985656 | N36: =100*(VLOOKUP($C30,'15-Min Semi-Truck'!$C$14:$W$77,12,FALSE)+VLOOKUP($C31,'15-Min Semi-Truck'!$C$14:$W$77,12,FALSE)+VLOOKUP($C32,'15-Min Semi-Truck'!$C$14:$W$77,12,FALSE)+VLOOKUP($C29,'15-Min Semi-Truck'!$C$14:$W$77,12,FALSE))/(0.00001+VLOOKUP($C30,'15-Min All Vehicle'!$C$14:$W$77,12,FALSE)+VLOOKUP($C31,'15-Min All Vehicle'!$C$14:$W$77,12,FALSE)+VLOOKUP($C32,'15-Min All Vehicle'!$C$14:$W$77,12,FALSE)+VLOOKUP($C29,'15-Min All Vehicle'!$C$14:$W$77,12,FALSE)) -> 6.944444123 | O36: =100*(VLOOKUP($C30,'15-Min Semi-Truck'!$C$14:$W$77,13,FALSE)+VLOOKUP($C31,'15-Min Semi-Truck'!$C$14:$W$77,13,FALSE)+VLOOKUP($C32,'15-Min Semi-Truck'!$C$14:$W$77,13,FALSE)+VLOOKUP($C29,'15-Min Semi-Truck'!$C$14:$W$77,13,FALSE))/(0.00001+VLOOKUP($C30,'15-Min All Vehicle'!$C$14:$W$77,13,FALSE)+VLOOKUP($C31,'15-Min All Vehicle'!$C$14:$W$77,13,FALSE)+VLOOKUP($C32,'15-Min All Vehicle'!$C$14:$W$77,13,FALSE)+VLOOKUP($C29,'15-Min All Vehicle'!$C$14:$W$77,13,FALSE)) -> 0 | P36: =100*(VLOOKUP($C30,'15-Min Semi-Truck'!$C$14:$W$77,14,FALSE)+VLOOKUP($C31,'15-Min Semi-Truck'!$C$14:$W$77,14,FALSE)+VLOOKUP($C32,'15-Min Semi-Truck'!$C$14:$W$77,14,FALSE)+VLOOKUP($C29,'15-Min Semi-Truck'!$C$14:$W$77,14,FALSE))/(0.00001+VLOOKUP($C30,'15-Min All Vehicle'!$C$14:$W$77,14,FALSE)+VLOOKUP($C31,'15-Min All Vehicle'!$C$14:$W$77,14,FALSE)+VLOOKUP($C32,'15-Min All Vehicle'!$C$14:$W$77,14,FALSE)+VLOOKUP($C29,'15-Min All Vehicle'!$C$14:$W$77,14,FALSE)) -> 2.15827333 | Q36: =IF(ISERROR(P36=TRUE),"#N/A",0) -> 0 | R36: =100*(VLOOKUP($C30,'15-Min Semi-Truck'!$C$14:$W$77,16,FALSE)+VLOOKUP($C31,'15-Min Semi-Truck'!$C$14:$W$77,16,FALSE)+VLOOKUP($C32,'15-Min Semi-Truck'!$C$14:$W$77,16,FALSE)+VLOOKUP($C29,'15-Min Semi-Truck'!$C$14:$W$77,16,FALSE))/(0.00001+VLOOKUP($C30,'15-Min All Vehicle'!$C$14:$W$77,16,FALSE)+VLOOKUP($C31,'15-Min All Vehicle'!$C$14:$W$77,16,FALSE)+VLOOKUP($C32,'15-Min All Vehicle'!$C$14:$W$77,16,FALSE)+VLOOKUP($C29,'15-Min All Vehicle'!$C$14:$W$77,16,FALSE)) -> 3.791469134 | S36: =100*(VLOOKUP($C30,'15-Min Semi-Truck'!$C$14:$W$77,17,FALSE)+VLOOKUP($C31,'15-Min Semi-Truck'!$C$14:$W$77,17,FALSE)+VLOOKUP($C32,'15-Min Semi-Truck'!$C$14:$W$77,17,FALSE)+VLOOKUP($C29,'15-Min Semi-Truck'!$C$14:$W$77,17,FALSE))/(0.00001+VLOOKUP($C30,'15-Min All Vehicle'!$C$14:$W$77,17,FALSE)+VLOOKUP($C31,'15-Min All Vehicle'!$C$14:$W$77,17,FALSE)+VLOOKUP($C32,'15-Min All Vehicle'!$C$14:$W$77,17,FALSE)+VLOOKUP($C29,'15-Min All Vehicle'!$C$14:$W$77,17,FALSE)) -> 0 | T36: =100*(VLOOKUP($C30,'15-Min Semi-Truck'!$C$14:$W$77,18,FALSE)+VLOOKUP($C31,'15-Min Semi-Truck'!$C$14:$W$77,18,FALSE)+VLOOKUP($C32,'15-Min Semi-Truck'!$C$14:$W$77,18,FALSE)+VLOOKUP($C29,'15-Min Semi-Truck'!$C$14:$W$77,18,FALSE))/(0.00001+VLOOKUP($C30,'15-Min All Vehicle'!$C$14:$W$77,18,FALSE)+VLOOKUP($C31,'15-Min All Vehicle'!$C$14:$W$77,18,FALSE)+VLOOKUP($C32,'15-Min All Vehicle'!$C$14:$W$77,18,FALSE)+VLOOKUP($C29,'15-Min All Vehicle'!$C$14:$W$77,18,FALSE)) -> 2.439024316 | U36: =100*(VLOOKUP($C30,'15-Min Semi-Truck'!$C$14:$W$77,19,FALSE)+VLOOKUP($C31,'15-Min Semi-Truck'!$C$14:$W$77,19,FALSE)+VLOOKUP($C32,'15-Min Semi-Truck'!$C$14:$W$77,19,FALSE)+VLOOKUP($C29,'15-Min Semi-Truck'!$C$14:$W$77,19,FALSE))/(0.00001+VLOOKUP($C30,'15-Min All Vehicle'!$C$14:$W$77,19,FALSE)+VLOOKUP($C31,'15-Min All Vehicle'!$C$14:$W$77,19,FALSE)+VLOOKUP($C32,'15-Min All Vehicle'!$C$14:$W$77,19,FALSE)+VLOOKUP($C29,'15-Min All Vehicle'!$C$14:$W$77,19,FALSE)) -> 13.88888503 | V36: =IF(ISERROR(U36=TRUE),"#N/A",0) -> 0 | W36: =100*(VLOOKUP($C30,'15-Min Semi-Truck'!$C$14:$W$77,21,FALSE)+VLOOKUP($C31,'15-Min Semi-Truck'!$C$14:$W$77,21,FALSE)+VLOOKUP($C32,'15-Min Semi-Truck'!$C$14:$W$77,21,FALSE)+VLOOKUP($C29,'15-Min Semi-Truck'!$C$14:$W$77,21,FALSE))/(0.00001+VLOOKUP($C30,'15-Min All Vehicle'!$C$14:$W$77,21,FALSE)+VLOOKUP($C31,'15-Min All Vehicle'!$C$14:$W$77,21,FALSE)+VLOOKUP($C32,'15-Min All Vehicle'!$C$14:$W$77,21,FALSE)+VLOOKUP($C29,'15-Min All Vehicle'!$C$14:$W$77,21,FALSE)) -> 3.571428473 | X36: =100*(VLOOKUP($C30,'15-Min Semi-Truck'!$C$14:$X$77,22,FALSE)+VLOOKUP($C31,'15-Min Semi-Truck'!$C$14:$X$77,22,FALSE)+VLOOKUP($C32,'15-Min Semi-Truck'!$C$14:$X$77,22,FALSE)+VLOOKUP($C29,'15-Min Semi-Truck'!$C$14:$X$77,22,FALSE))/(0.00001+VLOOKUP($C30,'15-Min All Vehicle'!$C$14:$X$77,22,FALSE)+VLOOKUP($C31,'15-Min All Vehicle'!$C$14:$X$77,22,FALSE)+VLOOKUP($C32,'15-Min All Vehicle'!$C$14:$X$77,22,FALSE)+VLOOKUP($C29,'15-Min All Vehicle'!$C$14:$X$77,22,FALSE)) -> 3.897849436
C37: % Trucks (Total) | D37: =100*(VLOOKUP($C31,'15-Min Heavy Vehicle'!$C$14:$W$77,2,FALSE)+VLOOKUP($C32,'15-Min Heavy Vehicle'!$C$14:$W$77,2,FALSE)+VLOOKUP($C29,'15-Min Heavy Vehicle'!$C$14:$W$77,2,FALSE)+VLOOKUP($C30,'15-Min Heavy Vehicle'!$C$14:$W$77,2,FALSE))/(0.00001+VLOOKUP($C30,'15-Min All Vehicle'!$C$14:$W$77,2,FALSE)+VLOOKUP($C32,'15-Min All Vehicle'!$C$14:$W$77,2,FALSE)+VLOOKUP($C29,'15-Min All Vehicle'!$C$14:$W$77,2,FALSE)+VLOOKUP($C31,'15-Min All Vehicle'!$C$14:$W$77,2,FALSE)) -> 0 | E37: =100*(VLOOKUP($C31,'15-Min Heavy Vehicle'!$C$14:$W$77,3,FALSE)+VLOOKUP($C32,'15-Min Heavy Vehicle'!$C$14:$W$77,3,FALSE)+VLOOKUP($C29,'15-Min Heavy Vehicle'!$C$14:$W$77,3,FALSE)+VLOOKUP($C30,'15-Min Heavy Vehicle'!$C$14:$W$77,3,FALSE))/(0.00001+VLOOKUP($C30,'15-Min All Vehicle'!$C$14:$W$77,3,FALSE)+VLOOKUP($C32,'15-Min All Vehicle'!$C$14:$W$77,3,FALSE)+VLOOKUP($C29,'15-Min All Vehicle'!$C$14:$W$77,3,FALSE)+VLOOKUP($C31,'15-Min All Vehicle'!$C$14:$W$77,3,FALSE)) -> 0 | F37: =100*(VLOOKUP($C31,'15-Min Heavy Vehicle'!$C$14:$W$77,4,FALSE)+VLOOKUP($C32,'15-Min Heavy Vehicle'!$C$14:$W$77,4,FALSE)+VLOOKUP($C29,'15-Min Heavy Vehicle'!$C$14:$W$77,4,FALSE)+VLOOKUP($C30,'15-Min Heavy Vehicle'!$C$14:$W$77,4,FALSE))/(0.00001+VLOOKUP($C30,'15-Min All Vehicle'!$C$14:$W$77,4,FALSE)+VLOOKUP($C32,'15-Min All Vehicle'!$C$14:$W$77,4,FALSE)+VLOOKUP($C29,'15-Min All Vehicle'!$C$14:$W$77,4,FALSE)+VLOOKUP($C31,'15-Min All Vehicle'!$C$14:$W$77,4,FALSE)) -> 0 | G37: 0 | H37: =100*(VLOOKUP($C31,'15-Min Heavy Vehicle'!$C$14:$W$77,6,FALSE)+VLOOKUP($C32,'15-Min Heavy Vehicle'!$C$14:$W$77,6,FALSE)+VLOOKUP($C29,'15-Min Heavy Vehicle'!$C$14:$W$77,6,FALSE)+VLOOKUP($C30,'15-Min Heavy Vehicle'!$C$14:$W$77,6,FALSE))/(0.00001+VLOOKUP($C30,'15-Min All Vehicle'!$C$14:$W$77,6,FALSE)+VLOOKUP($C32,'15-Min All Vehicle'!$C$14:$W$77,6,FALSE)+VLOOKUP($C29,'15-Min All Vehicle'!$C$14:$W$77,6,FALSE)+VLOOKUP($C31,'15-Min All Vehicle'!$C$14:$W$77,6,FALSE)) -> 0 | I37: =100*(VLOOKUP($C31,'15-Min Heavy Vehicle'!$C$14:$W$77,7,FALSE)+VLOOKUP($C32,'15-Min Heavy Vehicle'!$C$14:$W$77,7,FALSE)+VLOOKUP($C29,'15-Min Heavy Vehicle'!$C$14:$W$77,7,FALSE)+VLOOKUP($C30,'15-Min Heavy Vehicle'!$C$14:$W$77,7,FALSE))/(0.00001+VLOOKUP($C30,'15-Min All Vehicle'!$C$14:$W$77,7,FALSE)+VLOOKUP($C32,'15-Min All Vehicle'!$C$14:$W$77,7,FALSE)+VLOOKUP($C29,'15-Min All Vehicle'!$C$14:$W$77,7,FALSE)+VLOOKUP($C31,'15-Min All Vehicle'!$C$14:$W$77,7,FALSE)) -> 13.9999972 | J37: =100*(VLOOKUP($C31,'15-Min Heavy Vehicle'!$C$14:$W$77,8,FALSE)+VLOOKUP($C32,'15-Min Heavy Vehicle'!$C$14:$W$77,8,FALSE)+VLOOKUP($C29,'15-Min Heavy Vehicle'!$C$14:$W$77,8,FALSE)+VLOOKUP($C30,'15-Min Heavy Vehicle'!$C$14:$W$77,8,FALSE))/(0.00001+VLOOKUP($C30,'15-Min All Vehicle'!$C$14:$W$77,8,FALSE)+VLOOKUP($C32,'15-Min All Vehicle'!$C$14:$W$77,8,FALSE)+VLOOKUP($C29,'15-Min All Vehicle'!$C$14:$W$77,8,FALSE)+VLOOKUP($C31,'15-Min All Vehicle'!$C$14:$W$77,8,FALSE)) -> 6.57596357 | K37: =100*(VLOOKUP($C31,'15-Min Heavy Vehicle'!$C$14:$W$77,9,FALSE)+VLOOKUP($C32,'15-Min Heavy Vehicle'!$C$14:$W$77,9,FALSE)+VLOOKUP($C29,'15-Min Heavy Vehicle'!$C$14:$W$77,9,FALSE)+VLOOKUP($C30,'15-Min Heavy Vehicle'!$C$14:$W$77,9,FALSE))/(0.00001+VLOOKUP($C30,'15-Min All Vehicle'!$C$14:$W$77,9,FALSE)+VLOOKUP($C32,'15-Min All Vehicle'!$C$14:$W$77,9,FALSE)+VLOOKUP($C29,'15-Min All Vehicle'!$C$14:$W$77,9,FALSE)+VLOOKUP($C31,'15-Min All Vehicle'!$C$14:$W$77,9,FALSE)) -> 0 | L37: 0 | M37: =100*(VLOOKUP($C31,'15-Min Heavy Vehicle'!$C$14:$W$77,11,FALSE)+VLOOKUP($C32,'15-Min Heavy Vehicle'!$C$14:$W$77,11,FALSE)+VLOOKUP($C29,'15-Min Heavy Vehicle'!$C$14:$W$77,11,FALSE)+VLOOKUP($C30,'15-Min Heavy Vehicle'!$C$14:$W$77,11,FALSE))/(0.00001+VLOOKUP($C30,'15-Min All Vehicle'!$C$14:$W$77,11,FALSE)+VLOOKUP($C32,'15-Min All Vehicle'!$C$14:$W$77,11,FALSE)+VLOOKUP($C29,'15-Min All Vehicle'!$C$14:$W$77,11,FALSE)+VLOOKUP($C31,'15-Min All Vehicle'!$C$14:$W$77,11,FALSE)) -> 7.331975411 | N37: =100*(VLOOKUP($C31,'15-Min Heavy Vehicle'!$C$14:$W$77,12,FALSE)+VLOOKUP($C32,'15-Min Heavy Vehicle'!$C$14:$W$77,12,FALSE)+VLOOKUP($C29,'15-Min Heavy Vehicle'!$C$14:$W$77,12,FALSE)+VLOOKUP($C30,'15-Min Heavy Vehicle'!$C$14:$W$77,12,FALSE))/(0.00001+VLOOKUP($C30,'15-Min All Vehicle'!$C$14:$W$77,12,FALSE)+VLOOKUP($C32,'15-Min All Vehicle'!$C$14:$W$77,12,FALSE)+VLOOKUP($C29,'15-Min All Vehicle'!$C$14:$W$77,12,FALSE)+VLOOKUP($C31,'15-Min All Vehicle'!$C$14:$W$77,12,FALSE)) -> 8.796295889 | O37: =100*(VLOOKUP($C31,'15-Min Heavy Vehicle'!$C$14:$W$77,13,FALSE)+VLOOKUP($C32,'15-Min Heavy Vehicle'!$C$14:$W$77,13,FALSE)+VLOOKUP($C29,'15-Min Heavy Vehicle'!$C$14:$W$77,13,FALSE)+VLOOKUP($C30,'15-Min Heavy Vehicle'!$C$14:$W$77,13,FALSE))/(0.00001+VLOOKUP($C30,'15-Min All Vehicle'!$C$14:$W$77,13,FALSE)+VLOOKUP($C32,'15-Min All Vehicle'!$C$14:$W$77,13,FALSE)+VLOOKUP($C29,'15-Min All Vehicle'!$C$14:$W$77,13,FALSE)+VLOOKUP($C31,'15-Min All Vehicle'!$C$14:$W$77,13,FALSE)) -> 0 | P37: =100*(VLOOKUP($C31,'15-Min Heavy Vehicle'!$C$14:$W$77,14,FALSE)+VLOOKUP($C32,'15-Min Heavy Vehicle'!$C$14:$W$77,14,FALSE)+VLOOKUP($C29,'15-Min Heavy Vehicle'!$C$14:$W$77,14,FALSE)+VLOOKUP($C30,'15-Min Heavy Vehicle'!$C$14:$W$77,14,FALSE))/(0.00001+VLOOKUP($C30,'15-Min All Vehicle'!$C$14:$W$77,14,FALSE)+VLOOKUP($C32,'15-Min All Vehicle'!$C$14:$W$77,14,FALSE)+VLOOKUP($C29,'15-Min All Vehicle'!$C$14:$W$77,14,FALSE)+VLOOKUP($C31,'15-Min All Vehicle'!$C$14:$W$77,14,FALSE)) -> 5.27577925 | Q37: 0 | R37: =100*(VLOOKUP($C31,'15-Min Heavy Vehicle'!$C$14:$W$77,16,FALSE)+VLOOKUP($C32,'15-Min Heavy Vehicle'!$C$14:$W$77,16,FALSE)+VLOOKUP($C29,'15-Min Heavy Vehicle'!$C$14:$W$77,16,FALSE)+VLOOKUP($C30,'15-Min Heavy Vehicle'!$C$14:$W$77,16,FALSE))/(0.00001+VLOOKUP($C30,'15-Min All Vehicle'!$C$14:$W$77,16,FALSE)+VLOOKUP($C32,'15-Min All Vehicle'!$C$14:$W$77,16,FALSE)+VLOOKUP($C29,'15-Min All Vehicle'!$C$14:$W$77,16,FALSE)+VLOOKUP($C31,'15-Min All Vehicle'!$C$14:$W$77,16,FALSE)) -> 6.477093105 | S37: =100*(VLOOKUP($C31,'15-Min Heavy Vehicle'!$C$14:$W$77,17,FALSE)+VLOOKUP($C32,'15-Min Heavy Vehicle'!$C$14:$W$77,17,FALSE)+VLOOKUP($C29,'15-Min Heavy Vehicle'!$C$14:$W$77,17,FALSE)+VLOOKUP($C30,'15-Min Heavy Vehicle'!$C$14:$W$77,17,FALSE))/(0.00001+VLOOKUP($C30,'15-Min All Vehicle'!$C$14:$W$77,17,FALSE)+VLOOKUP($C32,'15-Min All Vehicle'!$C$14:$W$77,17,FALSE)+VLOOKUP($C29,'15-Min All Vehicle'!$C$14:$W$77,17,FALSE)+VLOOKUP($C31,'15-Min All Vehicle'!$C$14:$W$77,17,FALSE)) -> 0 | T37: =100*(VLOOKUP($C31,'15-Min Heavy Vehicle'!$C$14:$W$77,18,FALSE)+VLOOKUP($C32,'15-Min Heavy Vehicle'!$C$14:$W$77,18,FALSE)+VLOOKUP($C29,'15-Min Heavy Vehicle'!$C$14:$W$77,18,FALSE)+VLOOKUP($C30,'15-Min Heavy Vehicle'!$C$14:$W$77,18,FALSE))/(0.00001+VLOOKUP($C30,'15-Min All Vehicle'!$C$14:$W$77,18,FALSE)+VLOOKUP($C32,'15-Min All Vehicle'!$C$14:$W$77,18,FALSE)+VLOOKUP($C29,'15-Min All Vehicle'!$C$14:$W$77,18,FALSE)+VLOOKUP($C31,'15-Min All Vehicle'!$C$14:$W$77,18,FALSE)) -> 8.536585106 | U37: =100*(VLOOKUP($C31,'15-Min Heavy Vehicle'!$C$14:$W$77,19,FALSE)+VLOOKUP($C32,'15-Min Heavy Vehicle'!$C$14:$W$77,19,FALSE)+VLOOKUP($C29,'15-Min Heavy Vehicle'!$C$14:$W$77,19,FALSE)+VLOOKUP($C30,'15-Min Heavy Vehicle'!$C$14:$W$77,19,FALSE))/(0.00001+VLOOKUP($C30,'15-Min All Vehicle'!$C$14:$W$77,19,FALSE)+VLOOKUP($C32,'15-Min All Vehicle'!$C$14:$W$77,19,FALSE)+VLOOKUP($C29,'15-Min All Vehicle'!$C$14:$W$77,19,FALSE)+VLOOKUP($C31,'15-Min All Vehicle'!$C$14:$W$77,19,FALSE)) -> 22.22221605 | V37: 0 | W37: =100*(VLOOKUP($C31,'15-Min Heavy Vehicle'!$C$14:$W$77,21,FALSE)+VLOOKUP($C32,'15-Min Heavy Vehicle'!$C$14:$W$77,21,FALSE)+VLOOKUP($C29,'15-Min Heavy Vehicle'!$C$14:$W$77,21,FALSE)+VLOOKUP($C30,'15-Min Heavy Vehicle'!$C$14:$W$77,21,FALSE))/(0.00001+VLOOKUP($C30,'15-Min All Vehicle'!$C$14:$W$77,21,FALSE)+VLOOKUP($C32,'15-Min All Vehicle'!$C$14:$W$77,21,FALSE)+VLOOKUP($C29,'15-Min All Vehicle'!$C$14:$W$77,21,FALSE)+VLOOKUP($C31,'15-Min All Vehicle'!$C$14:$W$77,21,FALSE)) -> 9.890109618 | X37: =100*(VLOOKUP($C31,'15-Min Heavy Vehicle'!$C$14:$X$77,22,FALSE)+VLOOKUP($C32,'15-Min Heavy Vehicle'!$C$14:$X$77,22,FALSE)+VLOOKUP($C29,'15-Min Heavy Vehicle'!$C$14:$X$77,22,FALSE)+VLOOKUP($C30,'15-Min Heavy Vehicle'!$C$14:$X$77,22,FALSE))/(0.00001+VLOOKUP($C30,'15-Min All Vehicle'!$C$14:$X$77,22,FALSE)+VLOOKUP($C32,'15-Min All Vehicle'!$C$14:$X$77,22,FALSE)+VLOOKUP($C29,'15-Min All Vehicle'!$C$14:$X$77,22,FALSE)+VLOOKUP($C31,'15-Min All Vehicle'!$C$14:$X$77,22,FALSE)) -> 7.59408597
C38: Peak Hour Factor (PHF) | D38: =SUM(D29:D32)/(0.000001+4*MAX(D29:D32)) -> 0 | E38: =SUM(E29:E32)/(0.000001+4*MAX(E29:E32)) -> 0 | F38: 0 | G38: 0 | H38: 0 | I38: 0.961538443 | J38: 0.8891129014 | K38: 0 | L38: 0 | M38: 0.8959853998 | N38: 0.885245898 | O38: 0 | P38: 0.8760504183 | Q38: 0 | R38: 0.9254385951 | S38: 0 | T38: 0.819999998 | U38: 0.7499999844 | V38: 0 | W38: 0.8425925906 | X38: 0.9323308265
B40: ='Base Information'!O14 -> 2011-12-06 | F40: ê | K40: ç | P40: é | U40: è
D41: From North | I41: From East | N41: From South | S41: From West
B42: PM Peak Hour | C42: PM Peak Hour | D42: ='Base Information'!$D$14:$D$14 -> 441 NB ON RAMP | I42: ='Base Information'!$D$15:$D$15 -> CTH OO (Northland Ave) | N42: ='Base Information'!$D$16:$D$16 -> 441 NB OFF RAMP | S42: ='Base Information'!$D$17:$D$17 -> CTH OO (Northland Ave)
C43: Start Time | D43: Right | E43: Thru | F43: Left | G43: U-Tn | H43: Total | I43: Right | J43: Thru | K43: Left | L43: U-Tn | M43: Total | N43: Right | O43: Thru | P43: Left | Q43: U-Tn | R43: Total | S43: Right | T43: Thru | U43: Left | V43: U-Tn | W43: Total | X43: Totals
C44: =IF(ISERROR(VLOOKUP('Base Information'!$U$18,'Base Information'!$C$91:$G$151,2,FALSE)=TRUE),0.666666,VLOOKUP('Base Information'!$U$18,'Base Information'!$C$91:$G$151,2,FALSE)) -> 16:30:00 | D44: =VLOOKUP($C44,'15-Min All Vehicle'!$C$14:$W$77,2,FALSE) -> 0 | E44: =VLOOKUP($C44,'15-Min All Vehicle'!$C$14:$W$77,3,FALSE) -> 0 | F44: =VLOOKUP($C44,'15-Min All Vehicle'!$C$14:$W$77,4,FALSE) -> 0 | G44: =VLOOKUP($C44,'15-Min All Vehicle'!$C$14:$W$77,5,FALSE) -> 0 | H44: =SUM(D44:G44) -> 0 | I44: =VLOOKUP($C44,'15-Min All Vehicle'!$C$14:$W$77,7,FALSE) -> 16 | J44: =VLOOKUP($C44,'15-Min All Vehicle'!$C$14:$W$77,8,FALSE) -> 144 | K44: =VLOOKUP($C44,'15-Min All Vehicle'!$C$14:$W$77,9,FALSE) -> 0 | L44: =VLOOKUP($C44,'15-Min All Vehicle'!$C$14:$W$77,10,FALSE) -> 0 | M44: =SUM(I44:L44) -> 160 | N44: =VLOOKUP($C44,'15-Min All Vehicle'!$C$14:$W$77,12,FALSE) -> 128 | O44: =VLOOKUP($C44,'15-Min All Vehicle'!$C$14:$W$77,13,FALSE) -> 0 | P44: =VLOOKUP($C44,'15-Min All Vehicle'!$C$14:$W$77,14,FALSE) -> 92 | Q44: =VLOOKUP($C44,'15-Min All Vehicle'!$C$14:$W$77,15,FALSE) -> 0 | R44: =SUM(N44:Q44) -> 220 | S44: =VLOOKUP($C44,'15-Min All Vehicle'!$C$14:$W$77,17,FALSE) -> 0 | T44: =VLOOKUP($C44,'15-Min All Vehicle'!$C$14:$W$77,18,FALSE) -> 148 | U44: =VLOOKUP($C44,'15-Min All Vehicle'!$C$14:$W$77,19,FALSE) -> 31 | V44: =VLOOKUP($C44,'15-Min All Vehicle'!$C$14:$W$77,20,FALSE) -> 0 | W44: =SUM(S44:V44) -> 179 | X44: =H44+M44+R44+W44 -> 559
C45: =IF(ISERROR(VLOOKUP('Base Information'!$U$18,'Base Information'!$C$91:$G$151,3,FALSE)=TRUE),0.677083,VLOOKUP('Base Information'!$U$18,'Base Information'!$C$91:$G$151,3,FALSE)) -> 16:44:59.942 | D45: =VLOOKUP($C45,'15-Min All Vehicle'!$C$14:$W$77,2,FALSE) -> 0 | E45: =VLOOKUP($C45,'15-Min All Vehicle'!$C$14:$W$77,3,FALSE) -> 0 | F45: =VLOOKUP($C45,'15-Min All Vehicle'!$C$14:$W$77,4,FALSE) -> 0 | G45: =VLOOKUP($C45,'15-Min All Vehicle'!$C$14:$W$77,5,FALSE) -> 0 | H45: =SUM(D45:G45) -> 0 | I45: =VLOOKUP($C45,'15-Min All Vehicle'!$C$14:$W$77,7,FALSE) -> 16 | J45: =VLOOKUP($C45,'15-Min All Vehicle'!$C$14:$W$77,8,FALSE) -> 157 | K45: =VLOOKUP($C45,'15-Min All Vehicle'!$C$14:$W$77,9,FALSE) -> 0 | L45: =VLOOKUP($C45,'15-Min All Vehicle'!$C$14:$W$77,10,FALSE) -> 0 | M45: =SUM(I45:L45) -> 173 | N45: =VLOOKUP($C45,'15-Min All Vehicle'!$C$14:$W$77,12,FALSE) -> 152 | O45: =VLOOKUP($C45,'15-Min All Vehicle'!$C$14:$W$77,13,FALSE) -> 0 | P45: =VLOOKUP($C45,'15-Min All Vehicle'!$C$14:$W$77,14,FALSE) -> 117 | Q45: =VLOOKUP($C45,'15-Min All Vehicle'!$C$14:$W$77,15,FALSE) -> 0 | R45: =SUM(N45:Q45) -> 269 | S45: =VLOOKUP($C45,'15-Min All Vehicle'!$C$14:$W$77,17,FALSE) -> 0 | T45: =VLOOKUP($C45,'15-Min All Vehicle'!$C$14:$W$77,18,FALSE) -> 128 | U45: =VLOOKUP($C45,'15-Min All Vehicle'!$C$14:$W$77,19,FALSE) -> 35 | V45: =VLOOKUP($C45,'15-Min All Vehicle'!$C$14:$W$77,20,FALSE) -> 0 | W45: =SUM(S45:V45) -> 163 | X45: =H45+M45+R45+W45 -> 605
C46: =IF(ISERROR(VLOOKUP('Base Information'!$U$18,'Base Information'!$C$91:$G$151,4,FALSE)=TRUE),0.6875,VLOOKUP('Base Information'!$U$18,'Base Information'!$C$91:$G$151,4,FALSE)) -> 16:59:59.971 | D46: =VLOOKUP($C46,'15-Min All Vehicle'!$C$14:$W$77,2,FALSE) -> 0 | E46: =VLOOKUP($C46,'15-Min All Vehicle'!$C$14:$W$77,3,FALSE) -> 0 | F46: =VLOOKUP($C46,'15-Min All Vehicle'!$C$14:$W$77,4,FALSE) -> 0 | G46: =VLOOKUP($C46,'15-Min All Vehicle'!$C$14:$W$77,5,FALSE) -> 0 | H46: 0 | I46: =VLOOKUP($C46,'15-Min All Vehicle'!$C$14:$W$77,7,FALSE) -> 20 | J46: =VLOOKUP($C46,'15-Min All Vehicle'!$C$14:$W$77,8,FALSE) -> 139 | K46: =VLOOKUP($C46,'15-Min All Vehicle'!$C$14:$W$77,9,FALSE) -> 0 | L46: =VLOOKUP($C46,'15-Min All Vehicle'!$C$14:$W$77,10,FALSE) -> 0 | M46: 159 | N46: =VLOOKUP($C46,'15-Min All Vehicle'!$C$14:$W$77,12,FALSE) -> 104 | O46: =VLOOKUP($C46,'15-Min All Vehicle'!$C$14:$W$77,13,FALSE) -> 0 | P46: =VLOOKUP($C46,'15-Min All Vehicle'!$C$14:$W$77,14,FALSE) -> 96 | Q46: =VLOOKUP($C46,'15-Min All Vehicle'!$C$14:$W$77,15,FALSE) -> 0 | R46: 200 | S46: =VLOOKUP($C46,'15-Min All Vehicle'!$C$14:$W$77,17,FALSE) -> 0 | T46: =VLOOKUP($C46,'15-Min All Vehicle'!$C$14:$W$77,18,FALSE) -> 126 | U46: =VLOOKUP($C46,'15-Min All Vehicle'!$C$14:$W$77,19,FALSE) -> 24 | V46: =VLOOKUP($C46,'15-Min All Vehicle'!$C$14:$W$77,20,FALSE) -> 0 | W46: 150 | X46: 509
C47: =IF(ISERROR(VLOOKUP('Base Information'!$U$18,'Base Information'!$C$91:$G$151,5,FALSE)=TRUE),0.697916,VLOOKUP('Base Information'!$U$18,'Base Information'!$C$91:$G$151,5,FALSE)) -> 17:15:00 | D47: =VLOOKUP($C47,'15-Min All Vehicle'!$C$14:$W$77,2,FALSE) -> 0 | E47: =VLOOKUP($C47,'15-Min All Vehicle'!$C$14:$W$77,3,FALSE) -> 0 | F47: =VLOOKUP($C47,'15-Min All Vehicle'!$C$14:$W$77,4,FALSE) -> 0 | G47: =VLOOKUP($C47,'15-Min All Vehicle'!$C$14:$W$77,5,FALSE) -> 0 | H47: 0 | I47: =VLOOKUP($C47,'15-Min All Vehicle'!$C$14:$W$77,7,FALSE) -> 12 | J47: =VLOOKUP($C47,'15-Min All Vehicle'!$C$14:$W$77,8,FALSE) -> 150 | K47: =VLOOKUP($C47,'15-Min All Vehicle'!$C$14:$W$77,9,FALSE) -> 0 | L47: =VLOOKUP($C47,'15-Min All Vehicle'!$C$14:$W$77,10,FALSE) -> 0 | M47: 162 | N47: =VLOOKUP($C47,'15-Min All Vehicle'!$C$14:$W$77,12,FALSE) -> 137 | O47: =VLOOKUP($C47,'15-Min All Vehicle'!$C$14:$W$77,13,FALSE) -> 0 | P47: =VLOOKUP($C47,'15-Min All Vehicle'!$C$14:$W$77,14,FALSE) -> 108 | Q47: =VLOOKUP($C47,'15-Min All Vehicle'!$C$14:$W$77,15,FALSE) -> 0 | R47: 245 | S47: =VLOOKUP($C47,'15-Min All Vehicle'!$C$14:$W$77,17,FALSE) -> 0 | T47: =VLOOKUP($C47,'15-Min All Vehicle'!$C$14:$W$77,18,FALSE) -> 142 | U47: =VLOOKUP($C47,'15-Min All Vehicle'!$C$14:$W$77,19,FALSE) -> 19 | V47: =VLOOKUP($C47,'15-Min All Vehicle'!$C$14:$W$77,20,FALSE) -> 0 | W47: 161 | X47: 568
C48: Peak Hour Volume | D48: =SUM(D44:D47) -> 0 | E48: =SUM(E44:E47) -> 0 | F48: =SUM(F44:F47) -> 0 | G48: =SUM(G44:G47) -> 0 | H48: =SUM(H44:H47) -> 0 | I48: =SUM(I44:I47) -> 64 | J48: =SUM(J44:J47) -> 590 | K48: =SUM(K44:K47) -> 0 | L48: =SUM(L44:L47) -> 0 | M48: =SUM(M44:M47) -> 654 | N48: =SUM(N44:N47) -> 521 | O48: =SUM(O44:O47) -> 0 | P48: =SUM(P44:P47) -> 413 | Q48: =SUM(Q44:Q47) -> 0 | R48: =SUM(R44:R47) -> 934 | S48: =SUM(S44:S47) -> 0 | T48: =SUM(T44:T47) -> 544 | U48: =SUM(U44:U47) -> 109 | V48: =SUM(V44:V47) -> 0 | W48: =SUM(W44:W47) -> 653 | X48: =SUM(X44:X47) -> 2241
C49: Rounded Hourly Volume | D49: =MROUND(D48,5) -> 0 | E49: =MROUND(E48,5) -> 0 | F49: =MROUND(F48,5) -> 0 | G49: =MROUND(G48,5) -> 0 | H49: =SUM(D49:G49) -> 0 | I49: =MROUND(I48,5) -> 65 | J49: =MROUND(J48,5) -> 590 | K49: =MROUND(K48,5) -> 0 | L49: =MROUND(L48,5) -> 0 | M49: =SUM(I49:L49) -> 655 | N49: =MROUND(N48,5) -> 520 | O49: =MROUND(O48,5) -> 0 | P49: =MROUND(P48,5) -> 415 | Q49: =MROUND(Q48,5) -> 0 | R49: =SUM(N49:Q49) -> 935 | S49: =MROUND(S48,5) -> 0 | T49: =MROUND(T48,5) -> 545 | U49: =MROUND(U48,5) -> 110 | V49: =MROUND(V48,5) -> 0 | W49: =SUM(S49:V49) -> 655 | X49: =H49+M49+R49+W49 -> 2245
C50: % Single Unit Trucks | D50: =100*(VLOOKUP($C44,'15-Min SU-Truck'!$C$14:$W$77,2,FALSE)+VLOOKUP($C45,'15-Min SU-Truck'!$C$14:$W$77,2,FALSE)+VLOOKUP($C46,'15-Min SU-Truck'!$C$14:$W$77,2,FALSE)+VLOOKUP($C47,'15-Min SU-Truck'!$C$14:$W$77,2,FALSE))/(0.00001+VLOOKUP($C44,'15-Min All Vehicle'!$C$14:$W$77,2,FALSE)+VLOOKUP($C45,'15-Min All Vehicle'!$C$14:$W$77,2,FALSE)+VLOOKUP($C46,'15-Min All Vehicle'!$C$14:$W$77,2,FALSE)+VLOOKUP($C47,'15-Min All Vehicle'!$C$17:$W$77,2,FALSE)) -> 0 | E50: =100*(VLOOKUP($C44,'15-Min SU-Truck'!$C$14:$W$77,3,FALSE)+VLOOKUP($C45,'15-Min SU-Truck'!$C$14:$W$77,3,FALSE)+VLOOKUP($C46,'15-Min SU-Truck'!$C$14:$W$77,3,FALSE)+VLOOKUP($C47,'15-Min SU-Truck'!$C$14:$W$77,3,FALSE))/(0.00001+VLOOKUP($C44,'15-Min All Vehicle'!$C$14:$W$77,3,FALSE)+VLOOKUP($C45,'15-Min All Vehicle'!$C$14:$W$77,3,FALSE)+VLOOKUP($C46,'15-Min All Vehicle'!$C$14:$W$77,3,FALSE)+VLOOKUP($C47,'15-Min All Vehicle'!$C$17:$W$77,3,FALSE)) -> 0 | F50: =100*(VLOOKUP($C44,'15-Min SU-Truck'!$C$14:$W$77,4,FALSE)+VLOOKUP($C45,'15-Min SU-Truck'!$C$14:$W$77,4,FALSE)+VLOOKUP($C46,'15-Min SU-Truck'!$C$14:$W$77,4,FALSE)+VLOOKUP($C47,'15-Min SU-Truck'!$C$14:$W$77,4,FALSE))/(0.00001+VLOOKUP($C44,'15-Min All Vehicle'!$C$14:$W$77,4,FALSE)+VLOOKUP($C45,'15-Min All Vehicle'!$C$14:$W$77,4,FALSE)+VLOOKUP($C46,'15-Min All Vehicle'!$C$14:$W$77,4,FALSE)+VLOOKUP($C47,'15-Min All Vehicle'!$C$17:$W$77,4,FALSE)) -> 0 | G50: =IF(ISERROR(F50=TRUE),"#N/A",0) -> 0 | H50: =100*(VLOOKUP($C44,'15-Min SU-Truck'!$C$14:$W$77,6,FALSE)+VLOOKUP($C45,'15-Min SU-Truck'!$C$14:$W$77,6,FALSE)+VLOOKUP($C46,'15-Min SU-Truck'!$C$14:$W$77,6,FALSE)+VLOOKUP($C47,'15-Min SU-Truck'!$C$14:$W$77,6,FALSE))/(0.00001+VLOOKUP($C44,'15-Min All Vehicle'!$C$14:$W$77,6,FALSE)+VLOOKUP($C45,'15-Min All Vehicle'!$C$14:$W$77,6,FALSE)+VLOOKUP($C46,'15-Min All Vehicle'!$C$14:$W$77,6,FALSE)+VLOOKUP($C47,'15-Min All Vehicle'!$C$17:$W$77,6,FALSE)) -> 0 | I50: =100*(VLOOKUP($C44,'15-Min SU-Truck'!$C$14:$W$77,7,FALSE)+VLOOKUP($C45,'15-Min SU-Truck'!$C$14:$W$77,7,FALSE)+VLOOKUP($C46,'15-Min SU-Truck'!$C$14:$W$77,7,FALSE)+VLOOKUP($C47,'15-Min SU-Truck'!$C$14:$W$77,7,FALSE))/(0.00001+VLOOKUP($C44,'15-Min All Vehicle'!$C$14:$W$77,7,FALSE)+VLOOKUP($C45,'15-Min All Vehicle'!$C$14:$W$77,7,FALSE)+VLOOKUP($C46,'15-Min All Vehicle'!$C$14:$W$77,7,FALSE)+VLOOKUP($C47,'15-Min All Vehicle'!$C$17:$W$77,7,FALSE)) -> 1.562499756 | J50: =100*(VLOOKUP($C44,'15-Min SU-Truck'!$C$14:$W$77,8,FALSE)+VLOOKUP($C45,'15-Min SU-Truck'!$C$14:$W$77,8,FALSE)+VLOOKUP($C46,'15-Min SU-Truck'!$C$14:$W$77,8,FALSE)+VLOOKUP($C47,'15-Min SU-Truck'!$C$14:$W$77,8,FALSE))/(0.00001+VLOOKUP($C44,'15-Min All Vehicle'!$C$14:$W$77,8,FALSE)+VLOOKUP($C45,'15-Min All Vehicle'!$C$14:$W$77,8,FALSE)+VLOOKUP($C46,'15-Min All Vehicle'!$C$14:$W$77,8,FALSE)+VLOOKUP($C47,'15-Min All Vehicle'!$C$17:$W$77,8,FALSE)) -> 0.6779660902 | K50: =100*(VLOOKUP($C44,'15-Min SU-Truck'!$C$14:$W$77,9,FALSE)+VLOOKUP($C45,'15-Min SU-Truck'!$C$14:$W$77,9,FALSE)+VLOOKUP($C46,'15-Min SU-Truck'!$C$14:$W$77,9,FALSE)+VLOOKUP($C47,'15-Min SU-Truck'!$C$14:$W$77,9,FALSE))/(0.00001+VLOOKUP($C44,'15-Min All Vehicle'!$C$14:$W$77,9,FALSE)+VLOOKUP($C45,'15-Min All Vehicle'!$C$14:$W$77,9,FALSE)+VLOOKUP($C46,'15-Min All Vehicle'!$C$14:$W$77,9,FALSE)+VLOOKUP($C47,'15-Min All Vehicle'!$C$17:$W$77,9,FALSE)) -> 0 | L50: =IF(ISERROR(K50=TRUE),"#N/A",0) -> 0 | M50: =100*(VLOOKUP($C44,'15-Min SU-Truck'!$C$14:$W$77,11,FALSE)+VLOOKUP($C45,'15-Min SU-Truck'!$C$14:$W$77,11,FALSE)+VLOOKUP($C46,'15-Min SU-Truck'!$C$14:$W$77,11,FALSE)+VLOOKUP($C47,'15-Min SU-Truck'!$C$14:$W$77,11,FALSE))/(0.00001+VLOOKUP($C44,'15-Min All Vehicle'!$C$14:$W$77,11,FALSE)+VLOOKUP($C45,'15-Min All Vehicle'!$C$14:$W$77,11,FALSE)+VLOOKUP($C46,'15-Min All Vehicle'!$C$14:$W$77,11,FALSE)+VLOOKUP($C47,'15-Min All Vehicle'!$C$17:$W$77,11,FALSE)) -> 0.7645259822 | N50: =100*(VLOOKUP($C44,'15-Min SU-Truck'!$C$14:$W$77,12,FALSE)+VLOOKUP($C45,'15-Min SU-Truck'!$C$14:$W$77,12,FALSE)+VLOOKUP($C46,'15-Min SU-Truck'!$C$14:$W$77,12,FALSE)+VLOOKUP($C47,'15-Min SU-Truck'!$C$14:$W$77,12,FALSE))/(0.00001+VLOOKUP($C44,'15-Min All Vehicle'!$C$14:$W$77,12,FALSE)+VLOOKUP($C45,'15-Min All Vehicle'!$C$14:$W$77,12,FALSE)+VLOOKUP($C46,'15-Min All Vehicle'!$C$14:$W$77,12,FALSE)+VLOOKUP($C47,'15-Min All Vehicle'!$C$17:$W$77,12,FALSE)) -> 0.5758157279 | O50: =100*(VLOOKUP($C44,'15-Min SU-Truck'!$C$14:$W$77,13,FALSE)+VLOOKUP($C45,'15-Min SU-Truck'!$C$14:$W$77,13,FALSE)+VLOOKUP($C46,'15-Min SU-Truck'!$C$14:$W$77,13,FALSE)+VLOOKUP($C47,'15-Min SU-Truck'!$C$14:$W$77,13,FALSE))/(0.00001+VLOOKUP($C44,'15-Min All Vehicle'!$C$14:$W$77,13,FALSE)+VLOOKUP($C45,'15-Min All Vehicle'!$C$14:$W$77,13,FALSE)+VLOOKUP($C46,'15-Min All Vehicle'!$C$14:$W$77,13,FALSE)+VLOOKUP($C47,'15-Min All Vehicle'!$C$17:$W$77,13,FALSE)) -> 0 | P50: =100*(VLOOKUP($C44,'15-Min SU-Truck'!$C$14:$W$77,14,FALSE)+VLOOKUP($C45,'15-Min SU-Truck'!$C$14:$W$77,14,FALSE)+VLOOKUP($C46,'15-Min SU-Truck'!$C$14:$W$77,14,FALSE)+VLOOKUP($C47,'15-Min SU-Truck'!$C$14:$W$77,14,FALSE))/(0.00001+VLOOKUP($C44,'15-Min All Vehicle'!$C$14:$W$77,14,FALSE)+VLOOKUP($C45,'15-Min All Vehicle'!$C$14:$W$77,14,FALSE)+VLOOKUP($C46,'15-Min All Vehicle'!$C$14:$W$77,14,FALSE)+VLOOKUP($C47,'15-Min All Vehicle'!$C$17:$W$77,14,FALSE)) -> 0.4842614895 | Q50: =IF(ISERROR(P50=TRUE),"#N/A",0) -> 0 | R50: =100*(VLOOKUP($C44,'15-Min SU-Truck'!$C$14:$W$77,16,FALSE)+VLOOKUP($C45,'15-Min SU-Truck'!$C$14:$W$77,16,FALSE)+VLOOKUP($C46,'15-Min SU-Truck'!$C$14:$W$77,16,FALSE)+VLOOKUP($C47,'15-Min SU-Truck'!$C$14:$W$77,16,FALSE))/(0.00001+VLOOKUP($C44,'15-Min All Vehicle'!$C$14:$W$77,16,FALSE)+VLOOKUP($C45,'15-Min All Vehicle'!$C$14:$W$77,16,FALSE)+VLOOKUP($C46,'15-Min All Vehicle'!$C$14:$W$77,16,FALSE)+VLOOKUP($C47,'15-Min All Vehicle'!$C$17:$W$77,16,FALSE)) -> 0.5353319 | S50: =100*(VLOOKUP($C44,'15-Min SU-Truck'!$C$14:$W$77,17,FALSE)+VLOOKUP($C45,'15-Min SU-Truck'!$C$14:$W$77,17,FALSE)+VLOOKUP($C46,'15-Min SU-Truck'!$C$14:$W$77,17,FALSE)+VLOOKUP($C47,'15-Min SU-Truck'!$C$14:$W$77,17,FALSE))/(0.00001+VLOOKUP($C44,'15-Min All Vehicle'!$C$14:$W$77,17,FALSE)+VLOOKUP($C45,'15-Min All Vehicle'!$C$14:$W$77,17,FALSE)+VLOOKUP($C46,'15-Min All Vehicle'!$C$14:$W$77,17,FALSE)+VLOOKUP($C47,'15-Min All Vehicle'!$C$17:$W$77,17,FALSE)) -> 0 | T50: =100*(VLOOKUP($C44,'15-Min SU-Truck'!$C$14:$W$77,18,FALSE)+VLOOKUP($C45,'15-Min SU-Truck'!$C$14:$W$77,18,FALSE)+VLOOKUP($C46,'15-Min SU-Truck'!$C$14:$W$77,18,FALSE)+VLOOKUP($C47,'15-Min SU-Truck'!$C$14:$W$77,18,FALSE))/(0.00001+VLOOKUP($C44,'15-Min All Vehicle'!$C$14:$W$77,18,FALSE)+VLOOKUP($C45,'15-Min All Vehicle'!$C$14:$W$77,18,FALSE)+VLOOKUP($C46,'15-Min All Vehicle'!$C$14:$W$77,18,FALSE)+VLOOKUP($C47,'15-Min All Vehicle'!$C$17:$W$77,18,FALSE)) -> 0 | U50: =100*(VLOOKUP($C44,'15-Min SU-Truck'!$C$14:$W$77,19,FALSE)+VLOOKUP($C45,'15-Min SU-Truck'!$C$14:$W$77,19,FALSE)+VLOOKUP($C46,'15-Min SU-Truck'!$C$14:$W$77,19,FALSE)+VLOOKUP($C47,'15-Min SU-Truck'!$C$14:$W$77,19,FALSE))/(0.00001+VLOOKUP($C44,'15-Min All Vehicle'!$C$14:$W$77,19,FALSE)+VLOOKUP($C45,'15-Min All Vehicle'!$C$14:$W$77,19,FALSE)+VLOOKUP($C46,'15-Min All Vehicle'!$C$14:$W$77,19,FALSE)+VLOOKUP($C47,'15-Min All Vehicle'!$C$17:$W$77,19,FALSE)) -> 0 | V50: =IF(ISERROR(U50=TRUE),"#N/A",0) -> 0 | W50: =100*(VLOOKUP($C44,'15-Min SU-Truck'!$C$14:$W$77,21,FALSE)+VLOOKUP($C45,'15-Min SU-Truck'!$C$14:$W$77,21,FALSE)+VLOOKUP($C46,'15-Min SU-Truck'!$C$14:$W$77,21,FALSE)+VLOOKUP($C47,'15-Min SU-Truck'!$C$14:$W$77,21,FALSE))/(0.00001+VLOOKUP($C44,'15-Min All Vehicle'!$C$14:$W$77,21,FALSE)+VLOOKUP($C45,'15-Min All Vehicle'!$C$14:$W$77,21,FALSE)+VLOOKUP($C46,'15-Min All Vehicle'!$C$14:$W$77,21,FALSE)+VLOOKUP($C47,'15-Min All Vehicle'!$C$17:$W$77,21,FALSE)) -> 0 | X50: =100*(VLOOKUP($C44,'15-Min SU-Truck'!$C$14:$X$77,22,FALSE)+VLOOKUP($C45,'15-Min SU-Truck'!$C$14:$X$77,22,FALSE)+VLOOKUP($C46,'15-Min SU-Truck'!$C$14:$X$77,22,FALSE)+VLOOKUP($C47,'15-Min SU-Truck'!$C$14:$X$77,22,FALSE))/(0.00001+VLOOKUP($C44,'15-Min All Vehicle'!$C$14:$X$77,22,FALSE)+VLOOKUP($C45,'15-Min All Vehicle'!$C$14:$X$77,22,FALSE)+VLOOKUP($C46,'15-Min All Vehicle'!$C$14:$X$77,22,FALSE)+VLOOKUP($C47,'15-Min All Vehicle'!$C$17:$X$77,22,FALSE)) -> 0.4462293599
C51: % Heavy Trucks | D51: =100*(VLOOKUP($C45,'15-Min Semi-Truck'!$C$14:$W$77,2,FALSE)+VLOOKUP($C46,'15-Min Semi-Truck'!$C$14:$W$77,2,FALSE)+VLOOKUP($C47,'15-Min Semi-Truck'!$C$14:$W$77,2,FALSE)+VLOOKUP($C44,'15-Min Semi-Truck'!$C$14:$W$77,2,FALSE))/(0.00001+VLOOKUP($C45,'15-Min All Vehicle'!$C$14:$W$77,2,FALSE)+VLOOKUP($C46,'15-Min All Vehicle'!$C$14:$W$77,2,FALSE)+VLOOKUP($C47,'15-Min All Vehicle'!$C$14:$W$77,2,FALSE)+VLOOKUP($C44,'15-Min All Vehicle'!$C$14:$W$77,2,FALSE)) -> 0 | E51: =100*(VLOOKUP($C45,'15-Min Semi-Truck'!$C$14:$W$77,3,FALSE)+VLOOKUP($C46,'15-Min Semi-Truck'!$C$14:$W$77,3,FALSE)+VLOOKUP($C47,'15-Min Semi-Truck'!$C$14:$W$77,3,FALSE)+VLOOKUP($C44,'15-Min Semi-Truck'!$C$14:$W$77,3,FALSE))/(0.00001+VLOOKUP($C45,'15-Min All Vehicle'!$C$14:$W$77,3,FALSE)+VLOOKUP($C46,'15-Min All Vehicle'!$C$14:$W$77,3,FALSE)+VLOOKUP($C47,'15-Min All Vehicle'!$C$14:$W$77,3,FALSE)+VLOOKUP($C44,'15-Min All Vehicle'!$C$14:$W$77,3,FALSE)) -> 0 | F51: =100*(VLOOKUP($C45,'15-Min Semi-Truck'!$C$14:$W$77,4,FALSE)+VLOOKUP($C46,'15-Min Semi-Truck'!$C$14:$W$77,4,FALSE)+VLOOKUP($C47,'15-Min Semi-Truck'!$C$14:$W$77,4,FALSE)+VLOOKUP($C44,'15-Min Semi-Truck'!$C$14:$W$77,4,FALSE))/(0.00001+VLOOKUP($C45,'15-Min All Vehicle'!$C$14:$W$77,4,FALSE)+VLOOKUP($C46,'15-Min All Vehicle'!$C$14:$W$77,4,FALSE)+VLOOKUP($C47,'15-Min All Vehicle'!$C$14:$W$77,4,FALSE)+VLOOKUP($C44,'15-Min All Vehicle'!$C$14:$W$77,4,FALSE)) -> 0 | G51: =IF(ISERROR(F51=TRUE),"#N/A",0) -> 0 | H51: =100*(VLOOKUP($C45,'15-Min Semi-Truck'!$C$14:$W$77,6,FALSE)+VLOOKUP($C46,'15-Min Semi-Truck'!$C$14:$W$77,6,FALSE)+VLOOKUP($C47,'15-Min Semi-Truck'!$C$14:$W$77,6,FALSE)+VLOOKUP($C44,'15-Min Semi-Truck'!$C$14:$W$77,6,FALSE))/(0.00001+VLOOKUP($C45,'15-Min All Vehicle'!$C$14:$W$77,6,FALSE)+VLOOKUP($C46,'15-Min All Vehicle'!$C$14:$W$77,6,FALSE)+VLOOKUP($C47,'15-Min All Vehicle'!$C$14:$W$77,6,FALSE)+VLOOKUP($C44,'15-Min All Vehicle'!$C$14:$W$77,6,FALSE)) -> 0 | I51: =100*(VLOOKUP($C45,'15-Min Semi-Truck'!$C$14:$W$77,7,FALSE)+VLOOKUP($C46,'15-Min Semi-Truck'!$C$14:$W$77,7,FALSE)+VLOOKUP($C47,'15-Min Semi-Truck'!$C$14:$W$77,7,FALSE)+VLOOKUP($C44,'15-Min Semi-Truck'!$C$14:$W$77,7,FALSE))/(0.00001+VLOOKUP($C45,'15-Min All Vehicle'!$C$14:$W$77,7,FALSE)+VLOOKUP($C46,'15-Min All Vehicle'!$C$14:$W$77,7,FALSE)+VLOOKUP($C47,'15-Min All Vehicle'!$C$14:$W$77,7,FALSE)+VLOOKUP($C44,'15-Min All Vehicle'!$C$14:$W$77,7,FALSE)) -> 3.124999512 | J51: =100*(VLOOKUP($C45,'15-Min Semi-Truck'!$C$14:$W$77,8,FALSE)+VLOOKUP($C46,'15-Min Semi-Truck'!$C$14:$W$77,8,FALSE)+VLOOKUP($C47,'15-Min Semi-Truck'!$C$14:$W$77,8,FALSE)+VLOOKUP($C44,'15-Min Semi-Truck'!$C$14:$W$77,8,FALSE))/(0.00001+VLOOKUP($C45,'15-Min All Vehicle'!$C$14:$W$77,8,FALSE)+VLOOKUP($C46,'15-Min All Vehicle'!$C$14:$W$77,8,FALSE)+VLOOKUP($C47,'15-Min All Vehicle'!$C$14:$W$77,8,FALSE)+VLOOKUP($C44,'15-Min All Vehicle'!$C$14:$W$77,8,FALSE)) -> 0.6779660902 | K51: =100*(VLOOKUP($C45,'15-Min Semi-Truck'!$C$14:$W$77,9,FALSE)+VLOOKUP($C46,'15-Min Semi-Truck'!$C$14:$W$77,9,FALSE)+VLOOKUP($C47,'15-Min Semi-Truck'!$C$14:$W$77,9,FALSE)+VLOOKUP($C44,'15-Min Semi-Truck'!$C$14:$W$77,9,FALSE))/(0.00001+VLOOKUP($C45,'15-Min All Vehicle'!$C$14:$W$77,9,FALSE)+VLOOKUP($C46,'15-Min All Vehicle'!$C$14:$W$77,9,FALSE)+VLOOKUP($C47,'15-Min All Vehicle'!$C$14:$W$77,9,FALSE)+VLOOKUP($C44,'15-Min All Vehicle'!$C$14:$W$77,9,FALSE)) -> 0 | L51: =IF(ISERROR(K51=TRUE),"#N/A",0) -> 0 | M51: =100*(VLOOKUP($C45,'15-Min Semi-Truck'!$C$14:$W$77,11,FALSE)+VLOOKUP($C46,'15-Min Semi-Truck'!$C$14:$W$77,11,FALSE)+VLOOKUP($C47,'15-Min Semi-Truck'!$C$14:$W$77,11,FALSE)+VLOOKUP($C44,'15-Min Semi-Truck'!$C$14:$W$77,11,FALSE))/(0.00001+VLOOKUP($C45,'15-Min All Vehicle'!$C$14:$W$77,11,FALSE)+VLOOKUP($C46,'15-Min All Vehicle'!$C$14:$W$77,11,FALSE)+VLOOKUP($C47,'15-Min All Vehicle'!$C$14:$W$77,11,FALSE)+VLOOKUP($C44,'15-Min All Vehicle'!$C$14:$W$77,11,FALSE)) -> 0.9174311786 | N51: =100*(VLOOKUP($C45,'15-Min Semi-Truck'!$C$14:$W$77,12,FALSE)+VLOOKUP($C46,'15-Min Semi-Truck'!$C$14:$W$77,12,FALSE)+VLOOKUP($C47,'15-Min Semi-Truck'!$C$14:$W$77,12,FALSE)+VLOOKUP($C44,'15-Min Semi-Truck'!$C$14:$W$77,12,FALSE))/(0.00001+VLOOKUP($C45,'15-Min All Vehicle'!$C$14:$W$77,12,FALSE)+VLOOKUP($C46,'15-Min All Vehicle'!$C$14:$W$77,12,FALSE)+VLOOKUP($C47,'15-Min All Vehicle'!$C$14:$W$77,12,FALSE)+VLOOKUP($C44,'15-Min All Vehicle'!$C$14:$W$77,12,FALSE)) -> 2.303262912 | O51: =100*(VLOOKUP($C45,'15-Min Semi-Truck'!$C$14:$W$77,13,FALSE)+VLOOKUP($C46,'15-Min Semi-Truck'!$C$14:$W$77,13,FALSE)+VLOOKUP($C47,'15-Min Semi-Truck'!$C$14:$W$77,13,FALSE)+VLOOKUP($C44,'15-Min Semi-Truck'!$C$14:$W$77,13,FALSE))/(0.00001+VLOOKUP($C45,'15-Min All Vehicle'!$C$14:$W$77,13,FALSE)+VLOOKUP($C46,'15-Min All Vehicle'!$C$14:$W$77,13,FALSE)+VLOOKUP($C47,'15-Min All Vehicle'!$C$14:$W$77,13,FALSE)+VLOOKUP($C44,'15-Min All Vehicle'!$C$14:$W$77,13,FALSE)) -> 0 | P51: =100*(VLOOKUP($C45,'15-Min Semi-Truck'!$C$14:$W$77,14,FALSE)+VLOOKUP($C46,'15-Min Semi-Truck'!$C$14:$W$77,14,FALSE)+VLOOKUP($C47,'15-Min Semi-Truck'!$C$14:$W$77,14,FALSE)+VLOOKUP($C44,'15-Min Semi-Truck'!$C$14:$W$77,14,FALSE))/(0.00001+VLOOKUP($C45,'15-Min All Vehicle'!$C$14:$W$77,14,FALSE)+VLOOKUP($C46,'15-Min All Vehicle'!$C$14:$W$77,14,FALSE)+VLOOKUP($C47,'15-Min All Vehicle'!$C$14:$W$77,14,FALSE)+VLOOKUP($C44,'15-Min All Vehicle'!$C$14:$W$77,14,FALSE)) -> 0.968522979 | Q51: =IF(ISERROR(P51=TRUE),"#N/A",0) -> 0 | R51: =100*(VLOOKUP($C45,'15-Min Semi-Truck'!$C$14:$W$77,16,FALSE)+VLOOKUP($C46,'15-Min Semi-Truck'!$C$14:$W$77,16,FALSE)+VLOOKUP($C47,'15-Min Semi-Truck'!$C$14:$W$77,16,FALSE)+VLOOKUP($C44,'15-Min Semi-Truck'!$C$14:$W$77,16,FALSE))/(0.00001+VLOOKUP($C45,'15-Min All Vehicle'!$C$14:$W$77,16,FALSE)+VLOOKUP($C46,'15-Min All Vehicle'!$C$14:$W$77,16,FALSE)+VLOOKUP($C47,'15-Min All Vehicle'!$C$14:$W$77,16,FALSE)+VLOOKUP($C44,'15-Min All Vehicle'!$C$14:$W$77,16,FALSE)) -> 1.71306208 | S51: =100*(VLOOKUP($C45,'15-Min Semi-Truck'!$C$14:$W$77,17,FALSE)+VLOOKUP($C46,'15-Min Semi-Truck'!$C$14:$W$77,17,FALSE)+VLOOKUP($C47,'15-Min Semi-Truck'!$C$14:$W$77,17,FALSE)+VLOOKUP($C44,'15-Min Semi-Truck'!$C$14:$W$77,17,FALSE))/(0.00001+VLOOKUP($C45,'15-Min All Vehicle'!$C$14:$W$77,17,FALSE)+VLOOKUP($C46,'15-Min All Vehicle'!$C$14:$W$77,17,FALSE)+VLOOKUP($C47,'15-Min All Vehicle'!$C$14:$W$77,17,FALSE)+VLOOKUP($C44,'15-Min All Vehicle'!$C$14:$W$77,17,FALSE)) -> 0 | T51: =100*(VLOOKUP($C45,'15-Min Semi-Truck'!$C$14:$W$77,18,FALSE)+VLOOKUP($C46,'15-Min Semi-Truck'!$C$14:$W$77,18,FALSE)+VLOOKUP($C47,'15-Min Semi-Truck'!$C$14:$W$77,18,FALSE)+VLOOKUP($C44,'15-Min Semi-Truck'!$C$14:$W$77,18,FALSE))/(0.00001+VLOOKUP($C45,'15-Min All Vehicle'!$C$14:$W$77,18,FALSE)+VLOOKUP($C46,'15-Min All Vehicle'!$C$14:$W$77,18,FALSE)+VLOOKUP($C47,'15-Min All Vehicle'!$C$14:$W$77,18,FALSE)+VLOOKUP($C44,'15-Min All Vehicle'!$C$14:$W$77,18,FALSE)) -> 1.102941156 | U51: =100*(VLOOKUP($C45,'15-Min Semi-Truck'!$C$14:$W$77,19,FALSE)+VLOOKUP($C46,'15-Min Semi-Truck'!$C$14:$W$77,19,FALSE)+VLOOKUP($C47,'15-Min Semi-Truck'!$C$14:$W$77,19,FALSE)+VLOOKUP($C44,'15-Min Semi-Truck'!$C$14:$W$77,19,FALSE))/(0.00001+VLOOKUP($C45,'15-Min All Vehicle'!$C$14:$W$77,19,FALSE)+VLOOKUP($C46,'15-Min All Vehicle'!$C$14:$W$77,19,FALSE)+VLOOKUP($C47,'15-Min All Vehicle'!$C$14:$W$77,19,FALSE)+VLOOKUP($C44,'15-Min All Vehicle'!$C$14:$W$77,19,FALSE)) -> 2.752293325 | V51: =IF(ISERROR(U51=TRUE),"#N/A",0) -> 0 | W51: =100*(VLOOKUP($C45,'15-Min Semi-Truck'!$C$14:$W$77,21,FALSE)+VLOOKUP($C46,'15-Min Semi-Truck'!$C$14:$W$77,21,FALSE)+VLOOKUP($C47,'15-Min Semi-Truck'!$C$14:$W$77,21,FALSE)+VLOOKUP($C44,'15-Min Semi-Truck'!$C$14:$W$77,21,FALSE))/(0.00001+VLOOKUP($C45,'15-Min All Vehicle'!$C$14:$W$77,21,FALSE)+VLOOKUP($C46,'15-Min All Vehicle'!$C$14:$W$77,21,FALSE)+VLOOKUP($C47,'15-Min All Vehicle'!$C$14:$W$77,21,FALSE)+VLOOKUP($C44,'15-Min All Vehicle'!$C$14:$W$77,21,FALSE)) -> 1.37825419 | X51: =100*(VLOOKUP($C45,'15-Min Semi-Truck'!$C$14:$X$77,22,FALSE)+VLOOKUP($C46,'15-Min Semi-Truck'!$C$14:$X$77,22,FALSE)+VLOOKUP($C47,'15-Min Semi-Truck'!$C$14:$X$77,22,FALSE)+VLOOKUP($C44,'15-Min Semi-Truck'!$C$14:$X$77,22,FALSE))/(0.00001+VLOOKUP($C45,'15-Min All Vehicle'!$C$14:$X$77,22,FALSE)+VLOOKUP($C46,'15-Min All Vehicle'!$C$14:$X$77,22,FALSE)+VLOOKUP($C47,'15-Min All Vehicle'!$C$14:$X$77,22,FALSE)+VLOOKUP($C44,'15-Min All Vehicle'!$C$14:$X$77,22,FALSE)) -> 1.383311016
C52: % Trucks (Total) | D52: =100*(VLOOKUP($C46,'15-Min Heavy Vehicle'!$C$14:$W$77,2,FALSE)+VLOOKUP($C47,'15-Min Heavy Vehicle'!$C$14:$W$77,2,FALSE)+VLOOKUP($C44,'15-Min Heavy Vehicle'!$C$14:$W$77,2,FALSE)+VLOOKUP($C45,'15-Min Heavy Vehicle'!$C$14:$W$77,2,FALSE))/(0.00001+VLOOKUP($C45,'15-Min All Vehicle'!$C$14:$W$77,2,FALSE)+VLOOKUP($C47,'15-Min All Vehicle'!$C$14:$W$77,2,FALSE)+VLOOKUP($C44,'15-Min All Vehicle'!$C$14:$W$77,2,FALSE)+VLOOKUP($C46,'15-Min All Vehicle'!$C$14:$W$77,2,FALSE)) -> 0 | E52: =100*(VLOOKUP($C46,'15-Min Heavy Vehicle'!$C$14:$W$77,3,FALSE)+VLOOKUP($C47,'15-Min Heavy Vehicle'!$C$14:$W$77,3,FALSE)+VLOOKUP($C44,'15-Min Heavy Vehicle'!$C$14:$W$77,3,FALSE)+VLOOKUP($C45,'15-Min Heavy Vehicle'!$C$14:$W$77,3,FALSE))/(0.00001+VLOOKUP($C45,'15-Min All Vehicle'!$C$14:$W$77,3,FALSE)+VLOOKUP($C47,'15-Min All Vehicle'!$C$14:$W$77,3,FALSE)+VLOOKUP($C44,'15-Min All Vehicle'!$C$14:$W$77,3,FALSE)+VLOOKUP($C46,'15-Min All Vehicle'!$C$14:$W$77,3,FALSE)) -> 0 | F52: =100*(VLOOKUP($C46,'15-Min Heavy Vehicle'!$C$14:$W$77,4,FALSE)+VLOOKUP($C47,'15-Min Heavy Vehicle'!$C$14:$W$77,4,FALSE)+VLOOKUP($C44,'15-Min Heavy Vehicle'!$C$14:$W$77,4,FALSE)+VLOOKUP($C45,'15-Min Heavy Vehicle'!$C$14:$W$77,4,FALSE))/(0.00001+VLOOKUP($C45,'15-Min All Vehicle'!$C$14:$W$77,4,FALSE)+VLOOKUP($C47,'15-Min All Vehicle'!$C$14:$W$77,4,FALSE)+VLOOKUP($C44,'15-Min All Vehicle'!$C$14:$W$77,4,FALSE)+VLOOKUP($C46,'15-Min All Vehicle'!$C$14:$W$77,4,FALSE)) -> 0 | G52: 0 | H52: =100*(VLOOKUP($C46,'15-Min Heavy Vehicle'!$C$14:$W$77,6,FALSE)+VLOOKUP($C47,'15-Min Heavy Vehicle'!$C$14:$W$77,6,FALSE)+VLOOKUP($C44,'15-Min Heavy Vehicle'!$C$14:$W$77,6,FALSE)+VLOOKUP($C45,'15-Min Heavy Vehicle'!$C$14:$W$77,6,FALSE))/(0.00001+VLOOKUP($C45,'15-Min All Vehicle'!$C$14:$W$77,6,FALSE)+VLOOKUP($C47,'15-Min All Vehicle'!$C$14:$W$77,6,FALSE)+VLOOKUP($C44,'15-Min All Vehicle'!$C$14:$W$77,6,FALSE)+VLOOKUP($C46,'15-Min All Vehicle'!$C$14:$W$77,6,FALSE)) -> 0 | I52: =100*(VLOOKUP($C46,'15-Min Heavy Vehicle'!$C$14:$W$77,7,FALSE)+VLOOKUP($C47,'15-Min Heavy Vehicle'!$C$14:$W$77,7,FALSE)+VLOOKUP($C44,'15-Min Heavy Vehicle'!$C$14:$W$77,7,FALSE)+VLOOKUP($C45,'15-Min Heavy Vehicle'!$C$14:$W$77,7,FALSE))/(0.00001+VLOOKUP($C45,'15-Min All Vehicle'!$C$14:$W$77,7,FALSE)+VLOOKUP($C47,'15-Min All Vehicle'!$C$14:$W$77,7,FALSE)+VLOOKUP($C44,'15-Min All Vehicle'!$C$14:$W$77,7,FALSE)+VLOOKUP($C46,'15-Min All Vehicle'!$C$14:$W$77,7,FALSE)) -> 4.687499268 | J52: =100*(VLOOKUP($C46,'15-Min Heavy Vehicle'!$C$14:$W$77,8,FALSE)+VLOOKUP($C47,'15-Min Heavy Vehicle'!$C$14:$W$77,8,FALSE)+VLOOKUP($C44,'15-Min Heavy Vehicle'!$C$14:$W$77,8,FALSE)+VLOOKUP($C45,'15-Min Heavy Vehicle'!$C$14:$W$77,8,FALSE))/(0.00001+VLOOKUP($C45,'15-Min All Vehicle'!$C$14:$W$77,8,FALSE)+VLOOKUP($C47,'15-Min All Vehicle'!$C$14:$W$77,8,FALSE)+VLOOKUP($C44,'15-Min All Vehicle'!$C$14:$W$77,8,FALSE)+VLOOKUP($C46,'15-Min All Vehicle'!$C$14:$W$77,8,FALSE)) -> 1.35593218 | K52: =100*(VLOOKUP($C46,'15-Min Heavy Vehicle'!$C$14:$W$77,9,FALSE)+VLOOKUP($C47,'15-Min Heavy Vehicle'!$C$14:$W$77,9,FALSE)+VLOOKUP($C44,'15-Min Heavy Vehicle'!$C$14:$W$77,9,FALSE)+VLOOKUP($C45,'15-Min Heavy Vehicle'!$C$14:$W$77,9,FALSE))/(0.00001+VLOOKUP($C45,'15-Min All Vehicle'!$C$14:$W$77,9,FALSE)+VLOOKUP($C47,'15-Min All Vehicle'!$C$14:$W$77,9,FALSE)+VLOOKUP($C44,'15-Min All Vehicle'!$C$14:$W$77,9,FALSE)+VLOOKUP($C46,'15-Min All Vehicle'!$C$14:$W$77,9,FALSE)) -> 0 | L52: 0 | M52: =100*(VLOOKUP($C46,'15-Min Heavy Vehicle'!$C$14:$W$77,11,FALSE)+VLOOKUP($C47,'15-Min Heavy Vehicle'!$C$14:$W$77,11,FALSE)+VLOOKUP($C44,'15-Min Heavy Vehicle'!$C$14:$W$77,11,FALSE)+VLOOKUP($C45,'15-Min Heavy Vehicle'!$C$14:$W$77,11,FALSE))/(0.00001+VLOOKUP($C45,'15-Min All Vehicle'!$C$14:$W$77,11,FALSE)+VLOOKUP($C47,'15-Min All Vehicle'!$C$14:$W$77,11,FALSE)+VLOOKUP($C44,'15-Min All Vehicle'!$C$14:$W$77,11,FALSE)+VLOOKUP($C46,'15-Min All Vehicle'!$C$14:$W$77,11,FALSE)) -> 1.681957161 | N52: =100*(VLOOKUP($C46,'15-Min Heavy Vehicle'!$C$14:$W$77,12,FALSE)+VLOOKUP($C47,'15-Min Heavy Vehicle'!$C$14:$W$77,12,FALSE)+VLOOKUP($C44,'15-Min Heavy Vehicle'!$C$14:$W$77,12,FALSE)+VLOOKUP($C45,'15-Min Heavy Vehicle'!$C$14:$W$77,12,FALSE))/(0.00001+VLOOKUP($C45,'15-Min All Vehicle'!$C$14:$W$77,12,FALSE)+VLOOKUP($C47,'15-Min All Vehicle'!$C$14:$W$77,12,FALSE)+VLOOKUP($C44,'15-Min All Vehicle'!$C$14:$W$77,12,FALSE)+VLOOKUP($C46,'15-Min All Vehicle'!$C$14:$W$77,12,FALSE)) -> 2.87907864 | O52: =100*(VLOOKUP($C46,'15-Min Heavy Vehicle'!$C$14:$W$77,13,FALSE)+VLOOKUP($C47,'15-Min Heavy Vehicle'!$C$14:$W$77,13,FALSE)+VLOOKUP($C44,'15-Min Heavy Vehicle'!$C$14:$W$77,13,FALSE)+VLOOKUP($C45,'15-Min Heavy Vehicle'!$C$14:$W$77,13,FALSE))/(0.00001+VLOOKUP($C45,'15-Min All Vehicle'!$C$14:$W$77,13,FALSE)+VLOOKUP($C47,'15-Min All Vehicle'!$C$14:$W$77,13,FALSE)+VLOOKUP($C44,'15-Min All Vehicle'!$C$14:$W$77,13,FALSE)+VLOOKUP($C46,'15-Min All Vehicle'!$C$14:$W$77,13,FALSE)) -> 0 | P52: =100*(VLOOKUP($C46,'15-Min Heavy Vehicle'!$C$14:$W$77,14,FALSE)+VLOOKUP($C47,'15-Min Heavy Vehicle'!$C$14:$W$77,14,FALSE)+VLOOKUP($C44,'15-Min Heavy Vehicle'!$C$14:$W$77,14,FALSE)+VLOOKUP($C45,'15-Min Heavy Vehicle'!$C$14:$W$77,14,FALSE))/(0.00001+VLOOKUP($C45,'15-Min All Vehicle'!$C$14:$W$77,14,FALSE)+VLOOKUP($C47,'15-Min All Vehicle'!$C$14:$W$77,14,FALSE)+VLOOKUP($C44,'15-Min All Vehicle'!$C$14:$W$77,14,FALSE)+VLOOKUP($C46,'15-Min All Vehicle'!$C$14:$W$77,14,FALSE)) -> 1.452784468 | Q52: 0 | R52: =100*(VLOOKUP($C46,'15-Min Heavy Vehicle'!$C$14:$W$77,16,FALSE)+VLOOKUP($C47,'15-Min Heavy Vehicle'!$C$14:$W$77,16,FALSE)+VLOOKUP($C44,'15-Min Heavy Vehicle'!$C$14:$W$77,16,FALSE)+VLOOKUP($C45,'15-Min Heavy Vehicle'!$C$14:$W$77,16,FALSE))/(0.00001+VLOOKUP($C45,'15-Min All Vehicle'!$C$14:$W$77,16,FALSE)+VLOOKUP($C47,'15-Min All Vehicle'!$C$14:$W$77,16,FALSE)+VLOOKUP($C44,'15-Min All Vehicle'!$C$14:$W$77,16,FALSE)+VLOOKUP($C46,'15-Min All Vehicle'!$C$14:$W$77,16,FALSE)) -> 2.24839398 | S52: =100*(VLOOKUP($C46,'15-Min Heavy Vehicle'!$C$14:$W$77,17,FALSE)+VLOOKUP($C47,'15-Min Heavy Vehicle'!$C$14:$W$77,17,FALSE)+VLOOKUP($C44,'15-Min Heavy Vehicle'!$C$14:$W$77,17,FALSE)+VLOOKUP($C45,'15-Min Heavy Vehicle'!$C$14:$W$77,17,FALSE))/(0.00001+VLOOKUP($C45,'15-Min All Vehicle'!$C$14:$W$77,17,FALSE)+VLOOKUP($C47,'15-Min All Vehicle'!$C$14:$W$77,17,FALSE)+VLOOKUP($C44,'15-Min All Vehicle'!$C$14:$W$77,17,FALSE)+VLOOKUP($C46,'15-Min All Vehicle'!$C$14:$W$77,17,FALSE)) -> 0 | T52: =100*(VLOOKUP($C46,'15-Min Heavy Vehicle'!$C$14:$W$77,18,FALSE)+VLOOKUP($C47,'15-Min Heavy Vehicle'!$C$14:$W$77,18,FALSE)+VLOOKUP($C44,'15-Min Heavy Vehicle'!$C$14:$W$77,18,FALSE)+VLOOKUP($C45,'15-Min Heavy Vehicle'!$C$14:$W$77,18,FALSE))/(0.00001+VLOOKUP($C45,'15-Min All Vehicle'!$C$14:$W$77,18,FALSE)+VLOOKUP($C47,'15-Min All Vehicle'!$C$14:$W$77,18,FALSE)+VLOOKUP($C44,'15-Min All Vehicle'!$C$14:$W$77,18,FALSE)+VLOOKUP($C46,'15-Min All Vehicle'!$C$14:$W$77,18,FALSE)) -> 1.102941156 | U52: =100*(VLOOKUP($C46,'15-Min Heavy Vehicle'!$C$14:$W$77,19,FALSE)+VLOOKUP($C47,'15-Min Heavy Vehicle'!$C$14:$W$77,19,FALSE)+VLOOKUP($C44,'15-Min Heavy Vehicle'!$C$14:$W$77,19,FALSE)+VLOOKUP($C45,'15-Min Heavy Vehicle'!$C$14:$W$77,19,FALSE))/(0.00001+VLOOKUP($C45,'15-Min All Vehicle'!$C$14:$W$77,19,FALSE)+VLOOKUP($C47,'15-Min All Vehicle'!$C$14:$W$77,19,FALSE)+VLOOKUP($C44,'15-Min All Vehicle'!$C$14:$W$77,19,FALSE)+VLOOKUP($C46,'15-Min All Vehicle'!$C$14:$W$77,19,FALSE)) -> 2.752293325 | V52: 0 | W52: =100*(VLOOKUP($C46,'15-Min Heavy Vehicle'!$C$14:$W$77,21,FALSE)+VLOOKUP($C47,'15-Min Heavy Vehicle'!$C$14:$W$77,21,FALSE)+VLOOKUP($C44,'15-Min Heavy Vehicle'!$C$14:$W$77,21,FALSE)+VLOOKUP($C45,'15-Min Heavy Vehicle'!$C$14:$W$77,21,FALSE))/(0.00001+VLOOKUP($C45,'15-Min All Vehicle'!$C$14:$W$77,21,FALSE)+VLOOKUP($C47,'15-Min All Vehicle'!$C$14:$W$77,21,FALSE)+VLOOKUP($C44,'15-Min All Vehicle'!$C$14:$W$77,21,FALSE)+VLOOKUP($C46,'15-Min All Vehicle'!$C$14:$W$77,21,FALSE)) -> 1.37825419 | X52: =100*(VLOOKUP($C46,'15-Min Heavy Vehicle'!$C$14:$X$77,22,FALSE)+VLOOKUP($C47,'15-Min Heavy Vehicle'!$C$14:$X$77,22,FALSE)+VLOOKUP($C44,'15-Min Heavy Vehicle'!$C$14:$X$77,22,FALSE)+VLOOKUP($C45,'15-Min Heavy Vehicle'!$C$14:$X$77,22,FALSE))/(0.00001+VLOOKUP($C45,'15-Min All Vehicle'!$C$14:$X$77,22,FALSE)+VLOOKUP($C47,'15-Min All Vehicle'!$C$14:$X$77,22,FALSE)+VLOOKUP($C44,'15-Min All Vehicle'!$C$14:$X$77,22,FALSE)+VLOOKUP($C46,'15-Min All Vehicle'!$C$14:$X$77,22,FALSE)) -> 1.829540376
C53: Peak Hour Factor (PHF) | D53: =SUM(D44:D47)/(0.000001+4*MAX(D44:D47)) -> 0 | E53: =SUM(E44:E47)/(0.000001+4*MAX(E44:E47)) -> 0 | F53: 0 | G53: 0 | H53: 0 | I53: 0.79999999 | J53: 0.9394904444 | K53: 0 | L53: 0 | M53: 0.9450867038 | N53: 0.8569078933 | O53: 0 | P53: 0.8824786306 | Q53: 0 | R53: 0.868029739 | S53: 0 | T53: 0.9189189174 | U53: 0.778571423 | V53: 0 | W53: 0.9120111719 | X53: 0.9260330575
B55: Peak Hour Pedestrian and Bicyclist Volumes
B56: Pedestrians and Bicyclists | D56: Crossing | I56: Crossing | N56: Crossing | S56: Crossing | X56: Total
D57: North Approach | I57: East Approach | N57: South Approach | S57: West Approach | X57: Ped &
D58: ='Base Information'!$D$14:$D$14 -> 441 NB ON RAMP | I58: ='Base Information'!$D$15:$D$15 -> CTH OO (Northland Ave) | N58: ='Base Information'!$D$16:$D$16 -> 441 NB OFF RAMP | S58: ='Base Information'!$D$17:$D$17 -> CTH OO (Northland Ave) | X58: Bike
C59: 15-Minute Start Time | D59: Pedestrian | F59: Bicyclist | H59: Total | I59: Pedestrian | K59: Bicyclist | M59: Total | N59: Pedestrian | P59: Bicyclist | R59: Total | S59: Pedestrian | U59: Bicyclist | W59: Total | X59: Volume
B60: AM | C60: =C14 -> 07:14:59.971 | D60: =VLOOKUP($C60,'Ped & Bicycle'!$C$14:$X$77,2,TRUE) -> 0 | F60: =VLOOKUP($C60,'Ped & Bicycle'!$C$14:$X$77,4,TRUE) -> 0 | H60: =SUM(D60:G60) -> 0 | I60: =VLOOKUP($C60,'Ped & Bicycle'!$C$14:$X$77,7,TRUE) -> 0 | K60: =VLOOKUP($C60,'Ped & Bicycle'!$C$14:$X$77,9,TRUE) -> 0 | M60: =SUM(I60:L60) -> 0 | N60: =VLOOKUP($C60,'Ped & Bicycle'!$C$14:$X$77,12,TRUE) -> 0 | P60: =VLOOKUP($C60,'Ped & Bicycle'!$C$14:$X$77,14,TRUE) -> 0 | R60: =SUM(N60:Q60) -> 0 | S60: =VLOOKUP($C60,'Ped & Bicycle'!$C$14:$X$77,17,TRUE) -> 0 | U60: =VLOOKUP($C60,'Ped & Bicycle'!$C$14:$X$77,19,TRUE) -> 0 | W60: =SUM(S60:V60) -> 0 | X60: =H60+M60+R60+W60 -> 0
C61: =C15 -> 07:30:00 | D61: =VLOOKUP($C61,'Ped & Bicycle'!$C$14:$X$77,2,TRUE) -> 0 | F61: =VLOOKUP($C61,'Ped & Bicycle'!$C$14:$X$77,4,TRUE) -> 0 | H61: =SUM(D61:G61) -> 0 | I61: =VLOOKUP($C61,'Ped & Bicycle'!$C$14:$X$77,7,TRUE) -> 0 | K61: =VLOOKUP($C61,'Ped & Bicycle'!$C$14:$X$77,9,TRUE) -> 0 | M61: =SUM(I61:L61) -> 0 | N61: =VLOOKUP($C61,'Ped & Bicycle'!$C$14:$X$77,12,TRUE) -> 0 | P61: =VLOOKUP($C61,'Ped & Bicycle'!$C$14:$X$77,14,TRUE) -> 0 | R61: =SUM(N61:Q61) -> 0 | S61: =VLOOKUP($C61,'Ped & Bicycle'!$C$14:$X$77,17,TRUE) -> 0 | U61: =VLOOKUP($C61,'Ped & Bicycle'!$C$14:$X$77,19,TRUE) -> 0 | W61: =SUM(S61:V61) -> 0 | X61: =H61+M61+R61+W61 -> 0
C62: =C16 -> 07:44:59.942 | D62: =VLOOKUP($C62,'Ped & Bicycle'!$C$14:$X$77,2,TRUE) -> 0 | F62: =VLOOKUP($C62,'Ped & Bicycle'!$C$14:$X$77,4,TRUE) -> 0 | H62: =SUM(D62:G62) -> 0 | I62: =VLOOKUP($C62,'Ped & Bicycle'!$C$14:$X$77,7,TRUE) -> 0 | K62: =VLOOKUP($C62,'Ped & Bicycle'!$C$14:$X$77,9,TRUE) -> 0 | M62: =SUM(I62:L62) -> 0 | N62: =VLOOKUP($C62,'Ped & Bicycle'!$C$14:$X$77,12,TRUE) -> 0 | P62: =VLOOKUP($C62,'Ped & Bicycle'!$C$14:$X$77,14,TRUE) -> 0 | R62: =SUM(N62:Q62) -> 0 | S62: =VLOOKUP($C62,'Ped & Bicycle'!$C$14:$X$77,17,TRUE) -> 0 | U62: =VLOOKUP($C62,'Ped & Bicycle'!$C$14:$X$77,19,TRUE) -> 0 | W62: =SUM(S62:V62) -> 0 | X62: =H62+M62+R62+W62 -> 0
C63: =C17 -> 07:59:59.971 | D63: =VLOOKUP($C63,'Ped & Bicycle'!$C$14:$X$77,2,TRUE) -> 0 | F63: =VLOOKUP($C63,'Ped & Bicycle'!$C$14:$X$77,4,TRUE) -> 0 | H63: =SUM(D63:G63) -> 0 | I63: =VLOOKUP($C63,'Ped & Bicycle'!$C$14:$X$77,7,TRUE) -> 0 | K63: =VLOOKUP($C63,'Ped & Bicycle'!$C$14:$X$77,9,TRUE) -> 0 | M63: =SUM(I63:L63) -> 0 | N63: =VLOOKUP($C63,'Ped & Bicycle'!$C$14:$X$77,12,TRUE) -> 0 | P63: =VLOOKUP($C63,'Ped & Bicycle'!$C$14:$X$77,14,TRUE) -> 0 | R63: =SUM(N63:Q63) -> 0 | S63: =VLOOKUP($C63,'Ped & Bicycle'!$C$14:$X$77,17,TRUE) -> 0 | U63: =VLOOKUP($C63,'Ped & Bicycle'!$C$14:$X$77,19,TRUE) -> 0 | W63: =SUM(S63:V63) -> 0 | X63: =H63+M63+R63+W63 -> 0
C64: Total | D64: =SUM(D60:E63) -> 0 | F64: =SUM(F60:G63) -> 0 | H64: =SUM(D64:G64) -> 0 | I64: =SUM(I60:J63) -> 0 | K64: =SUM(K60:L63) -> 0 | M64: =SUM(I64:L64) -> 0 | N64: =SUM(N60:O63) -> 0 | P64: =SUM(P60:Q63) -> 0 | R64: =SUM(N64:Q64) -> 0 | S64: =SUM(S60:T63) -> 0 | U64: =SUM(U60:V63) -> 0 | W64: =SUM(S64:V64) -> 0 | X64: =SUM(X60:X63) -> 0
B66: MD | C66: =C29 -> 12:59:59.942 | D66: =VLOOKUP($C66,'Ped & Bicycle'!$C$14:$X$77,2,TRUE) -> 0 | F66: =VLOOKUP($C66,'Ped & Bicycle'!$C$14:$X$77,4,TRUE) -> 0 | H66: =SUM(D66:G66) -> 0 | I66: =VLOOKUP($C66,'Ped & Bicycle'!$C$14:$X$77,7,TRUE) -> 0 | K66: =VLOOKUP($C66,'Ped & Bicycle'!$C$14:$X$77,9,TRUE) -> 0 | M66: =SUM(I66:L66) -> 0 | N66: =VLOOKUP($C66,'Ped & Bicycle'!$C$14:$X$77,12,TRUE) -> 0 | P66: =VLOOKUP($C66,'Ped & Bicycle'!$C$14:$X$77,14,TRUE) -> 0 | R66: =SUM(N66:Q66) -> 0 | S66: =VLOOKUP($C66,'Ped & Bicycle'!$C$14:$X$77,17,TRUE) -> 0 | U66: =VLOOKUP($C66,'Ped & Bicycle'!$C$14:$X$77,19,TRUE) -> 0 | W66: =SUM(S66:V66) -> 0 | X66: =H66+M66+R66+W66 -> 0
C67: =C30 -> 13:14:59.971 | D67: =VLOOKUP($C67,'Ped & Bicycle'!$C$14:$X$77,2,TRUE) -> 0 | F67: =VLOOKUP($C67,'Ped & Bicycle'!$C$14:$X$77,4,TRUE) -> 0 | H67: =SUM(D67:G67) -> 0 | I67: =VLOOKUP($C67,'Ped & Bicycle'!$C$14:$X$77,7,TRUE) -> 0 | K67: =VLOOKUP($C67,'Ped & Bicycle'!$C$14:$X$77,9,TRUE) -> 0 | M67: =SUM(I67:L67) -> 0 | N67: =VLOOKUP($C67,'Ped & Bicycle'!$C$14:$X$77,12,TRUE) -> 0 | P67: =VLOOKUP($C67,'Ped & Bicycle'!$C$14:$X$77,14,TRUE) -> 0 | R67: =SUM(N67:Q67) -> 0 | S67: =VLOOKUP($C67,'Ped & Bicycle'!$C$14:$X$77,17,TRUE) -> 0 | U67: =VLOOKUP($C67,'Ped & Bicycle'!$C$14:$X$77,19,TRUE) -> 0 | W67: =SUM(S67:V67) -> 0 | X67: =H67+M67+R67+W67 -> 0
C68: =C31 -> 13:30:00 | D68: =VLOOKUP($C68,'Ped & Bicycle'!$C$14:$X$77,2,TRUE) -> 0 | F68: =VLOOKUP($C68,'Ped & Bicycle'!$C$14:$X$77,4,TRUE) -> 0 | H68: =SUM(D68:G68) -> 0 | I68: =VLOOKUP($C68,'Ped & Bicycle'!$C$14:$X$77,7,TRUE) -> 0 | K68: =VLOOKUP($C68,'Ped & Bicycle'!$C$14:$X$77,9,TRUE) -> 0 | M68: =SUM(I68:L68) -> 0 | N68: =VLOOKUP($C68,'Ped & Bicycle'!$C$14:$X$77,12,TRUE) -> 0 | P68: =VLOOKUP($C68,'Ped & Bicycle'!$C$14:$X$77,14,TRUE) -> 0 | R68: =SUM(N68:Q68) -> 0 | S68: =VLOOKUP($C68,'Ped & Bicycle'!$C$14:$X$77,17,TRUE) -> 0 | U68: =VLOOKUP($C68,'Ped & Bicycle'!$C$14:$X$77,19,TRUE) -> 0 | W68: =SUM(S68:V68) -> 0 | X68: =H68+M68+R68+W68 -> 0
C69: =C32 -> 13:44:59.942 | D69: =VLOOKUP($C69,'Ped & Bicycle'!$C$14:$X$77,2,TRUE) -> 0 | F69: =VLOOKUP($C69,'Ped & Bicycle'!$C$14:$X$77,4,TRUE) -> 0 | H69: =SUM(D69:G69) -> 0 | I69: =VLOOKUP($C69,'Ped & Bicycle'!$C$14:$X$77,7,TRUE) -> 0 | K69: =VLOOKUP($C69,'Ped & Bicycle'!$C$14:$X$77,9,TRUE) -> 0 | M69: =SUM(I69:L69) -> 0 | N69: =VLOOKUP($C69,'Ped & Bicycle'!$C$14:$X$77,12,TRUE) -> 0 | P69: =VLOOKUP($C69,'Ped & Bicycle'!$C$14:$X$77,14,TRUE) -> 0 | R69: =SUM(N69:Q69) -> 0 | S69: =VLOOKUP($C69,'Ped & Bicycle'!$C$14:$X$77,17,TRUE) -> 0 | U69: =VLOOKUP($C69,'Ped & Bicycle'!$C$14:$X$77,19,TRUE) -> 0 | W69: =SUM(S69:V69) -> 0 | X69: =H69+M69+R69+W69 -> 0
C70: Total | D70: =SUM(D66:E69) -> 0 | F70: =SUM(F66:G69) -> 0 | H70: =SUM(D70:G70) -> 0 | I70: =SUM(I66:J69) -> 0 | K70: =SUM(K66:L69) -> 0 | M70: =SUM(I70:L70) -> 0 | N70: =SUM(N66:O69) -> 0 | P70: =SUM(P66:Q69) -> 0 | R70: =SUM(N70:Q70) -> 0 | S70: =SUM(S66:T69) -> 0 | U70: =SUM(U66:V69) -> 0 | W70: =SUM(S70:V70) -> 0 | X70: =SUM(X66:X69) -> 0
B72: PM | C72: =C44 -> 16:30:00 | D72: =VLOOKUP($C72,'Ped & Bicycle'!$C$14:$X$77,2,TRUE) -> 0 | F72: =VLOOKUP($C72,'Ped & Bicycle'!$C$14:$X$77,4,TRUE) -> 0 | H72: =SUM(D72:G72) -> 0 | I72: =VLOOKUP($C72,'Ped & Bicycle'!$C$14:$X$77,7,TRUE) -> 0 | K72: =VLOOKUP($C72,'Ped & Bicycle'!$C$14:$X$77,9,TRUE) -> 0 | M72: =SUM(I72:L72) -> 0 | N72: =VLOOKUP($C72,'Ped & Bicycle'!$C$14:$X$77,12,TRUE) -> 0 | P72: =VLOOKUP($C72,'Ped & Bicycle'!$C$14:$X$77,14,TRUE) -> 0 | R72: =SUM(N72:Q72) -> 0 | S72: =VLOOKUP($C72,'Ped & Bicycle'!$C$14:$X$77,17,TRUE) -> 0 | U72: =VLOOKUP($C72,'Ped & Bicycle'!$C$14:$X$77,19,TRUE) -> 0 | W72: =SUM(S72:V72) -> 0 | X72: =H72+M72+R72+W72 -> 0
C73: =C45 -> 16:44:59.942 | D73: =VLOOKUP($C73,'Ped & Bicycle'!$C$14:$X$77,2,TRUE) -> 0 | F73: =VLOOKUP($C73,'Ped & Bicycle'!$C$14:$X$77,4,TRUE) -> 0 | H73: =SUM(D73:G73) -> 0 | I73: =VLOOKUP($C73,'Ped & Bicycle'!$C$14:$X$77,7,TRUE) -> 0 | K73: =VLOOKUP($C73,'Ped & Bicycle'!$C$14:$X$77,9,TRUE) -> 0 | M73: =SUM(I73:L73) -> 0 | N73: =VLOOKUP($C73,'Ped & Bicycle'!$C$14:$X$77,12,TRUE) -> 1 | P73: =VLOOKUP($C73,'Ped & Bicycle'!$C$14:$X$77,14,TRUE) -> 0 | R73: =SUM(N73:Q73) -> 1 | S73: =VLOOKUP($C73,'Ped & Bicycle'!$C$14:$X$77,17,TRUE) -> 0 | U73: =VLOOKUP($C73,'Ped & Bicycle'!$C$14:$X$77,19,TRUE) -> 0 | W73: =SUM(S73:V73) -> 0 | X73: =H73+M73+R73+W73 -> 1
C74: =C46 -> 16:59:59.971 | D74: =VLOOKUP($C74,'Ped & Bicycle'!$C$14:$X$77,2,TRUE) -> 0 | F74: =VLOOKUP($C74,'Ped & Bicycle'!$C$14:$X$77,4,TRUE) -> 0 | H74: =SUM(D74:G74) -> 0 | I74: =VLOOKUP($C74,'Ped & Bicycle'!$C$14:$X$77,7,TRUE) -> 0 | K74: =VLOOKUP($C74,'Ped & Bicycle'!$C$14:$X$77,9,TRUE) -> 0 | M74: =SUM(I74:L74) -> 0 | N74: =VLOOKUP($C74,'Ped & Bicycle'!$C$14:$X$77,12,TRUE) -> 0 | P74: =VLOOKUP($C74,'Ped & Bicycle'!$C$14:$X$77,14,TRUE) -> 0 | R74: =SUM(N74:Q74) -> 0 | S74: =VLOOKUP($C74,'Ped & Bicycle'!$C$14:$X$77,17,TRUE) -> 0 | U74: =VLOOKUP($C74,'Ped & Bicycle'!$C$14:$X$77,19,TRUE) -> 0 | W74: =SUM(S74:V74) -> 0 | X74: =H74+M74+R74+W74 -> 0
C75: =C47 -> 17:15:00 | D75: =VLOOKUP($C75,'Ped & Bicycle'!$C$14:$X$77,2,TRUE) -> 0 | F75: =VLOOKUP($C75,'Ped & Bicycle'!$C$14:$X$77,4,TRUE) -> 0 | H75: =SUM(D75:G75) -> 0 | I75: =VLOOKUP($C75,'Ped & Bicycle'!$C$14:$X$77,7,TRUE) -> 0 | K75: =VLOOKUP($C75,'Ped & Bicycle'!$C$14:$X$77,9,TRUE) -> 0 | M75: =SUM(I75:L75) -> 0 | N75: =VLOOKUP($C75,'Ped & Bicycle'!$C$14:$X$77,12,TRUE) -> 2 | P75: =VLOOKUP($C75,'Ped & Bicycle'!$C$14:$X$77,14,TRUE) -> 0 | R75: =SUM(N75:Q75) -> 2 | S75: =VLOOKUP($C75,'Ped & Bicycle'!$C$14:$X$77,17,TRUE) -> 0 | U75: =VLOOKUP($C75,'Ped & Bicycle'!$C$14:$X$77,19,TRUE) -> 0 | W75: =SUM(S75:V75) -> 0 | X75: =H75+M75+R75+W75 -> 2
C76: Total | D76: =SUM(D72:E75) -> 0 | F76: =SUM(F72:G75) -> 0 | H76: =SUM(D76:G76) -> 0 | I76: =SUM(I72:J75) -> 0 | K76: =SUM(K72:L75) -> 0 | M76: =SUM(I76:L76) -> 0 | N76: =SUM(N72:O75) -> 3 | P76: =SUM(P72:Q75) -> 0 | R76: =SUM(N76:Q76) -> 3 | S76: =SUM(S72:T75) -> 0 | U76: =SUM(U72:V75) -> 0 | W76: =SUM(S76:V76) -> 0 | X76: =SUM(X72:X75) -> 3

Sheet Hourly Volume Summary
B1: Intersection Traffic Volume Report
O2: Count Basics | AA2: Page 4 of 11
O3: ='Base Information'!L3 -> Start Date: | Q3: ='Base Information'!N3 -> 2011-12-06 | U3: ='Base Information'!R3 -> Weekday | X3: ='Base Information'!U3 -> Schools in Session
O4: ='Base Information'!L4 -> Total Number of Hours Counted: 12 | U4: ='Base Information'!R4 -> Non-Holiday | X4: ='Base Information'!U4 -> No Special Events
B5: Hourly Volume Summary - Motor Vehicle Data
O6: All Motor Vehicles
B7: ='Base Information'!E7 -> 441 NB ON RAMP and CTH OO (Northland Ave)
B9: One-Hour Motor Vehicle Data
F10: ê | K10: ç | P10: é | U10: è
B11: One-Hour | D11: From North | I11: From East | N11: From South | S11: From West | X11: Total | Z11: Directional
B12: Time Period | D12: ='Base Information'!$D$14:$D$14 -> 441 NB ON RAMP | I12: ='Base Information'!$D$15:$D$15 -> CTH OO (Northland Ave) | N12: ='Base Information'!$D$16:$D$16 -> 441 NB OFF RAMP | S12: ='Base Information'!$D$17:$D$17 -> CTH OO (Northland Ave) | X12: Vehicle | Z12: Volume Totals
B13: Start Time | D13: Right | E13: Thru | F13: Left | G13: U-Tn | H13: Total | I13: Right | J13: Thru | K13: Left | L13: U-Tn | M13: Total | N13: Right | O13: Thru | P13: Left | Q13: U-Tn | R13: Total | S13: Right | T13: Thru | U13: Left | V13: U-Tn | W13: Total | X13: Volume | Z13: E/W | AA13: N/S
B14: AM | C14: 06:00:00 | D14: =Calculations!CQ6 -> 0 | E14: =Calculations!CR6 -> 0 | F14: =Calculations!CS6 -> 0 | G14: =Calculations!CV6 -> 0 | H14: =D14+E14+F14+G14 -> 0 | I14: =Calculations!CW6 -> 62 | J14: =Calculations!CX6 -> 459 | K14: =Calculations!CY6 -> 0 | L14: =Calculations!DB6 -> 0 | M14: =I14+J14+K14+L14 -> 521 | N14: =Calculations!DC6 -> 152 | O14: =Calculations!DD6 -> 0 | P14: =Calculations!DE6 -> 480 | Q14: =Calculations!DH6 -> 0 | R14: =N14+O14+P14+Q14 -> 632 | S14: =Calculations!DI6 -> 0 | T14: =Calculations!DJ6 -> 155 | U14: =Calculations!DK6 -> 19 | V14: =Calculations!DN6 -> 0 | W14: =S14+T14+U14+V14 -> 174 | X14: =H14+M14+R14+W14 -> 1327 | Z14: =M14+W14 -> 695 | AA14: =H14+R14 -> 632
C15: 07:00:00 | D15: =Calculations!CQ18 -> 0 | E15: =Calculations!CR18 -> 0 | F15: =Calculations!CS18 -> 0 | G15: =Calculations!CV18 -> 0 | H15: 0 | I15: =Calculations!CW18 -> 88 | J15: =Calculations!CX18 -> 810 | K15: =Calculations!CY18 -> 0 | L15: =Calculations!DB18 -> 0 | M15: 898 | N15: =Calculations!DC18 -> 259 | O15: =Calculations!DD18 -> 1 | P15: =Calculations!DE18 -> 833 | Q15: =Calculations!DH18 -> 0 | R15: 1093 | S15: =Calculations!DI18 -> 0 | T15: =Calculations!DJ18 -> 173 | U15: =Calculations!DK18 -> 32 | V15: =Calculations!DN18 -> 0 | W15: 205 | X15: =H15+M15+R15+W15 -> 2196 | Z15: =M15+W15 -> 1103 | AA15: =H15+R15 -> 1093
C16: 08:00:00 | D16: =Calculations!CQ30 -> 0 | E16: =Calculations!CR30 -> 0 | F16: =Calculations!CS30 -> 0 | G16: =Calculations!CV30 -> 0 | H16: 0 | I16: =Calculations!CW30 -> 73 | J16: =Calculations!CX30 -> 584 | K16: =Calculations!CY30 -> 0 | L16: =Calculations!DB30 -> 0 | M16: 657 | N16: =Calculations!DC30 -> 198 | O16: =Calculations!DD30 -> 0 | P16: =Calculations!DE30 -> 547 | Q16: =Calculations!DH30 -> 0 | R16: 745 | S16: =Calculations!DI30 -> 0 | T16: =Calculations!DJ30 -> 190 | U16: =Calculations!DK30 -> 38 | V16: =Calculations!DN30 -> 0 | W16: 228 | X16: 1630 | Z16: 885 | AA16: 745
C17: 09:00:00 | D17: =Calculations!CQ42 -> 0 | E17: =Calculations!CR42 -> 0 | F17: =Calculations!CS42 -> 0 | G17: =Calculations!CV42 -> 0 | H17: 0 | I17: =Calculations!CW42 -> 47 | J17: =Calculations!CX42 -> 408 | K17: =Calculations!CY42 -> 0 | L17: =Calculations!DB42 -> 0 | M17: 455 | N17: =Calculations!DC42 -> 142 | O17: =Calculations!DD42 -> 0 | P17: =Calculations!DE42 -> 289 | Q17: =Calculations!DH42 -> 0 | R17: 431 | S17: =Calculations!DI42 -> 0 | T17: =Calculations!DJ42 -> 199 | U17: =Calculations!DK42 -> 39 | V17: =Calculations!DN42 -> 0 | W17: 238 | X17: 1124 | Z17: 693 | AA17: 431
B18: MD | C18: 10:00:00 | D18: =Calculations!CQ54 -> 0 | E18: =Calculations!CR54 -> 0 | F18: =Calculations!CS54 -> 0 | G18: =Calculations!CV54 -> 0 | H18: 0 | I18: =Calculations!CW54 -> 65 | J18: =Calculations!CX54 -> 405 | K18: =Calculations!CY54 -> 0 | L18: =Calculations!DB54 -> 0 | M18: 470 | N18: =Calculations!DC54 -> 165 | O18: =Calculations!DD54 -> 0 | P18: =Calculations!DE54 -> 267 | Q18: =Calculations!DH54 -> 0 | R18: 432 | S18: =Calculations!DI54 -> 0 | T18: =Calculations!DJ54 -> 225 | U18: =Calculations!DK54 -> 27 | V18: =Calculations!DN54 -> 0 | W18: 252 | X18: 1154 | Z18: 722 | AA18: 432
C19: 11:00:00 | D19: =Calculations!CQ66 -> 0 | E19: =Calculations!CR66 -> 0 | F19: =Calculations!CS66 -> 0 | G19: =Calculations!CV66 -> 0 | H19: 0 | I19: =Calculations!CW66 -> 44 | J19: =Calculations!CX66 -> 428 | K19: =Calculations!CY66 -> 0 | L19: =Calculations!DB66 -> 0 | M19: 472 | N19: =Calculations!DC66 -> 205 | O19: =Calculations!DD66 -> 4 | P19: =Calculations!DE66 -> 382 | Q19: =Calculations!DH66 -> 0 | R19: 591 | S19: =Calculations!DI66 -> 0 | T19: =Calculations!DJ66 -> 288 | U19: =Calculations!DK66 -> 29 | V19: =Calculations!DN66 -> 0 | W19: 317 | X19: 1380 | Z19: 789 | AA19: 591
C20: 12:00:00 | D20: =Calculations!CQ78 -> 0 | E20: =Calculations!CR78 -> 0 | F20: =Calculations!CS78 -> 0 | G20: =Calculations!CV78 -> 0 | H20: 0 | I20: =Calculations!CW78 -> 55 | J20: =Calculations!CX78 -> 420 | K20: =Calculations!CY78 -> 0 | L20: =Calculations!DB78 -> 0 | M20: 475 | N20: =Calculations!DC78 -> 198 | O20: =Calculations!DD78 -> 0 | P20: =Calculations!DE78 -> 406 | Q20: =Calculations!DH78 -> 0 | R20: 604 | S20: =Calculations!DI78 -> 0 | T20: =Calculations!DJ78 -> 279 | U20: =Calculations!DK78 -> 51 | V20: =Calculations!DN78 -> 0 | W20: 330 | X20: 1409 | Z20: 805 | AA20: 604
C21: 13:00:00 | D21: =Calculations!CQ90 -> 0 | E21: =Calculations!CR90 -> 0 | F21: =Calculations!CS90 -> 0 | G21: =Calculations!CV90 -> 0 | H21: 0 | I21: =Calculations!CW90 -> 50 | J21: =Calculations!CX90 -> 441 | K21: =Calculations!CY90 -> 0 | L21: =Calculations!DB90 -> 0 | M21: 491 | N21: =Calculations!DC90 -> 216 | O21: =Calculations!DD90 -> 0 | P21: =Calculations!DE90 -> 417 | Q21: =Calculations!DH90 -> 0 | R21: 633 | S21: =Calculations!DI90 -> 0 | T21: =Calculations!DJ90 -> 328 | U21: =Calculations!DK90 -> 36 | V21: =Calculations!DN90 -> 0 | W21: 364 | X21: 1488 | Z21: 855 | AA21: 633
B22: PM | C22: 14:00:00 | D22: =Calculations!CQ102 -> 0 | E22: =Calculations!CR102 -> 0 | F22: =Calculations!CS102 -> 0 | G22: =Calculations!CV102 -> 0 | H22: 0 | I22: =Calculations!CW102 -> 67 | J22: =Calculations!CX102 -> 453 | K22: =Calculations!CY102 -> 0 | L22: =Calculations!DB102 -> 0 | M22: 520 | N22: =Calculations!DC102 -> 285 | O22: =Calculations!DD102 -> 1 | P22: =Calculations!DE102 -> 412 | Q22: =Calculations!DH102 -> 0 | R22: 698 | S22: =Calculations!DI102 -> 0 | T22: =Calculations!DJ102 -> 396 | U22: =Calculations!DK102 -> 87 | V22: =Calculations!DN102 -> 0 | W22: 483 | X22: 1701 | Z22: 1003 | AA22: 698
C23: 15:00:00 | D23: =Calculations!CQ114 -> 0 | E23: =Calculations!CR114 -> 0 | F23: =Calculations!CS114 -> 0 | G23: =Calculations!CV114 -> 0 | H23: 0 | I23: =Calculations!CW114 -> 76 | J23: =Calculations!CX114 -> 535 | K23: =Calculations!CY114 -> 0 | L23: =Calculations!DB114 -> 0 | M23: 611 | N23: =Calculations!DC114 -> 344 | O23: =Calculations!DD114 -> 0 | P23: =Calculations!DE114 -> 442 | Q23: =Calculations!DH114 -> 0 | R23: 786 | S23: =Calculations!DI114 -> 0 | T23: =Calculations!DJ114 -> 448 | U23: =Calculations!DK114 -> 60 | V23: =Calculations!DN114 -> 0 | W23: 508 | X23: 1905 | Z23: =M23+W23 -> 1119 | AA23: 786
C24: 16:00:00 | D24: =Calculations!CQ126 -> 0 | E24: =Calculations!CR126 -> 0 | F24: =Calculations!CS126 -> 0 | G24: =Calculations!CV126 -> 0 | H24: 0 | I24: =Calculations!CW126 -> 56 | J24: =Calculations!CX126 -> 559 | K24: =Calculations!CY126 -> 0 | L24: =Calculations!DB126 -> 0 | M24: 615 | N24: =Calculations!DC126 -> 490 | O24: =Calculations!DD126 -> 0 | P24: =Calculations!DE126 -> 414 | Q24: =Calculations!DH126 -> 0 | R24: 904 | S24: =Calculations!DI126 -> 0 | T24: =Calculations!DJ126 -> 520 | U24: =Calculations!DK126 -> 133 | V24: =Calculations!DN126 -> 0 | W24: 653 | X24: 2172 | Z24: 1268 | AA24: 904
C25: 17:00:00 | D25: =Calculations!CQ138 -> 0 | E25: =Calculations!CR138 -> 0 | F25: =Calculations!CS138 -> 0 | G25: =Calculations!CV138 -> 0 | H25: 0 | I25: =Calculations!CW138 -> 56 | J25: =Calculations!CX138 -> 526 | K25: =Calculations!CY138 -> 0 | L25: =Calculations!DB138 -> 0 | M25: 582 | N25: =Calculations!DC138 -> 444 | O25: =Calculations!DD138 -> 0 | P25: =Calculations!DE138 -> 367 | Q25: =Calculations!DH138 -> 0 | R25: 811 | S25: =Calculations!DI138 -> 0 | T25: =Calculations!DJ138 -> 459 | U25: =Calculations!DK138 -> 71 | V25: =Calculations!DN138 -> 0 | W25: 530 | X25: 1923 | Z25: 1112 | AA25: 811
C26: 18:00:00 | D26: =Calculations!CQ150 -> 0 | E26: =Calculations!CR150 -> 0 | F26: =Calculations!CS150 -> 0 | G26: =Calculations!CV150 -> 0 | H26: 0 | I26: =Calculations!CW150 -> 0 | J26: =Calculations!CX150 -> 0 | K26: =Calculations!CY150 -> 0 | L26: =Calculations!DB150 -> 0 | M26: 0 | N26: =Calculations!DC150 -> 0 | O26: =Calculations!DD150 -> 0 | P26: =Calculations!DE150 -> 0 | Q26: =Calculations!DH150 -> 0 | R26: 0 | S26: =Calculations!DI150 -> 0 | T26: =Calculations!DJ150 -> 0 | U26: =Calculations!DK150 -> 0 | V26: =Calculations!DN150 -> 0 | W26: 0 | X26: 0 | Z26: 0 | AA26: 0
C27: 19:00:00 | D27: =Calculations!CQ162 -> 0 | E27: =Calculations!CR162 -> 0 | F27: =Calculations!CS162 -> 0 | G27: =Calculations!CV162 -> 0 | H27: 0 | I27: =Calculations!CW162 -> 0 | J27: =Calculations!CX162 -> 0 | K27: =Calculations!CY162 -> 0 | L27: =Calculations!DB162 -> 0 | M27: 0 | N27: =Calculations!DC162 -> 0 | O27: =Calculations!DD162 -> 0 | P27: =Calculations!DE162 -> 0 | Q27: =Calculations!DH162 -> 0 | R27: 0 | S27: =Calculations!DI162 -> 0 | T27: =Calculations!DJ162 -> 0 | U27: =Calculations!DK162 -> 0 | V27: =Calculations!DN162 -> 0 | W27: 0 | X27: 0 | Z27: 0 | AA27: 0
C28: 20:00:00 | D28: =Calculations!CQ174 -> 0 | E28: =Calculations!CR174 -> 0 | F28: =Calculations!CS174 -> 0 | G28: =Calculations!CV174 -> 0 | H28: 0 | I28: =Calculations!CW174 -> 0 | J28: =Calculations!CX174 -> 0 | K28: =Calculations!CY174 -> 0 | L28: =Calculations!DB174 -> 0 | M28: 0 | N28: =Calculations!DC174 -> 0 | O28: =Calculations!DD174 -> 0 | P28: =Calculations!DE174 -> 0 | Q28: =Calculations!DH174 -> 0 | R28: 0 | S28: =Calculations!DI174 -> 0 | T28: =Calculations!DJ174 -> 0 | U28: =Calculations!DK174 -> 0 | V28: =Calculations!DN174 -> 0 | W28: 0 | X28: 0 | Z28: 0 | AA28: 0
C29: 21:00:00 | D29: =Calculations!CQ186 -> 0 | E29: =Calculations!CR186 -> 0 | F29: =Calculations!CS186 -> 0 | G29: =Calculations!CV186 -> 0 | H29: 0 | I29: =Calculations!CW186 -> 0 | J29: =Calculations!CX186 -> 0 | K29: =Calculations!CY186 -> 0 | L29: =Calculations!DB186 -> 0 | M29: 0 | N29: =Calculations!DC186 -> 0 | O29: =Calculations!DD186 -> 0 | P29: =Calculations!DE186 -> 0 | Q29: =Calculations!DH186 -> 0 | R29: 0 | S29: =Calculations!DI186 -> 0 | T29: =Calculations!DJ186 -> 0 | U29: =Calculations!DK186 -> 0 | V29: =Calculations!DN186 -> 0 | W29: 0 | X29: 0 | Z29: 0 | AA29: 0
B30: Totals | D30: =SUM(D14:D29) -> 0 | E30: =SUM(E14:E29) -> 0 | F30: 0 | G30: 0 | H30: =SUM(H14:H29) -> 0 | I30: 739 | J30: 6028 | K30: 0 | L30: 0 | M30: 6767 | N30: 3098 | O30: 6 | P30: 5256 | Q30: 0 | R30: 8360 | S30: 0 | T30: 3660 | U30: 622 | V30: 0 | W30: 4282 | X30: =SUM(X14:X29) -> 19409 | Z30: =SUM(Z14:Z29) -> 11049 | AA30: =SUM(AA14:AA29) -> 8360

Sheet 15-Min All Vehicle
B1: Intersection Traffic Volume Report
P2: Count Basics | AA2: Page 5 of 11
P3: ='Base Information'!$L$3 -> Start Date: | R3: ='Base Information'!$N$3 -> 2011-12-06 | V3: ='Base Information'!R3 -> Weekday | Y3: ='Base Information'!U3 -> Schools in Session
P4: ='Base Information'!$L$4 -> Total Number of Hours Counted: 12 | V4: ='Base Information'!R4 -> Non-Holiday | Y4: ='Base Information'!U4 -> No Special Events
B5: 15-Minute Motor Vehicle Data
P6: All Motor Vehicles
B7: ='Base Information'!E7 -> 441 NB ON RAMP and CTH OO (Northland Ave)
B9: 15-Minute Motor Vehicle Data
F10: ê | K10: ç | P10: é | U10: è
B11: 15-Minute | D11: From North | I11: From East | N11: From South | S11: From West
B12: Time Period | D12: ='Base Information'!$D$14:$D$14 -> 441 NB ON RAMP | I12: ='Base Information'!$D$15:$D$15 -> CTH OO (Northland Ave) | N12: ='Base Information'!$D$16:$D$16 -> 441 NB OFF RAMP | S12: ='Base Information'!$D$17:$D$17 -> CTH OO (Northland Ave) | X12: 15-Min | Z12: Hourly
B13: Start Time | D13: Right | E13: Thru | F13: Left | G13: U-Tn | H13: Total | I13: Right | J13: Thru | K13: Left | L13: U-Tn | M13: Total | N13: Right | O13: Thru | P13: Left | Q13: U-Tn | R13: Total | S13: Right | T13: Thru | U13: Left | V13: U-Tn | W13: Total | X13: Totals | Z13: Sum | AA13: PHF
B14: AM Peak Period | C14: 06:00:00 | D14: =Calculations!$S$6 -> 0 | E14: =Calculations!$T$6 -> 0 | F14: =Calculations!$U$6 -> 0 | G14: =Calculations!$X$6 -> 0 | H14: =SUM(D14:G14) -> 0 | I14: =Calculations!$Y$6 -> 15 | J14: =Calculations!$Z$6 -> 113 | K14: =Calculations!$AA$6 -> 0 | L14: =Calculations!$AD$6 -> 0 | M14: =SUM(I14:L14) -> 128 | N14: =Calculations!$AE$6 -> 26 | O14: =Calculations!$AF$6 -> 0 | P14: =Calculations!$AG$6 -> 82 | Q14: =Calculations!$AJ$6 -> 0 | R14: =SUM(N14:Q14) -> 108 | S14: =Calculations!$AK$6 -> 0 | T14: =Calculations!$AL$6 -> 24 | U14: =Calculations!$AM$6 -> 2 | V14: =Calculations!$AP$6 -> 0 | W14: =SUM(S14:V14) -> 26 | X14: =H14+M14+R14+W14 -> 262 | Z14: =IF(OR(X14=0,X15=0, X16=0,X17=0)=TRUE,"",X14+X15+X16+X17) -> 1327 | AA14: =IF(OR(X14=0,X15=0, X16=0,X17=0)=TRUE,"",(Z14/(4*MAX(X14:X17)))) -> 0.6969537815
C15: 06:14:59.942 | D15: =Calculations!$S$9 -> 0 | E15: =Calculations!$T$9 -> 0 | F15: =Calculations!$U$9 -> 0 | G15: =Calculations!$X$9 -> 0 | H15: =SUM(D15:G15) -> 0 | I15: =Calculations!$Y$9 -> 13 | J15: =Calculations!$Z$9 -> 102 | K15: =Calculations!$AA$9 -> 0 | L15: =Calculations!$AD$9 -> 0 | M15: =SUM(I15:L15) -> 115 | N15: =Calculations!$AE$9 -> 31 | O15: =Calculations!$AF$9 -> 0 | P15: =Calculations!$AG$9 -> 114 | Q15: =Calculations!$AJ$9 -> 0 | R15: =SUM(N15:Q15) -> 145 | S15: =Calculations!$AK$9 -> 0 | T15: =Calculations!$AL$9 -> 36 | U15: =Calculations!$AM$9 -> 8 | V15: =Calculations!$AP$9 -> 0 | W15: =SUM(S15:V15) -> 44 | X15: =H15+M15+R15+W15 -> 304 | Z15: =IF(OR(X15=0,X16=0, X17=0,X18=0)=TRUE,"",X15+X16+X17+X18) -> 1475 | AA15: =IF(OR(X15=0,X16=0, X17=0,X18=0)=TRUE,"",(Z15/(4*MAX(X15:X18)))) -> 0.7746848739
C16: 06:29:59.971 | D16: =Calculations!$S$12 -> 0 | E16: =Calculations!$T$12 -> 0 | F16: =Calculations!$U$12 -> 0 | G16: =Calculations!$X$12 -> 0 | H16: 0 | I16: =Calculations!$Y$12 -> 16 | J16: =Calculations!$Z$12 -> 101 | K16: =Calculations!$AA$12 -> 0 | L16: =Calculations!$AD$12 -> 0 | M16: 117 | N16: =Calculations!$AE$12 -> 32 | O16: =Calculations!$AF$12 -> 0 | P16: =Calculations!$AG$12 -> 95 | Q16: =Calculations!$AJ$12 -> 0 | R16: 127 | S16: =Calculations!$AK$12 -> 0 | T16: =Calculations!$AL$12 -> 36 | U16: =Calculations!$AM$12 -> 5 | V16: =Calculations!$AP$12 -> 0 | W16: 41 | X16: 285 | Z16: 1687 | AA16: 0.8173449612
C17: 06:45:00 | D17: =Calculations!$S$15 -> 0 | E17: =Calculations!$T$15 -> 0 | F17: =Calculations!$U$15 -> 0 | G17: =Calculations!$X$15 -> 0 | H17: 0 | I17: =Calculations!$Y$15 -> 18 | J17: =Calculations!$Z$15 -> 143 | K17: =Calculations!$AA$15 -> 0 | L17: =Calculations!$AD$15 -> 0 | M17: 161 | N17: =Calculations!$AE$15 -> 63 | O17: =Calculations!$AF$15 -> 0 | P17: =Calculations!$AG$15 -> 189 | Q17: =Calculations!$AJ$15 -> 0 | R17: 252 | S17: =Calculations!$AK$15 -> 0 | T17: =Calculations!$AL$15 -> 59 | U17: =Calculations!$AM$15 -> 4 | V17: =Calculations!$AP$15 -> 0 | W17: 63 | X17: 476 | Z17: 1988 | AA17: 0.8481228669
C18: 06:59:59.942 | D18: =Calculations!$S$18 -> 0 | E18: =Calculations!$T$18 -> 0 | F18: =Calculations!$U$18 -> 0 | G18: =Calculations!$X$18 -> 0 | H18: 0 | I18: =Calculations!$Y$18 -> 12 | J18: =Calculations!$Z$18 -> 158 | K18: =Calculations!$AA$18 -> 0 | L18: =Calculations!$AD$18 -> 0 | M18: 170 | N18: =Calculations!$AE$18 -> 55 | O18: =Calculations!$AF$18 -> 0 | P18: =Calculations!$AG$18 -> 142 | Q18: =Calculations!$AJ$18 -> 0 | R18: 197 | S18: =Calculations!$AK$18 -> 0 | T18: =Calculations!$AL$18 -> 36 | U18: =Calculations!$AM$18 -> 7 | V18: =Calculations!$AP$18 -> 0 | W18: 43 | X18: 410 | Z18: 2196 | AA18: 0.8026315789
C19: 07:14:59.971 | D19: =Calculations!$S$21 -> 0 | E19: =Calculations!$T$21 -> 0 | F19: =Calculations!$U$21 -> 0 | G19: =Calculations!$X$21 -> 0 | H19: 0 | I19: =Calculations!$Y$21 -> 28 | J19: =Calculations!$Z$21 -> 151 | K19: =Calculations!$AA$21 -> 0 | L19: =Calculations!$AD$21 -> 0 | M19: 179 | N19: =Calculations!$AE$21 -> 74 | O19: =Calculations!$AF$21 -> 0 | P19: =Calculations!$AG$21 -> 216 | Q19: =Calculations!$AJ$21 -> 0 | R19: 290 | S19: =Calculations!$AK$21 -> 0 | T19: =Calculations!$AL$21 -> 35 | U19: =Calculations!$AM$21 -> 12 | V19: =Calculations!$AP$21 -> 0 | W19: 47 | X19: 516 | Z19: 2223 | AA19: 0.8125
C20: 07:30:00 | D20: =Calculations!$S$24 -> 0 | E20: =Calculations!$T$24 -> 0 | F20: =Calculations!$U$24 -> 0 | G20: =Calculations!$X$24 -> 0 | H20: 0 | I20: =Calculations!$Y$24 -> 19 | J20: =Calculations!$Z$24 -> 224 | K20: =Calculations!$AA$24 -> 0 | L20: =Calculations!$AD$24 -> 0 | M20: 243 | N20: =Calculations!$AE$24 -> 66 | O20: =Calculations!$AF$24 -> 1 | P20: =Calculations!$AG$24 -> 233 | Q20: =Calculations!$AJ$24 -> 0 | R20: 300 | S20: =Calculations!$AK$24 -> 0 | T20: =Calculations!$AL$24 -> 39 | U20: =Calculations!$AM$24 -> 4 | V20: =Calculations!$AP$24 -> 0 | W20: 43 | X20: 586 | Z20: 2134 | AA20: 0.7799707602
C21: 07:44:59.942 | D21: =Calculations!$S$27 -> 0 | E21: =Calculations!$T$27 -> 0 | F21: =Calculations!$U$27 -> 0 | G21: =Calculations!$X$27 -> 0 | H21: 0 | I21: =Calculations!$Y$27 -> 29 | J21: =Calculations!$Z$27 -> 277 | K21: =Calculations!$AA$27 -> 0 | L21: =Calculations!$AD$27 -> 0 | M21: 306 | N21: =Calculations!$AE$27 -> 64 | O21: =Calculations!$AF$27 -> 0 | P21: =Calculations!$AG$27 -> 242 | Q21: =Calculations!$AJ$27 -> 0 | R21: 306 | S21: =Calculations!$AK$27 -> 0 | T21: =Calculations!$AL$27 -> 63 | U21: =Calculations!$AM$27 -> 9 | V21: =Calculations!$AP$27 -> 0 | W21: 72 | X21: 684 | Z21: 1926 | AA21: 0.7039473684
C22: 07:59:59.971 | D22: =Calculations!$S$30 -> 0 | E22: =Calculations!$T$30 -> 0 | F22: =Calculations!$U$30 -> 0 | G22: =Calculations!$X$30 -> 0 | H22: 0 | I22: =Calculations!$Y$30 -> 12 | J22: =Calculations!$Z$30 -> 170 | K22: =Calculations!$AA$30 -> 0 | L22: =Calculations!$AD$30 -> 0 | M22: 182 | N22: =Calculations!$AE$30 -> 42 | O22: =Calculations!$AF$30 -> 0 | P22: =Calculations!$AG$30 -> 164 | Q22: =Calculations!$AJ$30 -> 0 | R22: 206 | S22: =Calculations!$AK$30 -> 0 | T22: =Calculations!$AL$30 -> 41 | U22: =Calculations!$AM$30 -> 8 | V22: =Calculations!$AP$30 -> 0 | W22: 49 | X22: 437 | Z22: 1630 | AA22: 0.9324942792
C23: 08:15:00 | D23: =Calculations!$S$33 -> 0 | E23: =Calculations!$T$33 -> 0 | F23: =Calculations!$U$33 -> 0 | G23: =Calculations!$X$33 -> 0 | H23: 0 | I23: =Calculations!$Y$33 -> 22 | J23: =Calculations!$Z$33 -> 156 | K23: =Calculations!$AA$33 -> 0 | L23: =Calculations!$AD$33 -> 0 | M23: 178 | N23: =Calculations!$AE$33 -> 60 | O23: =Calculations!$AF$33 -> 0 | P23: =Calculations!$AG$33 -> 125 | Q23: =Calculations!$AJ$33 -> 0 | R23: 185 | S23: =Calculations!$AK$33 -> 0 | T23: =Calculations!$AL$33 -> 52 | U23: =Calculations!$AM$33 -> 12 | V23: =Calculations!$AP$33 -> 0 | W23: 64 | X23: 427 | Z23: 1480 | AA23: 0.8665105386
C24: 08:29:59.942 | D24: =Calculations!$S$36 -> 0 | E24: =Calculations!$T$36 -> 0 | F24: =Calculations!$U$36 -> 0 | G24: =Calculations!$X$36 -> 0 | H24: 0 | I24: =Calculations!$Y$36 -> 20 | J24: =Calculations!$Z$36 -> 127 | K24: =Calculations!$AA$36 -> 0 | L24: =Calculations!$AD$36 -> 0 | M24: 147 | N24: =Calculations!$AE$36 -> 49 | O24: =Calculations!$AF$36 -> 0 | P24: =Calculations!$AG$36 -> 128 | Q24: =Calculations!$AJ$36 -> 0 | R24: 177 | S24: =Calculations!$AK$36 -> 0 | T24: =Calculations!$AL$36 -> 49 | U24: =Calculations!$AM$36 -> 5 | V24: =Calculations!$AP$36 -> 0 | W24: 54 | X24: 378 | Z24: 1327 | AA24: 0.8550257732
C25: 08:44:59.971 | D25: =Calculations!$S$39 -> 0 | E25: =Calculations!$T$39 -> 0 | F25: =Calculations!$U$39 -> 0 | G25: =Calculations!$X$39 -> 0 | H25: 0 | I25: =Calculations!$Y$39 -> 19 | J25: =Calculations!$Z$39 -> 131 | K25: =Calculations!$AA$39 -> 0 | L25: =Calculations!$AD$39 -> 0 | M25: 150 | N25: =Calculations!$AE$39 -> 47 | O25: =Calculations!$AF$39 -> 0 | P25: =Calculations!$AG$39 -> 130 | Q25: =Calculations!$AJ$39 -> 0 | R25: 177 | S25: =Calculations!$AK$39 -> 0 | T25: =Calculations!$AL$39 -> 48 | U25: =Calculations!$AM$39 -> 13 | V25: =Calculations!$AP$39 -> 0 | W25: 61 | X25: 388 | Z25: 1228 | AA25: 0.7912371134
C26: 09:00:00 | D26: =Calculations!$S$42 -> 0 | E26: =Calculations!$T$42 -> 0 | F26: =Calculations!$U$42 -> 0 | G26: =Calculations!$X$42 -> 0 | H26: 0 | I26: =Calculations!$Y$42 -> 7 | J26: =Calculations!$Z$42 -> 115 | K26: =Calculations!$AA$42 -> 0 | L26: =Calculations!$AD$42 -> 0 | M26: 122 | N26: =Calculations!$AE$42 -> 38 | O26: =Calculations!$AF$42 -> 0 | P26: =Calculations!$AG$42 -> 75 | Q26: =Calculations!$AJ$42 -> 0 | R26: 113 | S26: =Calculations!$AK$42 -> 0 | T26: =Calculations!$AL$42 -> 43 | U26: =Calculations!$AM$42 -> 9 | V26: =Calculations!$AP$42 -> 0 | W26: 52 | X26: 287 | Z26: 1124 | AA26: 0.9790940767
C27: 09:14:59.942 | D27: =Calculations!$S$45 -> 0 | E27: =Calculations!$T$45 -> 0 | F27: =Calculations!$U$45 -> 0 | G27: =Calculations!$X$45 -> 0 | H27: 0 | I27: =Calculations!$Y$45 -> 14 | J27: =Calculations!$Z$45 -> 94 | K27: =Calculations!$AA$45 -> 0 | L27: =Calculations!$AD$45 -> 0 | M27: 108 | N27: =Calculations!$AE$45 -> 37 | O27: =Calculations!$AF$45 -> 0 | P27: =Calculations!$AG$45 -> 65 | Q27: =Calculations!$AJ$45 -> 0 | R27: 102 | S27: =Calculations!$AK$45 -> 0 | T27: =Calculations!$AL$45 -> 54 | U27: =Calculations!$AM$45 -> 10 | V27: =Calculations!$AP$45 -> 0 | W27: 64 | X27: 274 | Z27: 1123 | AA27: 0.9816433566
C28: 09:29:59.971 | D28: =Calculations!$S$48 -> 0 | E28: =Calculations!$T$48 -> 0 | F28: =Calculations!$U$48 -> 0 | G28: =Calculations!$X$48 -> 0 | H28: 0 | I28: =Calculations!$Y$48 -> 10 | J28: =Calculations!$Z$48 -> 104 | K28: =Calculations!$AA$48 -> 0 | L28: =Calculations!$AD$48 -> 0 | M28: 114 | N28: =Calculations!$AE$48 -> 28 | O28: =Calculations!$AF$48 -> 0 | P28: =Calculations!$AG$48 -> 78 | Q28: =Calculations!$AJ$48 -> 0 | R28: 106 | S28: =Calculations!$AK$48 -> 0 | T28: =Calculations!$AL$48 -> 45 | U28: =Calculations!$AM$48 -> 14 | V28: =Calculations!$AP$48 -> 0 | W28: 59 | X28: 279 | Z28: 1123 | AA28: 0.9816433566
C29: 09:45:00 | D29: =Calculations!$S$51 -> 0 | E29: =Calculations!$T$51 -> 0 | F29: =Calculations!$U$51 -> 0 | G29: =Calculations!$X$51 -> 0 | H29: 0 | I29: =Calculations!$Y$51 -> 16 | J29: =Calculations!$Z$51 -> 95 | K29: =Calculations!$AA$51 -> 0 | L29: =Calculations!$AD$51 -> 0 | M29: 111 | N29: =Calculations!$AE$51 -> 39 | O29: =Calculations!$AF$51 -> 0 | P29: =Calculations!$AG$51 -> 71 | Q29: =Calculations!$AJ$51 -> 0 | R29: 110 | S29: =Calculations!$AK$51 -> 0 | T29: =Calculations!$AL$51 -> 57 | U29: =Calculations!$AM$51 -> 6 | V29: =Calculations!$AP$51 -> 0 | W29: 63 | X29: 284 | Z29: 1124 | AA29: 0.9825174825
B30: Midday Peak Period | C30: 09:59:59.942 | D30: =Calculations!$S$54 -> 0 | E30: =Calculations!$T$54 -> 0 | F30: =Calculations!$U$54 -> 0 | G30: =Calculations!$X$54 -> 0 | H30: 0 | I30: =Calculations!$Y$54 -> 19 | J30: =Calculations!$Z$54 -> 104 | K30: =Calculations!$AA$54 -> 0 | L30: =Calculations!$AD$54 -> 0 | M30: 123 | N30: =Calculations!$AE$54 -> 38 | O30: =Calculations!$AF$54 -> 0 | P30: =Calculations!$AG$54 -> 61 | Q30: =Calculations!$AJ$54 -> 0 | R30: 99 | S30: =Calculations!$AK$54 -> 0 | T30: =Calculations!$AL$54 -> 55 | U30: =Calculations!$AM$54 -> 9 | V30: =Calculations!$AP$54 -> 0 | W30: 64 | X30: 286 | Z30: 1154 | AA30: 0.9187898089
C31: 10:14:59.971 | D31: =Calculations!$S$57 -> 0 | E31: =Calculations!$T$57 -> 0 | F31: =Calculations!$U$57 -> 0 | G31: =Calculations!$X$57 -> 0 | H31: 0 | I31: =Calculations!$Y$57 -> 15 | J31: =Calculations!$Z$57 -> 91 | K31: =Calculations!$AA$57 -> 0 | L31: =Calculations!$AD$57 -> 0 | M31: 106 | N31: =Calculations!$AE$57 -> 39 | O31: =Calculations!$AF$57 -> 0 | P31: =Calculations!$AG$57 -> 70 | Q31: =Calculations!$AJ$57 -> 0 | R31: 109 | S31: =Calculations!$AK$57 -> 0 | T31: =Calculations!$AL$57 -> 54 | U31: =Calculations!$AM$57 -> 5 | V31: =Calculations!$AP$57 -> 0 | W31: 59 | X31: 274 | Z31: 1180 | AA31: 0.9394904459
C32: 10:30:00 | D32: =Calculations!$S$60 -> 0 | E32: =Calculations!$T$60 -> 0 | F32: =Calculations!$U$60 -> 0 | G32: =Calculations!$X$60 -> 0 | H32: 0 | I32: =Calculations!$Y$60 -> 15 | J32: =Calculations!$Z$60 -> 100 | K32: =Calculations!$AA$60 -> 0 | L32: =Calculations!$AD$60 -> 0 | M32: 115 | N32: =Calculations!$AE$60 -> 40 | O32: =Calculations!$AF$60 -> 0 | P32: =Calculations!$AG$60 -> 65 | Q32: =Calculations!$AJ$60 -> 0 | R32: 105 | S32: =Calculations!$AK$60 -> 0 | T32: =Calculations!$AL$60 -> 54 | U32: =Calculations!$AM$60 -> 6 | V32: =Calculations!$AP$60 -> 0 | W32: 60 | X32: 280 | Z32: 1269 | AA32: 0.8739669421
C33: 10:44:59.942 | D33: =Calculations!$S$63 -> 0 | E33: =Calculations!$T$63 -> 0 | F33: =Calculations!$U$63 -> 0 | G33: =Calculations!$X$63 -> 0 | H33: 0 | I33: =Calculations!$Y$63 -> 16 | J33: =Calculations!$Z$63 -> 110 | K33: =Calculations!$AA$63 -> 0 | L33: =Calculations!$AD$63 -> 0 | M33: 126 | N33: =Calculations!$AE$63 -> 48 | O33: =Calculations!$AF$63 -> 0 | P33: =Calculations!$AG$63 -> 71 | Q33: =Calculations!$AJ$63 -> 0 | R33: 119 | S33: =Calculations!$AK$63 -> 0 | T33: =Calculations!$AL$63 -> 62 | U33: =Calculations!$AM$63 -> 7 | V33: =Calculations!$AP$63 -> 0 | W33: 69 | X33: 314 | Z33: 1337 | AA33: 0.9207988981
C34: 10:59:59.971 | D34: =Calculations!$S$66 -> 0 | E34: =Calculations!$T$66 -> 0 | F34: =Calculations!$U$66 -> 0 | G34: =Calculations!$X$66 -> 0 | H34: 0 | I34: =Calculations!$Y$66 -> 9 | J34: =Calculations!$Z$66 -> 98 | K34: =Calculations!$AA$66 -> 0 | L34: =Calculations!$AD$66 -> 0 | M34: 107 | N34: =Calculations!$AE$66 -> 37 | O34: =Calculations!$AF$66 -> 0 | P34: =Calculations!$AG$66 -> 95 | Q34: =Calculations!$AJ$66 -> 0 | R34: 132 | S34: =Calculations!$AK$66 -> 0 | T34: =Calculations!$AL$66 -> 61 | U34: =Calculations!$AM$66 -> 12 | V34: =Calculations!$AP$66 -> 0 | W34: 73 | X34: 312 | Z34: 1380 | AA34: 0.9504132231
C35: 11:15:00 | D35: =Calculations!$S$69 -> 0 | E35: =Calculations!$T$69 -> 0 | F35: =Calculations!$U$69 -> 0 | G35: =Calculations!$X$69 -> 0 | H35: 0 | I35: =Calculations!$Y$69 -> 9 | J35: =Calculations!$Z$69 -> 109 | K35: =Calculations!$AA$69 -> 0 | L35: =Calculations!$AD$69 -> 0 | M35: 118 | N35: =Calculations!$AE$69 -> 54 | O35: =Calculations!$AF$69 -> 4 | P35: =Calculations!$AG$69 -> 99 | Q35: =Calculations!$AJ$69 -> 0 | R35: 157 | S35: =Calculations!$AK$69 -> 0 | T35: =Calculations!$AL$69 -> 83 | U35: =Calculations!$AM$69 -> 5 | V35: =Calculations!$AP$69 -> 0 | W35: 88 | X35: 363 | Z35: 1400 | AA35: 0.9641873278
C36: 11:29:59.942 | D36: =Calculations!$S$72 -> 0 | E36: =Calculations!$T$72 -> 0 | F36: =Calculations!$U$72 -> 0 | G36: =Calculations!$X$72 -> 0 | H36: 0 | I36: =Calculations!$Y$72 -> 15 | J36: =Calculations!$Z$72 -> 110 | K36: =Calculations!$AA$72 -> 0 | L36: =Calculations!$AD$72 -> 0 | M36: 125 | N36: =Calculations!$AE$72 -> 49 | O36: =Calculations!$AF$72 -> 0 | P36: =Calculations!$AG$72 -> 83 | Q36: =Calculations!$AJ$72 -> 0 | R36: 132 | S36: =Calculations!$AK$72 -> 0 | T36: =Calculations!$AL$72 -> 86 | U36: =Calculations!$AM$72 -> 5 | V36: =Calculations!$AP$72 -> 0 | W36: 91 | X36: 348 | Z36: 1383 | AA36: 0.968487395
C37: 11:44:59.971 | D37: =Calculations!$S$75 -> 0 | E37: =Calculations!$T$75 -> 0 | F37: =Calculations!$U$75 -> 0 | G37: =Calculations!$X$75 -> 0 | H37: 0 | I37: =Calculations!$Y$75 -> 11 | J37: =Calculations!$Z$75 -> 111 | K37: =Calculations!$AA$75 -> 0 | L37: =Calculations!$AD$75 -> 0 | M37: 122 | N37: =Calculations!$AE$75 -> 65 | O37: =Calculations!$AF$75 -> 0 | P37: =Calculations!$AG$75 -> 105 | Q37: =Calculations!$AJ$75 -> 0 | R37: 170 | S37: =Calculations!$AK$75 -> 0 | T37: =Calculations!$AL$75 -> 58 | U37: =Calculations!$AM$75 -> 7 | V37: =Calculations!$AP$75 -> 0 | W37: 65 | X37: 357 | Z37: 1394 | AA37: 0.9707520891
C38: 12:00:00 | D38: =Calculations!$S$78 -> 0 | E38: =Calculations!$T$78 -> 0 | F38: =Calculations!$U$78 -> 0 | G38: =Calculations!$X$78 -> 0 | H38: 0 | I38: =Calculations!$Y$78 -> 11 | J38: =Calculations!$Z$78 -> 97 | K38: =Calculations!$AA$78 -> 0 | L38: =Calculations!$AD$78 -> 0 | M38: 108 | N38: =Calculations!$AE$78 -> 42 | O38: =Calculations!$AF$78 -> 0 | P38: =Calculations!$AG$78 -> 98 | Q38: =Calculations!$AJ$78 -> 0 | R38: 140 | S38: =Calculations!$AK$78 -> 0 | T38: =Calculations!$AL$78 -> 70 | U38: =Calculations!$AM$78 -> 14 | V38: =Calculations!$AP$78 -> 0 | W38: 84 | X38: 332 | Z38: 1409 | AA38: 0.9469086022
C39: 12:14:59.942 | D39: =Calculations!$S$81 -> 0 | E39: =Calculations!$T$81 -> 0 | F39: =Calculations!$U$81 -> 0 | G39: =Calculations!$X$81 -> 0 | H39: 0 | I39: =Calculations!$Y$81 -> 18 | J39: =Calculations!$Z$81 -> 107 | K39: =Calculations!$AA$81 -> 0 | L39: =Calculations!$AD$81 -> 0 | M39: 125 | N39: =Calculations!$AE$81 -> 42 | O39: =Calculations!$AF$81 -> 0 | P39: =Calculations!$AG$81 -> 92 | Q39: =Calculations!$AJ$81 -> 0 | R39: 134 | S39: =Calculations!$AK$81 -> 0 | T39: =Calculations!$AL$81 -> 77 | U39: =Calculations!$AM$81 -> 10 | V39: =Calculations!$AP$81 -> 0 | W39: 87 | X39: 346 | Z39: 1465 | AA39: 0.943943299
C40: 12:29:59.971 | D40: =Calculations!$S$84 -> 0 | E40: =Calculations!$T$84 -> 0 | F40: =Calculations!$U$84 -> 0 | G40: =Calculations!$X$84 -> 0 | H40: 0 | I40: =Calculations!$Y$84 -> 14 | J40: =Calculations!$Z$84 -> 110 | K40: =Calculations!$AA$84 -> 0 | L40: =Calculations!$AD$84 -> 0 | M40: 124 | N40: =Calculations!$AE$84 -> 50 | O40: =Calculations!$AF$84 -> 0 | P40: =Calculations!$AG$84 -> 113 | Q40: =Calculations!$AJ$84 -> 0 | R40: 163 | S40: =Calculations!$AK$84 -> 0 | T40: =Calculations!$AL$84 -> 64 | U40: =Calculations!$AM$84 -> 8 | V40: =Calculations!$AP$84 -> 0 | W40: 72 | X40: 359 | Z40: 1445 | AA40: 0.931056701
C41: 12:45:00 | D41: =Calculations!$S$87 -> 0 | E41: =Calculations!$T$87 -> 0 | F41: =Calculations!$U$87 -> 0 | G41: =Calculations!$X$87 -> 0 | H41: 0 | I41: =Calculations!$Y$87 -> 12 | J41: =Calculations!$Z$87 -> 106 | K41: =Calculations!$AA$87 -> 0 | L41: =Calculations!$AD$87 -> 0 | M41: 118 | N41: =Calculations!$AE$87 -> 64 | O41: =Calculations!$AF$87 -> 0 | P41: =Calculations!$AG$87 -> 103 | Q41: =Calculations!$AJ$87 -> 0 | R41: 167 | S41: =Calculations!$AK$87 -> 0 | T41: =Calculations!$AL$87 -> 68 | U41: =Calculations!$AM$87 -> 19 | V41: =Calculations!$AP$87 -> 0 | W41: 87 | X41: 372 | Z41: 1485 | AA41: 0.9304511278
C42: 12:59:59.942 | D42: =Calculations!$S$90 -> 0 | E42: =Calculations!$T$90 -> 0 | F42: =Calculations!$U$90 -> 0 | G42: =Calculations!$X$90 -> 0 | H42: 0 | I42: =Calculations!$Y$90 -> 13 | J42: =Calculations!$Z$90 -> 124 | K42: =Calculations!$AA$90 -> 0 | L42: =Calculations!$AD$90 -> 0 | M42: 137 | N42: =Calculations!$AE$90 -> 52 | O42: =Calculations!$AF$90 -> 0 | P42: =Calculations!$AG$90 -> 119 | Q42: =Calculations!$AJ$90 -> 0 | R42: 171 | S42: =Calculations!$AK$90 -> 0 | T42: =Calculations!$AL$90 -> 72 | U42: =Calculations!$AM$90 -> 8 | V42: =Calculations!$AP$90 -> 0 | W42: 80 | X42: 388 | Z42: 1488 | AA42: 0.9323308271
C43: 13:14:59.971 | D43: =Calculations!$S$93 -> 0 | E43: =Calculations!$T$93 -> 0 | F43: =Calculations!$U$93 -> 0 | G43: =Calculations!$X$93 -> 0 | H43: 0 | I43: =Calculations!$Y$93 -> 12 | J43: =Calculations!$Z$93 -> 92 | K43: =Calculations!$AA$93 -> 0 | L43: =Calculations!$AD$93 -> 0 | M43: 104 | N43: =Calculations!$AE$93 -> 61 | O43: =Calculations!$AF$93 -> 0 | P43: =Calculations!$AG$93 -> 80 | Q43: =Calculations!$AJ$93 -> 0 | R43: 141 | S43: =Calculations!$AK$93 -> 0 | T43: =Calculations!$AL$93 -> 73 | U43: =Calculations!$AM$93 -> 8 | V43: =Calculations!$AP$93 -> 0 | W43: 81 | X43: 326 | Z43: 1481 | AA43: 0.9279448622
C44: 13:30:00 | D44: =Calculations!$S$96 -> 0 | E44: =Calculations!$T$96 -> 0 | F44: =Calculations!$U$96 -> 0 | G44: =Calculations!$X$96 -> 0 | H44: 0 | I44: =Calculations!$Y$96 -> 12 | J44: =Calculations!$Z$96 -> 115 | K44: =Calculations!$AA$96 -> 0 | L44: =Calculations!$AD$96 -> 0 | M44: 127 | N44: =Calculations!$AE$96 -> 51 | O44: =Calculations!$AF$96 -> 0 | P44: =Calculations!$AG$96 -> 113 | Q44: =Calculations!$AJ$96 -> 0 | R44: 164 | S44: =Calculations!$AK$96 -> 0 | T44: =Calculations!$AL$96 -> 100 | U44: =Calculations!$AM$96 -> 8 | V44: =Calculations!$AP$96 -> 0 | W44: 108 | X44: 399 | Z44: 1578 | AA44: 0.9326241135
C45: 13:44:59.942 | D45: =Calculations!$S$99 -> 0 | E45: =Calculations!$T$99 -> 0 | F45: =Calculations!$U$99 -> 0 | G45: =Calculations!$X$99 -> 0 | H45: 0 | I45: =Calculations!$Y$99 -> 13 | J45: =Calculations!$Z$99 -> 110 | K45: =Calculations!$AA$99 -> 0 | L45: =Calculations!$AD$99 -> 0 | M45: 123 | N45: =Calculations!$AE$99 -> 52 | O45: =Calculations!$AF$99 -> 0 | P45: =Calculations!$AG$99 -> 105 | Q45: =Calculations!$AJ$99 -> 0 | R45: 157 | S45: =Calculations!$AK$99 -> 0 | T45: =Calculations!$AL$99 -> 83 | U45: =Calculations!$AM$99 -> 12 | V45: =Calculations!$AP$99 -> 0 | W45: 95 | X45: 375 | Z45: 1614 | AA45: 0.9275862069
B46: PM Peak Period | C46: 13:59:59.971 | D46: =Calculations!$S$102 -> 0 | E46: =Calculations!$T$102 -> 0 | F46: =Calculations!$U$102 -> 0 | G46: =Calculations!$X$102 -> 0 | H46: 0 | I46: =Calculations!$Y$102 -> 18 | J46: =Calculations!$Z$102 -> 127 | K46: =Calculations!$AA$102 -> 0 | L46: =Calculations!$AD$102 -> 0 | M46: 145 | N46: =Calculations!$AE$102 -> 51 | O46: =Calculations!$AF$102 -> 1 | P46: =Calculations!$AG$102 -> 93 | Q46: =Calculations!$AJ$102 -> 0 | R46: 145 | S46: =Calculations!$AK$102 -> 0 | T46: =Calculations!$AL$102 -> 77 | U46: =Calculations!$AM$102 -> 14 | V46: =Calculations!$AP$102 -> 0 | W46: 91 | X46: 381 | Z46: 1701 | AA46: 0.9204545455
C47: 14:15:00 | D47: =Calculations!$S$105 -> 0 | E47: =Calculations!$T$105 -> 0 | F47: =Calculations!$U$105 -> 0 | G47: =Calculations!$X$105 -> 0 | H47: 0 | I47: =Calculations!$Y$105 -> 12 | J47: =Calculations!$Z$105 -> 114 | K47: =Calculations!$AA$105 -> 0 | L47: =Calculations!$AD$105 -> 0 | M47: 126 | N47: =Calculations!$AE$105 -> 79 | O47: =Calculations!$AF$105 -> 0 | P47: =Calculations!$AG$105 -> 119 | Q47: =Calculations!$AJ$105 -> 0 | R47: 198 | S47: =Calculations!$AK$105 -> 0 | T47: =Calculations!$AL$105 -> 90 | U47: =Calculations!$AM$105 -> 9 | V47: =Calculations!$AP$105 -> 0 | W47: 99 | X47: 423 | Z47: 1749 | AA47: 0.9464285714
C48: 14:29:59.942 | D48: =Calculations!$S$108 -> 0 | E48: =Calculations!$T$108 -> 0 | F48: =Calculations!$U$108 -> 0 | G48: =Calculations!$X$108 -> 0 | H48: 0 | I48: =Calculations!$Y$108 -> 14 | J48: =Calculations!$Z$108 -> 102 | K48: =Calculations!$AA$108 -> 0 | L48: =Calculations!$AD$108 -> 0 | M48: 116 | N48: =Calculations!$AE$108 -> 75 | O48: =Calculations!$AF$108 -> 0 | P48: =Calculations!$AG$108 -> 91 | Q48: =Calculations!$AJ$108 -> 0 | R48: 166 | S48: =Calculations!$AK$108 -> 0 | T48: =Calculations!$AL$108 -> 120 | U48: =Calculations!$AM$108 -> 33 | V48: =Calculations!$AP$108 -> 0 | W48: 153 | X48: 435 | Z48: 1793 | AA48: 0.9598501071
C49: 14:44:59.971 | D49: =Calculations!$S$111 -> 0 | E49: =Calculations!$T$111 -> 0 | F49: =Calculations!$U$111 -> 0 | G49: =Calculations!$X$111 -> 0 | H49: 0 | I49: =Calculations!$Y$111 -> 23 | J49: =Calculations!$Z$111 -> 110 | K49: =Calculations!$AA$111 -> 0 | L49: =Calculations!$AD$111 -> 0 | M49: 133 | N49: =Calculations!$AE$111 -> 80 | O49: =Calculations!$AF$111 -> 0 | P49: =Calculations!$AG$111 -> 109 | Q49: =Calculations!$AJ$111 -> 0 | R49: 189 | S49: =Calculations!$AK$111 -> 0 | T49: =Calculations!$AL$111 -> 109 | U49: =Calculations!$AM$111 -> 31 | V49: =Calculations!$AP$111 -> 0 | W49: 140 | X49: 462 | Z49: 1884 | AA49: 0.8954372624
C50: 15:00:00 | D50: =Calculations!$S$114 -> 0 | E50: =Calculations!$T$114 -> 0 | F50: =Calculations!$U$114 -> 0 | G50: =Calculations!$X$114 -> 0 | H50: 0 | I50: =Calculations!$Y$114 -> 16 | J50: =Calculations!$Z$114 -> 117 | K50: =Calculations!$AA$114 -> 0 | L50: =Calculations!$AD$114 -> 0 | M50: 133 | N50: =Calculations!$AE$114 -> 69 | O50: =Calculations!$AF$114 -> 0 | P50: =Calculations!$AG$114 -> 121 | Q50: =Calculations!$AJ$114 -> 0 | R50: 190 | S50: =Calculations!$AK$114 -> 0 | T50: =Calculations!$AL$114 -> 91 | U50: =Calculations!$AM$114 -> 15 | V50: =Calculations!$AP$114 -> 0 | W50: 106 | X50: 429 | Z50: 1905 | AA50: 0.905418251
C51: 15:14:59.942 | D51: =Calculations!$S$117 -> 0 | E51: =Calculations!$T$117 -> 0 | F51: =Calculations!$U$117 -> 0 | G51: =Calculations!$X$117 -> 0 | H51: 0 | I51: =Calculations!$Y$117 -> 19 | J51: =Calculations!$Z$117 -> 154 | K51: =Calculations!$AA$117 -> 0 | L51: =Calculations!$AD$117 -> 0 | M51: 173 | N51: =Calculations!$AE$117 -> 76 | O51: =Calculations!$AF$117 -> 0 | P51: =Calculations!$AG$117 -> 94 | Q51: =Calculations!$AJ$117 -> 0 | R51: 170 | S51: =Calculations!$AK$117 -> 0 | T51: =Calculations!$AL$117 -> 112 | U51: =Calculations!$AM$117 -> 12 | V51: =Calculations!$AP$117 -> 0 | W51: 124 | X51: 467 | Z51: 1952 | AA51: 0.927756654
C52: 15:29:59.971 | D52: =Calculations!$S$120 -> 0 | E52: =Calculations!$T$120 -> 0 | F52: =Calculations!$U$120 -> 0 | G52: =Calculations!$X$120 -> 0 | H52: 0 | I52: =Calculations!$Y$120 -> 16 | J52: =Calculations!$Z$120 -> 155 | K52: =Calculations!$AA$120 -> 0 | L52: =Calculations!$AD$120 -> 0 | M52: 171 | N52: =Calculations!$AE$120 -> 91 | O52: =Calculations!$AF$120 -> 0 | P52: =Calculations!$AG$120 -> 122 | Q52: =Calculations!$AJ$120 -> 0 | R52: 213 | S52: =Calculations!$AK$120 -> 0 | T52: =Calculations!$AL$120 -> 125 | U52: =Calculations!$AM$120 -> 17 | V52: =Calculations!$AP$120 -> 0 | W52: 142 | X52: 526 | Z52: 2017 | AA52: 0.9478383459
C53: 15:45:00 | D53: =Calculations!$S$123 -> 0 | E53: =Calculations!$T$123 -> 0 | F53: =Calculations!$U$123 -> 0 | G53: =Calculations!$X$123 -> 0 | H53: 0 | I53: =Calculations!$Y$123 -> 25 | J53: =Calculations!$Z$123 -> 109 | K53: =Calculations!$AA$123 -> 0 | L53: =Calculations!$AD$123 -> 0 | M53: 134 | N53: =Calculations!$AE$123 -> 108 | O53: =Calculations!$AF$123 -> 0 | P53: =Calculations!$AG$123 -> 105 | Q53: =Calculations!$AJ$123 -> 0 | R53: 213 | S53: =Calculations!$AK$123 -> 0 | T53: =Calculations!$AL$123 -> 120 | U53: =Calculations!$AM$123 -> 16 | V53: =Calculations!$AP$123 -> 0 | W53: 136 | X53: 483 | Z53: 2050 | AA53: 0.9168157424
C54: 15:59:59.942 | D54: =Calculations!$S$126 -> 0 | E54: =Calculations!$T$126 -> 0 | F54: =Calculations!$U$126 -> 0 | G54: =Calculations!$X$126 -> 0 | H54: 0 | I54: =Calculations!$Y$126 -> 14 | J54: =Calculations!$Z$126 -> 133 | K54: =Calculations!$AA$126 -> 0 | L54: =Calculations!$AD$126 -> 0 | M54: 147 | N54: =Calculations!$AE$126 -> 81 | O54: =Calculations!$AF$126 -> 0 | P54: =Calculations!$AG$126 -> 90 | Q54: =Calculations!$AJ$126 -> 0 | R54: 171 | S54: =Calculations!$AK$126 -> 0 | T54: =Calculations!$AL$126 -> 118 | U54: =Calculations!$AM$126 -> 40 | V54: =Calculations!$AP$126 -> 0 | W54: 158 | X54: 476 | Z54: 2172 | AA54: 0.8975206612
C55: 16:14:59.971 | D55: =Calculations!$S$129 -> 0 | E55: =Calculations!$T$129 -> 0 | F55: =Calculations!$U$129 -> 0 | G55: =Calculations!$X$129 -> 0 | H55: 0 | I55: =Calculations!$Y$129 -> 10 | J55: =Calculations!$Z$129 -> 125 | K55: =Calculations!$AA$129 -> 0 | L55: =Calculations!$AD$129 -> 0 | M55: 135 | N55: =Calculations!$AE$129 -> 129 | O55: =Calculations!$AF$129 -> 0 | P55: =Calculations!$AG$129 -> 115 | Q55: =Calculations!$AJ$129 -> 0 | R55: 244 | S55: =Calculations!$AK$129 -> 0 | T55: =Calculations!$AL$129 -> 126 | U55: =Calculations!$AM$129 -> 27 | V55: =Calculations!$AP$129 -> 0 | W55: 153 | X55: 532 | Z55: 2205 | AA55: 0.9111570248
C56: 16:30:00 | D56: =Calculations!$S$132 -> 0 | E56: =Calculations!$T$132 -> 0 | F56: =Calculations!$U$132 -> 0 | G56: =Calculations!$X$132 -> 0 | H56: 0 | I56: =Calculations!$Y$132 -> 16 | J56: =Calculations!$Z$132 -> 144 | K56: =Calculations!$AA$132 -> 0 | L56: =Calculations!$AD$132 -> 0 | M56: 160 | N56: =Calculations!$AE$132 -> 128 | O56: =Calculations!$AF$132 -> 0 | P56: =Calculations!$AG$132 -> 92 | Q56: =Calculations!$AJ$132 -> 0 | R56: 220 | S56: =Calculations!$AK$132 -> 0 | T56: =Calculations!$AL$132 -> 148 | U56: =Calculations!$AM$132 -> 31 | V56: =Calculations!$AP$132 -> 0 | W56: 179 | X56: 559 | Z56: 2241 | AA56: 0.9260330579
C57: 16:44:59.942 | D57: =Calculations!$S$135 -> 0 | E57: =Calculations!$T$135 -> 0 | F57: =Calculations!$U$135 -> 0 | G57: =Calculations!$X$135 -> 0 | H57: 0 | I57: =Calculations!$Y$135 -> 16 | J57: =Calculations!$Z$135 -> 157 | K57: =Calculations!$AA$135 -> 0 | L57: =Calculations!$AD$135 -> 0 | M57: 173 | N57: =Calculations!$AE$135 -> 152 | O57: =Calculations!$AF$135 -> 0 | P57: =Calculations!$AG$135 -> 117 | Q57: =Calculations!$AJ$135 -> 0 | R57: 269 | S57: =Calculations!$AK$135 -> 0 | T57: =Calculations!$AL$135 -> 128 | U57: =Calculations!$AM$135 -> 35 | V57: =Calculations!$AP$135 -> 0 | W57: 163 | X57: 605 | Z57: 2118 | AA57: 0.8752066116
C58: 16:59:59.971 | D58: =Calculations!$S$138 -> 0 | E58: =Calculations!$T$138 -> 0 | F58: =Calculations!$U$138 -> 0 | G58: =Calculations!$X$138 -> 0 | H58: 0 | I58: =Calculations!$Y$138 -> 20 | J58: =Calculations!$Z$138 -> 139 | K58: =Calculations!$AA$138 -> 0 | L58: =Calculations!$AD$138 -> 0 | M58: 159 | N58: =Calculations!$AE$138 -> 104 | O58: =Calculations!$AF$138 -> 0 | P58: =Calculations!$AG$138 -> 96 | Q58: =Calculations!$AJ$138 -> 0 | R58: 200 | S58: =Calculations!$AK$138 -> 0 | T58: =Calculations!$AL$138 -> 126 | U58: =Calculations!$AM$138 -> 24 | V58: =Calculations!$AP$138 -> 0 | W58: 150 | X58: 509 | Z58: 1923 | AA58: 0.8463908451
C59: 17:15:00 | D59: =Calculations!$S$141 -> 0 | E59: =Calculations!$T$141 -> 0 | F59: =Calculations!$U$141 -> 0 | G59: =Calculations!$X$141 -> 0 | H59: 0 | I59: =Calculations!$Y$141 -> 12 | J59: =Calculations!$Z$141 -> 150 | K59: =Calculations!$AA$141 -> 0 | L59: =Calculations!$AD$141 -> 0 | M59: 162 | N59: =Calculations!$AE$141 -> 137 | O59: =Calculations!$AF$141 -> 0 | P59: =Calculations!$AG$141 -> 108 | Q59: =Calculations!$AJ$141 -> 0 | R59: 245 | S59: =Calculations!$AK$141 -> 0 | T59: =Calculations!$AL$141 -> 142 | U59: =Calculations!$AM$141 -> 19 | V59: =Calculations!$AP$141 -> 0 | W59: 161 | X59: 568
C60: 17:29:59.942 | D60: =Calculations!$S$144 -> 0 | E60: =Calculations!$T$144 -> 0 | F60: =Calculations!$U$144 -> 0 | G60: =Calculations!$X$144 -> 0 | H60: 0 | I60: =Calculations!$Y$144 -> 20 | J60: =Calculations!$Z$144 -> 122 | K60: =Calculations!$AA$144 -> 0 | L60: =Calculations!$AD$144 -> 0 | M60: 142 | N60: =Calculations!$AE$144 -> 107 | O60: =Calculations!$AF$144 -> 0 | P60: =Calculations!$AG$144 -> 74 | Q60: =Calculations!$AJ$144 -> 0 | R60: 181 | S60: =Calculations!$AK$144 -> 0 | T60: =Calculations!$AL$144 -> 94 | U60: =Calculations!$AM$144 -> 19 | V60: =Calculations!$AP$144 -> 0 | W60: 113 | X60: 436
C61: 17:44:59.971 | D61: =Calculations!$S$147 -> 0 | E61: =Calculations!$T$147 -> 0 | F61: =Calculations!$U$147 -> 0 | G61: =Calculations!$X$147 -> 0 | H61: 0 | I61: =Calculations!$Y$147 -> 4 | J61: =Calculations!$Z$147 -> 115 | K61: =Calculations!$AA$147 -> 0 | L61: =Calculations!$AD$147 -> 0 | M61: 119 | N61: =Calculations!$AE$147 -> 96 | O61: =Calculations!$AF$147 -> 0 | P61: =Calculations!$AG$147 -> 89 | Q61: =Calculations!$AJ$147 -> 0 | R61: 185 | S61: =Calculations!$AK$147 -> 0 | T61: =Calculations!$AL$147 -> 97 | U61: =Calculations!$AM$147 -> 9 | V61: =Calculations!$AP$147 -> 0 | W61: 106 | X61: 410
C62: 18:00:00 | D62: =Calculations!$S$150 -> 0 | E62: =Calculations!$T$150 -> 0 | F62: =Calculations!$U$150 -> 0 | G62: =Calculations!$X$150 -> 0 | H62: 0 | I62: =Calculations!$Y$150 -> 0 | J62: =Calculations!$Z$150 -> 0 | K62: =Calculations!$AA$150 -> 0 | L62: =Calculations!$AD$150 -> 0 | M62: 0 | N62: =Calculations!$AE$150 -> 0 | O62: =Calculations!$AF$150 -> 0 | P62: =Calculations!$AG$150 -> 0 | Q62: =Calculations!$AJ$150 -> 0 | R62: 0 | S62: =Calculations!$AK$150 -> 0 | T62: =Calculations!$AL$150 -> 0 | U62: =Calculations!$AM$150 -> 0 | V62: =Calculations!$AP$150 -> 0 | W62: 0 | X62: 0
C63: 18:14:59.942 | D63: =Calculations!$S$153 -> 0 | E63: =Calculations!$T$153 -> 0 | F63: =Calculations!$U$153 -> 0 | G63: =Calculations!$X$153 -> 0 | H63: 0 | I63: =Calculations!$Y$153 -> 0 | J63: =Calculations!$Z$153 -> 0 | K63: =Calculations!$AA$153 -> 0 | L63: =Calculations!$AD$153 -> 0 | M63: 0 | N63: =Calculations!$AE$153 -> 0 | O63: =Calculations!$AF$153 -> 0 | P63: =Calculations!$AG$153 -> 0 | Q63: =Calculations!$AJ$153 -> 0 | R63: 0 | S63: =Calculations!$AK$153 -> 0 | T63: =Calculations!$AL$153 -> 0 | U63: =Calculations!$AM$153 -> 0 | V63: =Calculations!$AP$153 -> 0 | W63: 0 | X63: 0
C64: 18:29:59.971 | D64: =Calculations!$S$156 -> 0 | E64: =Calculations!$T$156 -> 0 | F64: =Calculations!$U$156 -> 0 | G64: =Calculations!$X$156 -> 0 | H64: 0 | I64: =Calculations!$Y$156 -> 0 | J64: =Calculations!$Z$156 -> 0 | K64: =Calculations!$AA$156 -> 0 | L64: =Calculations!$AD$156 -> 0 | M64: 0 | N64: =Calculations!$AE$156 -> 0 | O64: =Calculations!$AF$156 -> 0 | P64: =Calculations!$AG$156 -> 0 | Q64: =Calculations!$AJ$156 -> 0 | R64: 0 | S64: =Calculations!$AK$156 -> 0 | T64: =Calculations!$AL$156 -> 0 | U64: =Calculations!$AM$156 -> 0 | V64: =Calculations!$AP$156 -> 0 | W64: 0 | X64: 0
C65: 18:45:00 | D65: =Calculations!$S$159 -> 0 | E65: =Calculations!$T$159 -> 0 | F65: =Calculations!$U$159 -> 0 | G65: =Calculations!$X$159 -> 0 | H65: 0 | I65: =Calculations!$Y$159 -> 0 | J65: =Calculations!$Z$159 -> 0 | K65: =Calculations!$AA$159 -> 0 | L65: =Calculations!$AD$159 -> 0 | M65: 0 | N65: =Calculations!$AE$159 -> 0 | O65: =Calculations!$AF$159 -> 0 | P65: =Calculations!$AG$159 -> 0 | Q65: =Calculations!$AJ$159 -> 0 | R65: 0 | S65: =Calculations!$AK$159 -> 0 | T65: =Calculations!$AL$159 -> 0 | U65: =Calculations!$AM$159 -> 0 | V65: =Calculations!$AP$159 -> 0 | W65: 0 | X65: 0
C66: 18:59:59.942 | D66: =Calculations!$S$162 -> 0 | E66: =Calculations!$T$162 -> 0 | F66: =Calculations!$U$162 -> 0 | G66: =Calculations!$X$162 -> 0 | H66: 0 | I66: =Calculations!$Y$162 -> 0 | J66: =Calculations!$Z$162 -> 0 | K66: =Calculations!$AA$162 -> 0 | L66: =Calculations!$AD$162 -> 0 | M66: 0 | N66: =Calculations!$AE$162 -> 0 | O66: =Calculations!$AF$162 -> 0 | P66: =Calculations!$AG$162 -> 0 | Q66: =Calculations!$AJ$162 -> 0 | R66: 0 | S66: =Calculations!$AK$162 -> 0 | T66: =Calculations!$AL$162 -> 0 | U66: =Calculations!$AM$162 -> 0 | V66: =Calculations!$AP$162 -> 0 | W66: 0 | X66: 0
C67: 19:14:59.971 | D67: =Calculations!$S$165 -> 0 | E67: =Calculations!$T$165 -> 0 | F67: =Calculations!$U$165 -> 0 | G67: =Calculations!$X$165 -> 0 | H67: 0 | I67: =Calculations!$Y$165 -> 0 | J67: =Calculations!$Z$165 -> 0 | K67: =Calculations!$AA$165 -> 0 | L67: =Calculations!$AD$165 -> 0 | M67: 0 | N67: =Calculations!$AE$165 -> 0 | O67: =Calculations!$AF$165 -> 0 | P67: =Calculations!$AG$165 -> 0 | Q67: =Calculations!$AJ$165 -> 0 | R67: 0 | S67: =Calculations!$AK$165 -> 0 | T67: =Calculations!$AL$165 -> 0 | U67: =Calculations!$AM$165 -> 0 | V67: =Calculations!$AP$165 -> 0 | W67: 0 | X67: 0
C68: 19:30:00 | D68: =Calculations!$S$168 -> 0 | E68: =Calculations!$T$168 -> 0 | F68: =Calculations!$U$168 -> 0 | G68: =Calculations!$X$168 -> 0 | H68: 0 | I68: =Calculations!$Y$168 -> 0 | J68: =Calculations!$Z$168 -> 0 | K68: =Calculations!$AA$168 -> 0 | L68: =Calculations!$AD$168 -> 0 | M68: 0 | N68: =Calculations!$AE$168 -> 0 | O68: =Calculations!$AF$168 -> 0 | P68: =Calculations!$AG$168 -> 0 | Q68: =Calculations!$AJ$168 -> 0 | R68: 0 | S68: =Calculations!$AK$168 -> 0 | T68: =Calculations!$AL$168 -> 0 | U68: =Calculations!$AM$168 -> 0 | V68: =Calculations!$AP$168 -> 0 | W68: 0 | X68: 0
C69: 19:44:59.942 | D69: =Calculations!$S$171 -> 0 | E69: =Calculations!$T$171 -> 0 | F69: =Calculations!$U$171 -> 0 | G69: =Calculations!$X$171 -> 0 | H69: 0 | I69: =Calculations!$Y$171 -> 0 | J69: =Calculations!$Z$171 -> 0 | K69: =Calculations!$AA$171 -> 0 | L69: =Calculations!$AD$171 -> 0 | M69: 0 | N69: =Calculations!$AE$171 -> 0 | O69: =Calculations!$AF$171 -> 0 | P69: =Calculations!$AG$171 -> 0 | Q69: =Calculations!$AJ$171 -> 0 | R69: 0 | S69: =Calculations!$AK$171 -> 0 | T69: =Calculations!$AL$171 -> 0 | U69: =Calculations!$AM$171 -> 0 | V69: =Calculations!$AP$171 -> 0 | W69: 0 | X69: 0
C70: 19:59:59.971 | D70: =Calculations!$S$174 -> 0 | E70: =Calculations!$T$174 -> 0 | F70: =Calculations!$U$174 -> 0 | G70: =Calculations!$X$174 -> 0 | H70: 0 | I70: =Calculations!$Y$174 -> 0 | J70: =Calculations!$Z$174 -> 0 | K70: =Calculations!$AA$174 -> 0 | L70: =Calculations!$AD$174 -> 0 | M70: 0 | N70: =Calculations!$AE$174 -> 0 | O70: =Calculations!$AF$174 -> 0 | P70: =Calculations!$AG$174 -> 0 | Q70: =Calculations!$AJ$174 -> 0 | R70: 0 | S70: =Calculations!$AK$174 -> 0 | T70: =Calculations!$AL$174 -> 0 | U70: =Calculations!$AM$174 -> 0 | V70: =Calculations!$AP$174 -> 0 | W70: 0 | X70: 0
C71: 20:15:00 | D71: =Calculations!$S$177 -> 0 | E71: =Calculations!$T$177 -> 0 | F71: =Calculations!$U$177 -> 0 | G71: =Calculations!$X$177 -> 0 | H71: 0 | I71: =Calculations!$Y$177 -> 0 | J71: =Calculations!$Z$177 -> 0 | K71: =Calculations!$AA$177 -> 0 | L71: =Calculations!$AD$177 -> 0 | M71: 0 | N71: =Calculations!$AE$177 -> 0 | O71: =Calculations!$AF$177 -> 0 | P71: =Calculations!$AG$177 -> 0 | Q71: =Calculations!$AJ$177 -> 0 | R71: 0 | S71: =Calculations!$AK$177 -> 0 | T71: =Calculations!$AL$177 -> 0 | U71: =Calculations!$AM$177 -> 0 | V71: =Calculations!$AP$177 -> 0 | W71: 0 | X71: 0
C72: 20:29:59.942 | D72: =Calculations!$S$180 -> 0 | E72: =Calculations!$T$180 -> 0 | F72: =Calculations!$U$180 -> 0 | G72: =Calculations!$X$180 -> 0 | H72: 0 | I72: =Calculations!$Y$180 -> 0 | J72: =Calculations!$Z$180 -> 0 | K72: =Calculations!$AA$180 -> 0 | L72: =Calculations!$AD$180 -> 0 | M72: 0 | N72: =Calculations!$AE$180 -> 0 | O72: =Calculations!$AF$180 -> 0 | P72: =Calculations!$AG$180 -> 0 | Q72: =Calculations!$AJ$180 -> 0 | R72: 0 | S72: =Calculations!$AK$180 -> 0 | T72: =Calculations!$AL$180 -> 0 | U72: =Calculations!$AM$180 -> 0 | V72: =Calculations!$AP$180 -> 0 | W72: 0 | X72: 0
C73: 20:44:59.971 | D73: =Calculations!$S$183 -> 0 | E73: =Calculations!$T$183 -> 0 | F73: =Calculations!$U$183 -> 0 | G73: =Calculations!$X$183 -> 0 | H73: 0 | I73: =Calculations!$Y$183 -> 0 | J73: =Calculations!$Z$183 -> 0 | K73: =Calculations!$AA$183 -> 0 | L73: =Calculations!$AD$183 -> 0 | M73: 0 | N73: =Calculations!$AE$183 -> 0 | O73: =Calculations!$AF$183 -> 0 | P73: =Calculations!$AG$183 -> 0 | Q73: =Calculations!$AJ$183 -> 0 | R73: 0 | S73: =Calculations!$AK$183 -> 0 | T73: =Calculations!$AL$183 -> 0 | U73: =Calculations!$AM$183 -> 0 | V73: =Calculations!$AP$183 -> 0 | W73: 0 | X73: 0
C74: 21:00:00 | D74: =Calculations!$S$186 -> 0 | E74: =Calculations!$T$186 -> 0 | F74: =Calculations!$U$186 -> 0 | G74: =Calculations!$X$186 -> 0 | H74: 0 | I74: =Calculations!$Y$186 -> 0 | J74: =Calculations!$Z$186 -> 0 | K74: =Calculations!$AA$186 -> 0 | L74: =Calculations!$AD$186 -> 0 | M74: 0 | N74: =Calculations!$AE$186 -> 0 | O74: =Calculations!$AF$186 -> 0 | P74: =Calculations!$AG$186 -> 0 | Q74: =Calculations!$AJ$186 -> 0 | R74: 0 | S74: =Calculations!$AK$186 -> 0 | T74: =Calculations!$AL$186 -> 0 | U74: =Calculations!$AM$186 -> 0 | V74: =Calculations!$AP$186 -> 0 | W74: 0 | X74: =H74+M74+R74+W74 -> 0
C75: 21:14:59.942 | D75: =Calculations!$S$189 -> 0 | E75: =Calculations!$T$189 -> 0 | F75: =Calculations!$U$189 -> 0 | G75: =Calculations!$X$189 -> 0 | H75: 0 | I75: =Calculations!$Y$189 -> 0 | J75: =Calculations!$Z$189 -> 0 | K75: =Calculations!$AA$189 -> 0 | L75: =Calculations!$AD$189 -> 0 | M75: 0 | N75: =Calculations!$AE$189 -> 0 | O75: =Calculations!$AF$189 -> 0 | P75: =Calculations!$AG$189 -> 0 | Q75: =Calculations!$AJ$189 -> 0 | R75: 0 | S75: =Calculations!$AK$189 -> 0 | T75: =Calculations!$AL$189 -> 0 | U75: =Calculations!$AM$189 -> 0 | V75: =Calculations!$AP$189 -> 0 | W75: 0 | X75: =H75+M75+R75+W75 -> 0
C76: 21:29:59.971 | D76: =Calculations!$S$192 -> 0 | E76: =Calculations!$T$192 -> 0 | F76: =Calculations!$U$192 -> 0 | G76: =Calculations!$X$192 -> 0 | H76: 0 | I76: =Calculations!$Y$192 -> 0 | J76: =Calculations!$Z$192 -> 0 | K76: =Calculations!$AA$192 -> 0 | L76: =Calculations!$AD$192 -> 0 | M76: 0 | N76: =Calculations!$AE$192 -> 0 | O76: =Calculations!$AF$192 -> 0 | P76: =Calculations!$AG$192 -> 0 | Q76: =Calculations!$AJ$192 -> 0 | R76: 0 | S76: =Calculations!$AK$192 -> 0 | T76: =Calculations!$AL$192 -> 0 | U76: =Calculations!$AM$192 -> 0 | V76: =Calculations!$AP$192 -> 0 | W76: 0 | X76: =H76+M76+R76+W76 -> 0
C77: 21:45:00 | D77: =Calculations!$S$195 -> 0 | E77: =Calculations!$T$195 -> 0 | F77: =Calculations!$U$195 -> 0 | G77: =Calculations!$X$195 -> 0 | H77: 0 | I77: =Calculations!$Y$195 -> 0 | J77: =Calculations!$Z$195 -> 0 | K77: =Calculations!$AA$195 -> 0 | L77: =Calculations!$AD$195 -> 0 | M77: 0 | N77: =Calculations!$AE$195 -> 0 | O77: =Calculations!$AF$195 -> 0 | P77: =Calculations!$AG$195 -> 0 | Q77: =Calculations!$AJ$195 -> 0 | R77: 0 | S77: =Calculations!$AK$195 -> 0 | T77: =Calculations!$AL$195 -> 0 | U77: =Calculations!$AM$195 -> 0 | V77: =Calculations!$AP$195 -> 0 | W77: 0 | X77: =H77+M77+R77+W77 -> 0
B78: Totals | D78: =SUM(D14:D77) -> 0 | E78: =SUM(E14:E77) -> 0 | F78: 0 | G78: 0 | H78: =SUM(H14:H77) -> 0 | I78: 739 | J78: 6028 | K78: 0 | L78: 0 | M78: 6767 | N78: 3098 | O78: 6 | P78: 5256 | Q78: 0 | R78: 8360 | S78: 0 | T78: 3660 | U78: 622 | V78: 0 | W78: 4282 | X78: =SUM(X14:X77) -> 19409
B80: Peak Hour All Vehicle Volume Summary
F81: ê | K81: ç | P81: é | U81: è
B82: Hourly | D82: From North | I82: From East | N82: From South | S82: From West | X82: Total
B83: Time Period | D83: ='Base Information'!$D$14:$D$14 -> 441 NB ON RAMP | I83: ='Base Information'!$D$15:$D$15 -> CTH OO (Northland Ave) | N83: ='Base Information'!$D$16:$D$16 -> 441 NB OFF RAMP | S83: ='Base Information'!$D$17:$D$17 -> CTH OO (Northland Ave) | X83: Hourly
B84: Start Time | D84: Right | E84: Thru | F84: Left | G84: U-Tn | H84: Total | I84: Right | J84: Thru | K84: Left | L84: U-Tn | M84: Total | N84: Right | O84: Thru | P84: Left | Q84: U-Tn | R84: Total | S84: Right | T84: Thru | U84: Left | V84: U-Tn | W84: Total | X84: Volume | Z84: PHF
B85: AM | C85: ='Peak Hour Volume Summary'!$C$14 -> 07:14:59.971 | D85: =VLOOKUP(VLOOKUP($C85,'Base Information'!$D$91:$G$152,1,FALSE),$C$14:$X$77,2,FALSE)+VLOOKUP(VLOOKUP($C85,'Base Information'!$D$91:$G$152,2,FALSE),$C$14:$X$77,2,FALSE)+VLOOKUP(VLOOKUP($C85,'Base Information'!$D$91:$G$152,3,FALSE),$C$14:$X$77,2,FALSE)+VLOOKUP(VLOOKUP($C85,'Base Information'!$D$91:$G$152,4,FALSE),$C$14:$X$77,2,FALSE) -> 0 | E85: =VLOOKUP(VLOOKUP($C85,'Base Information'!$D$91:$G$152,1,FALSE),$C$14:$X$77,3,FALSE)+VLOOKUP(VLOOKUP($C85,'Base Information'!$D$91:$G$152,2,FALSE),$C$14:$X$77,3,FALSE)+VLOOKUP(VLOOKUP($C85,'Base Information'!$D$91:$G$152,3,FALSE),$C$14:$X$77,3,FALSE)+VLOOKUP(VLOOKUP($C85,'Base Information'!$D$91:$G$152,4,FALSE),$C$14:$X$77,3,FALSE) -> 0 | F85: =VLOOKUP(VLOOKUP($C85,'Base Information'!$D$91:$G$152,1,FALSE),$C$14:$X$77,4,FALSE)+VLOOKUP(VLOOKUP($C85,'Base Information'!$D$91:$G$152,2,FALSE),$C$14:$X$77,4,FALSE)+VLOOKUP(VLOOKUP($C85,'Base Information'!$D$91:$G$152,3,FALSE),$C$14:$X$77,4,FALSE)+VLOOKUP(VLOOKUP($C85,'Base Information'!$D$91:$G$152,4,FALSE),$C$14:$X$77,4,FALSE) -> 0 | G85: =VLOOKUP(VLOOKUP($C85,'Base Information'!$D$91:$G$152,1,FALSE),$C$14:$X$77,5,FALSE)+VLOOKUP(VLOOKUP($C85,'Base Information'!$D$91:$G$152,2,FALSE),$C$14:$X$77,5,FALSE)+VLOOKUP(VLOOKUP($C85,'Base Information'!$D$91:$G$152,3,FALSE),$C$14:$X$77,5,FALSE)+VLOOKUP(VLOOKUP($C85,'Base Information'!$D$91:$G$152,4,FALSE),$C$14:$X$77,5,FALSE) -> 0 | H85: =SUM(D85:G85) -> 0 | I85: =VLOOKUP(VLOOKUP($C85,'Base Information'!$D$91:$G$152,1,FALSE),$C$14:$X$77,7,FALSE)+VLOOKUP(VLOOKUP($C85,'Base Information'!$D$91:$G$152,2,FALSE),$C$14:$X$77,7,FALSE)+VLOOKUP(VLOOKUP($C85,'Base Information'!$D$91:$G$152,3,FALSE),$C$14:$X$77,7,FALSE)+VLOOKUP(VLOOKUP($C85,'Base Information'!$D$91:$G$152,4,FALSE),$C$14:$X$77,7,FALSE) -> 88 | J85: =VLOOKUP(VLOOKUP($C85,'Base Information'!$D$91:$G$152,1,FALSE),$C$14:$X$77,8,FALSE)+VLOOKUP(VLOOKUP($C85,'Base Information'!$D$91:$G$152,2,FALSE),$C$14:$X$77,8,FALSE)+VLOOKUP(VLOOKUP($C85,'Base Information'!$D$91:$G$152,3,FALSE),$C$14:$X$77,8,FALSE)+VLOOKUP(VLOOKUP($C85,'Base Information'!$D$91:$G$152,4,FALSE),$C$14:$X$77,8,FALSE) -> 822 | K85: =VLOOKUP(VLOOKUP($C85,'Base Information'!$D$91:$G$152,1,FALSE),$C$14:$X$77,9,FALSE)+VLOOKUP(VLOOKUP($C85,'Base Information'!$D$91:$G$152,2,FALSE),$C$14:$X$77,9,FALSE)+VLOOKUP(VLOOKUP($C85,'Base Information'!$D$91:$G$152,3,FALSE),$C$14:$X$77,9,FALSE)+VLOOKUP(VLOOKUP($C85,'Base Information'!$D$91:$G$152,4,FALSE),$C$14:$X$77,9,FALSE) -> 0 | L85: =VLOOKUP(VLOOKUP($C85,'Base Information'!$D$91:$G$152,1,FALSE),$C$14:$X$77,10,FALSE)+VLOOKUP(VLOOKUP($C85,'Base Information'!$D$91:$G$152,2,FALSE),$C$14:$X$77,10,FALSE)+VLOOKUP(VLOOKUP($C85,'Base Information'!$D$91:$G$152,3,FALSE),$C$14:$X$77,10,FALSE)+VLOOKUP(VLOOKUP($C85,'Base Information'!$D$91:$G$152,4,FALSE),$C$14:$X$77,10,FALSE) -> 0 | M85: =SUM(I85:L85) -> 910 | N85: =VLOOKUP(VLOOKUP($C85,'Base Information'!$D$91:$G$152,1,FALSE),$C$14:$X$77,12,FALSE)+VLOOKUP(VLOOKUP($C85,'Base Information'!$D$91:$G$152,2,FALSE),$C$14:$X$77,12,FALSE)+VLOOKUP(VLOOKUP($C85,'Base Information'!$D$91:$G$152,3,FALSE),$C$14:$X$77,12,FALSE)+VLOOKUP(VLOOKUP($C85,'Base Information'!$D$91:$G$152,4,FALSE),$C$14:$X$77,12,FALSE) -> 246 | O85: =VLOOKUP(VLOOKUP($C85,'Base Information'!$D$91:$G$152,1,FALSE),$C$14:$X$77,13,FALSE)+VLOOKUP(VLOOKUP($C85,'Base Information'!$D$91:$G$152,2,FALSE),$C$14:$X$77,13,FALSE)+VLOOKUP(VLOOKUP($C85,'Base Information'!$D$91:$G$152,3,FALSE),$C$14:$X$77,13,FALSE)+VLOOKUP(VLOOKUP($C85,'Base Information'!$D$91:$G$152,4,FALSE),$C$14:$X$77,13,FALSE) -> 1 | P85: =VLOOKUP(VLOOKUP($C85,'Base Information'!$D$91:$G$152,1,FALSE),$C$14:$X$77,14,FALSE)+VLOOKUP(VLOOKUP($C85,'Base Information'!$D$91:$G$152,2,FALSE),$C$14:$X$77,14,FALSE)+VLOOKUP(VLOOKUP($C85,'Base Information'!$D$91:$G$152,3,FALSE),$C$14:$X$77,14,FALSE)+VLOOKUP(VLOOKUP($C85,'Base Information'!$D$91:$G$152,4,FALSE),$C$14:$X$77,14,FALSE) -> 855 | Q85: =VLOOKUP(VLOOKUP($C85,'Base Information'!$D$91:$G$152,1,FALSE),$C$14:$X$77,15,FALSE)+VLOOKUP(VLOOKUP($C85,'Base Information'!$D$91:$G$152,2,FALSE),$C$14:$X$77,15,FALSE)+VLOOKUP(VLOOKUP($C85,'Base Information'!$D$91:$G$152,3,FALSE),$C$14:$X$77,15,FALSE)+VLOOKUP(VLOOKUP($C85,'Base Information'!$D$91:$G$152,4,FALSE),$C$14:$X$77,15,FALSE) -> 0 | R85: =SUM(N85:Q85) -> 1102 | S85: =VLOOKUP(VLOOKUP($C85,'Base Information'!$D$91:$G$152,1,FALSE),$C$14:$X$77,17,FALSE)+VLOOKUP(VLOOKUP($C85,'Base Information'!$D$91:$G$152,2,FALSE),$C$14:$X$77,17,FALSE)+VLOOKUP(VLOOKUP($C85,'Base Information'!$D$91:$G$152,3,FALSE),$C$14:$X$77,17,FALSE)+VLOOKUP(VLOOKUP($C85,'Base Information'!$D$91:$G$152,4,FALSE),$C$14:$X$77,17,FALSE) -> 0 | T85: =VLOOKUP(VLOOKUP($C85,'Base Information'!$D$91:$G$152,1,FALSE),$C$14:$X$77,18,FALSE)+VLOOKUP(VLOOKUP($C85,'Base Information'!$D$91:$G$152,2,FALSE),$C$14:$X$77,18,FALSE)+VLOOKUP(VLOOKUP($C85,'Base Information'!$D$91:$G$152,3,FALSE),$C$14:$X$77,18,FALSE)+VLOOKUP(VLOOKUP($C85,'Base Information'!$D$91:$G$152,4,FALSE),$C$14:$X$77,18,FALSE) -> 178 | U85: =VLOOKUP(VLOOKUP($C85,'Base Information'!$D$91:$G$152,1,FALSE),$C$14:$X$77,19,FALSE)+VLOOKUP(VLOOKUP($C85,'Base Information'!$D$91:$G$152,2,FALSE),$C$14:$X$77,19,FALSE)+VLOOKUP(VLOOKUP($C85,'Base Information'!$D$91:$G$152,3,FALSE),$C$14:$X$77,19,FALSE)+VLOOKUP(VLOOKUP($C85,'Base Information'!$D$91:$G$152,4,FALSE),$C$14:$X$77,19,FALSE) -> 33 | V85: =VLOOKUP(VLOOKUP($C85,'Base Information'!$D$91:$G$152,1,FALSE),$C$14:$X$77,20,FALSE)+VLOOKUP(VLOOKUP($C85,'Base Information'!$D$91:$G$152,2,FALSE),$C$14:$X$77,20,FALSE)+VLOOKUP(VLOOKUP($C85,'Base Information'!$D$91:$G$152,3,FALSE),$C$14:$X$77,20,FALSE)+VLOOKUP(VLOOKUP($C85,'Base Information'!$D$91:$G$152,4,FALSE),$C$14:$X$77,20,FALSE) -> 0 | W85: =SUM(S85:V85) -> 211 | X85: =H85+M85+R85+W85 -> 2223 | Z85: =VLOOKUP($C85,$C$14:$AA$77,25,FALSE) -> 0.8125
B86: MD | C86: ='Peak Hour Volume Summary'!$C$29 -> 12:59:59.942 | D86: =VLOOKUP(VLOOKUP($C86,'Base Information'!$D$91:$G$152,1,FALSE),$C$14:$X$77,2,FALSE)+VLOOKUP(VLOOKUP($C86,'Base Information'!$D$91:$G$152,2,FALSE),$C$14:$X$77,2,FALSE)+VLOOKUP(VLOOKUP($C86,'Base Information'!$D$91:$G$152,3,FALSE),$C$14:$X$77,2,FALSE)+VLOOKUP(VLOOKUP($C86,'Base Information'!$D$91:$G$152,4,FALSE),$C$14:$X$77,2,FALSE) -> 0 | E86: =VLOOKUP(VLOOKUP($C86,'Base Information'!$D$91:$G$152,1,FALSE),$C$14:$X$77,3,FALSE)+VLOOKUP(VLOOKUP($C86,'Base Information'!$D$91:$G$152,2,FALSE),$C$14:$X$77,3,FALSE)+VLOOKUP(VLOOKUP($C86,'Base Information'!$D$91:$G$152,3,FALSE),$C$14:$X$77,3,FALSE)+VLOOKUP(VLOOKUP($C86,'Base Information'!$D$91:$G$152,4,FALSE),$C$14:$X$77,3,FALSE) -> 0 | F86: =VLOOKUP(VLOOKUP($C86,'Base Information'!$D$91:$G$152,1,FALSE),$C$14:$X$77,4,FALSE)+VLOOKUP(VLOOKUP($C86,'Base Information'!$D$91:$G$152,2,FALSE),$C$14:$X$77,4,FALSE)+VLOOKUP(VLOOKUP($C86,'Base Information'!$D$91:$G$152,3,FALSE),$C$14:$X$77,4,FALSE)+VLOOKUP(VLOOKUP($C86,'Base Information'!$D$91:$G$152,4,FALSE),$C$14:$X$77,4,FALSE) -> 0 | G86: =VLOOKUP(VLOOKUP($C86,'Base Information'!$D$91:$G$152,1,FALSE),$C$14:$X$77,5,FALSE)+VLOOKUP(VLOOKUP($C86,'Base Information'!$D$91:$G$152,2,FALSE),$C$14:$X$77,5,FALSE)+VLOOKUP(VLOOKUP($C86,'Base Information'!$D$91:$G$152,3,FALSE),$C$14:$X$77,5,FALSE)+VLOOKUP(VLOOKUP($C86,'Base Information'!$D$91:$G$152,4,FALSE),$C$14:$X$77,5,FALSE) -> 0 | H86: =SUM(D86:G86) -> 0 | I86: =VLOOKUP(VLOOKUP($C86,'Base Information'!$D$91:$G$152,1,FALSE),$C$14:$X$77,7,FALSE)+VLOOKUP(VLOOKUP($C86,'Base Information'!$D$91:$G$152,2,FALSE),$C$14:$X$77,7,FALSE)+VLOOKUP(VLOOKUP($C86,'Base Information'!$D$91:$G$152,3,FALSE),$C$14:$X$77,7,FALSE)+VLOOKUP(VLOOKUP($C86,'Base Information'!$D$91:$G$152,4,FALSE),$C$14:$X$77,7,FALSE) -> 50 | J86: =VLOOKUP(VLOOKUP($C86,'Base Information'!$D$91:$G$152,1,FALSE),$C$14:$X$77,8,FALSE)+VLOOKUP(VLOOKUP($C86,'Base Information'!$D$91:$G$152,2,FALSE),$C$14:$X$77,8,FALSE)+VLOOKUP(VLOOKUP($C86,'Base Information'!$D$91:$G$152,3,FALSE),$C$14:$X$77,8,FALSE)+VLOOKUP(VLOOKUP($C86,'Base Information'!$D$91:$G$152,4,FALSE),$C$14:$X$77,8,FALSE) -> 441 | K86: =VLOOKUP(VLOOKUP($C86,'Base Information'!$D$91:$G$152,1,FALSE),$C$14:$X$77,9,FALSE)+VLOOKUP(VLOOKUP($C86,'Base Information'!$D$91:$G$152,2,FALSE),$C$14:$X$77,9,FALSE)+VLOOKUP(VLOOKUP($C86,'Base Information'!$D$91:$G$152,3,FALSE),$C$14:$X$77,9,FALSE)+VLOOKUP(VLOOKUP($C86,'Base Information'!$D$91:$G$152,4,FALSE),$C$14:$X$77,9,FALSE) -> 0 | L86: =VLOOKUP(VLOOKUP($C86,'Base Information'!$D$91:$G$152,1,FALSE),$C$14:$X$77,10,FALSE)+VLOOKUP(VLOOKUP($C86,'Base Information'!$D$91:$G$152,2,FALSE),$C$14:$X$77,10,FALSE)+VLOOKUP(VLOOKUP($C86,'Base Information'!$D$91:$G$152,3,FALSE),$C$14:$X$77,10,FALSE)+VLOOKUP(VLOOKUP($C86,'Base Information'!$D$91:$G$152,4,FALSE),$C$14:$X$77,10,FALSE) -> 0 | M86: =SUM(I86:L86) -> 491 | N86: =VLOOKUP(VLOOKUP($C86,'Base Information'!$D$91:$G$152,1,FALSE),$C$14:$X$77,12,FALSE)+VLOOKUP(VLOOKUP($C86,'Base Information'!$D$91:$G$152,2,FALSE),$C$14:$X$77,12,FALSE)+VLOOKUP(VLOOKUP($C86,'Base Information'!$D$91:$G$152,3,FALSE),$C$14:$X$77,12,FALSE)+VLOOKUP(VLOOKUP($C86,'Base Information'!$D$91:$G$152,4,FALSE),$C$14:$X$77,12,FALSE) -> 216 | O86: =VLOOKUP(VLOOKUP($C86,'Base Information'!$D$91:$G$152,1,FALSE),$C$14:$X$77,13,FALSE)+VLOOKUP(VLOOKUP($C86,'Base Information'!$D$91:$G$152,2,FALSE),$C$14:$X$77,13,FALSE)+VLOOKUP(VLOOKUP($C86,'Base Information'!$D$91:$G$152,3,FALSE),$C$14:$X$77,13,FALSE)+VLOOKUP(VLOOKUP($C86,'Base Information'!$D$91:$G$152,4,FALSE),$C$14:$X$77,13,FALSE) -> 0 | P86: =VLOOKUP(VLOOKUP($C86,'Base Information'!$D$91:$G$152,1,FALSE),$C$14:$X$77,14,FALSE)+VLOOKUP(VLOOKUP($C86,'Base Information'!$D$91:$G$152,2,FALSE),$C$14:$X$77,14,FALSE)+VLOOKUP(VLOOKUP($C86,'Base Information'!$D$91:$G$152,3,FALSE),$C$14:$X$77,14,FALSE)+VLOOKUP(VLOOKUP($C86,'Base Information'!$D$91:$G$152,4,FALSE),$C$14:$X$77,14,FALSE) -> 417 | Q86: =VLOOKUP(VLOOKUP($C86,'Base Information'!$D$91:$G$152,1,FALSE),$C$14:$X$77,15,FALSE)+VLOOKUP(VLOOKUP($C86,'Base Information'!$D$91:$G$152,2,FALSE),$C$14:$X$77,15,FALSE)+VLOOKUP(VLOOKUP($C86,'Base Information'!$D$91:$G$152,3,FALSE),$C$14:$X$77,15,FALSE)+VLOOKUP(VLOOKUP($C86,'Base Information'!$D$91:$G$152,4,FALSE),$C$14:$X$77,15,FALSE) -> 0 | R86: =SUM(N86:Q86) -> 633 | S86: =VLOOKUP(VLOOKUP($C86,'Base Information'!$D$91:$G$152,1,FALSE),$C$14:$X$77,17,FALSE)+VLOOKUP(VLOOKUP($C86,'Base Information'!$D$91:$G$152,2,FALSE),$C$14:$X$77,17,FALSE)+VLOOKUP(VLOOKUP($C86,'Base Information'!$D$91:$G$152,3,FALSE),$C$14:$X$77,17,FALSE)+VLOOKUP(VLOOKUP($C86,'Base Information'!$D$91:$G$152,4,FALSE),$C$14:$X$77,17,FALSE) -> 0 | T86: =VLOOKUP(VLOOKUP($C86,'Base Information'!$D$91:$G$152,1,FALSE),$C$14:$X$77,18,FALSE)+VLOOKUP(VLOOKUP($C86,'Base Information'!$D$91:$G$152,2,FALSE),$C$14:$X$77,18,FALSE)+VLOOKUP(VLOOKUP($C86,'Base Information'!$D$91:$G$152,3,FALSE),$C$14:$X$77,18,FALSE)+VLOOKUP(VLOOKUP($C86,'Base Information'!$D$91:$G$152,4,FALSE),$C$14:$X$77,18,FALSE) -> 328 | U86: =VLOOKUP(VLOOKUP($C86,'Base Information'!$D$91:$G$152,1,FALSE),$C$14:$X$77,19,FALSE)+VLOOKUP(VLOOKUP($C86,'Base Information'!$D$91:$G$152,2,FALSE),$C$14:$X$77,19,FALSE)+VLOOKUP(VLOOKUP($C86,'Base Information'!$D$91:$G$152,3,FALSE),$C$14:$X$77,19,FALSE)+VLOOKUP(VLOOKUP($C86,'Base Information'!$D$91:$G$152,4,FALSE),$C$14:$X$77,19,FALSE) -> 36 | V86: =VLOOKUP(VLOOKUP($C86,'Base Information'!$D$91:$G$152,1,FALSE),$C$14:$X$77,20,FALSE)+VLOOKUP(VLOOKUP($C86,'Base Information'!$D$91:$G$152,2,FALSE),$C$14:$X$77,20,FALSE)+VLOOKUP(VLOOKUP($C86,'Base Information'!$D$91:$G$152,3,FALSE),$C$14:$X$77,20,FALSE)+VLOOKUP(VLOOKUP($C86,'Base Information'!$D$91:$G$152,4,FALSE),$C$14:$X$77,20,FALSE) -> 0 | W86: =SUM(S86:V86) -> 364 | X86: =H86+M86+R86+W86 -> 1488 | Z86: =VLOOKUP($C86,$C$14:$AA$77,25,FALSE) -> 0.9323308271
B87: PM | C87: ='Peak Hour Volume Summary'!$C$44 -> 16:30:00 | D87: =VLOOKUP(VLOOKUP($C87,'Base Information'!$D$91:$G$152,1,FALSE),$C$14:$X$77,2,FALSE)+VLOOKUP(VLOOKUP($C87,'Base Information'!$D$91:$G$152,2,FALSE),$C$14:$X$77,2,FALSE)+VLOOKUP(VLOOKUP($C87,'Base Information'!$D$91:$G$152,3,FALSE),$C$14:$X$77,2,FALSE)+VLOOKUP(VLOOKUP($C87,'Base Information'!$D$91:$G$152,4,FALSE),$C$14:$X$77,2,FALSE) -> 0 | E87: =VLOOKUP(VLOOKUP($C87,'Base Information'!$D$91:$G$152,1,FALSE),$C$14:$X$77,3,FALSE)+VLOOKUP(VLOOKUP($C87,'Base Information'!$D$91:$G$152,2,FALSE),$C$14:$X$77,3,FALSE)+VLOOKUP(VLOOKUP($C87,'Base Information'!$D$91:$G$152,3,FALSE),$C$14:$X$77,3,FALSE)+VLOOKUP(VLOOKUP($C87,'Base Information'!$D$91:$G$152,4,FALSE),$C$14:$X$77,3,FALSE) -> 0 | F87: =VLOOKUP(VLOOKUP($C87,'Base Information'!$D$91:$G$152,1,FALSE),$C$14:$X$77,4,FALSE)+VLOOKUP(VLOOKUP($C87,'Base Information'!$D$91:$G$152,2,FALSE),$C$14:$X$77,4,FALSE)+VLOOKUP(VLOOKUP($C87,'Base Information'!$D$91:$G$152,3,FALSE),$C$14:$X$77,4,FALSE)+VLOOKUP(VLOOKUP($C87,'Base Information'!$D$91:$G$152,4,FALSE),$C$14:$X$77,4,FALSE) -> 0 | G87: =VLOOKUP(VLOOKUP($C87,'Base Information'!$D$91:$G$152,1,FALSE),$C$14:$X$77,5,FALSE)+VLOOKUP(VLOOKUP($C87,'Base Information'!$D$91:$G$152,2,FALSE),$C$14:$X$77,5,FALSE)+VLOOKUP(VLOOKUP($C87,'Base Information'!$D$91:$G$152,3,FALSE),$C$14:$X$77,5,FALSE)+VLOOKUP(VLOOKUP($C87,'Base Information'!$D$91:$G$152,4,FALSE),$C$14:$X$77,5,FALSE) -> 0 | H87: =SUM(D87:G87) -> 0 | I87: =VLOOKUP(VLOOKUP($C87,'Base Information'!$D$91:$G$152,1,FALSE),$C$14:$X$77,7,FALSE)+VLOOKUP(VLOOKUP($C87,'Base Information'!$D$91:$G$152,2,FALSE),$C$14:$X$77,7,FALSE)+VLOOKUP(VLOOKUP($C87,'Base Information'!$D$91:$G$152,3,FALSE),$C$14:$X$77,7,FALSE)+VLOOKUP(VLOOKUP($C87,'Base Information'!$D$91:$G$152,4,FALSE),$C$14:$X$77,7,FALSE) -> 64 | J87: =VLOOKUP(VLOOKUP($C87,'Base Information'!$D$91:$G$152,1,FALSE),$C$14:$X$77,8,FALSE)+VLOOKUP(VLOOKUP($C87,'Base Information'!$D$91:$G$152,2,FALSE),$C$14:$X$77,8,FALSE)+VLOOKUP(VLOOKUP($C87,'Base Information'!$D$91:$G$152,3,FALSE),$C$14:$X$77,8,FALSE)+VLOOKUP(VLOOKUP($C87,'Base Information'!$D$91:$G$152,4,FALSE),$C$14:$X$77,8,FALSE) -> 590 | K87: =VLOOKUP(VLOOKUP($C87,'Base Information'!$D$91:$G$152,1,FALSE),$C$14:$X$77,9,FALSE)+VLOOKUP(VLOOKUP($C87,'Base Information'!$D$91:$G$152,2,FALSE),$C$14:$X$77,9,FALSE)+VLOOKUP(VLOOKUP($C87,'Base Information'!$D$91:$G$152,3,FALSE),$C$14:$X$77,9,FALSE)+VLOOKUP(VLOOKUP($C87,'Base Information'!$D$91:$G$152,4,FALSE),$C$14:$X$77,9,FALSE) -> 0 | L87: =VLOOKUP(VLOOKUP($C87,'Base Information'!$D$91:$G$152,1,FALSE),$C$14:$X$77,10,FALSE)+VLOOKUP(VLOOKUP($C87,'Base Information'!$D$91:$G$152,2,FALSE),$C$14:$X$77,10,FALSE)+VLOOKUP(VLOOKUP($C87,'Base Information'!$D$91:$G$152,3,FALSE),$C$14:$X$77,10,FALSE)+VLOOKUP(VLOOKUP($C87,'Base Information'!$D$91:$G$152,4,FALSE),$C$14:$X$77,10,FALSE) -> 0 | M87: =SUM(I87:L87) -> 654 | N87: =VLOOKUP(VLOOKUP($C87,'Base Information'!$D$91:$G$152,1,FALSE),$C$14:$X$77,12,FALSE)+VLOOKUP(VLOOKUP($C87,'Base Information'!$D$91:$G$152,2,FALSE),$C$14:$X$77,12,FALSE)+VLOOKUP(VLOOKUP($C87,'Base Information'!$D$91:$G$152,3,FALSE),$C$14:$X$77,12,FALSE)+VLOOKUP(VLOOKUP($C87,'Base Information'!$D$91:$G$152,4,FALSE),$C$14:$X$77,12,FALSE) -> 521 | O87: =VLOOKUP(VLOOKUP($C87,'Base Information'!$D$91:$G$152,1,FALSE),$C$14:$X$77,13,FALSE)+VLOOKUP(VLOOKUP($C87,'Base Information'!$D$91:$G$152,2,FALSE),$C$14:$X$77,13,FALSE)+VLOOKUP(VLOOKUP($C87,'Base Information'!$D$91:$G$152,3,FALSE),$C$14:$X$77,13,FALSE)+VLOOKUP(VLOOKUP($C87,'Base Information'!$D$91:$G$152,4,FALSE),$C$14:$X$77,13,FALSE) -> 0 | P87: =VLOOKUP(VLOOKUP($C87,'Base Information'!$D$91:$G$152,1,FALSE),$C$14:$X$77,14,FALSE)+VLOOKUP(VLOOKUP($C87,'Base Information'!$D$91:$G$152,2,FALSE),$C$14:$X$77,14,FALSE)+VLOOKUP(VLOOKUP($C87,'Base Information'!$D$91:$G$152,3,FALSE),$C$14:$X$77,14,FALSE)+VLOOKUP(VLOOKUP($C87,'Base Information'!$D$91:$G$152,4,FALSE),$C$14:$X$77,14,FALSE) -> 413 | Q87: =VLOOKUP(VLOOKUP($C87,'Base Information'!$D$91:$G$152,1,FALSE),$C$14:$X$77,15,FALSE)+VLOOKUP(VLOOKUP($C87,'Base Information'!$D$91:$G$152,2,FALSE),$C$14:$X$77,15,FALSE)+VLOOKUP(VLOOKUP($C87,'Base Information'!$D$91:$G$152,3,FALSE),$C$14:$X$77,15,FALSE)+VLOOKUP(VLOOKUP($C87,'Base Information'!$D$91:$G$152,4,FALSE),$C$14:$X$77,15,FALSE) -> 0 | R87: =SUM(N87:Q87) -> 934 | S87: =VLOOKUP(VLOOKUP($C87,'Base Information'!$D$91:$G$152,1,FALSE),$C$14:$X$77,17,FALSE)+VLOOKUP(VLOOKUP($C87,'Base Information'!$D$91:$G$152,2,FALSE),$C$14:$X$77,17,FALSE)+VLOOKUP(VLOOKUP($C87,'Base Information'!$D$91:$G$152,3,FALSE),$C$14:$X$77,17,FALSE)+VLOOKUP(VLOOKUP($C87,'Base Information'!$D$91:$G$152,4,FALSE),$C$14:$X$77,17,FALSE) -> 0 | T87: =VLOOKUP(VLOOKUP($C87,'Base Information'!$D$91:$G$152,1,FALSE),$C$14:$X$77,18,FALSE)+VLOOKUP(VLOOKUP($C87,'Base Information'!$D$91:$G$152,2,FALSE),$C$14:$X$77,18,FALSE)+VLOOKUP(VLOOKUP($C87,'Base Information'!$D$91:$G$152,3,FALSE),$C$14:$X$77,18,FALSE)+VLOOKUP(VLOOKUP($C87,'Base Information'!$D$91:$G$152,4,FALSE),$C$14:$X$77,18,FALSE) -> 544 | U87: =VLOOKUP(VLOOKUP($C87,'Base Information'!$D$91:$G$152,1,FALSE),$C$14:$X$77,19,FALSE)+VLOOKUP(VLOOKUP($C87,'Base Information'!$D$91:$G$152,2,FALSE),$C$14:$X$77,19,FALSE)+VLOOKUP(VLOOKUP($C87,'Base Information'!$D$91:$G$152,3,FALSE),$C$14:$X$77,19,FALSE)+VLOOKUP(VLOOKUP($C87,'Base Information'!$D$91:$G$152,4,FALSE),$C$14:$X$77,19,FALSE) -> 109 | V87: =VLOOKUP(VLOOKUP($C87,'Base Information'!$D$91:$G$152,1,FALSE),$C$14:$X$77,20,FALSE)+VLOOKUP(VLOOKUP($C87,'Base Information'!$D$91:$G$152,2,FALSE),$C$14:$X$77,20,FALSE)+VLOOKUP(VLOOKUP($C87,'Base Information'!$D$91:$G$152,3,FALSE),$C$14:$X$77,20,FALSE)+VLOOKUP(VLOOKUP($C87,'Base Information'!$D$91:$G$152,4,FALSE),$C$14:$X$77,20,FALSE) -> 0 | W87: =SUM(S87:V87) -> 653 | X87: =H87+M87+R87+W87 -> 2241 | Z87: =VLOOKUP($C87,$C$14:$AA$77,25,FALSE) -> 0.9260330579

Sheet 15-Min Automobiles
B1: Intersection Traffic Volume Report
O2: Count Basics | Z2: Page 6 of 11
O3: ='Base Information'!$L$3 -> Start Date: | Q3: ='Base Information'!$N$3 -> 2011-12-06 | U3: ='Base Information'!R3 -> Weekday | X3: ='Base Information'!U3 -> Schools in Session
O4: ='Base Information'!$L$4 -> Total Number of Hours Counted: 12 | U4: ='Base Information'!R4 -> Non-Holiday | X4: ='Base Information'!U4 -> No Special Events
B5: 15-Minute Automobile Data
Q6: Automobiles (Cars, Light Trucks, & Motorcycles)
B7: ='Base Information'!E7 -> 441 NB ON RAMP and CTH OO (Northland Ave)
B9: 15-Minute Automobile Data
F10: ê | K10: ç | P10: é | U10: è
B11: 15-Minute | D11: From North | I11: From East | N11: From South | S11: From West
B12: Time Period | D12: ='Base Information'!$D$14:$D$14 -> 441 NB ON RAMP | I12: ='Base Information'!$D$15:$D$15 -> CTH OO (Northland Ave) | N12: ='Base Information'!$D$16:$D$16 -> 441 NB OFF RAMP | S12: ='Base Information'!$D$17:$D$17 -> CTH OO (Northland Ave) | X12: 15-Min | Z12: Hourly
B13: Start Time | D13: Right | E13: Thru | F13: Left | G13: U-Tn | H13: Total | I13: Right | J13: Thru | K13: Left | L13: U-Tn | M13: Total | N13: Right | O13: Thru | P13: Left | Q13: U-Tn | R13: Total | S13: Right | T13: Thru | U13: Left | V13: U-Tn | W13: Total | X13: Totals | Z13: Sum
B14: AM Peak Period | C14: 06:00:00 | D14: =Calculations!$AR$6 -> 0 | E14: =Calculations!$AS$6 -> 0 | F14: =Calculations!$AT$6 -> 0 | G14: =Calculations!$X$6 -> 0 | H14: =SUM(D14:G14) -> 0 | I14: =Calculations!$AV$6 -> 15 | J14: =Calculations!$AW$6 -> 112 | K14: =Calculations!$AX$6 -> 0 | L14: =Calculations!$AD$6 -> 0 | M14: =SUM(I14:L14) -> 127 | N14: =Calculations!$AZ$6 -> 25 | O14: =Calculations!$BA$6 -> 0 | P14: =Calculations!$BB$6 -> 82 | Q14: =Calculations!$AJ$6 -> 0 | R14: =SUM(N14:Q14) -> 107 | S14: =Calculations!$BD$6 -> 0 | T14: =Calculations!$BE$6 -> 23 | U14: =Calculations!$BF$6 -> 2 | V14: =Calculations!$AP$6 -> 0 | W14: =SUM(S14:V14) -> 25 | X14: =H14+M14+R14+W14 -> 259 | Z14: =IF(OR('15-Min All Vehicle'!X14=0,'15-Min All Vehicle'!X15=0, '15-Min All Vehicle'!X16=0,'15-Min All Vehicle'!X17=0)=TRUE,"",X14+X15+X16+X17) -> 1288
C15: 06:14:59.942 | D15: =Calculations!$AR$9 -> 0 | E15: =Calculations!$AS$9 -> 0 | F15: =Calculations!$AT$9 -> 0 | G15: =Calculations!$X$9 -> 0 | H15: =SUM(D15:G15) -> 0 | I15: =Calculations!$AV$9 -> 13 | J15: =Calculations!$AW$9 -> 102 | K15: =Calculations!$AX$9 -> 0 | L15: =Calculations!$AD$9 -> 0 | M15: =SUM(I15:L15) -> 115 | N15: =Calculations!$AZ$9 -> 30 | O15: =Calculations!$BA$9 -> 0 | P15: =Calculations!$BB$9 -> 111 | Q15: =Calculations!$AJ$9 -> 0 | R15: =SUM(N15:Q15) -> 141 | S15: =Calculations!$BD$9 -> 0 | T15: =Calculations!$BE$9 -> 32 | U15: =Calculations!$BF$9 -> 7 | V15: =Calculations!$AP$9 -> 0 | W15: =SUM(S15:V15) -> 39 | X15: 295 | Z15: =IF(OR('15-Min All Vehicle'!X15=0,'15-Min All Vehicle'!X16=0, '15-Min All Vehicle'!X17=0,'15-Min All Vehicle'!X18=0)=TRUE,"",X15+X16+X17+X18) -> 1424
C16: 06:29:59.971 | D16: =Calculations!$AR$12 -> 0 | E16: =Calculations!$AS$12 -> 0 | F16: =Calculations!$AT$12 -> 0 | G16: =Calculations!$X$12 -> 0 | H16: 0 | I16: =Calculations!$AV$12 -> 13 | J16: =Calculations!$AW$12 -> 101 | K16: =Calculations!$AX$12 -> 0 | L16: =Calculations!$AD$12 -> 0 | M16: 114 | N16: =Calculations!$AZ$12 -> 31 | O16: =Calculations!$BA$12 -> 0 | P16: =Calculations!$BB$12 -> 93 | Q16: =Calculations!$AJ$12 -> 0 | R16: 124 | S16: =Calculations!$BD$12 -> 0 | T16: =Calculations!$BE$12 -> 35 | U16: =Calculations!$BF$12 -> 3 | V16: =Calculations!$AP$12 -> 0 | W16: 38 | X16: 276 | Z16: =IF(OR('15-Min All Vehicle'!X16=0,'15-Min All Vehicle'!X17=0, '15-Min All Vehicle'!X18=0,'15-Min All Vehicle'!X19=0)=TRUE,"",X16+X17+X18+X19) -> 1627
C17: 06:45:00 | D17: =Calculations!$AR$15 -> 0 | E17: =Calculations!$AS$15 -> 0 | F17: =Calculations!$AT$15 -> 0 | G17: =Calculations!$X$15 -> 0 | H17: 0 | I17: =Calculations!$AV$15 -> 16 | J17: =Calculations!$AW$15 -> 141 | K17: =Calculations!$AX$15 -> 0 | L17: =Calculations!$AD$15 -> 0 | M17: 157 | N17: =Calculations!$AZ$15 -> 59 | O17: =Calculations!$BA$15 -> 0 | P17: =Calculations!$BB$15 -> 186 | Q17: =Calculations!$AJ$15 -> 0 | R17: 245 | S17: =Calculations!$BD$15 -> 0 | T17: =Calculations!$BE$15 -> 53 | U17: =Calculations!$BF$15 -> 3 | V17: =Calculations!$AP$15 -> 0 | W17: 56 | X17: 458 | Z17: =IF(OR('15-Min All Vehicle'!X17=0,'15-Min All Vehicle'!X18=0, '15-Min All Vehicle'!X19=0,'15-Min All Vehicle'!X20=0)=TRUE,"",X17+X18+X19+X20) -> 1917
C18: 06:59:59.942 | D18: =Calculations!$AR$18 -> 0 | E18: =Calculations!$AS$18 -> 0 | F18: =Calculations!$AT$18 -> 0 | G18: =Calculations!$X$18 -> 0 | H18: 0 | I18: =Calculations!$AV$18 -> 10 | J18: =Calculations!$AW$18 -> 153 | K18: =Calculations!$AX$18 -> 0 | L18: =Calculations!$AD$18 -> 0 | M18: 163 | N18: =Calculations!$AZ$18 -> 51 | O18: =Calculations!$BA$18 -> 0 | P18: =Calculations!$BB$18 -> 140 | Q18: =Calculations!$AJ$18 -> 0 | R18: 191 | S18: =Calculations!$BD$18 -> 0 | T18: =Calculations!$BE$18 -> 34 | U18: =Calculations!$BF$18 -> 7 | V18: =Calculations!$AP$18 -> 0 | W18: 41 | X18: 395 | Z18: =IF(OR('15-Min All Vehicle'!X18=0,'15-Min All Vehicle'!X19=0, '15-Min All Vehicle'!X20=0,'15-Min All Vehicle'!X21=0)=TRUE,"",X18+X19+X20+X21) -> 2112
C19: 07:14:59.971 | D19: =Calculations!$AR$21 -> 0 | E19: =Calculations!$AS$21 -> 0 | F19: =Calculations!$AT$21 -> 0 | G19: =Calculations!$X$21 -> 0 | H19: 0 | I19: =Calculations!$AV$21 -> 24 | J19: =Calculations!$AW$21 -> 145 | K19: =Calculations!$AX$21 -> 0 | L19: =Calculations!$AD$21 -> 0 | M19: 169 | N19: =Calculations!$AZ$21 -> 73 | O19: =Calculations!$BA$21 -> 0 | P19: =Calculations!$BB$21 -> 212 | Q19: =Calculations!$AJ$21 -> 0 | R19: 285 | S19: =Calculations!$BD$21 -> 0 | T19: =Calculations!$BE$21 -> 32 | U19: =Calculations!$BF$21 -> 12 | V19: =Calculations!$AP$21 -> 0 | W19: 44 | X19: 498 | Z19: =IF(OR('15-Min All Vehicle'!X19=0,'15-Min All Vehicle'!X20=0, '15-Min All Vehicle'!X21=0,'15-Min All Vehicle'!X22=0)=TRUE,"",X19+X20+X21+X22) -> 2125
C20: 07:30:00 | D20: =Calculations!$AR$24 -> 0 | E20: =Calculations!$AS$24 -> 0 | F20: =Calculations!$AT$24 -> 0 | G20: =Calculations!$X$24 -> 0 | H20: 0 | I20: =Calculations!$AV$24 -> 15 | J20: =Calculations!$AW$24 -> 221 | K20: =Calculations!$AX$24 -> 0 | L20: =Calculations!$AD$24 -> 0 | M20: 236 | N20: =Calculations!$AZ$24 -> 63 | O20: =Calculations!$BA$24 -> 0 | P20: =Calculations!$BB$24 -> 229 | Q20: =Calculations!$AJ$24 -> 0 | R20: 292 | S20: =Calculations!$BD$24 -> 0 | T20: =Calculations!$BE$24 -> 34 | U20: =Calculations!$BF$24 -> 4 | V20: =Calculations!$AP$24 -> 0 | W20: 38 | X20: 566 | Z20: =IF(OR('15-Min All Vehicle'!X20=0,'15-Min All Vehicle'!X21=0, '15-Min All Vehicle'!X22=0,'15-Min All Vehicle'!X23=0)=TRUE,"",X20+X21+X22+X23) -> 2025
C21: 07:44:59.942 | D21: =Calculations!$AR$27 -> 0 | E21: =Calculations!$AS$27 -> 0 | F21: =Calculations!$AT$27 -> 0 | G21: =Calculations!$X$27 -> 0 | H21: 0 | I21: =Calculations!$AV$27 -> 27 | J21: =Calculations!$AW$27 -> 268 | K21: =Calculations!$AX$27 -> 0 | L21: =Calculations!$AD$27 -> 0 | M21: 295 | N21: =Calculations!$AZ$27 -> 61 | O21: =Calculations!$BA$27 -> 0 | P21: =Calculations!$BB$27 -> 238 | Q21: =Calculations!$AJ$27 -> 0 | R21: 299 | S21: =Calculations!$BD$27 -> 0 | T21: =Calculations!$BE$27 -> 50 | U21: =Calculations!$BF$27 -> 9 | V21: =Calculations!$AP$27 -> 0 | W21: 59 | X21: 653 | Z21: =IF(OR('15-Min All Vehicle'!X21=0,'15-Min All Vehicle'!X22=0, '15-Min All Vehicle'!X23=0,'15-Min All Vehicle'!X24=0)=TRUE,"",X21+X22+X23+X24) -> 1800
C22: 07:59:59.971 | D22: =Calculations!$AR$30 -> 0 | E22: =Calculations!$AS$30 -> 0 | F22: =Calculations!$AT$30 -> 0 | G22: =Calculations!$X$30 -> 0 | H22: 0 | I22: =Calculations!$AV$30 -> 11 | J22: =Calculations!$AW$30 -> 162 | K22: =Calculations!$AX$30 -> 0 | L22: =Calculations!$AD$30 -> 0 | M22: 173 | N22: =Calculations!$AZ$30 -> 36 | O22: =Calculations!$BA$30 -> 0 | P22: =Calculations!$BB$30 -> 160 | Q22: =Calculations!$AJ$30 -> 0 | R22: 196 | S22: =Calculations!$BD$30 -> 0 | T22: =Calculations!$BE$30 -> 34 | U22: =Calculations!$BF$30 -> 5 | V22: =Calculations!$AP$30 -> 0 | W22: 39 | X22: 408 | Z22: =IF(OR('15-Min All Vehicle'!X22=0,'15-Min All Vehicle'!X23=0, '15-Min All Vehicle'!X24=0,'15-Min All Vehicle'!X25=0)=TRUE,"",X22+X23+X24+X25) -> 1509
C23: 08:15:00 | D23: =Calculations!$AR$33 -> 0 | E23: =Calculations!$AS$33 -> 0 | F23: =Calculations!$AT$33 -> 0 | G23: =Calculations!$X$33 -> 0 | H23: 0 | I23: =Calculations!$AV$33 -> 18 | J23: =Calculations!$AW$33 -> 151 | K23: =Calculations!$AX$33 -> 0 | L23: =Calculations!$AD$33 -> 0 | M23: 169 | N23: =Calculations!$AZ$33 -> 54 | O23: =Calculations!$BA$33 -> 0 | P23: =Calculations!$BB$33 -> 116 | Q23: =Calculations!$AJ$33 -> 0 | R23: 170 | S23: =Calculations!$BD$33 -> 0 | T23: =Calculations!$BE$33 -> 48 | U23: =Calculations!$BF$33 -> 11 | V23: =Calculations!$AP$33 -> 0 | W23: 59 | X23: 398 | Z23: =IF(OR('15-Min All Vehicle'!X23=0,'15-Min All Vehicle'!X24=0, '15-Min All Vehicle'!X25=0,'15-Min All Vehicle'!X26=0)=TRUE,"",X23+X24+X25+X26) -> 1388
C24: 08:29:59.942 | D24: =Calculations!$AR$36 -> 0 | E24: =Calculations!$AS$36 -> 0 | F24: =Calculations!$AT$36 -> 0 | G24: =Calculations!$X$36 -> 0 | H24: 0 | I24: =Calculations!$AV$36 -> 13 | J24: =Calculations!$AW$36 -> 116 | K24: =Calculations!$AX$36 -> 0 | L24: =Calculations!$AD$36 -> 0 | M24: 129 | N24: =Calculations!$AZ$36 -> 44 | O24: =Calculations!$BA$36 -> 0 | P24: =Calculations!$BB$36 -> 124 | Q24: =Calculations!$AJ$36 -> 0 | R24: 168 | S24: =Calculations!$BD$36 -> 0 | T24: =Calculations!$BE$36 -> 41 | U24: =Calculations!$BF$36 -> 3 | V24: =Calculations!$AP$36 -> 0 | W24: 44 | X24: 341 | Z24: =IF(OR('15-Min All Vehicle'!X24=0,'15-Min All Vehicle'!X25=0, '15-Min All Vehicle'!X26=0,'15-Min All Vehicle'!X27=0)=TRUE,"",X24+X25+X26+X27) -> 1233
C25: 08:44:59.971 | D25: =Calculations!$AR$39 -> 0 | E25: =Calculations!$AS$39 -> 0 | F25: =Calculations!$AT$39 -> 0 | G25: =Calculations!$X$39 -> 0 | H25: 0 | I25: =Calculations!$AV$39 -> 15 | J25: =Calculations!$AW$39 -> 127 | K25: =Calculations!$AX$39 -> 0 | L25: =Calculations!$AD$39 -> 0 | M25: 142 | N25: =Calculations!$AZ$39 -> 44 | O25: =Calculations!$BA$39 -> 0 | P25: =Calculations!$BB$39 -> 126 | Q25: =Calculations!$AJ$39 -> 0 | R25: 170 | S25: =Calculations!$BD$39 -> 0 | T25: =Calculations!$BE$39 -> 41 | U25: =Calculations!$BF$39 -> 9 | V25: =Calculations!$AP$39 -> 0 | W25: 50 | X25: 362 | Z25: =IF(OR('15-Min All Vehicle'!X25=0,'15-Min All Vehicle'!X26=0, '15-Min All Vehicle'!X27=0,'15-Min All Vehicle'!X28=0)=TRUE,"",X25+X26+X27+X28) -> 1142
C26: 09:00:00 | D26: =Calculations!$AR$42 -> 0 | E26: =Calculations!$AS$42 -> 0 | F26: =Calculations!$AT$42 -> 0 | G26: =Calculations!$X$42 -> 0 | H26: 0 | I26: =Calculations!$AV$42 -> 7 | J26: =Calculations!$AW$42 -> 115 | K26: =Calculations!$AX$42 -> 0 | L26: =Calculations!$AD$42 -> 0 | M26: 122 | N26: =Calculations!$AZ$42 -> 38 | O26: =Calculations!$BA$42 -> 0 | P26: =Calculations!$BB$42 -> 75 | Q26: =Calculations!$AJ$42 -> 0 | R26: 113 | S26: =Calculations!$BD$42 -> 0 | T26: =Calculations!$BE$42 -> 43 | U26: =Calculations!$BF$42 -> 9 | V26: =Calculations!$AP$42 -> 0 | W26: 52 | X26: 287 | Z26: =IF(OR('15-Min All Vehicle'!X26=0,'15-Min All Vehicle'!X27=0, '15-Min All Vehicle'!X28=0,'15-Min All Vehicle'!X29=0)=TRUE,"",X26+X27+X28+X29) -> 1033
C27: 09:14:59.942 | D27: =Calculations!$AR$45 -> 0 | E27: =Calculations!$AS$45 -> 0 | F27: =Calculations!$AT$45 -> 0 | G27: =Calculations!$X$45 -> 0 | H27: 0 | I27: =Calculations!$AV$45 -> 8 | J27: =Calculations!$AW$45 -> 90 | K27: =Calculations!$AX$45 -> 0 | L27: =Calculations!$AD$45 -> 0 | M27: 98 | N27: =Calculations!$AZ$45 -> 32 | O27: =Calculations!$BA$45 -> 0 | P27: =Calculations!$BB$45 -> 58 | Q27: =Calculations!$AJ$45 -> 0 | R27: 90 | S27: =Calculations!$BD$45 -> 0 | T27: =Calculations!$BE$45 -> 46 | U27: =Calculations!$BF$45 -> 9 | V27: =Calculations!$AP$45 -> 0 | W27: 55 | X27: 243 | Z27: =IF(OR('15-Min All Vehicle'!X27=0,'15-Min All Vehicle'!X28=0, '15-Min All Vehicle'!X29=0,'15-Min All Vehicle'!X30=0)=TRUE,"",X27+X28+X29+X30) -> 1008
C28: 09:29:59.971 | D28: =Calculations!$AR$48 -> 0 | E28: =Calculations!$AS$48 -> 0 | F28: =Calculations!$AT$48 -> 0 | G28: =Calculations!$X$48 -> 0 | H28: 0 | I28: =Calculations!$AV$48 -> 9 | J28: =Calculations!$AW$48 -> 96 | K28: =Calculations!$AX$48 -> 0 | L28: =Calculations!$AD$48 -> 0 | M28: 105 | N28: =Calculations!$AZ$48 -> 25 | O28: =Calculations!$BA$48 -> 0 | P28: =Calculations!$BB$48 -> 71 | Q28: =Calculations!$AJ$48 -> 0 | R28: 96 | S28: =Calculations!$BD$48 -> 0 | T28: =Calculations!$BE$48 -> 38 | U28: =Calculations!$BF$48 -> 11 | V28: =Calculations!$AP$48 -> 0 | W28: 49 | X28: 250 | Z28: =IF(OR('15-Min All Vehicle'!X28=0,'15-Min All Vehicle'!X29=0, '15-Min All Vehicle'!X30=0,'15-Min All Vehicle'!X31=0)=TRUE,"",X28+X29+X30+X31) -> 1006
C29: 09:45:00 | D29: =Calculations!$AR$51 -> 0 | E29: =Calculations!$AS$51 -> 0 | F29: =Calculations!$AT$51 -> 0 | G29: =Calculations!$X$51 -> 0 | H29: 0 | I29: =Calculations!$AV$51 -> 12 | J29: =Calculations!$AW$51 -> 87 | K29: =Calculations!$AX$51 -> 0 | L29: =Calculations!$AD$51 -> 0 | M29: 99 | N29: =Calculations!$AZ$51 -> 33 | O29: =Calculations!$BA$51 -> 0 | P29: =Calculations!$BB$51 -> 65 | Q29: =Calculations!$AJ$51 -> 0 | R29: 98 | S29: =Calculations!$BD$51 -> 0 | T29: =Calculations!$BE$51 -> 51 | U29: =Calculations!$BF$51 -> 5 | V29: =Calculations!$AP$51 -> 0 | W29: 56 | X29: 253 | Z29: =IF(OR('15-Min All Vehicle'!X29=0,'15-Min All Vehicle'!X30=0, '15-Min All Vehicle'!X31=0,'15-Min All Vehicle'!X32=0)=TRUE,"",X29+X30+X31+X32) -> 1004
